Workbook

Sheet RESUMO
C1: Ministério do Desenvolvimento Regional - MDR
C2: Companhia de Desenvolvimento dos Vales do São Francisco e do Parnaíba
C3: 5ª Superintendência Regional
C4: Gerência Regional de Infraestrutura
C5: Unidade Regional de Estudos e Projetos
B7: Objeto: | C7: CONTRATAÇÃO DE SERVIÇOS DE EXECUÇÃO DE PAVIMENTAÇÃO EM PARALELEPÍPEDO GRANÍTICO, EM VIAS DE DIVERSOS MUNICÍPIOS INSERIDOS NA ÁREA DE ATUAÇÃO DA 5ª SUPERINTENDÊNCIA REGIONAL DA CODEVASF, NO ESTADO DE ALAGOAS
B8: Bancos: | C8: SINAPI - 10/2023 - Alagoas; SICRO3 - 07/2023 - Alagoas; ORSE - 09/2023 - Sergipe - Sem Desoneração | E8: BDI: | F8: 0.2135
E9: LS: | F9: 114,90% (hora) 70,23% (mês)
B10: Quadro Resumo
B11: Código | C11: Itens | D11: Área (m²) | E11: Valor | F11: Valor por m²
B12: 1 | C12: Pavimentação em paralelepípedo granítico | D12: =MEMÓRIA!M10 -> 156000 | E12: ='PO1'!K39 -> 19981485.19 | F12: =E12/D12 -> 128.0864435
B13: Total | D13: =SUM(D12:D12) -> 156000 | E13: =SUM(E12:E12) -> 19981485.19

Sheet PO1
F1: Bancos | I1: B.D.I. | K1: Encargos Sociais
F2: SINAPI - 10/2023 - Alagoas SICRO3 - 07/2023 - Alagoas ORSE - 09/2023 - Sergipe Sem desoneração | I2: =RESUMO!F8 -> 0.2135 | K2: Não Desonerado: Horista: 113,41% Mensalista: 69,73%
B3: =RESUMO!C12 -> Pavimentação em paralelepípedo granítico
B5: ITEM | C5: ORIGEM COMPOSIÇÃO | D5: CÓDIGO COMPOSIÇÃO | E5: DISCRIMINAÇÃO DOS SERVIÇOS | F5: BDI: | G5: =RESUMO!F8 -> 0.2135 | H5: BDI Diferenciado: | I5: ='BDI + ES'!H61 -> 0.1528 | J5: R$/m² = | K5: =RESUMO!F12 -> 128.0864435
F6: Total de m²: | G6: =MEMÓRIA!M10 -> 156000 | H6: Encargos Sociais: Horista: 114,90% | I6: Encargos Sociais: Mensalista: 70,23% | J6: VALOR UNIT. COM BDI | K6: PREÇO TOTAL
F7: UND | G7: QUANT. | H7: BDI | I7: VALOR UNIT. | L7: Peso (%) | P7: N1 | Q7: TERRAPLENAGEM | R7: =ROUND((SUMIF(O:O,"TERRAPLENAGEM",K:K))/$K$39,5) -> 0.06537 | S7: =(SUMIF(O:O,"TERRAPLENAGEM",K:K)) -> 1306258.2
B8: 1 | E8: SERVIÇOS PRELIMINARES | K8: =SUM(K9:K13) -> 266136.03 | L8: =K8/$K$39 -> 0.01331913156 | M8: =SUM(M9:M13) -> 220658.88 | P8: N2 | Q8: EDIFICAÇÕES | R8: =ROUND((SUMIF(O:O,"EDIFICAÇÕES",K:K))/$K$39,6) -> 0.073047 | S8: =(SUMIF(O:O,"EDIFICAÇÕES",K:K)) -> 1459586.99
A9: 1 | B9: 1.1 | C9: Codevasf | D9: CPU-01 | E9: =VLOOKUP(D9,CPUs!$B$5:$J$161,3,0) -> ADMINISTRAÇÃO LOCAL | F9: m² | G9: =ROUND(VLOOKUP(B9,MEMÓRIA!$A$1:$O$139,15,0),2) -> 156000 | H9: =$G$5 -> 0.2135 | I9: =VLOOKUP(D9,CPUs!$B$6:$K$161,10,0) -> 0.72 | J9: =TRUNC(I9*(1+$G$5),2) -> 0.87 | K9: =TRUNC(G9*J9,2) -> 135720 | L9: 0.006792287896 | M9: =TRUNC(G9*I9,2) -> 112320 | O9: ADMINISTRAÇÃO LOCAL | P9: N3 | Q9: MOBILIZAÇÃO E DESMOBILIZAÇÃO | R9: =ROUND((SUMIF(O:O,"MOBILIZAÇÃO E DESMOBILIZAÇÃO",K:K))/$K$39,5) -> 0.00453 | S9: =(SUMIF(O:O,"MOBILIZAÇÃO E DESMOBILIZAÇÃO",K:K)) -> 90480
A10: 2 | B10: 1.2 | C10: SINAPI | D10: CPU-02 | E10: =VLOOKUP(D10,CPUs!$B$5:$J$161,3,0) -> MOBILIZAÇÃO E DESMOBILIZAÇÃO | F10: m² | G10: =ROUND(VLOOKUP(B10,MEMÓRIA!$A$1:$O$139,15,0),2) -> 156000 | H10: 0.2135 | I10: =VLOOKUP(D10,CPUs!$B$6:$K$161,10,0) -> 0.48 | J10: =TRUNC(I10*(1+$G$5),2) -> 0.58 | K10: 90480 | L10: 0.004528191931 | M10: =TRUNC(G10*I10,2) -> 74880 | O10: MOBILIZAÇÃO E DESMOBILIZAÇÃO | P10: N4 | Q10: DRENAGEM | R10: =ROUND((SUMIF(O:O,"DRENAGEM",K:K))/$K$39,5) -> 0.16892 | S10: =(SUMIF(O:O,"DRENAGEM",K:K)) -> 3375320
A11: 3 | B11: 1.3 | C11: SINAPI | D11: 103689 | E11: =VLOOKUP(D11,CPUs!$B$5:$J$161,3,0) -> FORNECIMENTO E INSTALAÇÃO DE PLACA DE OBRA COM CHAPA GALVANIZADA E ESTRUTURA DE MADEIRA. AF_03/2022_PS | F11: =VLOOKUP(D11,CPUs!$B$6:$J$161,6,0) -> m² | G11: =ROUND(VLOOKUP(B11,MEMÓRIA!$A$1:$O$139,15,0),2) -> 84.24 | H11: 0.2135 | I11: =VLOOKUP(D11,CPUs!$B$6:$J$161,8,0) -> 312 | J11: =TRUNC(I11*(1+$G$5),2) -> 378.61 | K11: =TRUNC(G11*J11,2) -> 31894.1 | L11: 0.001596182651 | M11: 26282.88 | O11: EDIFICAÇÕES | P11: N5 | Q11: PAVIMENTAÇÃO | R11: =ROUND((SUMIF(O:O,"PAVIMENTAÇÃO",K:K))/$K$39,5) -> 0.67572 | S11: =(SUMIF(O:O,"PAVIMENTAÇÃO",K:K)) -> 13501800
A12: 4 | B12: 1.4 | C12: SINAPI | D12: 103689 | E12: =VLOOKUP(D12,CPUs!$B$5:$J$161,3,0) -> FORNECIMENTO E INSTALAÇÃO DE PLACA DE OBRA COM CHAPA GALVANIZADA E ESTRUTURA DE MADEIRA. AF_03/2022_PS | F12: m² | G12: =ROUND(VLOOKUP(B12,MEMÓRIA!$A$1:$O$139,15,0),2) -> 13 | H12: 0.2135 | I12: =VLOOKUP(D12,CPUs!$B$6:$J$161,8,0) -> 312 | J12: =TRUNC(I12*(1+$G$5),2) -> 378.61 | K12: 4921.93 | L12: 0.0002463245326 | M12: 4056 | O12: EDIFICAÇÕES | P12: N6 | Q12: MO ESPECIALIZADA | R12: =ROUND((SUMIF(O:O,"MO ESPECIALIZADA",K:K))/$K$39,6) -> 0.005621 | S12: =(SUMIF(O:O,"MO ESPECIALIZADA",K:K)) -> 112320
A13: 5 | B13: 1.5 | C13: Codevasf | D13: CPU-03 | E13: =VLOOKUP(D13,CPUs!$B$5:$J$161,3,0) -> CANTEIRO DE OBRAS E ALMOXARIFADO | F13: m² | G13: =ROUND(VLOOKUP(B13,MEMÓRIA!$A$1:$O$139,15,0),2) -> 156000 | H13: 0.2135 | I13: =VLOOKUP(D13,CPUs!$B$6:$K$161,10,0) -> 0.02 | J13: 0.02 | K13: 3120 | L13: 0.0001561445493 | M13: 3120 | O13: EDIFICAÇÕES | P13: N7 | Q13: ADMINISTRAÇÃO LOCAL | R13: =ROUND((SUMIF(O:O,"ADMINISTRAÇÃO LOCAL",K:K))/$K$39,5) -> 0.00679 | S13: =(SUMIF(O:O,"ADMINISTRAÇÃO LOCAL",K:K)) -> 135720
B14: 2 | E14: TERRAPLENAGEM | K14: =SUM(K15:K18) -> 1198579.2 | L14: 0.05998449007 | M14: =SUM(M15:M16) -> 568401.6 | Q14: SOMA = | R14: =SUM(R7:R13) -> 0.999998 | S14: =SUM(S7:S13) -> 19981485.19
A15: 6 | B15: 2.1 | C15: Codevasf | D15: CPU-04 | E15: =VLOOKUP(D15,CPUs!$B$5:$J$161,3,0) -> SERVIÇOS TOPOGRÁFICOS PARA PAVIMENTAÇÃO, INCLUSIVE NOTAS DE SERVIÇOS, ACOMPANHAMENTO E GREIDE | F15: =VLOOKUP(D15,CPUs!$B$6:$J$161,6,0) -> m² | G15: =ROUND(VLOOKUP(B15,MEMÓRIA!$A$1:$O$139,15,0),2) -> 156000 | H15: =$G$5 -> 0.2135 | I15: =VLOOKUP(D15,CPUs!$B$6:$J$161,8,0) -> 0.48 | J15: =TRUNC(I15*(1+$G$5),2) -> 0.58 | K15: =TRUNC(G15*J15,2) -> 90480 | L15: 0.004528191931 | M15: =TRUNC(G15*I15,2) -> 74880 | O15: TERRAPLENAGEM
A16: 7 | B16: 2.2 | C16: SINAPI | D16: 101124 | E16: =VLOOKUP(D16,CPUs!$B$5:$J$161,3,0) -> ESCAVAÇÃO HORIZONTAL, INCLUINDO CARGA E DESCARGA EM SOLO DE 1A CATEGORIA COM TRATOR DE ESTEIRAS (100HP/LÂMINA: 2,19M3). AF_07/2020 | F16: =VLOOKUP(D16,CPUs!$B$6:$J$161,6,0) -> m³ | G16: =ROUND(VLOOKUP(B16,MEMÓRIA!$A$1:$O$139,15,0),2) -> 34320 | H16: =$G$5 -> 0.2135 | I16: =VLOOKUP(D16,CPUs!$B$6:$J$161,8,0) -> 14.38 | J16: =TRUNC(I16*(1+$G$5),2) -> 17.45 | K16: =TRUNC(G16*J16,2) -> 598884 | L16: 0.02997194624 | M16: 493521.6 | O16: TERRAPLENAGEM
A17: 8 | B17: 2.3 | C17: SINAPI | D17: 100574 | E17: =VLOOKUP(D17,CPUs!$B$5:$J$161,3,0) -> ESPALHAMENTO DE MATERIAL COM TRATOR DE ESTEIRAS. AF_11/2019 | F17: =VLOOKUP(D17,CPUs!$B$6:$J$161,6,0) -> m³ | G17: =ROUND(VLOOKUP(B17,MEMÓRIA!$A$1:$O$139,15,0),2) -> 34320 | H17: =$G$5 -> 0.2135 | I17: =VLOOKUP(D17,CPUs!$B$6:$J$161,8,0) -> 1.33 | J17: =TRUNC(I17*(1+$G$5),2) -> 1.61 | K17: =TRUNC(G17*J17,2) -> 55255.2 | L17: 0.002765319969 | M17: =TRUNC(G17*I17,2) -> 45645.6 | O17: TERRAPLENAGEM
A18: 9 | B18: 2.4 | C18: SINAPI | D18: 100576 | E18: =VLOOKUP(D18,CPUs!$B$5:$J$161,3,0) -> REGULARIZAÇÃO E COMPACTAÇÃO DE SUBLEITO DE SOLO PREDOMINANTEMENTE ARGILOSO. AF_11/2019 | F18: =VLOOKUP(D18,CPUs!$B$6:$J$161,6,0) -> m² | G18: =ROUND(VLOOKUP(B18,MEMÓRIA!$A$1:$O$139,15,0),2) -> 156000 | H18: =$G$5 -> 0.2135 | I18: =VLOOKUP(D18,CPUs!$B$6:$J$161,8,0) -> 2.4 | J18: =TRUNC(I18*(1+$G$5),2) -> 2.91 | K18: =TRUNC(G18*J18,2) -> 453960 | L18: 0.02271903193 | M18: =TRUNC(G18*I18,2) -> 374400 | O18: TERRAPLENAGEM
B19: 3 | E19: PAVIMENTAÇÃO | K19: =SUM(K20:K20) -> 13501800 | L19: 0.6757155372 | M19: =SUM(M20:M20) -> 11127480
A20: 10 | B20: 3.1 | C20: SINAPI | D20: 101169 | E20: =VLOOKUP(D20,CPUs!$B$6:$J$161,3,0) -> EXECUÇÃO DE PAVIMENTO EM PARALELEPÍPEDOS, REJUNTAMENTO COM ARGAMASSA TRAÇO 1:3 (CIMENTO E AREIA). AF_05/2020 | F20: =VLOOKUP(D20,CPUs!$B$6:$J$161,6,0) -> m² | G20: =ROUND(VLOOKUP(B20,MEMÓRIA!$A$1:$O$139,15,0),2) -> 156000 | H20: =$G$5 -> 0.2135 | I20: =VLOOKUP(D20,CPUs!$B$6:$J$161,8,0) -> 71.33 | J20: =TRUNC(I20*(1+$G$5),2) -> 86.55 | K20: =TRUNC(G20*J20,2) -> 13501800 | L20: 0.6757155372 | M20: =TRUNC(G20*I20,2) -> 11127480 | O20: PAVIMENTAÇÃO
B21: 4 | E21: DRENAGEM | K21: =SUM(K22:K22) -> 3375320 | L21: 0.1689223783 | M21: =SUM(M22:M22) -> 2781480
A22: 11 | B22: 4.1 | C22: SINAPI | D22: 94273 | E22: =VLOOKUP(D22,CPUs!$B$6:$J$161,3,0) -> ASSENTAMENTO DE GUIA (MEIO-FIO) EM TRECHO RETO, CONFECCIONADA EM CONCRETO PRÉ-FABRICADO, DIMENSÕES 100X15X13X30 CM (COMPRIMENTO X BASE INFERIOR X BASE SUPERIOR X ALTURA), PARA VIAS URBANAS (USO VIÁRIO). AF_06/2016 | F22: =VLOOKUP(D22,CPUs!$B$6:$J$161,6,0) -> M | G22: =ROUND(VLOOKUP(B22,MEMÓRIA!$A$1:$O$139,15,0),2) -> 52000 | H22: =$G$5 -> 0.2135 | I22: =VLOOKUP(D22,CPUs!$B$6:$J$161,8,0) -> 53.49 | J22: =TRUNC(I22*(1+$G$5),2) -> 64.91 | K22: =TRUNC(G22*J22,2) -> 3375320 | L22: 0.1689223783 | M22: =TRUNC(G22*I22,2) -> 2781480 | O22: DRENAGEM
B23: 5 | E23: SERVIÇOS COMPLEMENTARES | K23: =SUM(K24:K26) -> 203857.16 | L23: 0.01020230268 | M23: =SUM(M24:M26) -> 168160.72
A24: 12 | B24: 5.1 | C24: SINAPI | D24: 83693 | E24: =VLOOKUP(D24,CPUs!$B$6:$J$161,3,0) -> CAIACAO EM MEIO FIO | F24: =VLOOKUP(D24,CPUs!$B$6:$J$161,6,0) -> m² | G24: =ROUND(VLOOKUP(B24,MEMÓRIA!$A$1:$O$139,15,0),2) -> 12480 | H24: =$G$5 -> 0.2135 | I24: =VLOOKUP(D24,CPUs!$B$6:$J$161,8,0) -> 4.49 | J24: =TRUNC(I24*(1+$G$5),2) -> 5.44 | K24: =TRUNC(G24*J24,2) -> 67891.2 | L24: 0.003397705393 | M24: =TRUNC(G24*I24,2) -> 56035.2 | O24: EDIFICAÇÕES
A25: 13 | B25: 5.2 | C25: Codevasf | D25: CPU-05 | E25: =VLOOKUP(D25,CPUs!$B$6:$J$161,3,0) -> CONSERTO DE QUEBRA NO RAMAL NA RUA SEM PAVIMENTO COM FORNECIMENTO DE MATERIAL HIDRÁULICO | F25: =VLOOKUP(D25,CPUs!$B$6:$J$161,6,0) -> UND | G25: =ROUND(VLOOKUP(B25,MEMÓRIA!$A$1:$O$139,15,0),2) -> 52 | H25: 0.2135 | I25: =VLOOKUP(D25,CPUs!$B$6:$J$161,8,0) -> 16.26 | J25: =TRUNC(I25*(1+$G$5),2) -> 19.73 | K25: =TRUNC(G25*J25,2) -> 1025.96 | L25: 5.134553264e-05 | M25: =TRUNC(G25*I25,2) -> 845.52 | O25: EDIFICAÇÕES
A26: 14 | B26: 5.3 | C26: Codevasf | D26: CPU-06 | E26: =VLOOKUP(D26,CPUs!$B$6:$J$161,3,0) -> ESCORAMENTO DE MEIO FIO COM MATERIAL LOCAL COMPACTADO MANUALMENTE, EM FAIXA DE 0,50M | F26: =VLOOKUP(D26,CPUs!$B$6:$J$161,6,0) -> M | G26: =ROUND(VLOOKUP(B26,MEMÓRIA!$A$1:$O$139,15,0),2) -> 26000 | H26: 0.2135 | I26: =VLOOKUP(D26,CPUs!$B$6:$J$161,8,0) -> 4.28 | J26: 5.19 | K26: =TRUNC(G26*J26,2) -> 134940 | L26: 0.006753251759 | M26: 111280 | O26: EDIFICAÇÕES
B27: 6 | E27: PROJETO EXECUTIVO | K27: =K28 -> 112320 | L27: 0.005621203776 | M27: =M28 -> 93600
A28: 15 | B28: 6.1 | C28: Codevasf | D28: CPU-07 | E28: =VLOOKUP(D28,CPUs!$B$6:$J$161,3,0) -> DETALHAMENTO PROJETO EXECUTIVO DE PAVIMENTAÇÃO | F28: =VLOOKUP(D28,CPUs!$B$6:$J$161,6,0) -> m² | G28: =ROUND(VLOOKUP(B28,MEMÓRIA!$A$1:$O$139,15,0),2) -> 156000 | H28: =$G$5 -> 0.2135 | I28: =VLOOKUP(D28,CPUs!$B$6:$J$161,8,0) -> 0.6 | J28: 0.72 | K28: =TRUNC(G28*J28,2) -> 112320 | L28: 0.005621203776 | M28: =TRUNC(G28*I28,2) -> 93600 | O28: MO ESPECIALIZADA
B29: 7 | E29: MOMENTO DE TRANSPORTE | K29: =SUM(K30:K36) -> 1323472.8 | L29: 0.06623495638 | M29: =SUM(M30:M32) -> 1002666.6
A30: 16 | B30: 7.1 | C30: SINAPI | D30: 95876 | E30: TRANSPORTE COM CAMINHÃO BASCULANTE DE 14 M³, EM VIA URBANA PAVIMENTADA, DMT ATÉ 30 KM (UNIDADE: M3XKM). AF_07/2020 (PEDRA) | F30: =VLOOKUP(D30,CPUs!$B$6:$J$161,6,0) -> M3XKM | G30: =ROUND(VLOOKUP(B30,MEMÓRIA!$A$1:$O$150,15,0),2) -> 262080 | H30: =$G$5 -> 0.2135 | I30: =VLOOKUP(D30,CPUs!$B$6:$J$161,8,0) -> 2.07 | J30: 2.51 | K30: =TRUNC(G30*J30,2) -> 657820.8 | L30: 0.03292151678 | M30: =TRUNC(G30*I30,2) -> 542505.6 | O30: EDIFICAÇÕES
A31: 17 | B31: 7.2 | C31: SINAPI | D31: 93593 | E31: TRANSPORTE COM CAMINHÃO BASCULANTE DE 14 M³, EM VIA URBANA PAVIMENTADA, ADICIONAL PARA DMT EXCEDENTE A 30 KM (UNIDADE: M3XKM). AF_07/2020 (PEDRA) | F31: =VLOOKUP(D31,CPUs!$B$6:$J$161,6,0) -> M3XKM | G31: =ROUND(VLOOKUP(B31,MEMÓRIA!$A$1:$O$150,15,0),2) -> 0 | H31: 0.2135 | I31: =VLOOKUP(D31,CPUs!$B$6:$J$161,8,0) -> 0.83 | J31: 1 | K31: =TRUNC(G31*J31,2) -> 0 | L31: 0 | M31: 0 | O31: EDIFICAÇÕES
A32: 18 | B32: 7.3 | C32: SINAPI | D32: 95876 | E32: TRANSPORTE COM CAMINHÃO BASCULANTE DE 14 M³, EM VIA URBANA PAVIMENTADA, DMT ATÉ 30 KM (UNIDADE: M3XKM). AF_07/2020 (AREIA) | F32: =VLOOKUP(D32,CPUs!$B$6:$J$161,6,0) -> M3XKM | G32: =ROUND(VLOOKUP(B32,MEMÓRIA!$A$1:$O$150,15,0),2) -> 222300 | H32: 0.2135 | I32: =VLOOKUP(D32,CPUs!$B$6:$J$161,8,0) -> 2.07 | J32: 2.51 | K32: 557973 | L32: 0.02792450084 | M32: 460161 | O32: EDIFICAÇÕES
A33: 19 | B33: 7.4 | C33: SINAPI | D33: 93593 | E33: TRANSPORTE COM CAMINHÃO BASCULANTE DE 14 M³, EM VIA URBANA PAVIMENTADA, ADICIONAL PARA DMT EXCEDENTE A 30 KM (UNIDADE: M3XKM). AF_07/2020 (AREIA) | F33: =VLOOKUP(D33,CPUs!$B$6:$J$161,6,0) -> M3XKM | G33: =ROUND(VLOOKUP(B33,MEMÓRIA!$A$1:$O$150,15,0),2) -> 0 | H33: 0.2135 | I33: =VLOOKUP(D33,CPUs!$B$6:$J$161,8,0) -> 0.83 | J33: 1 | K33: =TRUNC(G33*J33,2) -> 0 | L33: 0 | M33: =TRUNC(G33*I33,2) -> 0 | O33: EDIFICAÇÕES
A34: 20 | B34: 7.5 | C34: SINAPI | D34: 95876 | E34: TRANSPORTE COM CAMINHÃO BASCULANTE DE 14 M³, EM VIA URBANA PAVIMENTADA, DMT ATÉ 30 KM (UNIDADE: M3XKM). AF_07/2020 (BOTA-FORA) | F34: =VLOOKUP(D34,CPUs!$B$6:$J$161,6,0) -> M3XKM | G34: =ROUND(VLOOKUP(B34,MEMÓRIA!$A$1:$O$150,15,0),2) -> 42900 | H34: 0.2135 | I34: =VLOOKUP(D34,CPUs!$B$6:$J$161,8,0) -> 2.07 | J34: 2.51 | K34: =TRUNC(G34*J34,2) -> 107679 | L34: 0.005388938759 | M34: 88803 | O34: TERRAPLENAGEM
A35: 21 | B35: 7.6 | C35: SINAPI | D35: 93593 | E35: TRANSPORTE COM CAMINHÃO BASCULANTE DE 14 M³, EM VIA URBANA PAVIMENTADA, ADICIONAL PARA DMT EXCEDENTE A 30 KM (UNIDADE: M3XKM). AF_07/2020 (BOTA-FORA) | F35: =VLOOKUP(D35,CPUs!$B$6:$J$161,6,0) -> M3XKM | G35: =ROUND(VLOOKUP(B35,MEMÓRIA!$A$1:$O$150,15,0),2) -> 0 | H35: 0.2135 | I35: =VLOOKUP(D35,CPUs!$B$6:$J$161,8,0) -> 0.83 | J35: 1 | K35: 0 | L35: 0 | M35: 0 | O35: TERRAPLENAGEM
A36: 22 | B36: 7.7 | C36: SINAPI | D36: 93592 | E36: =VLOOKUP(D36,CPUs!$B$6:$J$161,3,0) -> TRANSPORTE COM CAMINHÃO BASCULANTE DE 14 M³, EM VIA URBANA EM REVESTIMENTO PRIMÁRIO (UNIDADE: M3XKM). AF_07/2020 (BOTA-FORA) | F36: =VLOOKUP(D36,CPUs!$B$6:$J$161,6,0) -> M3XKM | G36: =ROUND(VLOOKUP(B36,MEMÓRIA!$A$1:$O$150,15,0),2) -> 0 | H36: 0.2135 | I36: =VLOOKUP(D36,CPUs!$B$6:$J$161,8,0) -> 2.28 | J36: 2.76 | K36: =TRUNC(G36*J36,2) -> 0 | L36: 0 | M36: =TRUNC(G36*I36,2) -> 0 | O36: TERRAPLENAGEM
I37: TOTAL SEM BDI (R$) | K37: =SUM(M29,M23,M21,M19,M14,M8,M27) -> 15962447.8
I38: TOTAL DO BDI (R$) | K38: =K39-K37 -> 4019037.39
I39: TOTAL GERAL COM BDI (R$) | K39: =SUM(K29,K23,K21,K19,K14,K8,K27) -> 19981485.19 | L39: =SUM(L29,L23,L21,L19,L14,L8,L27) -> 1

Sheet MEMÓRIA
A5: Obra: | B5: =RESUMO!C12 -> Pavimentação em paralelepípedo granítico
K6: Parâmetros
L7: Qtde de módulo mínimo: | M7: 13 | N7: und
L8: Extensão do módulo mínimo: | M8: 2000 | N8: m
L9: Área do módulo mínimo: | M9: =M8*M11 -> 12000 | N9: m2
L10: Área total: | M10: =M9*M7 -> 156000 | N10: m2
L11: Largura da via: | M11: 6 | N11: m
A12: MEMÓRIA DE CÁLCULO
A13: Item | B13: Descrição | C13: % | D13: Comp. (m) | E13: Largura (m) | F13: Espessura (m) | G13: Altura (m) | H13: Área (m2) | I13: Volume (m3) | J13: Peso (t) | K13: Quantidade | L13: Coef. | M13: Total | N13: Unidade
A14: 1 | B14: =VLOOKUP(A14,'PO1'!$B$8:$K$22,4,0) -> SERVIÇOS PRELIMINARES
A16: 1.1 | B16: =VLOOKUP(A16,'PO1'!$B$8:$K$22,4,0) -> ADMINISTRAÇÃO LOCAL | O16: =M19 -> 156000
B18: Valor global (medição conforme execução) | H18: =M10 -> 156000 | K18: =M7 -> 13
B19: TOTAL | C19: =A16 -> 1.1 | M19: =H18 -> 156000 | N19: =VLOOKUP(C19,'PO1'!$B$8:$K$22,5,0) -> m²
A21: 1.2 | B21: =VLOOKUP(A21,'PO1'!$B$8:$K$22,4,0) -> MOBILIZAÇÃO E DESMOBILIZAÇÃO | O21: =SUM(E24:M24) -> 156000
B23: 1 und de mobilização + desmobilização/módulo | D23: =$M$8 -> 2000 | E23: =$M$11 -> 6 | H23: =E23*D23*K23 -> 156000 | K23: =$M$7 -> 13
B24: TOTAL | C24: =A21 -> 1.2 | M24: =SUM(H22:H23) -> 156000 | N24: =VLOOKUP(C24,'PO1'!$B$8:$K$22,5,0) -> m²
A26: 1.3 | B26: =VLOOKUP(A26,'PO1'!$B$8:$K$22,4,0) -> FORNECIMENTO E INSTALAÇÃO DE PLACA DE OBRA COM CHAPA GALVANIZADA E ESTRUTURA DE MADEIRA. AF_03/2022_PS | O26: =SUM(E29:M29) -> 84.24
B28: Placas de 6m² - 1 und a cada 14.000 m² | D28: 3.6 | G28: 1.8 | H28: =D28*G28*K28 -> 84.24 | K28: =M7 -> 13
B29: TOTAL | C29: =A26 -> 1.3 | M29: =H28 -> 84.24 | N29: =VLOOKUP(C29,'PO1'!$B$8:$K$22,5,0) -> m²
A31: 1.4 | B31: =VLOOKUP(A31,'PO1'!$B$8:$K$22,4,0) -> FORNECIMENTO E INSTALAÇÃO DE PLACA DE OBRA COM CHAPA GALVANIZADA E ESTRUTURA DE MADEIRA. AF_03/2022_PS | O31: =SUM(E34:M34) -> 13
B33: Placas de 1m²- 1 und a cada 14.000 m² | D33: 1 | G33: 1 | H33: =D33*G33*K33 -> 13 | K33: =M7 -> 13
B34: TOTAL | C34: =A31 -> 1.4 | M34: =H33 -> 13 | N34: =VLOOKUP(C34,'PO1'!$B$8:$K$22,5,0) -> m²
A36: 1.5 | B36: =VLOOKUP(A36,'PO1'!$B$8:$K$22,4,0) -> CANTEIRO DE OBRAS E ALMOXARIFADO | O36: =SUM(E39:M39) -> 156000
B38: 1 und a cada módulo | D38: =$M$8 -> 2000 | E38: =$M$11 -> 6 | H38: =E38*D38*K38 -> 156000 | K38: =$M$7 -> 13
B39: TOTAL | C39: =A36 -> 1.5 | M39: =H38 -> 156000 | N39: =VLOOKUP(C39,'PO1'!$B$8:$K$22,5,0) -> m²
A41: 2 | B41: =VLOOKUP(A41,'PO1'!$B$8:$K$22,4,0) -> TERRAPLENAGEM
A43: 2.1 | B43: =VLOOKUP(A43,'PO1'!$B$8:$K$22,4,0) -> SERVIÇOS TOPOGRÁFICOS PARA PAVIMENTAÇÃO, INCLUSIVE NOTAS DE SERVIÇOS, ACOMPANHAMENTO E GREIDE | O43: =SUM(E46:M46) -> 156000
B45: Área do módulo | D45: =$M$8 -> 2000 | E45: =$M$11 -> 6 | H45: =$D$45*$E$45 -> 12000 | K45: =$M$7 -> 13 | M45: =K45*H45 -> 156000
B46: TOTAL | C46: =A43 -> 2.1 | M46: =M45 -> 156000 | N46: =VLOOKUP(C46,'PO1'!$B$8:$K$22,5,0) -> m²
A48: 2.2 | B48: =VLOOKUP(A48,'PO1'!$B$8:$K$22,4,0) -> ESCAVAÇÃO HORIZONTAL, INCLUINDO CARGA E DESCARGA EM SOLO DE 1A CATEGORIA COM TRATOR DE ESTEIRAS (100HP/LÂMINA: 2,19M3). AF_07/2020 | O48: =SUM(E51:M51) -> 34320
B50: Volume de corte - 22cm de altura (12cm da pedra + 10cm areia) | D50: =$M$8 -> 2000 | E50: =$M$11 -> 6 | G50: 0.22 | H50: =D50*E50 -> 12000 | I50: =G50*H50*K50 -> 34320 | K50: =$M$7 -> 13 | P50: Considerando volume de areia da composição SINAPI 101169
B51: TOTAL | C51: =A48 -> 2.2 | M51: =I50 -> 34320 | N51: =VLOOKUP(C51,'PO1'!$B$8:$K$22,5,0) -> m³
A53: 2.3 | B53: =VLOOKUP(A53,'PO1'!$B$8:$K$22,4,0) -> ESPALHAMENTO DE MATERIAL COM TRATOR DE ESTEIRAS. AF_11/2019 | O53: =SUM(E56:M56) -> 34320
B55: Volume de corte - 22cm de altura (12cm da pedra + 10cm areia) | D55: =$M$8 -> 2000 | E55: =$M$11 -> 6 | G55: 0.22 | H55: =D55*E55 -> 12000 | I55: =G55*H55*K55 -> 34320 | K55: =$M$7 -> 13
B56: TOTAL | C56: =A53 -> 2.3 | M56: =I55 -> 34320 | N56: =VLOOKUP(C56,'PO1'!$B$8:$K$22,5,0) -> m³
A58: 2.4 | B58: =VLOOKUP(A58,'PO1'!$B$8:$K$22,4,0) -> REGULARIZAÇÃO E COMPACTAÇÃO DE SUBLEITO DE SOLO PREDOMINANTEMENTE ARGILOSO. AF_11/2019 | O58: =SUM(E61:M61) -> 156000
B60: Área projetada do pavimento | D60: =$M$8 -> 2000 | E60: =$M$11 -> 6 | H60: =D60*E60*K60 -> 156000 | K60: =$M$7 -> 13
B61: TOTAL | C61: =A58 -> 2.4 | M61: =H60 -> 156000 | N61: =VLOOKUP(C61,'PO1'!$B$8:$K$22,5,0) -> m²
A63: 3 | B63: =VLOOKUP(A63,'PO1'!$B$8:$K$22,4,0) -> PAVIMENTAÇÃO
A65: 3.1 | B65: =VLOOKUP(A65,'PO1'!$B$8:$K$22,4,0) -> EXECUÇÃO DE PAVIMENTO EM PARALELEPÍPEDOS, REJUNTAMENTO COM ARGAMASSA TRAÇO 1:3 (CIMENTO E AREIA). AF_05/2020 | O65: =SUM(E68:M68) -> 156000
B67: Área do módulo | D67: =$M$8 -> 2000 | E67: =$M$11 -> 6 | H67: =D67*E67*K67 -> 156000 | K67: =$M$7 -> 13
B68: TOTAL | C68: =A65 -> 3.1 | M68: =H67 -> 156000 | N68: =VLOOKUP(C68,'PO1'!$B$8:$K$22,5,0) -> m²
A70: 4 | B70: =VLOOKUP(A70,'PO1'!$B$8:$K$22,4,0) -> DRENAGEM
A72: 4.1 | B72: =VLOOKUP(A72,'PO1'!$B$8:$K$22,4,0) -> ASSENTAMENTO DE GUIA (MEIO-FIO) EM TRECHO RETO, CONFECCIONADA EM CONCRETO PRÉ-FABRICADO, DIMENSÕES 100X15X13X30 CM (COMPRIMENTO X BASE INFERIOR X BASE SUPERIOR X ALTURA), PARA VIAS URBANAS (USO VIÁRIO). AF_06/2016 | O72: =SUM(E75:M75) -> 52000
B74: Dois lados x (nº de módulos) | D74: =$M$8*2 -> 4000 | K74: =$M$7 -> 13 | M74: =D74*K74 -> 52000
B75: TOTAL | C75: =A72 -> 4.1 | M75: =M74 -> 52000 | N75: =VLOOKUP(C75,'PO1'!$B$8:$K$22,5,0) -> M
A77: 5 | B77: =VLOOKUP(A77,'PO1'!$B$8:$K$71,4,0) -> SERVIÇOS COMPLEMENTARES
A79: 5.1 | B79: =VLOOKUP(A79,'PO1'!$B$8:$K$32,4,0) -> CAIACAO EM MEIO FIO | O79: =M82 -> 12480
B81: Dois lados x (nº de módulos) | D81: =$M$8*2 -> 4000 | G81: 0.24 | H81: =G81*D81 -> 960 | K81: =$M$7 -> 13 | M81: =H81*K81 -> 12480
B82: TOTAL | C82: =A79 -> 5.1 | D82: =D81 -> 4000 | M82: =M81 -> 12480 | N82: =VLOOKUP(C82,'PO1'!$B$8:$K$71,5,0) -> m²
A84: 5.2 | B84: =VLOOKUP(A84,'PO1'!$B$8:$K$32,4,0) -> CONSERTO DE QUEBRA NO RAMAL NA RUA SEM PAVIMENTO COM FORNECIMENTO DE MATERIAL HIDRÁULICO | O84: =M87 -> 52
B86: 4 por módulo | K86: =$M$7 -> 13 | L86: 4 | M86: =L86*K86 -> 52
B87: TOTAL | C87: =A84 -> 5.2 | D87: =D86 -> 0 | M87: =M86 -> 52 | N87: =VLOOKUP(C87,'PO1'!$B$8:$K$71,5,0) -> UND
A89: 5.3 | B89: =VLOOKUP(A89,'PO1'!$B$8:$K$32,4,0) -> ESCORAMENTO DE MEIO FIO COM MATERIAL LOCAL COMPACTADO MANUALMENTE, EM FAIXA DE 0,50M | O89: =M92 -> 26000
B91: Dois lados x (nº de módulos) - 50% | C91: 0.5 | D91: =$M$8*2 -> 4000 | K91: =$M$7 -> 13 | M91: =D91*K91*C91 -> 26000
B92: TOTAL | C92: =A89 -> 5.3 | D92: =D91 -> 4000 | M92: =M91 -> 26000 | N92: =VLOOKUP(C92,'PO1'!$B$8:$K$71,5,0) -> M
A94: 6 | B94: =VLOOKUP(A94,'PO1'!$B$8:$K$71,4,0) -> PROJETO EXECUTIVO
A96: 6.1 | B96: =VLOOKUP(A96,'PO1'!$B$8:$K$71,4,0) -> DETALHAMENTO PROJETO EXECUTIVO DE PAVIMENTAÇÃO | O96: =M99 -> 156000
B98: Área do módulo | D98: =$M$8 -> 2000 | E98: =$M$11 -> 6 | H98: =D98*E98*K98 -> 156000 | K98: =$M$7 -> 13
B99: TOTAL | C99: =A96 -> 6.1 | M99: =H98 -> 156000 | N99: =VLOOKUP(C99,'PO1'!$B$8:$K$71,5,0) -> m²
A101: 7 | B101: =VLOOKUP(A101,'PO1'!$B$8:$K$71,4,0) -> MOMENTO DE TRANSPORTE
A103: 7.1 | B103: =VLOOKUP(A103,'PO1'!$B$8:$K$71,4,0) -> TRANSPORTE COM CAMINHÃO BASCULANTE DE 14 M³, EM VIA URBANA PAVIMENTADA, DMT ATÉ 30 KM (UNIDADE: M3XKM). AF_07/2020 (PEDRA) | O103: =M106 -> 262080
B104: Pedra
B105: Área do paralelo x Esp. X Empolamento (40%) x DMT (10km) | D105: =$M$8 -> 2000 | E105: =$M$11 -> 6 | F105: 0.12 | H105: =D105*E105*K105 -> 156000 | I105: =H105*L105*F105 -> 26208 | K105: =$M$7 -> 13 | L105: 1.4 | M105: =I105*10 -> 262080 | P105: DMT de 10km
B106: TOTAL | C106: =A103 -> 7.1 | M106: =M105 -> 262080 | N106: =VLOOKUP(C106,'PO1'!$B$8:$K$71,5,0) -> M3XKM
A108: 7.2 | B108: =VLOOKUP(A108,'PO1'!$B$8:$K$71,4,0) -> TRANSPORTE COM CAMINHÃO BASCULANTE DE 14 M³, EM VIA URBANA PAVIMENTADA, ADICIONAL PARA DMT EXCEDENTE A 30 KM (UNIDADE: M3XKM). AF_07/2020 (PEDRA) | O108: =M111 -> 0
B111: TOTAL | C111: =A108 -> 7.2 | M111: 0 | N111: =VLOOKUP(C111,'PO1'!$B$8:$K$71,5,0) -> M3XKM
A113: 7.3 | B113: =VLOOKUP(A113,'PO1'!$B$8:$K$71,4,0) -> TRANSPORTE COM CAMINHÃO BASCULANTE DE 14 M³, EM VIA URBANA PAVIMENTADA, DMT ATÉ 30 KM (UNIDADE: M3XKM). AF_07/2020 (AREIA) | O113: =M116 -> 222300
B114: Areia
B115: Área do paralelo x Coef X Empolamento (25%) x DMT (10km) | D115: =$M$8 -> 2000 | E115: =$M$11 -> 6 | F115: 0.114 | H115: =D115*E115*K115 -> 156000 | I115: =H115*L115*F115 -> 22230 | K115: =$M$7 -> 13 | L115: 1.25 | M115: =I115*10 -> 222300
B116: TOTAL | C116: =A113 -> 7.3 | M116: =M115 -> 222300 | N116: =VLOOKUP(C116,'PO1'!$B$8:$K$71,5,0) -> M3XKM
A118: 7.4 | B118: =VLOOKUP(A118,'PO1'!$B$8:$K$71,4,0) -> TRANSPORTE COM CAMINHÃO BASCULANTE DE 14 M³, EM VIA URBANA PAVIMENTADA, ADICIONAL PARA DMT EXCEDENTE A 30 KM (UNIDADE: M3XKM). AF_07/2020 (AREIA) | O118: =M122 -> 0
B122: TOTAL | C122: =A118 -> 7.4 | M122: =SUM(M120:M121) -> 0 | N122: =VLOOKUP(C122,'PO1'!$B$8:$K$71,5,0) -> M3XKM
A124: 7.5 | B124: =VLOOKUP(A124,'PO1'!$B$8:$K$71,4,0) -> TRANSPORTE COM CAMINHÃO BASCULANTE DE 14 M³, EM VIA URBANA PAVIMENTADA, DMT ATÉ 30 KM (UNIDADE: M3XKM). AF_07/2020 (BOTA-FORA) | O124: =M127 -> 42900
B126: Volume de corte - Empolamento 25% (DMT 1km) | I126: =$M$51 -> 34320 | L126: 1.25 | M126: =I126*L126 -> 42900
B127: TOTAL | C127: =A124 -> 7.5 | M127: =M126 -> 42900 | N127: =VLOOKUP(C127,'PO1'!$B$8:$K$71,5,0) -> M3XKM
A129: 7.6 | B129: =VLOOKUP(A129,'PO1'!$B$8:$K$71,4,0) -> TRANSPORTE COM CAMINHÃO BASCULANTE DE 14 M³, EM VIA URBANA PAVIMENTADA, ADICIONAL PARA DMT EXCEDENTE A 30 KM (UNIDADE: M3XKM). AF_07/2020 (BOTA-FORA) | O129: =M132 -> 0
B132: TOTAL | C132: =A129 -> 7.6 | M132: =M130 -> 0 | N132: =VLOOKUP(C132,'PO1'!$B$8:$K$71,5,0) -> M3XKM
A134: 7.7 | B134: =VLOOKUP(A134,'PO1'!$B$8:$K$71,4,0) -> TRANSPORTE COM CAMINHÃO BASCULANTE DE 14 M³, EM VIA URBANA EM REVESTIMENTO PRIMÁRIO (UNIDADE: M3XKM). AF_07/2020 (BOTA-FORA) | O134: =M139 -> 0
B139: TOTAL | C139: =A134 -> 7.7 | M139: =SUM(M137) -> 0 | N139: =VLOOKUP(C139,'PO1'!$B$8:$K$71,5,0) -> M3XKM

Sheet CFF
C1: Ministério do Desenvolvimento Regional - MDR
C2: Companhia de Desenvolvimento dos Vales do São Francisco e do Parnaíba
C3: 5ª Superintendência Regional
C4: Gerência Regional de Infraestrutura
C5: Unidade Regional de Estudos e Projetos
A7: Item | B7: Descrição | C7: Total Por Etapa | D7: MÊS 1 | E7: MÊS 2 | F7: MÊS 3 | G7: MÊS 4 | H7: MÊS 5 | I7: MÊS 6 | J7: MÊS 7 | K7: MÊS 8 | L7: MÊS 9 | M7: MÊS 10 | N7: MÊS 11 | O7: MÊS 12
A8: 1 | B8: =VLOOKUP(A8,'PO1'!B8:K32,4,0) -> SERVIÇOS PRELIMINARES | C8: =SUM(D8:O8) -> 1 | D8: =D27 -> 0.0029 | E8: =E27 -> 0.0029 | F8: 0.0886 | G8: 0.0886 | H8: 0.1082 | I8: 0.1082 | J8: 0.1082 | K8: 0.1082 | L8: 0.1082 | M8: 0.0886 | N8: 0.0937 | O8: 0.0937
C9: =VLOOKUP(A8,'PO1'!B8:K32,10,0) -> 266136.03 | D9: =D8*$C$9 -> 771.794487 | E9: =E8*$C$9 -> 771.794487 | F9: =F8*$C$9 -> 23579.65226 | G9: =G8*$C$9 -> 23579.65226 | H9: 28795.91845 | I9: 28795.91845 | J9: 28795.91845 | K9: =K8*$C$9 -> 28795.91845 | L9: 28795.91845 | M9: 23579.65226 | N9: 24936.94601 | O9: 24936.94601 | P9: =TRUNC(SUM(D9:O9),2) -> 266136.03
A10: 2 | B10: =VLOOKUP(A10,'PO1'!B10:K32,4,0) -> TERRAPLENAGEM | C10: =SUM(D10:O10) -> 1 | F10: 0.09 | G10: 0.09 | H10: 0.11 | I10: 0.11 | J10: 0.11 | K10: 0.11 | L10: 0.11 | M10: 0.09 | N10: 0.09 | O10: 0.09
C11: =VLOOKUP(A10,'PO1'!B10:K32,10,0) -> 1198579.2 | F11: =$C$11*F10 -> 107872.128 | G11: =$C$11*G10 -> 107872.128 | H11: 131843.712 | I11: 131843.712 | J11: 131843.712 | K11: 131843.712 | L11: 131843.712 | M11: 107872.128 | N11: 107872.128 | O11: 107872.128 | P11: =TRUNC(SUM(D11:O11),2) -> 1198579.2
A12: 3 | B12: =VLOOKUP(A12,'PO1'!B12:K32,4,0) -> PAVIMENTAÇÃO | C12: =SUM(D12:O12) -> 1 | F12: 0.09 | G12: 0.09 | H12: 0.11 | I12: 0.11 | J12: 0.11 | K12: 0.11 | L12: 0.11 | M12: 0.09 | N12: 0.09 | O12: 0.09
C13: =VLOOKUP(A12,'PO1'!B12:K32,10,0) -> 13501800 | F13: =$C$13*F12 -> 1215162 | G13: =$C$13*G12 -> 1215162 | H13: 1485198 | I13: 1485198 | J13: 1485198 | K13: 1485198 | L13: 1485198 | M13: 1215162 | N13: 1215162 | O13: 1215162 | P13: =TRUNC(SUM(D13:O13),2) -> 13501800
A14: 4 | B14: =VLOOKUP(A14,'PO1'!B14:K32,4,0) -> DRENAGEM | C14: =SUM(D14:O14) -> 1 | F14: 0.09 | G14: 0.09 | H14: 0.11 | I14: 0.11 | J14: 0.11 | K14: 0.11 | L14: 0.11 | M14: 0.09 | N14: 0.09 | O14: 0.09
C15: =VLOOKUP(A14,'PO1'!B14:K32,10,0) -> 3375320 | F15: =$C$15*F14 -> 303778.8 | G15: =$C$15*G14 -> 303778.8 | H15: 371285.2 | I15: 371285.2 | J15: 371285.2 | K15: 371285.2 | L15: 371285.2 | M15: 303778.8 | N15: 303778.8 | O15: 303778.8 | P15: =TRUNC(SUM(D15:O15),2) -> 3375320
A16: 5 | B16: =VLOOKUP(A16,'PO1'!B19:K38,4,0) -> SERVIÇOS COMPLEMENTARES | C16: =SUM(D16:O16) -> 1 | N16: 0.5 | O16: 0.5
C17: =VLOOKUP(A16,'PO1'!B19:K38,10,0) -> 203857.16 | N17: =$C$17*N16 -> 101928.58 | O17: 101928.58 | P17: =TRUNC(SUM(D17:O17),2) -> 203857.16
A18: 6 | B18: =VLOOKUP(A18,'PO1'!B19:K40,4,0) -> PROJETO EXECUTIVO | C18: =SUM(D18:O18) -> 1 | D18: 0.5 | E18: 0.5
C19: =VLOOKUP(A18,'PO1'!B19:K40,10,0) -> 112320 | D19: =$C$19*D18 -> 56160 | E19: =$C$19*E18 -> 56160 | P19: =TRUNC(SUM(D19:O19),2) -> 112320
A20: 7 | B20: =VLOOKUP(A20,'PO1'!B20:K42,4,0) -> MOMENTO DE TRANSPORTE | C20: =SUM(D20:O20) -> 1 | F20: 0.09 | G20: 0.09 | H20: 0.11 | I20: 0.11 | J20: 0.11 | K20: 0.11 | L20: 0.11 | M20: 0.09 | N20: 0.09 | O20: 0.09
C21: =VLOOKUP(A20,'PO1'!B20:K42,10,0) -> 1323472.8 | F21: =$C$21*F20 -> 119112.552 | G21: =$C$21*G20 -> 119112.552 | H21: 145582.008 | I21: 145582.008 | J21: 145582.008 | K21: 145582.008 | L21: 145582.008 | M21: 119112.552 | N21: 119112.552 | O21: 119112.552 | P21: =TRUNC(SUM(D21:O21),2) -> 1323472.8
A22: Porcentagem | D22: =(D23)/$P$22 -> 0.00284922737 | E22: =(E23)/$P$22 -> 0.00284922737 | F22: =(F23)/$P$22 -> 0.08855723763 | G22: 0.08855723763 | H22: 0.1082354399 | I22: 0.1082354399 | J22: 0.1082354399 | K22: 0.1082354399 | L22: 0.1082354399 | M22: 0.08855723763 | N22: 0.09372631655 | O22: 0.09372631655 | P22: =SUM(P8:P21) -> 19981485.19
A23: Custo | D23: =(SUM(D9,D11,D13,D15,D17,D19,D21)) -> 56931.79449 | E23: =(SUM(E9,E11,E13,E15,E17,E19,E21)) -> 56931.79449 | F23: =(SUM(F9,F11,F13,F15,F17,F19,F21)) -> 1769505.132 | G23: =(SUM(G9,G11,G13,G15,G17,G19,G21)) -> 1769505.132 | H23: 2162704.838 | I23: 2162704.838 | J23: 2162704.838 | K23: 2162704.838 | L23: 2162704.838 | M23: 1769505.132 | N23: 1872791.006 | O23: 1872791.006
A24: Porcentagem Acumulado | D24: =D22 -> 0.00284922737 | E24: =D24+E22 -> 0.005698454739 | F24: =E24+F22 -> 0.09425569237 | G24: =F24+G22 -> 0.18281293 | H24: =G24+H22 -> 0.2910483699 | I24: =H24+I22 -> 0.3992838097 | J24: =I24+J22 -> 0.5075192496 | K24: 0.6157546894 | L24: 0.7239901293 | M24: 0.8125473669 | N24: 0.9062736835 | O24: =N24+O22 -> 1
A25: Custo Acumulado | D25: =D23 -> 56931.79449 | E25: =D25+E23 -> 113863.589 | F25: =E25+F23 -> 1883368.721 | G25: 3652873.853 | H25: 5815578.692 | I25: 7978283.53 | J25: 10140988.37 | K25: 12303693.21 | L25: 14466398.05 | M25: 16235903.18 | N25: 18108694.18 | O25: =N25+O23 -> 19981485.19
D27: 0.0029 | E27: 0.0029 | F27: 0.0886 | G27: 0.0886 | H27: 0.1082 | I27: 0.1082 | J27: 0.1082 | K27: 0.1082 | L27: 0.1082 | M27: 0.0886 | N27: 0.0937 | O27: 0.0937
A28: 1.1 | B28: =VLOOKUP(A28,'PO1'!B8:K32,4,0) -> ADMINISTRAÇÃO LOCAL | C28: =VLOOKUP(A28,'PO1'!B8:K32,10,0) -> 135720 | D28: =($C$28*D27) -> 393.588 | E28: =($C$28*E27) -> 393.588 | F28: 12024.792 | G28: 12024.792 | H28: 14684.904 | I28: 14684.904 | J28: 14684.904 | K28: 14684.904 | L28: 14684.904 | M28: 12024.792 | N28: 12716.964 | O28: 12716.964
C29: =$P$22-$C$28 -> 19845765.19 | D29: =(D23-D28)/$C$29 -> 0.002848880149 | E29: =(E23-E28)/$C$29 -> 0.002848880149 | F29: 0.08855694519 | G29: 0.08855694519 | H29: 0.1082356822 | I29: 0.1082356822 | J29: 0.1082356822 | K29: 0.1082356822 | L29: 0.1082356822 | M29: 0.08855694519 | N29: 0.09372649652 | O29: 0.09372649652

Sheet BDI DNIT D (hidden)
D2: Ministério do Desenvolvimento Regional - MDR
D3: Companhia de Desenvolvimento dos Vales do São Francisco e do Parnaíba
D4: 5ª Superintendência Regional
D5: Gerência Regional de Infraestrutura
D6: Unidade Regional de Estudos e Projetos
B8: ANEXO 3 - ENCARGOS SOCIAIS e COMPOSIÇÃO DO BDI
B10: Considerações: | D10: Fonte da composição, valores de referência e fórmula do BDI: Instrução Normativa N° 62/DNIT SEDE.
D11: Ofício-Circular nº 4120/2023 (SEI DNIT nº 15308794)
B12: BDI COM DESONERAÇÃO
B13: DETALHAMENTO BDI - SERVIÇOS
B14: ITEM | C14: DESCRIÇÃO | G14: ITEM FORM | H14: PREÇO DE VENDA (%) | I14: CUSTO DIRETO (%) | J14: Pequeno porte | L14: Médio Porte | N14: Grande Porte
B15: 1 | C15: ADMINISTRAÇÃO CENTRAL RATEIO | G15: AC | I15: 0.06 | J15: 0.0451 | K15: 0.06 | L15: 0.0457 | M15: 0.06 | N15: 0.0463 | O15: 0.06
B16: 2 | C16: DESPESAS FINANCEIRAS | G16: DF | H16: 0.0098 | J16: 0.0096 | K16: 0.0128 | L16: 0.0097 | M16: 0.0128 | N16: 0.0098 | O16: 0.0128
B17: 3 | C17: SEGURO E GARANTIAS CONTRATUAIS | G17: S | H17: 0.0025 | J17: 0.0025 | K17: 0.0033 | L17: 0.0025 | M17: 0.0033 | N17: 0.0025 | O17: 0.0032
B18: 4 | C18: RISCOS | G18: R | H18: 0.005 | J18: 0.005 | K18: 0.0067 | L18: 0.005 | M18: 0.0066 | N18: 0.005 | O18: 0.0065
B19: 5 | C19: LUCRO | G19: L | I19: 0.07 | J19: 0.0751 | K19: 0.1 | L19: 0.0647 | M19: 0.085 | N19: 0.054 | O19: 0.07
B20: 6 | C20: TRIBUTOS | G20: I | H20: =SUM(H21:H24) -> 0.1115 | J20: =SUM(J21:J24) -> 0.1115 | K20: =SUM(K21:K24) -> 0.1484 | L20: =SUM(L21:L24) -> 0.1115 | M20: =SUM(M21:M24) -> 0.1465 | N20: =SUM(N21:N24) -> 0.1115 | O20: 0.1446
B21: 06.01 | D21: PIS | H21: 0.0065 | J21: 0.0065 | K21: 0.0087 | L21: 0.0065 | M21: 0.0085 | N21: 0.0065 | O21: 0.0084
B22: 06.02 | D22: COFINS | H22: 0.03 | J22: 0.03 | K22: 0.0399 | L22: 0.03 | M22: 0.0394 | N22: 0.03 | O22: 0.0389
B23: 06.03 | D23: ISS | H23: 0.03 | J23: 0.03 | K23: 0.0399 | L23: 0.03 | M23: 0.0394 | N23: 0.03 | O23: 0.0389
B24: 06.04 | D24: Contribuição Sobre Receita Bruta | H24: 0.045 | J24: 0.045 | K24: 0.0599 | L24: 0.045 | M24: 0.0592 | N24: 0.045 | O24: 0.0584
B25: BDI (%) = | I25: =ROUND((1+(I15+I19))/(1-(H16+H17+H18+H21+H22+H23+H24))-1,4) -> 0.2971 | J25: =SUM(J15:J20) -> 0.2488 | K25: =SUM(K15:K20) -> 0.3312 | L25: =SUM(L15:L20) -> 0.2391 | M25: =SUM(M15:M20) -> 0.3142 | N25: 0.2291 | O25: 0.2971
B26: * Observação: O percentual de ISSQN aqui utilizado consiste apenas em um referencial médio. O valor real do ISSQN a ser adotado deve ser aquele proveniente das alíquotas dos municípios situados na área de influência das obras.
B54: Considerações: | D54: Fonte da composição, valores de referência e fórmula do BDI: Instrução Normativa N° 62/DNIT SEDE.
B55: BDI DIFERENCIADO - SEM DESONERAÇÃO
B56: DETALHAMENTO BDI - DIFERENCIADO
B57: ITEM | C57: DESCRIÇÃO | G57: ITEM FORM | H57: PREÇO DE VENDA (%) | I57: CUSTO DIRETO (%)
B58: 1 | C58: ADMINISTRAÇÃO CENTRAL RATEIO | G58: AC | I58: 0.0381
B59: 2 | C59: DESPESAS FINANCEIRAS | G59: DF | H59: 0.0098
B60: 3 | C60: SEGURO E GARANTIAS CONTRATUAIS | G60: S | H60: 0.0025
B61: 4 | C61: RISCOS | G61: R | H61: 0.005
B62: 5 | C62: LUCRO | G62: L | I62: 0.05
B63: 6 | C63: TRIBUTOS | G63: I | H63: =SUM(H64:H67) -> 0.0815
B64: 06.01 | D64: PIS | H64: 0.0065
B65: 06.02 | D65: COFINS | H65: 0.03
B66: 06.03 | D66: ISS | H66: 0
B67: 06.04 | D67: Contribuição Sobre Receita Bruta | H67: 0.045
B68: BDI (%) = | I68: =ROUND((1+(I58+I62))/(1-(H59+H60+H61+H64+H65+H66+H67))-1,4) -> 0.2074
B69: Considerações: | D69: Fonte da composição, valores de referência e fórmula do BDI: Instrução Normativa N° 62/DNIT SEDE.

Sheet BDI + ES
D2: Ministério da Integração e do Desenvolvimento Regional - MIDR
D3: Companhia de Desenvolvimento dos Vales do São Francisco e do Parnaíba
D4: 5ª Superintendência Regional
D5: Gerência Regional de Infraestrutura
D6: Unidade Regional de Estudos e Projetos
B8: Considerações: | D8: Acórdão Nº 2622/2013 – TCU – Plenário de 25/9/2013
D13: Acórdão nº 2369/2011 - TCU - Plenário - DOU nº174 em 20 de setembro de 2011
B15: CONSTRUÇÃO DE RODOVIAS E FERROVIAS
B17: BDI SEM DESONERAÇÃO | I17: =B15 -> CONSTRUÇÃO DE RODOVIAS E FERROVIAS
B18: DETALHAMENTO BDI - SERVIÇOS
B19: ITEM | C19: DESCRIÇÃO | G19: ITEM FORM | H19: TOTAL | I19: 1º QUARTIL | J19: MEDIA | K19: 3º QUARTIL
B20: 1 | C20: ADMINISTRAÇÃO CENTRAL RATEIO | G20: AC | H20: 0.0401 | I20: =HLOOKUP($B$15&" 1",[39]DADOS!$B$7:$P$18,3,FALSE) -> 0.038 | J20: =HLOOKUP($B$15&" 2",[39]DADOS!$B$7:$P$18,3,FALSE) -> 0.0401 | K20: =HLOOKUP($B$15&" 3",[39]DADOS!$B$7:$P$18,3,FALSE) -> 0.0467
B21: 2 | C21: DESPESAS FINANCEIRAS | G21: DF | H21: 0.0111 | I21: =HLOOKUP($B$15&" 1",[39]DADOS!$B$7:$P$18,4,FALSE) -> 0.0102 | J21: =HLOOKUP($B$15&" 2",[39]DADOS!$B$7:$P$18,4,FALSE) -> 0.0111 | K21: =HLOOKUP($B$15&" 3",[39]DADOS!$B$7:$P$18,4,FALSE) -> 0.0121
B22: 3 | C22: RISCO, SEGURO E GARANTIA | G22: R | H22: =0.4%+0.56% -> 0.0096 | I22: =HLOOKUP($B$15&" 1",[39]DADOS!$B$7:$P$18,5,FALSE) -> 0.0082 | J22: =HLOOKUP($B$15&" 2",[39]DADOS!$B$7:$P$18,5,FALSE) -> 0.0096 | K22: =HLOOKUP($B$15&" 3",[39]DADOS!$B$7:$P$18,5,FALSE) -> 0.0171
B23: 4 | C23: EXPECTATIVA DE LUCRO | G23: L | H23: 0.073 | I23: =HLOOKUP($B$15&" 1",[39]DADOS!$B$7:$P$18,6,FALSE) -> 0.0664 | J23: =HLOOKUP($B$15&" 2",[39]DADOS!$B$7:$P$18,6,FALSE) -> 0.073 | K23: =HLOOKUP($B$15&" 3",[39]DADOS!$B$7:$P$18,6,FALSE) -> 0.0869
B24: 5 | C24: TRIBUTOS | G24: I | H24: =SUM(H25:H28) -> 0.0615
B25: 05.01 | D25: PIS | H25: 0.0065
B26: 05.02 | D26: COFINS | H26: 0.03
B27: 05.03 | D27: ISS | H27: 0.025
B28: 05.04 | D28: Contribuição Sobre Receita Bruta | H28: 0
B29: BDI (%) = ((((1+AC+R)*(1+DF)*(1+L))/(1-I))-1) | H29: =ROUND((((1+H20+H22)*(1+H21)*(1+H23))/(1-H24))-1,4) -> 0.2135 | I29: =HLOOKUP($B$15&" 1",[39]DADOS!$B$7:$P$18,12,FALSE) -> 0.196 | J29: =HLOOKUP($B$15&" 2",[39]DADOS!$B$7:$P$18,12,FALSE) -> 0.2097 | K29: =HLOOKUP($B$15&" 3",[39]DADOS!$B$7:$P$18,12,FALSE) -> 0.2423
B30: * VALORES DE PIS E COFINS SEGUNDO ALIQ MÁXIMA DO REGIME CUMULATIVO
B33: BDI COM DESONERAÇÃO
B34: DETALHAMENTO BDI - SERVIÇOS
B35: ITEM | C35: DESCRIÇÃO | G35: ITEM FORM | H35: TOTAL
B36: 1 | C36: ADMINISTRAÇÃO CENTRAL RATEIO | G36: AC | H36: =H20 -> 0.0401
B37: 2 | C37: DESPESAS FINANCEIRAS | G37: DF | H37: =H21 -> 0.0111
B38: 3 | C38: RISCO, SEGURO E GARANTIA | G38: R | H38: =H22 -> 0.0096
B39: 4 | C39: EXPECTATIVA DE LUCRO | G39: L | H39: =H23 -> 0.073
B40: 5 | C40: TRIBUTOS | G40: I | H40: =SUM(H41:H44) -> 0.1065
B41: 05.01 | D41: PIS | H41: =H25 -> 0.0065
B42: 05.02 | D42: COFINS | H42: =H26 -> 0.03
B43: 05.03 | D43: ISS | H43: =H27 -> 0.025
B44: 05.04 | D44: Contribuição Sobre Receita Bruta | H44: 0.045
B45: BDI (%) = ((((1+AC+R)*(1+DF)*(1+L))/(1-I))-1) | H45: =ROUND((((1+H36+H38)*(1+H37)*(1+H39))/(1-H40))-1,4) -> 0.2746
B46: =B30 -> * VALORES DE PIS E COFINS SEGUNDO ALIQ MÁXIMA DO REGIME CUMULATIVO
B47: ** PERCENTUAL DE CSRB EM CONFORMIDADE COM AS LEIS Nº 12.546/2011 E Nº 13.161/2015
B50: DETALHAMENTO BDI - MATERIAIS | I50: BDI DE MATERIAIS
B51: ITEM | C51: DESCRIÇÃO | G51: ITEM FORM | H51: TOTAL | I51: 1º QUARTIL | J51: MEDIA | K51: 3º QUARTIL
B52: 1 | C52: ADMINISTRAÇÃO CENTRAL RATEIO | G52: AC | H52: 0.0345 | I52: 0.015 | J52: 0.0345 | K52: 0.0449
B53: 2 | C53: DESPESAS FINANCEIRAS | G53: DF | H53: 0.0085 | I53: 0.0085 | J53: 0.0085 | K53: 0.0111
B54: 3 | C54: RISCO, SEGURO E GARANTIA | G54: R | H54: =0.48%+0.85% -> 0.0133 | I54: =0.3%+0.56% -> 0.0086 | J54: =0.48%+0.85% -> 0.0133 | K54: =0.82%+0.89% -> 0.0171
B55: 4 | C55: EXPECTATIVA DE LUCRO | G55: L | H55: 0.0511 | I55: 0.035 | J55: 0.0511 | K55: 0.0622
B56: 5 | C56: TRIBUTOS | G56: I | H56: =SUM(H57:H60) -> 0.0365
B57: 05.01 | D57: PIS | H57: =H41 -> 0.0065
B58: 05.02 | D58: COFINS | H58: =H42 -> 0.03
B59: 05.03 | D59: ISS | H59: 0
B60: 05.04 | D60: Contribuição Sobre Receita Bruta | H60: 0
B61: BDI (%) = ((((1+AC+R)*(1+DF)*(1+L))/(1-I))-1) | H61: =ROUND((((1+H52+H54)*(1+H53)*(1+H55))/(1-H56))-1,4) -> 0.1528 | I61: 0.111 | J61: 0.1402 | K61: 0.168
B62: =B46 -> * VALORES DE PIS E COFINS SEGUNDO ALIQ MÁXIMA DO REGIME CUMULATIVO
B63: ** PARA INSUMOS ASFÁLTICOS COMO CAP, EMULSÃO, ETC., CONSIDERAR BDI = 15% (NÃO PRECISA DETALHAR)
B65: ENCARGOS SOCIAIS SOBRE A MÃO DE OBRA
B66: CÓDIGO | C66: DESCRIÇÃO | E66: COM DESONERAÇÃO | G66: SEM DESONERAÇÃO
E67: HORISTA % | F67: MENSALISTA % | G67: HORISTA % | H67: MENSALISTA %
B68: GRUPO A
B69: A1 | C69: INSS | E69: 0 | F69: 0 | G69: 20 | H69: 20
B70: A2 | C70: SESI | E70: 1.5 | F70: 1.5 | G70: 1.5 | H70: 1.5
B71: A3 | C71: SENAI | E71: 1 | F71: 1 | G71: 1 | H71: 1
B72: A4 | C72: INCRA | E72: 0.2 | F72: 0.2 | G72: 0.2 | H72: 0.2
B73: A5 | C73: SEBRAE | E73: 0.6 | F73: 0.6 | G73: 0.6 | H73: 0.6
B74: A6 | C74: Salário Educação | E74: 2.5 | F74: 2.5 | G74: 2.5 | H74: 2.5
B75: A7 | C75: Seguro Contra Acidentes de Trabalho | E75: 3 | F75: 3 | G75: 3 | H75: 3
B76: A8 | C76: FGTS | E76: 8 | F76: 8 | G76: 8 | H76: 8
B77: A9 | C77: SECONCI | E77: 0 | F77: 0 | G77: 0 | H77: 0
B78: A | C78: Total | E78: =SUM(E69:E77) -> 16.8 | F78: =SUM(F69:F77) -> 16.8 | G78: =SUM(G69:G77) -> 36.8 | H78: =SUM(H69:H77) -> 36.8
B79: GRUPO B
B80: B1 | C80: Repouso Semanal Remunerado | E80: 18.06 | F80: - | G80: 18.06 | H80: -
B81: B2 | C81: Feriados | E81: 4.68 | F81: - | G81: 4.68 | H81: -
B82: B3 | C82: Auxílio-enfermidade | E82: 0.87 | F82: 0.66 | G82: 0.87 | H82: 0.66
B83: B4 | C83: 13° salário | E83: 11.07 | F83: 8.33 | G83: 11.07 | H83: 8.33
B84: B5 | C84: Licença-paternidade | E84: 0.07 | F84: 0.05 | G84: 0.07 | H84: 0.05
B85: B6 | C85: Faltas Justificadas | E85: 0.74 | F85: 0.56 | G85: 0.74 | H85: 0.56
B86: B7 | C86: Dias de chuva | E86: 1.88 | F86: - | G86: 1.88 | H86: -
B87: B8 | C87: Auxílio Acidente de Trabalho | E87: 0.11 | F87: 0.08 | G87: 0.11 | H87: 0.08
B88: B9 | C88: Férias Gozadas | E88: 11.16 | F88: 8.4 | G88: 11.16 | H88: 8.4
B89: B10 | C89: Salário Maternidade | E89: 0.04 | F89: 0.03 | G89: 0.04 | H89: 0.03
B90: B | C90: Total | E90: =SUM(E80:E89) -> 48.68 | F90: =SUM(F80:F89) -> 18.11 | G90: =SUM(G80:G89) -> 48.68 | H90: =SUM(H80:H89) -> 18.11
B91: GRUPO C
B92: C1 | C92: Aviso Prévio Indenizado | E92: 4.81 | F92: 3.62 | G92: 4.81 | H92: 3.62
B93: C2 | C93: Aviso Prévio Trabalhado | E93: 0.11 | F93: 0.09 | G93: 0.11 | H93: 0.09
B94: C3 | C94: Férias Indenizadas | E94: 2.98 | F94: 2.24 | G94: 2.98 | H94: 2.24
B95: C4 | C95: Depósito Rescisão Sem Justa Causa | E95: 2.78 | F95: 2.09 | G95: 2.78 | H95: 2.09
B96: C5 | C96: Indenização Adicional | E96: 0.4 | F96: 0.3 | G96: 0.4 | H96: 0.3
B97: C | C97: Total | E97: =SUM(E92:E96) -> 11.08 | F97: =SUM(F92:F96) -> 8.34 | G97: =SUM(G92:G96) -> 11.08 | H97: =SUM(H92:H96) -> 8.34
B98: GRUPO D
B99: D1 | C99: Reincidência de A sobre B | E99: =ROUND(E78*E90/100,2) -> 8.18 | F99: =ROUND(F78*F90/100,2) -> 3.04 | G99: =ROUND(G78*G90/100,2) -> 17.91 | H99: =ROUND(H78*H90/100,2) -> 6.66
B100: D2 | C100: Reincidência de Grupo A sobre Aviso Prévio Trabalhado e Reincidência do FGTS sobre Aviso Prévio Indenizado | E100: =ROUND((E78*E93+E76*E92)/100,2) -> 0.4 | F100: =ROUND((F78*F93+F76*F92)/100,2) -> 0.3 | G100: =ROUND((G78*G93+G76*G92)/100,2) -> 0.43 | H100: =ROUND((H78*H93+H76*H92)/100,2) -> 0.32
B101: D | C101: Total | E101: =ROUND(SUM(E99:E100),2) -> 8.58 | F101: =ROUND(SUM(F99:F100),2) -> 3.34 | G101: =ROUND(SUM(G99:G100),2) -> 18.34 | H101: =ROUND(SUM(H99:H100),2) -> 6.98
B103: T O T A L (%) | E103: =E78+E90+E97+E101 -> 85.14 | F103: =F78+F90+F97+F101 -> 46.59 | G103: =G78+G90+G97+G101 -> 114.9 | H103: =SUM(H78+H90+H97+H101) -> 70.23

Sheet CFF2 (hidden)
C1: Ministério do Desenvolvimento Regional - MDR | S1: Ministério do Desenvolvimento Regional - MDR
C2: Companhia de Desenvolvimento dos Vales do São Francisco e do Parnaíba | S2: Companhia de Desenvolvimento dos Vales do São Francisco e do Parnaíba
C3: 5ª Superintendência Regional | S3: 5ª Superintendência Regional
C4: Gerência Regional de Infraestrutura | S4: Gerência Regional de Infraestrutura
C5: Unidade Regional de Estudos e Projetos | S5: Unidade Regional de Estudos e Projetos
A7: Cronograma Físico e Financeiro | Q7: Cronograma Físico e Financeiro
A8: ITEM | B8: ETAPA | C8: % | D8: R$ | E8: 30 dias | G8: 60 dias | I8: 90 dias | K8: 120 dias | M8: 150 dias | O8: 180 dias | Q8: ITEM | R8: ETAPA | S8: % | T8: R$ | U8: 210 dias | W8: 240 dias | Y8: 270 dias | AA8: 300 dias | AC8: 330 dias | AE8: 360 dias | AG8: Total
E9: % | F9: R$ | G9: % | H9: R$ | I9: % | J9: R$ | K9: % | L9: R$ | M9: % | N9: R$ | O9: % | P9: R$ | U9: % | V9: R$ | W9: % | X9: R$ | Y9: % | Z9: R$ | AA9: % | AB9: R$ | AC9: % | AD9: R$ | AE9: % | AF9: R$ | AG9: % | AH9: R$
A10: 1 | B10: =VLOOKUP(A10,#REF!,4,0) ->  | C10: =D10/$D$20 ->  | D10: =VLOOKUP(A10,#REF!,10,0) ->  | E10: 0.0065 | F10: =IF(E10="","",E10*$D10) ->  | G10: 0.006 | H10: =IF(G10="","",G10*$D10) ->  | I10: 0.0289 | J10: =IF(I10="","",I10*$D10) ->  | K10: 0.0293 | L10: =IF(K10="","",K10*$D10) ->  | M10: 0.1175 | N10: =IF(M10="","",M10*$D10) ->  | O10: 0.1175 | P10: =IF(O10="","",O10*$D10) ->  | Q10: =A10 -> 1 | R10: =B10 ->  | S10: =T10/$D$20 ->  | T10: =D10 ->  | U10: 0.1175 | V10: =IF(U10="","",U10*$D10) ->  | W10: 0.1175 | X10: =IF(W10="","",W10*$D10) ->  | Y10: 0.1169 | Z10: =IF(Y10="","",Y10*$D10) ->  | AA10: 0.1122 | AB10: =IF(AA10="","",AA10*$D10) ->  | AC10: 0.1152 | AD10: =IF(AC10="","",AC10*$D10) ->  | AE10: 0.115 | AF10: =IF(AE10="","",AE10*$D10) ->  | AG10: =SUM(AE10,AC10,AA10,Y10,W10,U10,O10,M10,I10,G10,E10,K10) -> 1 | AH10: =SUM(AF10,AD10,AB10,Z10,X10,V10,P10,N10,J10,H10,F10,L10) -> 
A11: 2 | B11: =VLOOKUP(A11,#REF!,4,0) ->  | C11: =D11/$D$20 ->  | D11: =VLOOKUP(A11,#REF!,10,0) ->  | F11: =IF(E11="","",E11*$D11) ->  | G11: 0.125 | H11: =IF(G11="","",G11*$D11) ->  | I11: 0.125 | J11: =IF(I11="","",I11*$D11) ->  | K11: 0.125 | L11: =IF(K11="","",K11*$D11) ->  | M11: 0.125 | N11: =IF(M11="","",M11*$D11) ->  | O11: 0.125 | P11: =IF(O11="","",O11*$D11) ->  | Q11: =A11 -> 2 | R11: =B11 ->  | S11: =T11/$D$20 ->  | T11: =D11 ->  | U11: 0.125 | V11: =IF(U11="","",U11*$D11) ->  | W11: 0.125 | X11: =IF(W11="","",W11*$D11) ->  | Y11: 0.125 | Z11: =IF(Y11="","",Y11*$D11) ->  | AB11: =IF(AA11="","",AA11*$D11) ->  | AD11: =IF(AC11="","",AC11*$D11) ->  | AF11: =IF(AE11="","",AE11*$D11) ->  | AG11: 1
A12: 3 | B12: =VLOOKUP(A12,#REF!,4,0) ->  | D12: =VLOOKUP(A12,#REF!,10,0) ->  | M12: 0.125 | O12: 0.125 | Q12: 3 | U12: 0.125 | W12: 0.125 | Y12: 0.125 | AA12: 0.125 | AC12: 0.125 | AE12: 0.125 | AG12: 1
A13: 4 | B13: =VLOOKUP(A13,#REF!,4,0) ->  | D13: =VLOOKUP(A13,#REF!,10,0) ->  | H13: =IF(G13="","",G13*$D13) ->  | M13: 0.125 | N13: =IF(M13="","",M13*$D13) ->  | O13: 0.125 | P13: =IF(O13="","",O13*$D13) ->  | Q13: 4 | U13: 0.125 | W13: 0.125 | Y13: 0.125 | AA13: 0.125 | AC13: 0.125 | AE13: 0.125 | AG13: =SUM(AE13,AC13,AA13,Y13,W13,U13,O13,M13,I13,G13,E13,K13) -> 1
A14: 5 | B14: =VLOOKUP(A14,#REF!,4,0) ->  | D14: =VLOOKUP(A14,#REF!,10,0) ->  | H14: =IF(G14="","",G14*$D14) ->  | I14: 0.1 | K14: 0.1 | M14: 0.1 | O14: 0.1 | Q14: 5 | U14: 0.1 | W14: 0.1 | Y14: 0.1 | AA14: 0.1 | AC14: 0.1 | AE14: 0.1 | AG14: 1
A15: 6 | B15: =VLOOKUP(A15,#REF!,4,0) ->  | D15: =VLOOKUP(A15,#REF!,10,0) ->  | E15: 0.05 | G15: 0.05 | I15: 0.05 | K15: 0.05 | M15: 0.05 | O15: 0.05 | Q15: 6 | U15: 0.05 | W15: 0.05 | Y15: 0.05 | AA15: 0.05 | AC15: 0.25 | AE15: 0.25 | AG15: 1
A16: 7 | B16: =VLOOKUP(A16,#REF!,4,0) ->  | D16: =VLOOKUP(A16,#REF!,10,0) ->  | G16: 0.1 | I16: 0.1 | K16: 0.15 | M16: 0.15 | O16: 0.15 | Q16: 7 | U16: 0.15 | W16: 0.15 | Y16: 0.05 | AG16: 1
A17: 8 | B17: =VLOOKUP(A17,#REF!,4,0) ->  | D17: =VLOOKUP(A17,#REF!,10,0) ->  | E17: 1 | Q17: 8 | AG17: 1
A18: 9 | B18: =VLOOKUP(A18,#REF!,4,0) ->  | D18: =VLOOKUP(A18,#REF!,10,0) ->  | G18: 0.05 | I18: 0.1 | K18: 0.1 | M18: 0.1 | O18: 0.1 | Q18: 9 | S18: =T18/$D$20 ->  | U18: 0.1 | W18: 0.1 | Y18: 0.1 | AA18: 0.1 | AC18: 0.1 | AE18: 0.05 | AG18: 1
A19: 10 | B19: =VLOOKUP(A19,#REF!,4,0) ->  | D19: =VLOOKUP(A19,#REF!,10,0) ->  | I19: 0.1 | K19: 0.1 | M19: 0.1 | O19: 0.1 | Q19: 10 | U19: 0.1 | W19: 0.1 | Y19: 0.1 | AA19: 0.1 | AC19: 0.1 | AE19: 0.1 | AG19: 1
A20: TOTAL GERAL | C20: =SUM(C10:C19) ->  | D20: =SUM(D10:D19) ->  | E20: =F20/$D$20 ->  | F20: =SUM(F10:F19) ->  | G20: =H20/$D$20 ->  | H20: =SUM(H10:H19) ->  | I20: =J20/$D$20 ->  | J20: =SUM(J10:J19) ->  | K20: =L20/$D$20 ->  | L20: =SUM(L10:L19) ->  | M20: =N20/$D$20 ->  | N20: =SUM(N10:N19) ->  | O20: =P20/$D$20 ->  | P20: =SUM(P10:P19) ->  | Q20: TOTAL GERAL | S20: =SUM(S10:S19) ->  | T20: =SUM(T10:T19) ->  | U20: =V20/$D$20 ->  | V20: =SUM(V10:V19) ->  | W20: =X20/$D$20 ->  | X20: =SUM(X10:X19) ->  | Y20: =Z20/$D$20 ->  | Z20: =SUM(Z10:Z19) ->  | AA20: =AB20/$D$20 ->  | AB20: =SUM(AB10:AB19) ->  | AC20: =AD20/$D$20 ->  | AD20: =SUM(AD10:AD19) ->  | AE20: =AF20/$D$20 ->  | AF20: =SUM(AF10:AF19) ->  | AG20: =SUM(AE20,AC20,AA20,Y20,W20,U20,O20,M20,I20,G20,E20,K20) ->  | AH20: =SUM(AH10:AH19) -> 
A22: 1.1 | B22: ADMINISTRAÇÃO LOCAL | D22: =VLOOKUP(A22,#REF!,10,0) ->  | E22: 0.0065 | F22: =IF(E22="","",E22*$D22) ->  | G22: 0.006 | H22: =IF(G22="","",G22*$D22) ->  | I22: 0.0289 | J22: =IF(I22="","",I22*$D22) ->  | K22: 0.0293 | L22: =IF(K22="","",K22*$D22) ->  | M22: 0.1175 | N22: =IF(M22="","",M22*$D22) ->  | O22: 0.1175 | P22: =IF(O22="","",O22*$D22) ->  | Q22: =A22 -> 1.1 | R22: =B22 -> ADMINISTRAÇÃO LOCAL | T22: =D22 ->  | U22: 0.1175 | V22: =IF(U22="","",U22*$D22) ->  | W22: 0.1175 | X22: =IF(W22="","",W22*$D22) ->  | Y22: 0.1168 | Z22: =IF(Y22="","",Y22*$D22) ->  | AA22: 0.1122 | AB22: =IF(AA22="","",AA22*$D22) ->  | AC22: 0.1152 | AD22: =IF(AC22="","",AC22*$D22) ->  | AE22: 0.115 | AF22: =IF(AE22="","",AE22*$D22) ->  | AG22: =SUM(AE22,AC22,AA22,Y22,W22,U22,O22,M22,I22,G22,E22,K22) -> 0.9999 | AH22: =SUM(AF22,AD22,AB22,Z22,X22,V22,P22,N22,J22,H22,F22,L22) -> 
B23: RESTANTE | D23: =D20-D22 ->  | E23: =F23/$D$23 ->  | F23: =F20-F22 ->  | G23: =H23/$D$23 ->  | H23: =H20-H22 ->  | I23: =J23/$D$23 ->  | J23: =J20-J22 ->  | K23: =L23/$D$23 ->  | L23: =L20-L22 ->  | M23: =N23/$D$23 ->  | N23: =N20-N22 ->  | O23: =P23/$D$23 ->  | P23: =P20-P22 ->  | R23: RESTANTE | T23: =T20-T22 ->  | U23: =V23/$D$23 ->  | V23: =V20-V22 ->  | W23: =X23/$D$23 ->  | X23: =X20-X22 ->  | Y23: =Z23/$D$23 ->  | Z23: =Z20-Z22 ->  | AA23: =AB23/$D$23 ->  | AB23: =AB20-AB22 ->  | AC23: =AD23/$D$23 ->  | AD23: =AD20-AD22 ->  | AE23: =AF23/$D$23 ->  | AF23: =AF20-AF22 ->  | AG23: =AH23/$D$23 ->  | AH23: =AH20-AH22 -> 

Sheet ABC Serviços
D1: Obra
D2: =RESUMO!C7 -> CONTRATAÇÃO DE SERVIÇOS DE EXECUÇÃO DE PAVIMENTAÇÃO EM PARALELEPÍPEDO GRANÍTICO, EM VIAS DE DIVERSOS MUNICÍPIOS INSERIDOS NA ÁREA DE ATUAÇÃO DA 5ª SUPERINTENDÊNCIA REGIONAL DA CODEVASF, NO ESTADO DE ALAGOAS
B3: Curva ABC de Serviços
B4: Código | C4: Banco | D4: Descrição | E4: Und | F4: Quant. | G4: Valor Unit com BDI | H4: Total | I4: Peso (%) | J4: Peso Acumulado (%) | K4: Classe | M4: Onde: | N4: A <= | O4: 0.75
H5: =SUM(H1:H4) -> 0 | N5: =O4 -> 0.75 | O5: < B <= | P5: 0.95
A6: 10 | B6: =VLOOKUP(A6,'PO1'!$A:$P,4,0) -> 101169 | C6: =VLOOKUP(A6,'PO1'!$A:$P,3,0) -> SINAPI | D6: =VLOOKUP(A6,'PO1'!$A:$P,5,0) -> EXECUÇÃO DE PAVIMENTO EM PARALELEPÍPEDOS, REJUNTAMENTO COM ARGAMASSA TRAÇO 1:3 (CIMENTO E AREIA). AF_05/2020 | E6: =VLOOKUP(A6,'PO1'!$A:$P,6,0) -> m² | F6: =VLOOKUP(A6,'PO1'!$A:$P,7,0) -> 156000 | G6: =VLOOKUP(A6,'PO1'!$A:$P,10,0) -> 86.55 | H6: =VLOOKUP(A6,'PO1'!$A:$P,11,0) -> 13501800 | I6: =H6/$H$28 -> 0.6757155372 | J6: =I6+J5 -> 0.6757155372 | K6: =IF(J6<=$O$4,"A",IF(AND(J6<=$P$5,J6>$N$5),"B",IF(J6>$O$6,"C"))) -> A | N6: C > | O6: 0.95
A7: 11 | B7: =VLOOKUP(A7,'PO1'!$A:$P,4,0) -> 94273 | C7: =VLOOKUP(A7,'PO1'!$A:$P,3,0) -> SINAPI | D7: =VLOOKUP(A7,'PO1'!$A:$P,5,0) -> ASSENTAMENTO DE GUIA (MEIO-FIO) EM TRECHO RETO, CONFECCIONADA EM CONCRETO PRÉ-FABRICADO, DIMENSÕES 100X15X13X30 CM (COMPRIMENTO X BASE INFERIOR X BASE SUPERIOR X ALTURA), PARA VIAS URBANAS (USO VIÁRIO). AF_06/2016 | E7: =VLOOKUP(A7,'PO1'!$A:$P,6,0) -> M | F7: =VLOOKUP(A7,'PO1'!$A:$P,7,0) -> 52000 | G7: =VLOOKUP(A7,'PO1'!$A:$P,10,0) -> 64.91 | H7: =VLOOKUP(A7,'PO1'!$A:$P,11,0) -> 3375320 | I7: =H7/$H$28 -> 0.1689223783 | J7: =I7+J6 -> 0.8446379155 | K7: B
A8: 16 | B8: =VLOOKUP(A8,'PO1'!$A:$P,4,0) -> 95876 | C8: =VLOOKUP(A8,'PO1'!$A:$P,3,0) -> SINAPI | D8: =VLOOKUP(A8,'PO1'!$A:$P,5,0) -> TRANSPORTE COM CAMINHÃO BASCULANTE DE 14 M³, EM VIA URBANA PAVIMENTADA, DMT ATÉ 30 KM (UNIDADE: M3XKM). AF_07/2020 (PEDRA) | E8: =VLOOKUP(A8,'PO1'!$A:$P,6,0) -> M3XKM | F8: =VLOOKUP(A8,'PO1'!$A:$P,7,0) -> 262080 | G8: =VLOOKUP(A8,'PO1'!$A:$P,10,0) -> 2.51 | H8: =VLOOKUP(A8,'PO1'!$A:$P,11,0) -> 657820.8 | I8: 0.03292151678 | J8: 0.8775594323 | K8: B
A9: 7 | B9: =VLOOKUP(A9,'PO1'!$A:$P,4,0) -> 101124 | C9: =VLOOKUP(A9,'PO1'!$A:$P,3,0) -> SINAPI | D9: =VLOOKUP(A9,'PO1'!$A:$P,5,0) -> ESCAVAÇÃO HORIZONTAL, INCLUINDO CARGA E DESCARGA EM SOLO DE 1A CATEGORIA COM TRATOR DE ESTEIRAS (100HP/LÂMINA: 2,19M3). AF_07/2020 | E9: =VLOOKUP(A9,'PO1'!$A:$P,6,0) -> m³ | F9: =VLOOKUP(A9,'PO1'!$A:$P,7,0) -> 34320 | G9: =VLOOKUP(A9,'PO1'!$A:$P,10,0) -> 17.45 | H9: =VLOOKUP(A9,'PO1'!$A:$P,11,0) -> 598884 | I9: 0.02997194624 | J9: 0.9075313786 | K9: B
A10: 18 | B10: =VLOOKUP(A10,'PO1'!$A:$P,4,0) -> 95876 | C10: =VLOOKUP(A10,'PO1'!$A:$P,3,0) -> SINAPI | D10: =VLOOKUP(A10,'PO1'!$A:$P,5,0) -> TRANSPORTE COM CAMINHÃO BASCULANTE DE 14 M³, EM VIA URBANA PAVIMENTADA, DMT ATÉ 30 KM (UNIDADE: M3XKM). AF_07/2020 (AREIA) | E10: =VLOOKUP(A10,'PO1'!$A:$P,6,0) -> M3XKM | F10: =VLOOKUP(A10,'PO1'!$A:$P,7,0) -> 222300 | G10: =VLOOKUP(A10,'PO1'!$A:$P,10,0) -> 2.51 | H10: =VLOOKUP(A10,'PO1'!$A:$P,11,0) -> 557973 | I10: 0.02792450084 | J10: 0.9354558794 | K10: B
A11: 9 | B11: =VLOOKUP(A11,'PO1'!$A:$P,4,0) -> 100576 | C11: =VLOOKUP(A11,'PO1'!$A:$P,3,0) -> SINAPI | D11: =VLOOKUP(A11,'PO1'!$A:$P,5,0) -> REGULARIZAÇÃO E COMPACTAÇÃO DE SUBLEITO DE SOLO PREDOMINANTEMENTE ARGILOSO. AF_11/2019 | E11: =VLOOKUP(A11,'PO1'!$A:$P,6,0) -> m² | F11: =VLOOKUP(A11,'PO1'!$A:$P,7,0) -> 156000 | G11: =VLOOKUP(A11,'PO1'!$A:$P,10,0) -> 2.91 | H11: =VLOOKUP(A11,'PO1'!$A:$P,11,0) -> 453960 | I11: 0.02271903193 | J11: 0.9581749113 | K11: C
A12: 1 | B12: =VLOOKUP(A12,'PO1'!$A:$P,4,0) -> CPU-01 | C12: =VLOOKUP(A12,'PO1'!$A:$P,3,0) -> Codevasf | D12: =VLOOKUP(A12,'PO1'!$A:$P,5,0) -> ADMINISTRAÇÃO LOCAL | E12: =VLOOKUP(A12,'PO1'!$A:$P,6,0) -> m² | F12: =VLOOKUP(A12,'PO1'!$A:$P,7,0) -> 156000 | G12: =VLOOKUP(A12,'PO1'!$A:$P,10,0) -> 0.87 | H12: =VLOOKUP(A12,'PO1'!$A:$P,11,0) -> 135720 | I12: 0.006792287896 | J12: 0.9649671992 | K12: C
A13: 14 | B13: =VLOOKUP(A13,'PO1'!$A:$P,4,0) -> CPU-06 | C13: =VLOOKUP(A13,'PO1'!$A:$P,3,0) -> Codevasf | D13: =VLOOKUP(A13,'PO1'!$A:$P,5,0) -> ESCORAMENTO DE MEIO FIO COM MATERIAL LOCAL COMPACTADO MANUALMENTE, EM FAIXA DE 0,50M | E13: =VLOOKUP(A13,'PO1'!$A:$P,6,0) -> M | F13: =VLOOKUP(A13,'PO1'!$A:$P,7,0) -> 26000 | G13: =VLOOKUP(A13,'PO1'!$A:$P,10,0) -> 5.19 | H13: =VLOOKUP(A13,'PO1'!$A:$P,11,0) -> 134940 | I13: 0.006753251759 | J13: 0.971720451 | K13: C
A14: 15 | B14: =VLOOKUP(A14,'PO1'!$A:$P,4,0) -> CPU-07 | C14: =VLOOKUP(A14,'PO1'!$A:$P,3,0) -> Codevasf | D14: =VLOOKUP(A14,'PO1'!$A:$P,5,0) -> DETALHAMENTO PROJETO EXECUTIVO DE PAVIMENTAÇÃO | E14: =VLOOKUP(A14,'PO1'!$A:$P,6,0) -> m² | F14: =VLOOKUP(A14,'PO1'!$A:$P,7,0) -> 156000 | G14: =VLOOKUP(A14,'PO1'!$A:$P,10,0) -> 0.72 | H14: =VLOOKUP(A14,'PO1'!$A:$P,11,0) -> 112320 | I14: 0.005621203776 | J14: 0.9773416548 | K14: C
A15: 20 | B15: =VLOOKUP(A15,'PO1'!$A:$P,4,0) -> 95876 | C15: =VLOOKUP(A15,'PO1'!$A:$P,3,0) -> SINAPI | D15: =VLOOKUP(A15,'PO1'!$A:$P,5,0) -> TRANSPORTE COM CAMINHÃO BASCULANTE DE 14 M³, EM VIA URBANA PAVIMENTADA, DMT ATÉ 30 KM (UNIDADE: M3XKM). AF_07/2020 (BOTA-FORA) | E15: =VLOOKUP(A15,'PO1'!$A:$P,6,0) -> M3XKM | F15: =VLOOKUP(A15,'PO1'!$A:$P,7,0) -> 42900 | G15: =VLOOKUP(A15,'PO1'!$A:$P,10,0) -> 2.51 | H15: =VLOOKUP(A15,'PO1'!$A:$P,11,0) -> 107679 | I15: 0.005388938759 | J15: 0.9827305935 | K15: C
A16: 6 | B16: =VLOOKUP(A16,'PO1'!$A:$P,4,0) -> CPU-04 | C16: =VLOOKUP(A16,'PO1'!$A:$P,3,0) -> Codevasf | D16: =VLOOKUP(A16,'PO1'!$A:$P,5,0) -> SERVIÇOS TOPOGRÁFICOS PARA PAVIMENTAÇÃO, INCLUSIVE NOTAS DE SERVIÇOS, ACOMPANHAMENTO E GREIDE | E16: =VLOOKUP(A16,'PO1'!$A:$P,6,0) -> m² | F16: =VLOOKUP(A16,'PO1'!$A:$P,7,0) -> 156000 | G16: =VLOOKUP(A16,'PO1'!$A:$P,10,0) -> 0.58 | H16: =VLOOKUP(A16,'PO1'!$A:$P,11,0) -> 90480 | I16: 0.004528191931 | J16: 0.9872587854 | K16: C
A17: 2 | B17: =VLOOKUP(A17,'PO1'!$A:$P,4,0) -> CPU-02 | C17: =VLOOKUP(A17,'PO1'!$A:$P,3,0) -> SINAPI | D17: =VLOOKUP(A17,'PO1'!$A:$P,5,0) -> MOBILIZAÇÃO E DESMOBILIZAÇÃO | E17: =VLOOKUP(A17,'PO1'!$A:$P,6,0) -> m² | F17: =VLOOKUP(A17,'PO1'!$A:$P,7,0) -> 156000 | G17: =VLOOKUP(A17,'PO1'!$A:$P,10,0) -> 0.58 | H17: =VLOOKUP(A17,'PO1'!$A:$P,11,0) -> 90480 | I17: 0.004528191931 | J17: 0.9917869774 | K17: C
A18: 12 | B18: =VLOOKUP(A18,'PO1'!$A:$P,4,0) -> 83693 | C18: =VLOOKUP(A18,'PO1'!$A:$P,3,0) -> SINAPI | D18: =VLOOKUP(A18,'PO1'!$A:$P,5,0) -> CAIACAO EM MEIO FIO | E18: =VLOOKUP(A18,'PO1'!$A:$P,6,0) -> m² | F18: =VLOOKUP(A18,'PO1'!$A:$P,7,0) -> 12480 | G18: =VLOOKUP(A18,'PO1'!$A:$P,10,0) -> 5.44 | H18: =VLOOKUP(A18,'PO1'!$A:$P,11,0) -> 67891.2 | I18: 0.003397705393 | J18: 0.9951846828 | K18: C
A19: 3 | B19: =VLOOKUP(A19,'PO1'!$A:$P,4,0) -> 103689 | C19: =VLOOKUP(A19,'PO1'!$A:$P,3,0) -> SINAPI | D19: =VLOOKUP(A19,'PO1'!$A:$P,5,0) -> FORNECIMENTO E INSTALAÇÃO DE PLACA DE OBRA COM CHAPA GALVANIZADA E ESTRUTURA DE MADEIRA. AF_03/2022_PS | E19: =VLOOKUP(A19,'PO1'!$A:$P,6,0) -> m² | F19: =VLOOKUP(A19,'PO1'!$A:$P,7,0) -> 84.24 | G19: =VLOOKUP(A19,'PO1'!$A:$P,10,0) -> 378.61 | H19: =VLOOKUP(A19,'PO1'!$A:$P,11,0) -> 31894.1 | I19: 0.001596182651 | J19: 0.9967808654 | K19: C
A20: 8 | B20: =VLOOKUP(A20,'PO1'!$A:$P,4,0) -> 100574 | C20: =VLOOKUP(A20,'PO1'!$A:$P,3,0) -> SINAPI | D20: =VLOOKUP(A20,'PO1'!$A:$P,5,0) -> ESPALHAMENTO DE MATERIAL COM TRATOR DE ESTEIRAS. AF_11/2019 | E20: =VLOOKUP(A20,'PO1'!$A:$P,6,0) -> m³ | F20: =VLOOKUP(A20,'PO1'!$A:$P,7,0) -> 34320 | G20: =VLOOKUP(A20,'PO1'!$A:$P,10,0) -> 1.61 | H20: =VLOOKUP(A20,'PO1'!$A:$P,11,0) -> 55255.2 | I20: 0.002765319969 | J20: 0.9995461854 | K20: C
A21: 4 | B21: =VLOOKUP(A21,'PO1'!$A:$P,4,0) -> 103689 | C21: =VLOOKUP(A21,'PO1'!$A:$P,3,0) -> SINAPI | D21: =VLOOKUP(A21,'PO1'!$A:$P,5,0) -> FORNECIMENTO E INSTALAÇÃO DE PLACA DE OBRA COM CHAPA GALVANIZADA E ESTRUTURA DE MADEIRA. AF_03/2022_PS | E21: =VLOOKUP(A21,'PO1'!$A:$P,6,0) -> m² | F21: =VLOOKUP(A21,'PO1'!$A:$P,7,0) -> 13 | G21: =VLOOKUP(A21,'PO1'!$A:$P,10,0) -> 378.61 | H21: =VLOOKUP(A21,'PO1'!$A:$P,11,0) -> 4921.93 | I21: 0.0002463245326 | J21: 0.9997925099 | K21: C
A22: 5 | B22: =VLOOKUP(A22,'PO1'!$A:$P,4,0) -> CPU-03 | C22: =VLOOKUP(A22,'PO1'!$A:$P,3,0) -> Codevasf | D22: =VLOOKUP(A22,'PO1'!$A:$P,5,0) -> CANTEIRO DE OBRAS E ALMOXARIFADO | E22: =VLOOKUP(A22,'PO1'!$A:$P,6,0) -> m² | F22: =VLOOKUP(A22,'PO1'!$A:$P,7,0) -> 156000 | G22: =VLOOKUP(A22,'PO1'!$A:$P,10,0) -> 0.02 | H22: =VLOOKUP(A22,'PO1'!$A:$P,11,0) -> 3120 | I22: 0.0001561445493 | J22: 0.9999486545 | K22: C
A23: 13 | B23: =VLOOKUP(A23,'PO1'!$A:$P,4,0) -> CPU-05 | C23: =VLOOKUP(A23,'PO1'!$A:$P,3,0) -> Codevasf | D23: =VLOOKUP(A23,'PO1'!$A:$P,5,0) -> CONSERTO DE QUEBRA NO RAMAL NA RUA SEM PAVIMENTO COM FORNECIMENTO DE MATERIAL HIDRÁULICO | E23: =VLOOKUP(A23,'PO1'!$A:$P,6,0) -> UND | F23: =VLOOKUP(A23,'PO1'!$A:$P,7,0) -> 52 | G23: =VLOOKUP(A23,'PO1'!$A:$P,10,0) -> 19.73 | H23: =VLOOKUP(A23,'PO1'!$A:$P,11,0) -> 1025.96 | I23: 5.134553264e-05 | J23: 1 | K23: C
A24: 21 | B24: =VLOOKUP(A24,'PO1'!$A:$P,4,0) -> 93593 | C24: =VLOOKUP(A24,'PO1'!$A:$P,3,0) -> SINAPI | D24: =VLOOKUP(A24,'PO1'!$A:$P,5,0) -> TRANSPORTE COM CAMINHÃO BASCULANTE DE 14 M³, EM VIA URBANA PAVIMENTADA, ADICIONAL PARA DMT EXCEDENTE A 30 KM (UNIDADE: M3XKM). AF_07/2020 (BOTA-FORA) | E24: =VLOOKUP(A24,'PO1'!$A:$P,6,0) -> M3XKM | F24: =VLOOKUP(A24,'PO1'!$A:$P,7,0) -> 0 | G24: =VLOOKUP(A24,'PO1'!$A:$P,10,0) -> 1 | H24: =VLOOKUP(A24,'PO1'!$A:$P,11,0) -> 0 | I24: 0 | J24: 1 | K24: C
A25: 22 | B25: =VLOOKUP(A25,'PO1'!$A:$P,4,0) -> 93592 | C25: =VLOOKUP(A25,'PO1'!$A:$P,3,0) -> SINAPI | D25: =VLOOKUP(A25,'PO1'!$A:$P,5,0) -> TRANSPORTE COM CAMINHÃO BASCULANTE DE 14 M³, EM VIA URBANA EM REVESTIMENTO PRIMÁRIO (UNIDADE: M3XKM). AF_07/2020 (BOTA-FORA) | E25: =VLOOKUP(A25,'PO1'!$A:$P,6,0) -> M3XKM | F25: =VLOOKUP(A25,'PO1'!$A:$P,7,0) -> 0 | G25: =VLOOKUP(A25,'PO1'!$A:$P,10,0) -> 2.76 | H25: =VLOOKUP(A25,'PO1'!$A:$P,11,0) -> 0 | I25: 0 | J25: 1 | K25: C
A26: 17 | B26: =VLOOKUP(A26,'PO1'!$A:$P,4,0) -> 93593 | C26: =VLOOKUP(A26,'PO1'!$A:$P,3,0) -> SINAPI | D26: =VLOOKUP(A26,'PO1'!$A:$P,5,0) -> TRANSPORTE COM CAMINHÃO BASCULANTE DE 14 M³, EM VIA URBANA PAVIMENTADA, ADICIONAL PARA DMT EXCEDENTE A 30 KM (UNIDADE: M3XKM). AF_07/2020 (PEDRA) | E26: =VLOOKUP(A26,'PO1'!$A:$P,6,0) -> M3XKM | F26: =VLOOKUP(A26,'PO1'!$A:$P,7,0) -> 0 | G26: =VLOOKUP(A26,'PO1'!$A:$P,10,0) -> 1 | H26: =VLOOKUP(A26,'PO1'!$A:$P,11,0) -> 0 | I26: 0 | J26: 1 | K26: C
A27: 19 | B27: =VLOOKUP(A27,'PO1'!$A:$P,4,0) -> 93593 | C27: =VLOOKUP(A27,'PO1'!$A:$P,3,0) -> SINAPI | D27: =VLOOKUP(A27,'PO1'!$A:$P,5,0) -> TRANSPORTE COM CAMINHÃO BASCULANTE DE 14 M³, EM VIA URBANA PAVIMENTADA, ADICIONAL PARA DMT EXCEDENTE A 30 KM (UNIDADE: M3XKM). AF_07/2020 (AREIA) | E27: =VLOOKUP(A27,'PO1'!$A:$P,6,0) -> M3XKM | F27: =VLOOKUP(A27,'PO1'!$A:$P,7,0) -> 0 | G27: =VLOOKUP(A27,'PO1'!$A:$P,10,0) -> 1 | H27: =VLOOKUP(A27,'PO1'!$A:$P,11,0) -> 0 | I27: 0 | J27: 1 | K27: C
H28: =SUM(H6:H27) -> 19981485.19

Sheet CPUs
E1: Bancos | G1: B.D.I. | I1: Encargos Sociais
D2: =RESUMO!C7 -> CONTRATAÇÃO DE SERVIÇOS DE EXECUÇÃO DE PAVIMENTAÇÃO EM PARALELEPÍPEDO GRANÍTICO, EM VIAS DE DIVERSOS MUNICÍPIOS INSERIDOS NA ÁREA DE ATUAÇÃO DA 5ª SUPERINTENDÊNCIA REGIONAL DA CODEVASF, NO ESTADO DE ALAGOAS | E2: SINAPI - 10/2023 - Alagoas SICRO3 - 07/2023 - Alagoas ORSE - 09/2023 - Sergipe Sem Desoneração | G2: =RESUMO!F8 -> 0.2135 | I2: Não Desonerado: Horista: 114,90% Mensalista: 70,23%
A4: Composições Analíticas com Preço Unitário - Composições Principais | K4: =MEMÓRIA!M9 -> 12000
A5: 1.1 | B5: Código | C5: Banco | D5: Descrição | E5: Tipo | G5: Und | H5: Quant. | I5: Valor Unit | J5: Total | K5: m²
A6: Composição | B6: CPU-01 | C6: Próprio | D6: ADMINISTRAÇÃO LOCAL | E6: SERT - SERVIÇOS TÉCNICOS | G6: Global | H6: 1 | I6: 8646.56 | J6: 8646.56 | K6: =TRUNC(J6/(K4),2) -> 0.72
A7: Composição Auxiliar | B7: 93565 | C7: SINAPI | D7: ENGENHEIRO CIVIL DE OBRA JUNIOR COM ENCARGOS COMPLEMENTARES | E7: SEDI - SERVIÇOS DIVERSOS | G7: MES | H7: 0.1 | I7: 20823.56 | J7: 2082.35
A8: Composição Auxiliar | B8: 93566 | C8: SINAPI | D8: AUXILIAR DE ESCRITORIO COM ENCARGOS COMPLEMENTARES | E8: SEDI - SERVIÇOS DIVERSOS | G8: MES | H8: 0.667 | I8: 2888.89 | J8: 1926.88
A9: Composição Auxiliar | B9: 93572 | C9: SINAPI | D9: ENCARREGADO GERAL DE OBRAS COM ENCARGOS COMPLEMENTARES | E9: SEDI - SERVIÇOS DIVERSOS | G9: MES | H9: 0.667 | I9: 4526.73 | J9: 3019.32
A10: Composição Auxiliar | B10: 100321 | C10: SINAPI | D10: TÉCNICO EM SEGURANÇA DO TRABALHO COM ENCARGOS COMPLEMENTARES | E10: SEDI - SERVIÇOS DIVERSOS | G10: MES | H10: 0.2 | I10: 4802.23 | J10: 960.44
A11: Insumo | B11: 2705 | C11: SINAPI | D11: ENERGIA ELETRICA ATE 2000 KWH INDUSTRIAL, SEM DEMANDA | E11: Material | G11: KWH | H11: 100 | I11: 1.12 | J11: 112
A12: Insumo | B12: 44480 | C12: SINAPI | D12: TARIFA "A" ENTRE 0 E 20M3 FORNECIMENTO D'AGUA | E12: Taxas | G12: m³ | H12: 1 | I12: 21.57 | J12: 21.57
A13: Insumo | B13: 4222 | C13: SINAPI | D13: GASOLINA COMUM | E13: Material | G13: L | H13: 20 | I13: 5.82 | J13: 116.4
A14: Insumo | B14: 2789 | C14: ORSE | D14: Veículo leve - pick up (97kw) h | E14: Equipamento | G14: un | H14: 40 | I14: 10.19 | J14: 407.6
E15: MO sem LS => | F15: 7308.87 | G15: LS => | H15: 0 | I15: MO com LS => | J15: 7308.87
E16: Valor do BDI => | F16: 1846.04 | H16: Valor com BDI => | J16: 10492.6
A18: 1.2 | B18: Código | C18: Banco | D18: Descrição | E18: Tipo | G18: Und | H18: Quant. | I18: Valor Unit | J18: Total
A19: Composição | B19: 103689 | C19: SINAPI | D19: FORNECIMENTO E INSTALAÇÃO DE PLACA DE OBRA COM CHAPA GALVANIZADA E ESTRUTURA DE MADEIRA. AF_03/2022_PS | E19: PAVI - PAVIMENTAÇÃO | G19: m² | H19: 1 | I19: 312 | J19: 312
A20: Composição Auxiliar | B20: 102234 | C20: SINAPI | D20: PINTURA IMUNIZANTE PARA MADEIRA, 2 DEMÃOS. AF_01/2021 | E20: PINT - PINTURAS | G20: m² | H20: 0.5 | I20: 24.56 | J20: 12.28
A21: Composição Auxiliar | B21: 88262 | C21: SINAPI | D21: CARPINTEIRO DE FORMAS COM ENCARGOS COMPLEMENTARES | E21: SEDI - SERVIÇOS DIVERSOS | G21: H | H21: 0.3729 | I21: 23.48 | J21: 8.75
A22: Composição Auxiliar | B22: 88316 | C22: SINAPI | D22: SERVENTE COM ENCARGOS COMPLEMENTARES | E22: SEDI - SERVIÇOS DIVERSOS | G22: H | H22: 1.1186 | I22: 18.65 | J22: 20.86
A23: Insumo | B23: 4509 | C23: SINAPI | D23: SARRAFO *2,5 X 10* CM EM PINUS, MISTA OU EQUIVALENTE DA REGIAO - BRUTA | E23: Material | G23: M | H23: 3.2083 | I23: 6.01 | J23: 19.28
A24: Insumo | B24: 4813 | C24: SINAPI | D24: PLACA DE OBRA (PARA CONSTRUCAO CIVIL) EM CHAPA GALVANIZADA *N. 22*, ADESIVADA, DE *2,4 X 1,2* M (SEM POSTES PARA FIXACAO) | E24: Material | G24: m² | H24: 1 | I24: 250 | J24: 250
A25: Insumo | B25: 5065 | C25: SINAPI | D25: PREGO DE ACO POLIDO COM CABECA 10 X 10 (7/8 X 17) | E25: Material | G25: KG | H25: 0.0113 | I25: 45.96 | J25: 0.51
A26: Insumo | B26: 5069 | C26: SINAPI | D26: PREGO DE ACO POLIDO COM CABECA 17 X 27 (2 1/2 X 11) | E26: Material | G26: KG | H26: 0.0132 | I26: 24.62 | J26: 0.32
E27: MO sem LS => | F27: 26.06 | G27: LS => | H27: 0 | I27: MO com LS => | J27: 26.06
E28: Valor do BDI => | F28: 66.61 | H28: Valor com BDI => | J28: 378.61
A30: 1.4 | B30: Código | C30: Banco | D30: Descrição | E30: Tipo | G30: Und | H30: Quant. | I30: Valor Unit | J30: Total | K30: m²
A31: Composição | B31: CPU-02 | C31: Próprio | D31: MOBILIZAÇÃO E DESMOBILIZAÇÃO | E31: CHOR - CUSTOS HORÁRIOS DE MÁQUINAS E EQUIPAMENTOS | G31: UND | H31: 1 | I31: 5868.28 | J31: 5868.28 | K31: =TRUNC(J31/K4,2) -> 0.48
A32: Composição Auxiliar | B32: 5914640 | C32: SICRO3 | D32: Transporte com cavalo mecânico com semirreboque com capacidade de 30 t - rodovia pavimentada | G32: tkm | H32: 1540 | I32: 0.53 | J32: 816.2
A33: Composição Auxiliar | B33: 91386 | C33: SINAPI | D33: CAMINHÃO BASCULANTE 10 M3, TRUCADO CABINE SIMPLES, PESO BRUTO TOTAL 23.000 KG, CARGA ÚTIL MÁXIMA 15.935 KG, DISTÂNCIA ENTRE EIXOS 4,80 M, POTÊNCIA 230 CV INCLUSIVE CAÇAMBA METÁLICA - CHP DIURNO. AF_06/2014 | E33: CHOR - CUSTOS HORÁRIOS DE MÁQUINAS E EQUIPAMENTOS | G33: CHP | H33: 4 | I33: 268.64 | J33: 1074.56
A34: Composição Auxiliar | B34: 89876 | C34: SINAPI | D34: CAMINHÃO BASCULANTE 14 M3, COM CAVALO MECÂNICO DE CAPACIDADE MÁXIMA DE TRAÇÃO COMBINADO DE 36000 KG, POTÊNCIA 286 CV, INCLUSIVE SEMIREBOQUE COM CAÇAMBA METÁLICA - CHP DIURNO. AF_12/2014 | E34: CHOR - CUSTOS HORÁRIOS DE MÁQUINAS E EQUIPAMENTOS | G34: CHP | H34: 4 | I34: 319.99 | J34: 1279.96
A35: Composição Auxiliar | B35: 5901 | C35: SINAPI | D35: CAMINHÃO PIPA 10.000 L TRUCADO, PESO BRUTO TOTAL 23.000 KG, CARGA ÚTIL MÁXIMA 15.935 KG, DISTÂNCIA ENTRE EIXOS 4,8 M, POTÊNCIA 230 CV, INCLUSIVE TANQUE DE AÇO PARA TRANSPORTE DE ÁGUA - CHP DIURNO. AF_06/2014 | E35: CHOR - CUSTOS HORÁRIOS DE MÁQUINAS E EQUIPAMENTOS | G35: CHP | H35: 4 | I35: 319.87 | J35: 1279.48
A36: Composição Auxiliar | B36: 73340 | C36: SINAPI | D36: CAMINHÃO TOCO, PBT 14.300 KG, CARGA ÚTIL MÁX. 9.710 KG, DIST. ENTRE EIXOS 3,56 M, POTÊNCIA 185 CV, INCLUSIVE CARROCERIA FIXA ABERTA DE MADEIRA P/ TRANSPORTE GERAL DE CARGA SECA, DIMEN. APROX. 2,50 X 6,50 X 0,50 M - MATERIAIS NA OPERAÇÃO. AF_06/2014 | E36: CHOR - CUSTOS HORÁRIOS DE MÁQUINAS E EQUIPAMENTOS | G36: H | H36: 4 | I36: 158.84 | J36: 635.36
A37: Composição Auxiliar | B37: 67826 | C37: SINAPI | D37: CAMINHÃO BASCULANTE 6 M3 TOCO, PESO BRUTO TOTAL 16.000 KG, CARGA ÚTIL MÁXIMA 11.130 KG, DISTÂNCIA ENTRE EIXOS 5,36 M, POTÊNCIA 185 CV, INCLUSIVE CAÇAMBA METÁLICA - CHP DIURNO. AF_06/2014 | E37: CHOR - CUSTOS HORÁRIOS DE MÁQUINAS E EQUIPAMENTOS | G37: CHP | H37: 4 | I37: 185.49 | J37: 741.96
A38: Insumo | B38: 2789 | C38: ORSE | D38: Veículo leve - pick up (97kw) h | E38: Equipamento | G38: un | H38: 4 | I38: 10.19 | J38: 40.76
E39: MO sem LS => | F39: 295.32 | G39: LS => | H39: 0 | I39: MO com LS => | J39: 295.32
E40: Valor do BDI => | F40: 1252.87 | H40: Valor com BDI => | J40: 7121.15
A42: 1.5 | B42: Código | C42: Banco | D42: Descrição | E42: Tipo | G42: Und | H42: Quant. | I42: Valor Unit | J42: Total | K42: m²
A43: Composição | B43: CPU-03 | C43: Próprio | D43: CANTEIRO DE OBRAS E ALMOXARIFADO | E43: CANT - CANTEIRO DE OBRAS | G43: UND | H43: 1 | I43: 317.06 | J43: 317.06 | K43: =TRUNC(J43/K4,2) -> 0.02
A44: Insumo | B44: 10775 | C44: SINAPI | D44: LOCACAO DE CONTAINER 2,30 X 6,00 M, ALT. 2,50 M, COM 1 SANITARIO, PARA ESCRITORIO, COMPLETO, SEM DIVISORIAS INTERNAS (NAO INCLUI MOBILIZACAO/DESMOBILIZACAO) | E44: Equipamento | G44: MES | H44: 0.2 | I44: 890 | J44: 178
A45: Insumo | B45: 10776 | C45: SINAPI | D45: LOCACAO DE CONTAINER 2,30 X 6,00 M, ALT. 2,50 M, PARA ESCRITORIO, SEM DIVISORIAS INTERNAS E SEM SANITARIO (NAO INCLUI MOBILIZACAO/DESMOBILIZACAO) | E45: Equipamento | G45: MES | H45: 0.2 | I45: 695.31 | J45: 139.06
E46: MO sem LS => | F46: 0 | G46: LS => | H46: 0 | I46: MO com LS => | J46: 0
E47: Valor do BDI => | F47: 67.69 | H47: Valor com BDI => | J47: 384.75
A49: 2.1 | B49: Código | C49: Banco | D49: Descrição | E49: Tipo | G49: Und | H49: Quant. | I49: Valor Unit | J49: Total
A50: Composição | B50: CPU-04 | C50: Próprio | D50: SERVIÇOS TOPOGRÁFICOS PARA PAVIMENTAÇÃO, INCLUSIVE NOTAS DE SERVIÇOS, ACOMPANHAMENTO E GREIDE | E50: SERT - SERVIÇOS TÉCNICOS | G50: m² | H50: 1 | I50: 0.48 | J50: 0.48
A51: Composição Auxiliar | B51: 92145 | C51: SINAPI | D51: CAMINHONETE CABINE SIMPLES COM MOTOR 1.6 FLEX, CÂMBIO MANUAL, POTÊNCIA 101/104 CV, 2 PORTAS - CHP DIURNO. AF_11/2015 | E51: CHOR - CUSTOS HORÁRIOS DE MÁQUINAS E EQUIPAMENTOS | G51: CHP | H51: 0.001 | I51: 73.22 | J51: 0.07
A52: Composição Auxiliar | B52: 88253 | C52: SINAPI | D52: AUXILIAR DE TOPÓGRAFO COM ENCARGOS COMPLEMENTARES | E52: SEDI - SERVIÇOS DIVERSOS | G52: H | H52: 0.0025 | I52: 20.03 | J52: 0.05
A53: Composição Auxiliar | B53: 90781 | C53: SINAPI | D53: TOPOGRAFO COM ENCARGOS COMPLEMENTARES | E53: SEDI - SERVIÇOS DIVERSOS | G53: H | H53: 0.0025 | I53: 42.16 | J53: 0.1
A54: Composição Auxiliar | B54: 88597 | C54: SINAPI | D54: DESENHISTA DETALHISTA COM ENCARGOS COMPLEMENTARES | E54: SEDI - SERVIÇOS DIVERSOS | G54: H | H54: 0.002 | I54: 44.32 | J54: 0.08
A55: Composição Auxiliar | B55: 88288 | C55: SINAPI | D55: NIVELADOR COM ENCARGOS COMPLEMENTARES | E55: SEDI - SERVIÇOS DIVERSOS | G55: H | H55: 0.0025 | I55: 16.22 | J55: 0.04
A56: Composição Auxiliar | B56: 88316 | C56: SINAPI | D56: SERVENTE COM ENCARGOS COMPLEMENTARES | E56: SEDI - SERVIÇOS DIVERSOS | G56: H | H56: 0.0075 | I56: 18.65 | J56: 0.13
A57: Insumo | B57: 20206 | C57: SINAPI | D57: SARRAFO APARELHADO *2 X 10* CM, EM MACARANDUBA/MASSARANDUBA, ANGELIM OU EQUIVALENTE DA REGIAO | E57: Material | G57: M | H57: 0.002886 | I57: 6.75 | J57: 0.01
E58: MO sem LS => | F58: 0.36 | G58: LS => | H58: 0 | I58: MO com LS => | J58: 0.36
E59: Valor do BDI => | F59: 0.1 | H59: Valor com BDI => | J59: 0.58
A61: 2.2 | B61: Código | C61: Banco | D61: Descrição | E61: Tipo | G61: Und | H61: Quant. | I61: Valor Unit | J61: Total
A62: Composição | B62: 101124 | C62: SINAPI | D62: ESCAVAÇÃO HORIZONTAL, INCLUINDO CARGA E DESCARGA EM SOLO DE 1A CATEGORIA COM TRATOR DE ESTEIRAS (100HP/LÂMINA: 2,19M3). AF_07/2020 | E62: MOVT - MOVIMENTO DE TERRA | G62: m³ | H62: 1 | I62: 14.38 | J62: 14.38
A63: Composição Auxiliar | B63: 100974 | C63: SINAPI | D63: CARGA, MANOBRA E DESCARGA DE SOLOS E MATERIAIS GRANULARES EM CAMINHÃO BASCULANTE 10 M³ - CARGA COM PÁ CARREGADEIRA (CAÇAMBA DE 1,7 A 2,8 M³ / 128 HP) E DESCARGA LIVRE (UNIDADE: M3). AF_07/2020 | E63: TRAN - TRANSPORTES, CARGAS E DESCARGAS | G63: m³ | H63: 1.25 | I63: 8.41 | J63: 10.51
A64: Composição Auxiliar | B64: 88316 | C64: SINAPI | D64: SERVENTE COM ENCARGOS COMPLEMENTARES | E64: SEDI - SERVIÇOS DIVERSOS | G64: H | H64: 0.031 | I64: 18.65 | J64: 0.57
A65: Composição Auxiliar | B65: 89031 | C65: SINAPI | D65: TRATOR DE ESTEIRAS, POTÊNCIA 100 HP, PESO OPERACIONAL 9,4 T, COM LÂMINA 2,19 M3 - CHI DIURNO. AF_06/2014 | E65: CHOR - CUSTOS HORÁRIOS DE MÁQUINAS E EQUIPAMENTOS | G65: CHI | H65: 0.0195 | I65: 63.5 | J65: 1.23
A66: Composição Auxiliar | B66: 89032 | C66: SINAPI | D66: TRATOR DE ESTEIRAS, POTÊNCIA 100 HP, PESO OPERACIONAL 9,4 T, COM LÂMINA 2,19 M3 - CHP DIURNO. AF_06/2014 | E66: CHOR - CUSTOS HORÁRIOS DE MÁQUINAS E EQUIPAMENTOS | G66: CHP | H66: 0.0115 | I66: 180.78 | J66: 2.07
E67: MO sem LS => | F67: 2.04 | G67: LS => | H67: 0 | I67: MO com LS => | J67: 2.04
E68: Valor do BDI => | F68: 3.07 | H68: Valor com BDI => | J68: 17.45
A70: 2.3 | B70: Código | C70: Banco | D70: Descrição | E70: Tipo | G70: Und | H70: Quant. | I70: Valor Unit | J70: Total
A71: Composição | B71: 100574 | C71: SINAPI | D71: ESPALHAMENTO DE MATERIAL COM TRATOR DE ESTEIRAS. AF_11/2019 | E71: PAVI - PAVIMENTAÇÃO | G71: m³ | H71: 1 | I71: 1.33 | J71: 1.33
A72: Composição Auxiliar | B72: 5851 | C72: SINAPI | D72: TRATOR DE ESTEIRAS, POTÊNCIA 150 HP, PESO OPERACIONAL 16,7 T, COM RODA MOTRIZ ELEVADA E LÂMINA 3,18 M3 - CHP DIURNO. AF_06/2014 | E72: CHOR - CUSTOS HORÁRIOS DE MÁQUINAS E EQUIPAMENTOS | G72: CHP | H72: 0.003 | I72: 241.35 | J72: 0.72
A73: Composição Auxiliar | B73: 5853 | C73: SINAPI | D73: TRATOR DE ESTEIRAS, POTÊNCIA 150 HP, PESO OPERACIONAL 16,7 T, COM RODA MOTRIZ ELEVADA E LÂMINA 3,18 M3 - CHI DIURNO. AF_06/2014 | E73: CHOR - CUSTOS HORÁRIOS DE MÁQUINAS E EQUIPAMENTOS | G73: CHI | H73: 0.006 | I73: 76.2 | J73: 0.45
A74: Composição Auxiliar | B74: 88316 | C74: SINAPI | D74: SERVENTE COM ENCARGOS COMPLEMENTARES | E74: SEDI - SERVIÇOS DIVERSOS | G74: H | H74: 0.009 | I74: 18.65 | J74: 0.16
E75: MO sem LS => | F75: 0.25 | G75: LS => | H75: 0 | I75: MO com LS => | J75: 0.25
E76: Valor do BDI => | F76: 0.28 | H76: Valor com BDI => | J76: 1.61
A78: 2.4 | B78: Código | C78: Banco | D78: Descrição | E78: Tipo | G78: Und | H78: Quant. | I78: Valor Unit | J78: Total
A79: Composição | B79: 100576 | C79: SINAPI | D79: REGULARIZAÇÃO E COMPACTAÇÃO DE SUBLEITO DE SOLO PREDOMINANTEMENTE ARGILOSO. AF_11/2019 | E79: PAVI - PAVIMENTAÇÃO | G79: m² | H79: 1 | I79: 2.4 | J79: 2.4
A80: Composição Auxiliar | B80: 5901 | C80: SINAPI | D80: CAMINHÃO PIPA 10.000 L TRUCADO, PESO BRUTO TOTAL 23.000 KG, CARGA ÚTIL MÁXIMA 15.935 KG, DISTÂNCIA ENTRE EIXOS 4,8 M, POTÊNCIA 230 CV, INCLUSIVE TANQUE DE AÇO PARA TRANSPORTE DE ÁGUA - CHP DIURNO. AF_06/2014 | E80: CHOR - CUSTOS HORÁRIOS DE MÁQUINAS E EQUIPAMENTOS | G80: CHP | H80: 0.001 | I80: 319.87 | J80: 0.31
A81: Composição Auxiliar | B81: 5903 | C81: SINAPI | D81: CAMINHÃO PIPA 10.000 L TRUCADO, PESO BRUTO TOTAL 23.000 KG, CARGA ÚTIL MÁXIMA 15.935 KG, DISTÂNCIA ENTRE EIXOS 4,8 M, POTÊNCIA 230 CV, INCLUSIVE TANQUE DE AÇO PARA TRANSPORTE DE ÁGUA - CHI DIURNO. AF_06/2014 | E81: CHOR - CUSTOS HORÁRIOS DE MÁQUINAS E EQUIPAMENTOS | G81: CHI | H81: 0.007 | I81: 68.71 | J81: 0.48
A82: Composição Auxiliar | B82: 5932 | C82: SINAPI | D82: MOTONIVELADORA POTÊNCIA BÁSICA LÍQUIDA (PRIMEIRA MARCHA) 125 HP, PESO BRUTO 13032 KG, LARGURA DA LÂMINA DE 3,7 M - CHP DIURNO. AF_06/2014 | E82: CHOR - CUSTOS HORÁRIOS DE MÁQUINAS E EQUIPAMENTOS | G82: CHP | H82: 0.0001 | I82: 251.97 | J82: 0.02
A83: Composição Auxiliar | B83: 5934 | C83: SINAPI | D83: MOTONIVELADORA POTÊNCIA BÁSICA LÍQUIDA (PRIMEIRA MARCHA) 125 HP, PESO BRUTO 13032 KG, LARGURA DA LÂMINA DE 3,7 M - CHI DIURNO. AF_06/2014 | E83: CHOR - CUSTOS HORÁRIOS DE MÁQUINAS E EQUIPAMENTOS | G83: CHI | H83: 0.008 | I83: 94.07 | J83: 0.75
A84: Composição Auxiliar | B84: 73436 | C84: SINAPI | D84: ROLO COMPACTADOR VIBRATÓRIO PÉ DE CARNEIRO PARA SOLOS, POTÊNCIA 80 HP, PESO OPERACIONAL SEM/COM LASTRO 7,4 / 8,8 T, LARGURA DE TRABALHO 1,68 M - CHP DIURNO. AF_02/2016 | E84: CHOR - CUSTOS HORÁRIOS DE MÁQUINAS E EQUIPAMENTOS | G84: CHP | H84: 0.002 | I84: 164.25 | J84: 0.32
A85: Composição Auxiliar | B85: 88316 | C85: SINAPI | D85: SERVENTE COM ENCARGOS COMPLEMENTARES | E85: SEDI - SERVIÇOS DIVERSOS | G85: H | H85: 0.008 | I85: 18.65 | J85: 0.14
A86: Composição Auxiliar | B86: 93244 | C86: SINAPI | D86: ROLO COMPACTADOR VIBRATÓRIO PÉ DE CARNEIRO PARA SOLOS, POTÊNCIA 80 HP, PESO OPERACIONAL SEM/COM LASTRO 7,4 / 8,8 T, LARGURA DE TRABALHO 1,68 M - CHI DIURNO. AF_02/2016 | E86: CHOR - CUSTOS HORÁRIOS DE MÁQUINAS E EQUIPAMENTOS | G86: CHI | H86: 0.006 | I86: 63.91 | J86: 0.38
E87: MO sem LS => | F87: 0.59 | G87: LS => | H87: 0 | I87: MO com LS => | J87: 0.59
E88: Valor do BDI => | F88: 0.51 | H88: Valor com BDI => | J88: 2.91
A90: 3.1 | B90: Código | C90: Banco | D90: Descrição | E90: Tipo | G90: Und | H90: Quant. | I90: Valor Unit | J90: Total
A91: Composição | B91: 101169 | C91: SINAPI | D91: EXECUÇÃO DE PAVIMENTO EM PARALELEPÍPEDOS, REJUNTAMENTO COM ARGAMASSA TRAÇO 1:3 (CIMENTO E AREIA). AF_05/2020 | E91: PAVI - PAVIMENTAÇÃO | G91: m² | H91: 1 | I91: 71.33 | J91: 71.33
A92: Composição Auxiliar | B92: 5684 | C92: SINAPI | D92: ROLO COMPACTADOR VIBRATÓRIO DE UM CILINDRO AÇO LISO, POTÊNCIA 80 HP, PESO OPERACIONAL MÁXIMO 8,1 T, IMPACTO DINÂMICO 16,15 / 9,5 T, LARGURA DE TRABALHO 1,68 M - CHP DIURNO. AF_06/2014 | E92: CHOR - CUSTOS HORÁRIOS DE MÁQUINAS E EQUIPAMENTOS | G92: CHP | H92: 0.0031 | I92: 160.97 | J92: 0.49
A93: Composição Auxiliar | B93: 5685 | C93: SINAPI | D93: ROLO COMPACTADOR VIBRATÓRIO DE UM CILINDRO AÇO LISO, POTÊNCIA 80 HP, PESO OPERACIONAL MÁXIMO 8,1 T, IMPACTO DINÂMICO 16,15 / 9,5 T, LARGURA DE TRABALHO 1,68 M - CHI DIURNO. AF_06/2014 | E93: CHOR - CUSTOS HORÁRIOS DE MÁQUINAS E EQUIPAMENTOS | G93: CHI | H93: 0.1309 | I93: 62.23 | J93: 8.14
A94: Composição Auxiliar | B94: 88260 | C94: SINAPI | D94: CALCETEIRO COM ENCARGOS COMPLEMENTARES | E94: SEDI - SERVIÇOS DIVERSOS | G94: H | H94: 0.4021 | I94: 23.66 | J94: 9.51
A95: Composição Auxiliar | B95: 88316 | C95: SINAPI | D95: SERVENTE COM ENCARGOS COMPLEMENTARES | E95: SEDI - SERVIÇOS DIVERSOS | G95: H | H95: 0.4021 | I95: 18.65 | J95: 7.49
A96: Composição Auxiliar | B96: 88628 | C96: SINAPI | D96: ARGAMASSA TRAÇO 1:3 (EM VOLUME DE CIMENTO E AREIA MÉDIA ÚMIDA), PREPARO MECÂNICO COM BETONEIRA 400 L. AF_08/2019 | E96: SEDI - SERVIÇOS DIVERSOS | G96: m³ | H96: 0.0204 | I96: 531.97 | J96: 10.85
A97: Insumo | B97: 367 | C97: SINAPI | D97: AREIA GROSSA - POSTO JAZIDA/FORNECEDOR (RETIRADO NA JAZIDA, SEM TRANSPORTE) | E97: Material | G97: m³ | H97: 0.114 | I97: 96.24 | J97: 10.97
A98: Insumo | B98: 4385 | C98: SINAPI | D98: PARALELEPIPEDO GRANITICO OU BASALTICO, PARA PAVIMENTACAO, SEM FRETE (VARIACAO REGIONAL DE PECAS POR M2) | E98: Material | G98: MIL | H98: 0.033 | I98: 723.89 | J98: 23.88
E99: MO sem LS => | F99: 15.94 | G99: LS => | H99: 0 | I99: MO com LS => | J99: 15.94
E100: Valor do BDI => | F100: 15.22 | H100: Valor com BDI => | J100: 86.55
A102: 4.1 | B102: Código | C102: Banco | D102: Descrição | E102: Tipo | G102: Und | H102: Quant. | I102: Valor Unit | J102: Total
A103: Composição | B103: 94273 | C103: SINAPI | D103: ASSENTAMENTO DE GUIA (MEIO-FIO) EM TRECHO RETO, CONFECCIONADA EM CONCRETO PRÉ-FABRICADO, DIMENSÕES 100X15X13X30 CM (COMPRIMENTO X BASE INFERIOR X BASE SUPERIOR X ALTURA), PARA VIAS URBANAS (USO VIÁRIO). AF_06/2016 | E103: DROP - DRENAGEM/OBRAS DE CONTENÇÃO / POÇOS DE VISITA E CAIXAS | G103: M | H103: 1 | I103: 53.49 | J103: 53.49
A104: Composição Auxiliar | B104: 88309 | C104: SINAPI | D104: PEDREIRO COM ENCARGOS COMPLEMENTARES | E104: SEDI - SERVIÇOS DIVERSOS | G104: H | H104: 0.394 | I104: 23.85 | J104: 9.39
A105: Composição Auxiliar | B105: 88316 | C105: SINAPI | D105: SERVENTE COM ENCARGOS COMPLEMENTARES | E105: SEDI - SERVIÇOS DIVERSOS | G105: H | H105: 0.394 | I105: 18.65 | J105: 7.34
A106: Composição Auxiliar | B106: 88629 | C106: SINAPI | D106: ARGAMASSA TRAÇO 1:3 (EM VOLUME DE CIMENTO E AREIA MÉDIA ÚMIDA), PREPARO MANUAL. AF_08/2019 | E106: SEDI - SERVIÇOS DIVERSOS | G106: m³ | H106: 0.002 | I106: 633.35 | J106: 1.26
A107: Insumo | B107: 370 | C107: SINAPI | D107: AREIA MEDIA - POSTO JAZIDA/FORNECEDOR (RETIRADO NA JAZIDA, SEM TRANSPORTE) | E107: Material | G107: m³ | H107: 0.007 | I107: 95 | J107: 0.66
A108: Insumo | B108: 4059 | C108: SINAPI | D108: MEIO-FIO OU GUIA DE CONCRETO, PRE-MOLDADO, COMP 1 M, *30 X 12/15* CM (H X L1/L2) | E108: Material | G108: M | H108: 1.005 | I108: 34.67 | J108: 34.84
E109: MO sem LS => | F109: 12.83 | G109: LS => | H109: 0 | I109: MO com LS => | J109: 12.83
E110: Valor do BDI => | F110: 11.42 | H110: Valor com BDI => | J110: 64.91
A112: 5.1 | B112: Código | C112: Banco | D112: Descrição | E112: Tipo | G112: Und | H112: Quant. | I112: Valor Unit | J112: Total
A113: Composição | B113: 83693 | C113: SINAPI | D113: CAIACAO EM MEIO FIO | E113: PAVI - PAVIMENTAÇÃO | G113: m² | H113: 1 | I113: 4.49 | J113: 4.49
A114: Composição Auxiliar | B114: 88310 | C114: SINAPI | D114: PINTOR COM ENCARGOS COMPLEMENTARES | E114: SEDI - SERVIÇOS DIVERSOS | G114: H | H114: 0.15 | I114: 25.08 | J114: 3.76
A115: Composição Auxiliar | B115: 88316 | C115: SINAPI | D115: SERVENTE COM ENCARGOS COMPLEMENTARES | E115: SEDI - SERVIÇOS DIVERSOS | G115: H | H115: 0.0075 | I115: 18.65 | J115: 0.13
A116: Insumo | B116: 11161 | C116: SINAPI | D116: CAL HIDRATADA PARA PINTURA | E116: Material | G116: KG | H116: 0.3 | I116: 2 | J116: 0.6
E117: MO sem LS => | F117: 2.85 | G117: LS => | H117: 0 | I117: MO com LS => | J117: 2.85
E118: Valor do BDI => | F118: 0.95 | H118: Valor com BDI => | J118: 5.44
A120: 5.2 | B120: Código | C120: Banco | D120: Descrição | E120: Tipo | G120: Und | H120: Quant. | I120: Valor Unit | J120: Total
A121: Composição | B121: CPU-05 | C121: Próprio | D121: CONSERTO DE QUEBRA NO RAMAL NA RUA SEM PAVIMENTO COM FORNECIMENTO DE MATERIAL HIDRÁULICO | E121: ASTU - ASSENTAMENTO DE TUBOS E PECAS | G121: UND | H121: 1 | I121: 16.26 | J121: 16.26
A122: Composição Auxiliar | B122: 88316 | C122: SINAPI | D122: SERVENTE COM ENCARGOS COMPLEMENTARES | E122: SEDI - SERVIÇOS DIVERSOS | G122: H | H122: 0.2 | I122: 18.65 | J122: 3.73
A123: Composição Auxiliar | B123: 88267 | C123: SINAPI | D123: ENCANADOR OU BOMBEIRO HIDRÁULICO COM ENCARGOS COMPLEMENTARES | E123: SEDI - SERVIÇOS DIVERSOS | G123: H | H123: 0.1 | I123: 27.97 | J123: 2.79
A124: Insumo | B124: 9867 | C124: SINAPI | D124: TUBO PVC, SOLDAVEL, DE 20 MM, AGUA FRIA (NBR-5648) | E124: Material | G124: M | H124: 1 | I124: 4.34 | J124: 4.34
A125: Insumo | B125: 3859 | C125: SINAPI | D125: LUVA SOLDAVEL COM ROSCA, PVC, 20 MM X 1/2", PARA AGUA FRIA PREDIAL | E125: Material | G125: UN | H125: 2 | I125: 1.56 | J125: 3.12
A126: Insumo | B126: 10585 | C126: ORSE | D126: Arco de serra un | E126: Material | G126: un | H126: 0.1 | I126: 22.8 | J126: 2.28
E127: MO sem LS => | F127: 5.02 | G127: LS => | H127: 0 | I127: MO com LS => | J127: 5.02
E128: Valor do BDI => | F128: 3.47 | H128: Valor com BDI => | J128: 19.73
A130: 5.3 | B130: Código | C130: Banco | D130: Descrição | E130: Tipo | G130: Und | H130: Quant. | I130: Valor Unit | J130: Total
A131: Composição | B131: CPU-06 | C131: Próprio | D131: ESCORAMENTO DE MEIO FIO COM MATERIAL LOCAL COMPACTADO MANUALMENTE, EM FAIXA DE 0,50M | E131: DROP - DRENAGEM/OBRAS DE CONTENÇÃO / POÇOS DE VISITA E CAIXAS | G131: M | H131: 1 | I131: 4.28 | J131: 4.28
A132: Composição Auxiliar | B132: 88316 | C132: SINAPI | D132: SERVENTE COM ENCARGOS COMPLEMENTARES | E132: SEDI - SERVIÇOS DIVERSOS | G132: H | H132: 0.23 | I132: 18.65 | J132: 4.28
E133: MO sem LS => | F133: 3.1 | G133: LS => | H133: 0 | I133: MO com LS => | J133: 3.1
E134: Valor do BDI => | F134: 0.91 | H134: Valor com BDI => | J134: 5.19
A136: 6.1 | B136: Código | C136: Banco | D136: Descrição | E136: Tipo | G136: Und | H136: Quant. | I136: Valor Unit | J136: Total
A137: Composição | B137: CPU-07 | C137: Próprio | D137: DETALHAMENTO PROJETO EXECUTIVO DE PAVIMENTAÇÃO | E137: SERT - SERVIÇOS TÉCNICOS | G137: m² | H137: 1 | I137: 0.6 | J137: 0.6
D138: Composição própria | E138: Serviços | G138: m² | H138: 1 | I138: 0.6 | J138: 0.6
E139: MO sem LS => | F139: 0.6 | G139: LS => | H139: 0 | I139: MO com LS => | J139: 0.6
E140: Valor do BDI => | F140: =J140-J139 -> 0.12 | H140: Valor com BDI => | J140: 0.72
A142: 7.1 | B142: Código | C142: Banco | D142: Descrição | E142: Tipo | G142: Und | H142: Quant. | I142: Valor Unit | J142: Total
A143: Composição | B143: 95876 | C143: SINAPI | D143: TRANSPORTE COM CAMINHÃO BASCULANTE DE 14 M³, EM VIA URBANA PAVIMENTADA, DMT ATÉ 30 KM (UNIDADE: M3XKM). AF_07/2020 | E143: TRAN - TRANSPORTES, CARGAS E DESCARGAS | G143: M3XKM | H143: 1 | I143: 2.07 | J143: 2.07
A144: Composição Auxiliar | B144: 89876 | C144: SINAPI | D144: CAMINHÃO BASCULANTE 14 M3, COM CAVALO MECÂNICO DE CAPACIDADE MÁXIMA DE TRAÇÃO COMBINADO DE 36000 KG, POTÊNCIA 286 CV, INCLUSIVE SEMIREBOQUE COM CAÇAMBA METÁLICA - CHP DIURNO. AF_12/2014 | E144: CHOR - CUSTOS HORÁRIOS DE MÁQUINAS E EQUIPAMENTOS | G144: CHP | H144: 0.0059 | I144: 319.99 | J144: 1.88
A145: Composição Auxiliar | B145: 89877 | C145: SINAPI | D145: CAMINHÃO BASCULANTE 14 M3, COM CAVALO MECÂNICO DE CAPACIDADE MÁXIMA DE TRAÇÃO COMBINADO DE 36000 KG, POTÊNCIA 286 CV, INCLUSIVE SEMIREBOQUE COM CAÇAMBA METÁLICA - CHI DIURNO. AF_12/2014 | E145: CHOR - CUSTOS HORÁRIOS DE MÁQUINAS E EQUIPAMENTOS | G145: CHI | H145: 0.0025 | I145: 76.98 | J145: 0.19
E146: MO sem LS => | F146: 0.14 | G146: LS => | H146: 0 | I146: MO com LS => | J146: 0.14
E147: Valor do BDI => | F147: 0.44 | H147: Valor com BDI => | J147: 2.51
A149: 7.2 | B149: Código | C149: Banco | D149: Descrição | E149: Tipo | G149: Und | H149: Quant. | I149: Valor Unit | J149: Total
A150: Composição | B150: 93593 | C150: SINAPI | D150: TRANSPORTE COM CAMINHÃO BASCULANTE DE 14 M³, EM VIA URBANA PAVIMENTADA, ADICIONAL PARA DMT EXCEDENTE A 30 KM (UNIDADE: M3XKM). AF_07/2020 | E150: TRAN - TRANSPORTES, CARGAS E DESCARGAS | G150: M3XKM | H150: 1 | I150: 0.83 | J150: 0.83
A151: Composição Auxiliar | B151: 89876 | C151: SINAPI | D151: CAMINHÃO BASCULANTE 14 M3, COM CAVALO MECÂNICO DE CAPACIDADE MÁXIMA DE TRAÇÃO COMBINADO DE 36000 KG, POTÊNCIA 286 CV, INCLUSIVE SEMIREBOQUE COM CAÇAMBA METÁLICA - CHP DIURNO. AF_12/2014 | E151: CHOR - CUSTOS HORÁRIOS DE MÁQUINAS E EQUIPAMENTOS | G151: CHP | H151: 0.0024 | I151: 319.99 | J151: 0.76
A152: Composição Auxiliar | B152: 89877 | C152: SINAPI | D152: CAMINHÃO BASCULANTE 14 M3, COM CAVALO MECÂNICO DE CAPACIDADE MÁXIMA DE TRAÇÃO COMBINADO DE 36000 KG, POTÊNCIA 286 CV, INCLUSIVE SEMIREBOQUE COM CAÇAMBA METÁLICA - CHI DIURNO. AF_12/2014 | E152: CHOR - CUSTOS HORÁRIOS DE MÁQUINAS E EQUIPAMENTOS | G152: CHI | H152: 0.001 | I152: 76.98 | J152: 0.07
E153: MO sem LS => | F153: 0.05 | G153: LS => | H153: 0 | I153: MO com LS => | J153: 0.05
E154: Valor do BDI => | F154: 0.17 | H154: Valor com BDI => | J154: 1
A156: 7.5 | B156: Código | C156: Banco | D156: Descrição | E156: Tipo | G156: Und | H156: Quant. | I156: Valor Unit | J156: Total
A157: Composição | B157: 93592 | C157: SINAPI | D157: TRANSPORTE COM CAMINHÃO BASCULANTE DE 14 M³, EM VIA URBANA EM REVESTIMENTO PRIMÁRIO (UNIDADE: M3XKM). AF_07/2020 (BOTA-FORA) | E157: TRAN - TRANSPORTES, CARGAS E DESCARGAS | G157: M3XKM | H157: 1 | I157: 2.28 | J157: 2.28
A158: Composição Auxiliar | B158: 89876 | C158: SINAPI | D158: CAMINHÃO BASCULANTE 14 M3, COM CAVALO MECÂNICO DE CAPACIDADE MÁXIMA DE TRAÇÃO COMBINADO DE 36000 KG, POTÊNCIA 286 CV, INCLUSIVE SEMIREBOQUE COM CAÇAMBA METÁLICA - CHP DIURNO. AF_12/2014 | E158: CHOR - CUSTOS HORÁRIOS DE MÁQUINAS E EQUIPAMENTOS | G158: CHP | H158: 0.0065 | I158: 319.99 | J158: 2.07
A159: Composição Auxiliar | B159: 89877 | C159: SINAPI | D159: CAMINHÃO BASCULANTE 14 M3, COM CAVALO MECÂNICO DE CAPACIDADE MÁXIMA DE TRAÇÃO COMBINADO DE 36000 KG, POTÊNCIA 286 CV, INCLUSIVE SEMIREBOQUE COM CAÇAMBA METÁLICA - CHI DIURNO. AF_12/2014 | E159: CHOR - CUSTOS HORÁRIOS DE MÁQUINAS E EQUIPAMENTOS | G159: CHI | H159: 0.0028 | I159: 76.98 | J159: 0.21
E160: MO sem LS => | F160: 0.17 | G160: LS => | H160: 0 | I160: MO com LS => | J160: 0.17
E161: Valor do BDI => | F161: 0.48 | H161: Valor com BDI => | J161: 2.76

Sheet PROJ.EXEC
B1: Ministério do Desenvolvimento Regional - MDR
B2: Companhia de Desenvolvimento dos Vales do São Francisco e do Parnaíba
B3: 5ª Superintendência Regional
B4: Gerência Regional de Infraestrutura
B5: Unidade Regional de Estudos e Projetos
A8: CPU - 07 - COMPOSIÇÃO PREÇO PROJETO EXECUTIVO
A9: A- EQUIPE TÉCNICA | F9: =SUM(F11:F15) -> 2807.25
A10: Cod. SINAPI | B10: A.1 - Pessoal de Nível Superior | C10: Unidade | D10: Quant. | E10: Pr. Unit. | F10: Pr. Total
A11: 90777 | B11: Engenheiro | C11: h | D11: 15 | E11: 119.76 | F11: =E11*D11 -> 1796.4
A12: 90781 | B12: Topógrafo | C12: h | D12: 10 | E12: 42.16 | F12: =E12*D12 -> 421.6
B13: A.2 - Pessoal de Nível Técnico e Aux.
A14: 88253 | B14: Auxiliar de Topógrafo | C14: h | D14: 10 | E14: 20.03 | F14: =E14*D14 -> 200.3
A15: 90773 | B15: Desenhista | C15: h | D15: 15 | E15: 25.93 | F15: 388.95
A16: B - ENCARGOS SOCIAIS
B17: JÁ INCLUSOS EM "A-EQUIPE TÉCNICA"
A18: C - DESPESAS GERAIS | F18: =SUM(F20:F26) -> 114.28
A19: Cod. SINAPI | C19: Unid. | D19: Quant. | E19: Pr. Unit. | F19: Pr. Total
B20: C.1 - Materiais de Consumo
B21: C.2 - Veículos
A22: ORSE/5896 | B22: Veículo tipo sedan ou pick-up capacidade 0,6 ton h | C22: h | D22: 8 | E22: 8.33 | F22: =E22*D22 -> 66.64
B23: C.3 - Combustível
A24: 4222 | B24: GASOLINA COMUM | C24: l | D24: 2 | E24: 5.82 | F24: =E24*D24 -> 11.64
B25: C.3 - Equipamentos, Instalações e Mobiliário
A26: 7247 | B26: LOCACAO DE TEODOLITO ELETRONICO, PRECISAO ANGULAR DE 5 A 7 SEGUNDOS, INCLUINDO TRIPE | C26: h | D26: 16 | E26: 2.25 | F26: 36
A27: D - ENSAIOS | F27: =SUM(F29:F30) -> 655.992925
A28: Cod. SINAPI
A29: 101385 | B29: Auxiliar de Laboratório | C29: mês | D29: =7000*0.0000107 -> 0.0749 | E29: 4522.66 | F29: =E29*D29 -> 338.747234
A30: *B8957 | B30: Laboratório de Solos | C30: mês | D30: =7000*0.0000107 -> 0.0749 | E30: 4235.59 | F30: =E30*D30 -> 317.245691
A31: *Relatório de Custos Gerais do DNIT, página 1
A32: SOMA | F32: =SUM(F27,F18,F9) -> 3577.522925
E34: Por m²: | F34: =F32/(MEMÓRIA!M11*1000) -> 0.5962538208

Sheet DES.MOB.
B1: Ministério do Desenvolvimento Regional - MDR
B2: Companhia de Desenvolvimento dos Vales do São Francisco e do Parnaíba
B3: 5ª Superintendência Regional
B4: Gerência Regional de Infraestrutura
B5: Unidade Regional de Estudos e Projetos
A8: MEMÓRIA DE CÁLCULO DOS MOMENTOS DE TRANSPORTE PARA MOBILIZAÇÃO E DESMOBILIZAÇÃO
A9: Deslocamento:
B10: Distância méd. (Km) | C10: Qtde. | D10: Total (Km)
A11: Mobilização (entre os trechos de serviço); | B11: 1 | C11: 1 | D11: 1
A12: Desmobilização (entre os trechos de serviço): | B12: 1 | C12: 1 | D12: 1
A13: Mobilização intermunicipal (entre as localidades): | B13: 10 | C13: 1 | D13: 10
A14: Desmobilização intermunicipal (entre as localidades): | B14: 10 | C14: 1 | D14: 10
C15: Mobilização - Total (km) | D15: 11
C16: Desmobilização - Total (km) | D16: 11
A18: Peso das máquinas:
A19: Betoneira capacidade nominal de 400 l, capacidade de mistura 280 l, motor elétrico trifásico potência de 2 cv, sem carregador | F19: 1 | G19: ton
A20: Rolo compactador vibratório de um cilindro aço liso, potência 80 hp, peso operacional máximo 8,1 t, impacto dinâmico 16,15 / 9,5 t, largura de trabalho 1,68 m | F20: 9.5 | G20: ton
A21: Rolo compactador vibratório pé de carneiro para solos, potência 80 hp, peso operacional sem/com lastro 7,4 / 8,8 t, largura de trabalho 1,68 m | F21: 8.8 | G21: ton
A22: Trator de esteiras, potência 150 hp, peso operacional 16,7 t, com roda motriz elevada e lâmina 3,18 m3 | F22: 16.7 | G22: ton
A23: Trator de esteiras, potência 100 hp, peso operacional 9,4 t, com lâmina 2,19 m3 | F23: 9.4 | G23: ton
A24: Motoniveladora potência básica líquida (primeira marcha) 125 hp, peso bruto 13032 kg, largura da lâmina de 3,7 m | F24: 13 | G24: ton
A25: Pá carregadeira sobre rodas, potência líquida 128 hp, capacidade da caçamba 1,7 a 2,8 m3, peso operacional 11632 kg | F25: 11.6 | G25: ton
D27: Total | F27: =SUM(F19:F26) -> 70 | G27: ton
A28: Portanto:
C29: Mobilização - Total (km) | D29: =F27*D15 -> 770 | E29: t x km
C30: Desmobilização - Total (km) | D30: =F27*D16 -> 770 | E30: t x km
D31: =TRUNC(D29+D30,2) -> 1540

Sheet EAI (hidden)
D1: Ministério do Desenvolvimento Regional - MDR
D2: Companhia de Desenvolvimento dos Vales do São Francisco e do Parnaíba
D3: 5ª Superintendência Regional
D4: Gerência Regional de Infraestrutura
D5: Unidade Regional de Estudos e Projetos
A8: MEMÓRIA DE CÁLCULO
A10: REAJUSTE | D10: TIPOLOGIA DO MATERIAL | G10: EAI | J10: IMPOSTOS | K10: COFINS | L10: 0.0065
E11: INDÍCE | F11: 2014-07-01 | G11: ÍNDICE INICIAL | H11: 270.237 | K11: PIS | L11: 0.03 | O11: LEGENDA
E12: =H12/H11 ->  | F12: 2023-07-01 | G12: ÍNDICE FINAL | H12: =#REF! ->  | K12: ICMS | L12: 0.18 | O12: ENTRADA DE DADOS
A14: DATA-BASE | B14: MATERIAL | C14: LOCAL | H14: CUSTO ANP (R$/Kg) | I14: CUSTO ANP | J14: IMPOSTOS DO PRODUTO | K14: CUSTO DO PRODUTO COM IMPOSTOS | L14: DMTs | M14: CUSTO DO TRANSPORTE RODOVIA PAVIMENTADA | N14: IMCS | O14: ATUALIZAÇÃO DO CUSTO DE TRANSPORTE | P14: CUSTO DO TRANSPORTE RODOVIA PAVIMENTADA COM IMPOSTO E ATUALIZAÇÃO MONETÁRIA | Q14: PEDÁGIO | S14: TOTAL TRANSPORTE | T14: TOTAL GERAL (TRANSP. + AQUISIÇÃO)
A15: 2023-07-01 | C15: REFINARIAS | D15: ENDEREÇO | E15: ESTADO | F15: CIDADE | G15: DESTINO | H15: ESTADO | I15: R$/t | J15: R$/t | K15: R$/t | L15: KM | M15: R$/t | N15: R$/t | O15: R$/t | P15: R$/t | Q15: CUSTO | R15: R$/t | S15: R$/t | T15: R$/t
A16: 1 | B16: Emulsão Asfáltica para Imprimação - EAI | C16: Refinaria Lubrificantes e Derivados do Nordeste (Lubnor) | D16: Av. Leite Barbosa, s/nº - Mucuripe - Fortaleza - Ceará CEP: 60180-420 | E16: Ceará | F16: Fortaleza - CE | G16: Arapiraca - AL | H16: =#REF! ->  | I16: =IFERROR(H16*1000,"-") -> - | J16: =IFERROR(K16-I16,"-") -> - | K16: =IFERROR(TRUNC(I16*(1+(1/(1-$L$10-$L$11))*($L$10+$L$11+($L$12/(1-$L$12)))),2),"-") -> - | L16: 946 | M16: =IF(L16=0,0,((26.939+0.253*L16))) -> 266.277 | N16: =TRUNC(M16*($L$12/(1-$L$12)),2) -> 58.45 | O16: =M16*1.1*($H$12/$H$11) ->  | P16: =N16+O16 ->  | Q16: 0 | R16: =(ROUNDUP(((#REF!)*2/28),0)*Q16)/(#REF!) ->  | S16: =P16+R16 ->  | T16: =IFERROR(S16+K16,"-") -> -
A17: 2 | C17: CENTRO OESTE ASFALTOS LTDA | D17: Setor de Inflamáveis, S/N, Trecho 02 - Lote 1.100 - Guará - CEP: 71225-000 | E17: Distrito Federal | F17: Brasília -DF | G17: Arapiraca - AL | H17: =#REF! ->  | I17: =IFERROR(H17*1000,"-") -> - | J17: =IFERROR(K17-I17,"-") -> - | K17: =IFERROR(TRUNC(I17*(1+(1/(1-$L$10-$L$11))*($L$10+$L$11+($L$12/(1-$L$12)))),2),"-") -> - | L17: 1803 | M17: =IF(L17=0,0,((26.939+0.253*L17))) -> 483.098 | N17: =TRUNC(M17*($L$12/(1-$L$12)),2) -> 106.04 | O17: =M17*1.1*($H$12/$H$11) ->  | P17: =N17+O17 ->  | R17: =(ROUNDUP(((#REF!)*2/28),0)*Q17)/(#REF!) ->  | S17: =P17+R17 ->  | T17: =IFERROR(S17+K17,"-") -> -
A18: 3 | C18: STRATURA ASFALTOS S/A | D18: Av. Presidente Wilson, 08 - Junidaí - CEP: 75115-100 | E18: Goiás | F18: Anápolis - GO | G18: Arapiraca - AL | H18: =#REF! ->  | I18: - | J18: - | K18: - | L18: 1997 | M18: 532.18 | N18: 116.82 | R18: =(ROUNDUP(((#REF!)*2/28),0)*Q18)/(#REF!) ->  | T18: -
A19: 4 | C19: DISTRIBUIDORA BRASILEIRA DE ASFALTO AS - DISBRAL | D19: Via Primária Oito, S/N - Daiag, Aparecida de Goiânia - GO, 74993-430 | E19: Goiás | F19: Aparecida de Goiânia -GO | G19: Arapiraca - AL | H19: =#REF! ->  | I19: - | J19: - | K19: - | L19: 2015 | M19: 536.734 | N19: 117.81 | R19: =(ROUNDUP(((#REF!)*2/28),0)*Q19)/(#REF!) ->  | T19: -
A20: 5 | C20: INDÚSTRIA NACIONAL DE ASFALTOS S/A | D20: VIA PRIMEIRA E SEGUNDA 3, S/N.º LOTES 01 A 10 - DISTRITO AGROINDUSTRIAL - CEP: 75370-000 | E20: Goiás | F20: Goianira - GO | G20: Arapiraca - AL | H20: =#REF! ->  | I20: - | J20: - | K20: - | L20: 2021 | M20: 538.252 | N20: 118.15 | R20: =(ROUNDUP(((#REF!)*2/28),0)*Q20)/(#REF!) ->  | T20: -
A21: 6 | C21: STRATURA ASFALTOS S/A | D21: RUA VICTOR RODRIGUES RESENDE, 333 - DISTRITO IND. DE UBERLÂNDIA - CEP: 38405-440 | E21: Minas Gerais | F21: Uberlândia - MG | G21: Arapiraca - AL | H21: =#REF! ->  | I21: - | J21: - | K21: - | L21: 1791 | M21: 480.062 | N21: 105.37 | Q21: 177 | R21: =(ROUNDUP(((#REF!)*2/28),0)*Q21)/(#REF!) ->  | T21: -
A22: 7 | C22: BETUNEL INDÚSTRIA E COMÉRCIO LTDA. | D22: RUA VICTOR RODRIGUES DE REZENDE, 185 - DISTRITO INDUSTRIAL - CEP: 38402-334 | E22: Minas Gerais | F22: Uberlândia - MG | G22: Arapiraca - AL | H22: =#REF! ->  | I22: - | J22: - | K22: - | L22: 1999 | M22: 532.686 | N22: 116.93 | Q22: 177 | R22: =(ROUNDUP(((#REF!)*2/28),0)*Q22)/(#REF!) ->  | T22: -
A23: 8 | C23: DISTRIBUIDORA BRASILEIRA DE ASFALTO AS - DISBRAL | D23: R. São Judas Tadeu, 288 - Cachoeira, Sarzedo - MG, 32450-000 | E23: Minas Gerais | F23: Sarzedo - MG | G23: Arapiraca - AL | H23: =#REF! ->  | I23: - | J23: - | K23: - | L23: 1800 | M23: 482.339 | N23: 105.87 | Q23: 177 | R23: =(ROUNDUP(((#REF!)*2/28),0)*Q23)/(#REF!) ->  | T23: -
A24: 9 | C24: NACIONAL DE ASFALTOS S/A | D24: Nacional Asfaltos, Q. 1112 Sul Alameda 3, 16 - Plano Diretor Sul, Palmas - TO, 77024-166 | E24: Tocantins | F24: Palmas - TO | G24: Arapiraca - AL | H24: =#REF! ->  | I24: - | J24: - | K24: - | L24: 1792 | M24: 480.315 | N24: 105.43 | R24: =(ROUNDUP(((#REF!)*2/28),0)*Q24)/(#REF!) ->  | T24: -
A25: 10 | C25: Usina de Asfalto Santa Edwiges Ltda | D25: Av. Jairo Pacheco, 185 - Loteamento Polo Empresarial Oeste, Campo Grande - MS, 79108-650 | E25: Mato Grosso do Sul | F25: Campo Grande - MS | G25: Arapiraca - AL | H25: =#REF! ->  | I25: - | J25: - | K25: - | L25: 2852 | M25: 748.495 | N25: 164.3 | R25: =(ROUNDUP(((#REF!)*2/28),0)*Q25)/(#REF!) ->  | T25: -
A26: 11 | C26: ARAPETRO DISTRIBUIDORA DE PETRÓLEO LTDA. | D26: RUA 04, S/Nº LOTES 17 A 20. - DISTRITO INDUSTRIAL 1/8 - CEP: 78600-000 | E26: Mato Grosso | F26: Barra do Garcas - MT | G26: Arapiraca - AL | H26: =#REF! ->  | I26: - | J26: =IFERROR(K26-I26,"-") -> - | K26: - | L26: 3195 | M26: 835.274 | N26: 183.35 | Q26: 112.2 | R26: =(ROUNDUP(((#REF!)*2/28),0)*Q26)/(#REF!) ->  | T26: -
A27: 12 | C27: CENTRO OESTE ASFALTOS LTDA | D27: Rua N, S/Nº. LOTES 39/43 E LOTES 129/133 - DISTRITO INDUSTRIAL - CEP: 78098-400 | E27: Mato Grosso | F27: Cuiabá - MT | G27: Arapiraca - AL | H27: =#REF! ->  | I27: - | J27: - | K27: - | L27: 2849 | M27: 747.736 | N27: 164.13 | Q27: 254.4 | R27: =(ROUNDUP(((#REF!)*2/28),0)*Q27)/(#REF!) ->  | T27: -
A28: 13 | C28: BETUNEL INDÚSTRIA E COMÉRCIO LTDA. | D28: RUA N ESQUINA COM RUA X, S/N QD. ND. 7 L 01/08 - DIST. IND. - CEP: 78015-285 | E28: Mato Grosso | F28: Cuiabá - MT | G28: Arapiraca - AL | H28: =#REF! ->  | I28: - | J28: - | K28: - | L28: 2849 | M28: 747.736 | N28: 164.13 | Q28: 254.4 | R28: =(ROUNDUP(((#REF!)*2/28),0)*Q28)/(#REF!) ->  | T28: -
A29: 14 | C29: EMAM - EMULSÕES E TRANSPORTES LTDA. | D29: RODOVIA DOS IMIGRANTES, S/Nº - KM 8,6 - CAPELA DO PISSARRÃO, Várzea Grande - MT, 78132-400 | E29: Mato Grosso | F29: Varzea Grande - MT | G29: Arapiraca - AL | H29: =#REF! ->  | I29: - | J29: - | K29: - | L29: 2869 | M29: 752.796 | N29: 165.24 | Q29: 254.4 | R29: =(ROUNDUP(((#REF!)*2/28),0)*Q29)/(#REF!) ->  | T29: -
A30: 15 | C30: NTA - NOVAS TÉCNICAS DE ASFALTOS S/A | D30: R. Sofía A Fadim, 150 - Santa Terezinha, Paulínia - SP, 13140-000 | E30: São Paulo | F30: Paulínia - SP | G30: Arapiraca - AL | H30: =#REF! ->  | I30: - | J30: - | K30: - | L30: 2358 | M30: 623.513 | N30: 136.86 | Q30: 436.8 | R30: =(ROUNDUP(((#REF!)*2/28),0)*Q30)/(#REF!) ->  | T30: -
A31: 16 | C31: COMPANHIA BRASILEIRA DE ASFALTOS DA AMAZÔNIA - IMPORTAÇÃO E EXPORTAÇÃO | D31: Avenida Doutor Olindo Dártora 2451, Galpão 02, Morro Grande - CEP: 07726-555 | E31: São Paulo | F31: Caieiras - SP | G31: Arapiraca - AL | H31: =#REF! ->  | I31: - | J31: - | K31: - | L31: 2328 | M31: 615.923 | N31: 135.2 | Q31: 294.6 | R31: =(ROUNDUP(((#REF!)*2/28),0)*Q31)/(#REF!) ->  | T31: -
A32: 17 | C32: VIAPOL LTDA. | D32: Rod. Vito Ardito, 6401 - Km 118,5 - Jardim Campo Grande, Caçapava - SP, 12282-535 | E32: São Paulo | F32: Caçapava - SP | G32: Arapiraca - AL | H32: =#REF! ->  | I32: - | J32: - | K32: - | L32: 2191 | M32: 581.262 | N32: 127.59 | Q32: 399.6 | R32: =(ROUNDUP(((#REF!)*2/28),0)*Q32)/(#REF!) ->  | T32: -
A33: 18 | C33: STRATURA ASFALTOS S/A | D33: R. Luís de Camões - Campos Elyseos, Duque de Caxias - RJ, 25225-035 | E33: Rio de Janeiro | F33: Duque de Caxias - RJ | G33: Arapiraca - AL | H33: =#REF! ->  | I33: - | J33: - | K33: - | L33: 1957 | M33: 522.06 | N33: 114.59 | R33: =(ROUNDUP(((#REF!)*2/28),0)*Q33)/(#REF!) ->  | T33: -
A34: 19 | C34: PROBITEC - PRODUTOS BETUMINOSOS E TECNOLOGIA DE APLICAÇÃO LTDA. | D34: Av. Canal da Pavuna, 620 - Pavuna, Rio de Janeiro - RJ, 21535-630 | E34: Rio de Janeiro | F34: Rio de Janeiro - RJ | G34: Arapiraca - AL | H34: =#REF! ->  | I34: - | J34: - | K34: - | L34: 1974 | M34: 526.361 | N34: 115.54 | R34: =(ROUNDUP(((#REF!)*2/28),0)*Q34)/(#REF!) ->  | T34: -
A35: 20 | C35: CASA DO ASFALTO DISTRIBUIDORA, INDÚSTRIA E COMÉRCIO DE ASFALTO LTDA | D35: BR-376 Lote 6/7/7 A-3-1 Gleba Patrimônio - Marialva, PR, 86990-000 | E35: Paraná | F35: Marialva - PR | G35: Arapiraca - AL | H35: =#REF! ->  | I35: - | J35: - | K35: - | L35: 2649 | M35: 697.136 | N35: 153.02 | Q35: 889.8 | R35: =(ROUNDUP(((#REF!)*2/28),0)*Q35)/(#REF!) ->  | T35: -
A36: 21 | C36: PETROBRAS DISTRIBUIDORA S.A. | D36: R. Maquinista Eleodoro Jacinto, 100 - Oficinas, Ponta Grossa - PR, 84045-170 | E36: Paraná | F36: Ponta Grossa - PR | G36: Arapiraca - AL | H36: =#REF! ->  | I36: - | J36: - | K36: - | L36: 2773 | M36: 728.508 | N36: 159.91 | Q36: 747.6 | R36: =(ROUNDUP(((#REF!)*2/28),0)*Q36)/(#REF!) ->  | T36: -
T37: =SUBTOTAL(5,T16:T36) -> 0

Sheet CAP (2) (hidden)
D1: Ministério do Desenvolvimento Regional - MDR
D2: Companhia de Desenvolvimento dos Vales do São Francisco e do Parnaíba
D3: 5ª Superintendência Regional
D4: Gerência Regional de Infraestrutura
D5: Unidade Regional de Estudos e Projetos
A8: MEMÓRIA DE CÁLCULO
A10: REAJUSTE | D10: TIPOLOGIA DO MATERIAL | G10: CIMENTOS ASFÁLTICOS CAP-50/70 | J10: IMPOSTOS | K10: COFINS | L10: 0.0065
E11: INDÍCE | F11: 2014-07-01 | G11: ÍNDICE INICIAL | H11: 270.237 | K11: PIS | L11: 0.03 | M11: =(H12-H11)/H12 -> 0.504820105 | O11: LEGENDA
E12: =H12/H11 -> 2.019468097 | F12: 2023-07-01 | G12: ÍNDICE FINAL | H12: 545.735 | K12: ICMS | L12: 0.18 | O12: ENTRADA DE DADOS
A14: DATA-BASE | B14: MATERIAL | C14: LOCAL | H14: CUSTO ANP (R$/Kg) | I14: CUSTO ANP | J14: IMPOSTOS DO PRODUTO | K14: CUSTO DO PRODUTO COM IMPOSTOS | L14: DMTs | M14: CUSTO DO TRANSPORTE RODOVIA PAVIMENTADA | N14: IMCS | O14: ATUALIZAÇÃO DO CUSTO DE TRANSPORTE | P14: CUSTO DO TRANSPORTE RODOVIA PAVIMENTADA COM IMPOSTO E ATUALIZAÇÃO MONETÁRIA | Q14: PEDÁGIO | S14: TOTAL TRANSPORTE | T14: TOTAL GERAL (TRANSP. + AQUISIÇÃO)
A15: 2022-01-01 | C15: REFINARIAS | D15: ENDEREÇO | E15: ESTADO | F15: CIDADE | G15: DESTINO | H15: ESTADO | I15: R$/t | J15: R$/t | K15: R$/t | L15: KM | M15: R$/t | N15: R$/t | O15: R$/t | P15: R$/t | Q15: CUSTO | R15: R$/t | S15: R$/t | T15: R$/t
A16: 1 | B16: CAP 50-70 | C16: Refinaria Landulpho Alves (RLAM) | D16: Rodovia BA 523, KM 4 - Mataripe São Francisco do Conde - BA CEP: 43900-000 | E16: Bahia | F16: SÃO FRANCISCO DO CONDE - BA | G16: Maceió-AL | H16: =#REF! ->  | I16: =H16*1000 ->  | J16: =K16-I16 ->  | K16: =TRUNC(I16*(1/(1-($L$10+$L$11)))*(1/(1-$L$12)),2) ->  | L16: 566 | M16: =IF(L16=0,0,((26.939+0.253*L16))) -> 170.137 | N16: =TRUNC(M16*($L$12/(1-$L$12)),2) -> 37.34 | O16: =M16*1.1*($H$12/$H$11) -> 377.9448679 | P16: =N16+O16 -> 415.2848679 | Q16: 37.9 | R16: =(ROUNDUP(((#REF!)*2/28),0)*Q16)/(#REF!) ->  | S16: =P16+R16 ->  | T16: =S16+K16 -> 
A17: 2 | C17: Emam Asfaltos | D17: Av. Antônio Paterson, 213 - Nova Candeias, Candeias - BA, 43815-370 | E17: Bahia | F17: CANDEIAS - BA | G17: Maceió-AL | H17: =#REF! ->  | K17: =TRUNC(I17*(1/(1-($L$10+$L$11)))*(1/(1-$L$12)),2) ->  | L17: 557 | M17: =IF(L17=0,0,((26.939+0.253*L17))) -> 167.86 | N17: =TRUNC(M17*($L$12/(1-$L$12)),2) -> 36.84 | O17: =M17*1.1*($H$12/$H$11) -> 372.8867062 | P17: =N17+O17 -> 409.7267062 | Q17: 37.9 | R17: =(ROUNDUP(((#REF!)*2/28),0)*Q17)/(#REF!) ->  | S17: =P17+R17 -> 
A18: 3 | C18: Emam Asfaltos | D18: CE-060, Km 11,5 - Pavuna, Pacatuba - CE, 61800-000 | E18: Ceará | F18: FORTALEZA - CE | G18: Maceió-AL | H18: =#REF! ->  | K18: =TRUNC(I18*(1/(1-($L$10+$L$11)))*(1/(1-$L$12)),2) ->  | L18: 961 | M18: 270.072 | N18: =TRUNC(M18*($L$12/(1-$L$12)),2) -> 59.28 | O18: =M18*1.1*($H$12/$H$11) -> 599.9419665 | P18: =N18+O18 -> 659.2219665 | Q18: 0 | R18: =(ROUNDUP(((#REF!)*2/28),0)*Q18)/(#REF!) ->  | T18: =S18+K18 -> 
A19: 4 | C19: Refinaria Duque de Caxias (Reduc) | D19: Rodovia Washignton Luiz, km 113,7 Campos Elíseos - Duque de Caxias - RJ CEP: 25213-005 | E19: Rio de Janeiro | F19: DUQUE DE CAXIAS - RJ | G19: Maceió-AL | H19: =#REF! ->  | K19: =TRUNC(I19*(1/(1-($L$10+$L$11)))*(1/(1-$L$12)),2) ->  | L19: 2050 | M19: 545.589 | N19: =TRUNC(M19*($L$12/(1-$L$12)),2) -> 119.76 | O19: 1211.979537 | P19: 1331.739537 | Q19: 288.6 | R19: =(ROUNDUP(((#REF!)*2/28),0)*Q19)/(#REF!) -> 
A20: 5 | C20: Refinaria Alberto Pasqualini (Refap) | D20: Av. Getúlio Vargas, 11001 - Bairro Brigadeira Canoas - RS - Brasil CEP: 92420-221 | E20: Rio Grande do Sul | F20: CANOAS - RS | G20: Maceió-AL | H20: =#REF! ->  | L20: 3580 | M20: 932.679 | N20: =TRUNC(M20*($L$12/(1-$L$12)),2) -> 204.73 | O20: 2071.867033 | P20: 2276.597033 | Q20: 854.4 | R20: =(ROUNDUP(((#REF!)*2/28),0)*Q20)/(#REF!) -> 
A21: 6 | C21: Refinaria Gabriel Passos (Regap) | D21: Av. Refinaria Gabriel Passos, 690, Distrito Industrial, Paulo Camilo Sul Betim - MG CEP: 32669-205 | E21: Minas Gerais | F21: BETIM - MG | G21: Maceió-AL | H21: =#REF! ->  | L21: 1816 | M21: 486.387 | N21: 106.76 | O21: 1080.467332 | P21: 1187.227332 | Q21: 177 | R21: =(ROUNDUP(((#REF!)*2/28),0)*Q21)/(#REF!) -> 
A22: 7 | C22: Unidade de Industrialização do Xisto (SIX) | D22: Rodovia do Xisto, BR 472, KM 153, São Mateus do Sul - PR, CEP 83900-000 | E22: Paraná | F22: SÃO MATEUS DO SUL - PR | G22: Maceió-AL | H22: =#REF! ->  | L22: 2985 | M22: =IF(L22=0,0,((26.939+0.253*L22))) -> 782.144 | N22: 171.69 | O22: =M22*1.1*($H$12/$H$11) -> 1737.46634 | P22: =N22+O22 -> 1909.15634 | Q22: 585.6 | R22: =(ROUNDUP(((#REF!)*2/28),0)*Q22)/(#REF!) ->  | S22: =P22+R22 ->  | T22: =S22+K22 -> 
A23: 8 | C23: Refinaria Presidente Getúlio Vargas (Repar) | D23: Rodovia do Xisto, BR 476, KM 16, Araucária - PR CEP: 83707-440 | E23: Paraná | F23: ARAUCÁRIA - PR | G23: Maceió-AL | H23: =#REF! ->  | L23: 2874 | M23: 754.061 | N23: 165.52 | O23: 1675.082346 | P23: 1840.602346 | Q23: 585.6 | R23: =(ROUNDUP(((#REF!)*2/28),0)*Q23)/(#REF!) -> 
A24: 9 | C24: Refinaria Capuava (Recap) | D24: Av. Alberto Soares Sampaio, 2122-A Capuava - Mauá - SP | E24: São Paulo | F24: MAUÁ - SP | G24: Maceió-AL | H24: =#REF! ->  | L24: 2418 | M24: =IF(L24=0,0,((26.939+0.253*L24))) -> 638.693 | N24: 140.2 | O24: =M24*1.1*($H$12/$H$11) -> 1418.802151 | P24: =N24+O24 -> 1559.002151 | Q24: 311.4 | R24: =(ROUNDUP(((#REF!)*2/28),0)*Q24)/(#REF!) ->  | S24: =P24+R24 ->  | T24: =S24+K24 -> 
A25: 10 | C25: Refinaria Presidente Bernardes (RPBC) | D25: Av. 9 de abril, 777 - Jardim das Indústrias - Cubatão - SP CEP: 11505-000 | E25: São Paulo | F25: CUBATÃO - SP | G25: Maceió-AL | H25: =#REF! ->  | L25: 2452 | M25: 647.295 | N25: 142.08 | O25: 1437.910762 | P25: 1579.990762 | Q25: 311.4 | R25: =(ROUNDUP(((#REF!)*2/28),0)*Q25)/(#REF!) -> 
A26: 11 | C26: Refinaria de Paulínia (Replan) | D26: Rodovia SP 332 - Km 130 Bonfim - Paulínia - SP CEP: 13140-000 | E26: São Paulo | F26: PAULÍNIA - SP | G26: Maceió-AL | H26: =#REF! ->  | L26: 2466 | M26: 650.837 | N26: 142.86 | O26: 1445.779013 | P26: 1588.639013 | Q26: 528.6 | R26: =(ROUNDUP(((#REF!)*2/28),0)*Q26)/(#REF!) -> 
A27: 12 | C27: Refinaria Henrique Lage (Revap) | D27: Rodovia Presidente Dutra, KM 143, S/M, Bairro Jardim Diamante - São José dos Campos - SP CEP: 12223-900 | E27: São Paulo | F27: SÃO JOSÉ DOS CAMPOS - SP | G27: Maceió-AL | H27: =#REF! ->  | L27: 2306 | M27: 610.357 | N27: 133.98 | O27: 1355.856138 | P27: 1489.836138 | Q27: 399.6 | R27: =(ROUNDUP(((#REF!)*2/28),0)*Q27)/(#REF!) -> 
T28: =SUBTOTAL(5,T16:T27) -> 

Sheet EAI (2) (hidden)
D1: Ministério do Desenvolvimento Regional - MDR
D2: Companhia de Desenvolvimento dos Vales do São Francisco e do Parnaíba
D3: 5ª Superintendência Regional
D4: Gerência Regional de Infraestrutura
D5: Unidade Regional de Estudos e Projetos
A8: MEMÓRIA DE CÁLCULO
A10: REAJUSTE | D10: TIPOLOGIA DO MATERIAL | G10: EAI | J10: IMPOSTOS | K10: COFINS | L10: 0.0065
E11: INDÍCE | F11: 2014-07-01 | G11: ÍNDICE INICIAL | H11: 270.237 | K11: PIS | L11: 0.03 | O11: LEGENDA
E12: =H12/H11 ->  | F12: 2023-07-01 | G12: ÍNDICE FINAL | H12: =#REF! ->  | K12: ICMS | L12: 0.18 | O12: ENTRADA DE DADOS
A14: DATA-BASE | B14: MATERIAL | C14: LOCAL | H14: CUSTO ANP (R$/Kg) | I14: CUSTO ANP | J14: IMPOSTOS DO PRODUTO | K14: CUSTO DO PRODUTO COM IMPOSTOS | L14: DMTs | M14: CUSTO DO TRANSPORTE RODOVIA PAVIMENTADA | N14: IMCS | O14: ATUALIZAÇÃO DO CUSTO DE TRANSPORTE | P14: CUSTO DO TRANSPORTE RODOVIA PAVIMENTADA COM IMPOSTO E ATUALIZAÇÃO MONETÁRIA | Q14: PEDÁGIO | S14: TOTAL TRANSPORTE | T14: TOTAL GERAL (TRANSP. + AQUISIÇÃO)
A15: 2022-07-01 | C15: REFINARIAS | D15: ENDEREÇO | E15: ESTADO | F15: CIDADE | G15: DESTINO | H15: ESTADO | I15: R$/t | J15: R$/t | K15: R$/t | L15: KM | M15: R$/t | N15: R$/t | O15: R$/t | P15: R$/t | Q15: CUSTO | R15: R$/t | S15: R$/t | T15: R$/t
A16: 1 | B16: Emulsão Asfáltica para Imprimação - EAI | C16: Refinaria Lubrificantes e Derivados do Nordeste (Lubnor) | D16: Av. Leite Barbosa, s/nº - Mucuripe - Fortaleza - Ceará CEP: 60180-420 | E16: Ceará | F16: Fortaleza - CE | G16: Maceió-AL | H16: =#REF! ->  | I16: =IFERROR(H16*1000,"-") -> - | J16: =IFERROR(K16-I16,"-") -> - | K16: =IFERROR(TRUNC(I16*(1+(1/(1-$L$10-$L$11))*($L$10+$L$11+($L$12/(1-$L$12)))),2),"-") -> - | L16: 957 | M16: =IF(L16=0,0,((26.939+0.253*L16))) -> 269.06 | N16: =TRUNC(M16*($L$12/(1-$L$12)),2) -> 59.06 | O16: =M16*1.1*($H$12/$H$11) ->  | P16: =N16+O16 ->  | Q16: 0 | R16: =(ROUNDUP(((#REF!)*2/28),0)*Q16)/(#REF!) ->  | S16: =P16+R16 ->  | T16: =IFERROR(S16+K16,"-") -> -
A17: 2 | C17: CENTRO OESTE ASFALTOS LTDA | D17: Setor de Inflamáveis, S/N, Trecho 02 - Lote 1.100 - Guará - CEP: 71225-000 | E17: Distrito Federal | F17: Brasília -DF | G17: Maceió-AL | H17: =#REF! ->  | I17: =IFERROR(H17*1000,"-") -> - | J17: =IFERROR(K17-I17,"-") -> - | K17: =IFERROR(TRUNC(I17*(1+(1/(1-$L$10-$L$11))*($L$10+$L$11+($L$12/(1-$L$12)))),2),"-") -> - | L17: 1803 | M17: =IF(L17=0,0,((26.939+0.253*L17))) -> 483.098 | N17: =TRUNC(M17*($L$12/(1-$L$12)),2) -> 106.04 | O17: =M17*1.1*($H$12/$H$11) ->  | P17: =N17+O17 ->  | R17: =(ROUNDUP(((#REF!)*2/28),0)*Q17)/(#REF!) ->  | S17: =P17+R17 ->  | T17: =IFERROR(S17+K17,"-") -> -
A18: 3 | C18: STRATURA ASFALTOS S/A | D18: Av. Presidente Wilson, 08 - Junidaí - CEP: 75115-100 | E18: Goiás | F18: Anápolis - GO | G18: Maceió-AL | H18: =#REF! ->  | I18: - | J18: - | K18: - | L18: 1997 | M18: 532.18 | N18: 116.82 | R18: =(ROUNDUP(((#REF!)*2/28),0)*Q18)/(#REF!) ->  | T18: -
A19: 4 | C19: DISTRIBUIDORA BRASILEIRA DE ASFALTO AS - DISBRAL | D19: Via Primária Oito, S/N - Daiag, Aparecida de Goiânia - GO, 74993-430 | E19: Goiás | F19: Aparecida de Goiânia -GO | G19: Maceió-AL | H19: =#REF! ->  | I19: - | J19: - | K19: - | L19: 2015 | M19: 536.734 | N19: 117.81 | R19: =(ROUNDUP(((#REF!)*2/28),0)*Q19)/(#REF!) ->  | T19: -
A20: 5 | C20: INDÚSTRIA NACIONAL DE ASFALTOS S/A | D20: VIA PRIMEIRA E SEGUNDA 3, S/N.º LOTES 01 A 10 - DISTRITO AGROINDUSTRIAL - CEP: 75370-000 | E20: Goiás | F20: Goianira - GO | G20: Maceió-AL | H20: =#REF! ->  | I20: - | J20: - | K20: - | L20: 2021 | M20: 538.252 | N20: 118.15 | R20: =(ROUNDUP(((#REF!)*2/28),0)*Q20)/(#REF!) ->  | T20: -
A21: 6 | C21: STRATURA ASFALTOS S/A | D21: RUA VICTOR RODRIGUES RESENDE, 333 - DISTRITO IND. DE UBERLÂNDIA - CEP: 38405-440 | E21: Minas Gerais | F21: Uberlândia - MG | G21: Maceió-AL | H21: =#REF! ->  | I21: - | J21: - | K21: - | L21: 2063 | M21: 548.878 | N21: 120.48 | Q21: 177 | R21: =(ROUNDUP(((#REF!)*2/28),0)*Q21)/(#REF!) ->  | T21: -
A22: 7 | C22: BETUNEL INDÚSTRIA E COMÉRCIO LTDA. | D22: RUA VICTOR RODRIGUES DE REZENDE, 185 - DISTRITO INDUSTRIAL - CEP: 38402-334 | E22: Minas Gerais | F22: Uberlândia - MG | G22: Maceió-AL | H22: =#REF! ->  | I22: - | J22: - | K22: - | L22: 2062 | M22: 548.625 | N22: 120.42 | Q22: 177 | R22: =(ROUNDUP(((#REF!)*2/28),0)*Q22)/(#REF!) ->  | T22: -
A23: 8 | C23: DISTRIBUIDORA BRASILEIRA DE ASFALTO AS - DISBRAL | D23: R. São Judas Tadeu, 288 - Cachoeira, Sarzedo - MG, 32450-000 | E23: Minas Gerais | F23: Sarzedo - MG | G23: Maceió-AL | H23: =#REF! ->  | I23: - | J23: - | K23: - | L23: 1833 | M23: 490.688 | N23: 107.71 | Q23: 177 | R23: =(ROUNDUP(((#REF!)*2/28),0)*Q23)/(#REF!) ->  | T23: -
A24: 9 | C24: NACIONAL DE ASFALTOS S/A | D24: Nacional Asfaltos, Q. 1112 Sul Alameda 3, 16 - Plano Diretor Sul, Palmas - TO, 77024-166 | E24: Tocantins | F24: Palmas - TO | G24: Maceió-AL | H24: =#REF! ->  | I24: - | J24: - | K24: - | L24: 1792 | M24: 480.315 | N24: 105.43 | R24: =(ROUNDUP(((#REF!)*2/28),0)*Q24)/(#REF!) ->  | T24: -
A25: 10 | C25: Usina de Asfalto Santa Edwiges Ltda | D25: Av. Jairo Pacheco, 185 - Loteamento Polo Empresarial Oeste, Campo Grande - MS, 79108-650 | E25: Mato Grosso do Sul | F25: Campo Grande - MS | G25: Maceió-AL | H25: =#REF! ->  | I25: - | J25: - | K25: - | L25: 2852 | M25: 748.495 | N25: 164.3 | R25: =(ROUNDUP(((#REF!)*2/28),0)*Q25)/(#REF!) ->  | T25: -
A26: 11 | C26: ARAPETRO DISTRIBUIDORA DE PETRÓLEO LTDA. | D26: RUA 04, S/Nº LOTES 17 A 20. - DISTRITO INDUSTRIAL 1/8 - CEP: 78600-000 | E26: Mato Grosso | F26: Barra do Garcas - MT | G26: Maceió-AL | H26: =#REF! ->  | I26: - | J26: =IFERROR(K26-I26,"-") -> - | K26: - | L26: 3135 | M26: 820.094 | N26: 180.02 | Q26: 112.2 | R26: =(ROUNDUP(((#REF!)*2/28),0)*Q26)/(#REF!) ->  | T26: -
A27: 12 | C27: CENTRO OESTE ASFALTOS LTDA | D27: Rua N, S/Nº. LOTES 39/43 E LOTES 129/133 - DISTRITO INDUSTRIAL - CEP: 78098-400 | E27: Mato Grosso | F27: Cuiabá - MT | G27: Maceió-AL | H27: =#REF! ->  | I27: - | J27: - | K27: - | L27: 2950 | M27: 773.289 | N27: 169.74 | Q27: 254.4 | R27: =(ROUNDUP(((#REF!)*2/28),0)*Q27)/(#REF!) ->  | T27: -
A28: 13 | C28: BETUNEL INDÚSTRIA E COMÉRCIO LTDA. | D28: RUA N ESQUINA COM RUA X, S/N QD. ND. 7 L 01/08 - DIST. IND. - CEP: 78015-285 | E28: Mato Grosso | F28: Cuiabá - MT | G28: Maceió-AL | H28: =#REF! ->  | I28: - | J28: - | K28: - | L28: 2948 | M28: 772.783 | N28: 169.63 | Q28: 254.4 | R28: =(ROUNDUP(((#REF!)*2/28),0)*Q28)/(#REF!) ->  | T28: -
A29: 14 | C29: EMAM - EMULSÕES E TRANSPORTES LTDA. | D29: RODOVIA DOS IMIGRANTES, S/Nº - KM 8,6 - CAPELA DO PISSARRÃO, Várzea Grande - MT, 78132-400 | E29: Mato Grosso | F29: Varzea Grande - MT | G29: Maceió-AL | H29: =#REF! ->  | I29: - | J29: - | K29: - | L29: 2969 | M29: 778.096 | N29: 170.8 | Q29: 254.4 | R29: =(ROUNDUP(((#REF!)*2/28),0)*Q29)/(#REF!) ->  | T29: -
A30: 15 | C30: NTA - NOVAS TÉCNICAS DE ASFALTOS S/A | D30: R. Sofía A Fadim, 150 - Santa Terezinha, Paulínia - SP, 13140-000 | E30: São Paulo | F30: Paulínia - SP | G30: Maceió-AL | H30: =#REF! ->  | I30: - | J30: - | K30: - | L30: 2475 | M30: 653.114 | N30: 143.36 | Q30: 436.8 | R30: =(ROUNDUP(((#REF!)*2/28),0)*Q30)/(#REF!) ->  | T30: -
A31: 16 | C31: COMPANHIA BRASILEIRA DE ASFALTOS DA AMAZÔNIA - IMPORTAÇÃO E EXPORTAÇÃO | D31: Avenida Doutor Olindo Dártora 2451, Galpão 02, Morro Grande - CEP: 07726-555 | E31: São Paulo | F31: Caieiras - SP | G31: Maceió-AL | H31: =#REF! ->  | I31: - | J31: - | K31: - | L31: 2421 | M31: 639.452 | N31: 140.36 | Q31: 294.6 | R31: =(ROUNDUP(((#REF!)*2/28),0)*Q31)/(#REF!) ->  | T31: -
A32: 17 | C32: VIAPOL LTDA | D32: Rod. Vito Ardito, 6401 - Km 118,5 - Jardim Campo Grande, Caçapava - SP, 12282-535 | E32: São Paulo | F32: Caçapava - SP | G32: Maceió-AL | H32: =#REF! ->  | I32: - | J32: - | K32: - | L32: 2285 | M32: 605.044 | N32: 132.81 | Q32: 399.6 | R32: =(ROUNDUP(((#REF!)*2/28),0)*Q32)/(#REF!) ->  | T32: -
A33: 18 | C33: STRATURA ASFALTOS S/A | D33: R. Luís de Camões - Campos Elyseos, Duque de Caxias - RJ, 25225-035 | E33: Rio de Janeiro | F33: Duque de Caxias - RJ | G33: Maceió-AL | H33: =#REF! ->  | I33: - | J33: - | K33: - | L33: 1957 | M33: 522.06 | N33: 114.59 | R33: =(ROUNDUP(((#REF!)*2/28),0)*Q33)/(#REF!) ->  | T33: -
A34: 19 | C34: PROBITEC - PRODUTOS BETUMINOSOS E TECNOLOGIA DE APLICAÇÃO LTDA. | D34: Av. Canal da Pavuna, 620 - Pavuna, Rio de Janeiro - RJ, 21535-630 | E34: Rio de Janeiro | F34: Rio de Janeiro - RJ | G34: Maceió-AL | H34: =#REF! ->  | I34: - | J34: - | K34: - | L34: 1974 | M34: 526.361 | N34: 115.54 | R34: =(ROUNDUP(((#REF!)*2/28),0)*Q34)/(#REF!) ->  | T34: -
A35: 20 | C35: CASA DO ASFALTO DISTRIBUIDORA, INDÚSTRIA E COMÉRCIO DE ASFALTO LTDA | D35: BR-376 Lote 6/7/7 A-3-1 Gleba Patrimônio - Marialva, PR, 86990-000 | E35: Paraná | F35: Marialva - PR | G35: Maceió-AL | H35: =#REF! ->  | I35: - | J35: - | K35: - | L35: 2828 | M35: 742.423 | N35: 162.97 | Q35: 889.8 | R35: =(ROUNDUP(((#REF!)*2/28),0)*Q35)/(#REF!) ->  | T35: -
A36: 21 | C36: PETROBRAS DISTRIBUIDORA S.A. | D36: R. Maquinista Eleodoro Jacinto, 100 - Oficinas, Ponta Grossa - PR, 84045-170 | E36: Paraná | F36: Ponta Grossa - PR | G36: Maceió-AL | H36: =#REF! ->  | I36: - | J36: - | K36: - | L36: 2943 | M36: 771.518 | N36: 169.35 | Q36: 747.6 | R36: =(ROUNDUP(((#REF!)*2/28),0)*Q36)/(#REF!) ->  | T36: -
T37: =SUBTOTAL(5,T16:T36) -> 0

Sheet RR-1C (2) (hidden)
D1: Ministério do Desenvolvimento Regional - MDR
D2: Companhia de Desenvolvimento dos Vales do São Francisco e do Parnaíba
D3: 5ª Superintendência Regional
D4: Gerência Regional de Infraestrutura
D5: Unidade Regional de Estudos e Projetos
A8: MEMÓRIA DE CÁLCULO
A10: REAJUSTE | D10: TIPOLOGIA DO MATERIAL | G10: RR-1C | J10: IMPOSTOS | K10: COFINS | L10: 0.0065
E11: INDÍCE | F11: 2014-07-01 | G11: ÍNDICE INICIAL | H11: 270.237 | K11: PIS | L11: 0.03 | O11: LEGENDA
E12: =H12/H11 ->  | F12: 2023-07-01 | G12: ÍNDICE FINAL | H12: =EAI!H12 ->  | K12: ICMS | L12: 0.18 | O12: ENTRADA DE DADOS
A14: DATA-BASE | B14: MATERIAL | C14: LOCAL | H14: CUSTO ANP (R$/Kg) | I14: CUSTO ANP | J14: IMPOSTOS DO PRODUTO | K14: CUSTO DO PRODUTO COM IMPOSTOS | L14: DMTs | M14: CUSTO DO TRANSPORTE RODOVIA PAVIMENTADA | N14: IMCS | O14: ATUALIZAÇÃO DO CUSTO DE TRANSPORTE | P14: CUSTO DO TRANSPORTE RODOVIA PAVIMENTADA COM IMPOSTO E ATUALIZAÇÃO MONETÁRIA | Q14: PEDÁGIO | S14: TOTAL TRANSPORTE | T14: TOTAL GERAL (TRANSP. + AQUISIÇÃO)
A15: 2022-01-01 | C15: REFINARIAS | D15: ENDEREÇO | E15: ESTADO | F15: CIDADE | G15: DESTINO | H15: ESTADO | I15: R$/t | J15: R$/t | K15: R$/t | L15: KM | M15: R$/t | N15: R$/t | O15: R$/t | P15: R$/t | Q15: CUSTO | R15: R$/t | S15: R$/t | T15: R$/t
A16: 1 | B16: RR-1C | C16: Refinaria Lubrificantes e Derivados do Nordeste (Lubnor) | D16: Av. Leite Barbosa, s/nº - Mucuripe - Fortaleza - Ceará CEP: 60180-420 | E16: Ceará | F16: Fortaleza - CE | G16: Maceió - AL | H16: =#REF! ->  | I16: =IFERROR(H16*1000,"-") -> - | J16: =IFERROR(K16-I16,"-") -> - | K16: =IFERROR(TRUNC(I16*(1+(1/(1-$L$10-$L$11))*($L$10+$L$11+($L$12/(1-$L$12)))),2),"-") -> - | L16: 957 | M16: =IF(L16=0,0,((26.939+0.253*L16))) -> 269.06 | N16: =TRUNC(M16*($L$12/(1-$L$12)),2) -> 59.06 | O16: =M16*1.1*($H$12/$H$11) ->  | P16: =N16+O16 ->  | Q16: 0 | R16: =(ROUNDUP(((#REF!)*2/28),0)*Q16)/(#REF!) ->  | S16: =P16+R16 ->  | T16: =IFERROR(S16+K16,"-") -> -
A17: 2 | C17: CENTRO OESTE ASFALTOS LTDA | D17: Setor de Inflamáveis, S/N, Trecho 02 - Lote 1.100 - Guará - CEP: 71225-000 | E17: Distrito Federal | F17: Brasília -DF | G17: Maceió - AL | H17: =#REF! ->  | I17: =IFERROR(H17*1000,"-") -> - | J17: =IFERROR(K17-I17,"-") -> - | K17: =IFERROR(TRUNC(I17*(1+(1/(1-$L$10-$L$11))*($L$10+$L$11+($L$12/(1-$L$12)))),2),"-") -> - | L17: 1803 | M17: =IF(L17=0,0,((26.939+0.253*L17))) -> 483.098 | N17: =TRUNC(M17*($L$12/(1-$L$12)),2) -> 106.04 | O17: =M17*1.1*($H$12/$H$11) ->  | P17: =N17+O17 ->  | R17: =(ROUNDUP(((#REF!)*2/28),0)*Q17)/(#REF!) ->  | S17: =P17+R17 ->  | T17: =IFERROR(S17+K17,"-") -> -
A18: 3 | C18: STRATURA ASFALTOS S/A | D18: Av. Presidente Wilson, 08 - Junidaí - CEP: 75115-100 | E18: Goiás | F18: Anápolis - GO | G18: Maceió - AL | H18: =#REF! ->  | I18: - | J18: - | K18: - | L18: 2041 | M18: 543.312 | N18: 119.26 | Q18: 112.2 | R18: =(ROUNDUP(((#REF!)*2/28),0)*Q18)/(#REF!) ->  | T18: -
A19: 4 | C19: DISTRIBUIDORA BRASILEIRA DE ASFALTO AS - DISBRAL | D19: Via Primária Oito, S/N - Daiag, Aparecida de Goiânia - GO, 74993-430 | E19: Goiás | F19: Aparecida de Goiânia -GO | G19: Maceió - AL | H19: =#REF! ->  | I19: - | J19: - | K19: - | L19: 2109 | M19: 560.516 | N19: 123.04 | Q19: 142.8 | R19: =(ROUNDUP(((#REF!)*2/28),0)*Q19)/(#REF!) ->  | T19: -
A20: 5 | C20: INDÚSTRIA NACIONAL DE ASFALTOS S/A | D20: VIA PRIMEIRA E SEGUNDA 3, S/N.º LOTES 01 A 10 - DISTRITO AGROINDUSTRIAL - CEP: 75370-000 | E20: Goiás | F20: Goianira - GO | G20: Maceió - AL | H20: =#REF! ->  | I20: - | J20: - | K20: - | L20: 2098 | M20: 557.733 | N20: 122.42 | Q20: 112.2 | R20: =(ROUNDUP(((#REF!)*2/28),0)*Q20)/(#REF!) ->  | T20: -
A21: 6 | C21: STRATURA ASFALTOS S/A | D21: RUA VICTOR RODRIGUES RESENDE, 333 - DISTRITO IND. DE UBERLÂNDIA - CEP: 38405-440 | E21: Minas Gerais | F21: Uberlândia - MG | G21: Maceió - AL | H21: =#REF! ->  | I21: - | J21: - | K21: - | L21: 1791 | M21: 480.062 | N21: 105.37 | Q21: 177 | R21: =(ROUNDUP(((#REF!)*2/28),0)*Q21)/(#REF!) ->  | T21: -
A22: 7 | C22: BETUNEL INDÚSTRIA E COMÉRCIO LTDA. | D22: RUA VICTOR RODRIGUES DE REZENDE, 185 - DISTRITO INDUSTRIAL - CEP: 38402-334 | E22: Minas Gerais | F22: Uberlândia - MG | G22: Maceió - AL | H22: =#REF! ->  | I22: - | J22: - | K22: - | L22: 2062 | M22: 548.625 | N22: 120.42 | Q22: 177 | R22: =(ROUNDUP(((#REF!)*2/28),0)*Q22)/(#REF!) ->  | T22: -
A23: 8 | C23: DISTRIBUIDORA BRASILEIRA DE ASFALTO AS - DISBRAL | D23: R. São Judas Tadeu, 288 - Cachoeira, Sarzedo - MG, 32450-000 | E23: Minas Gerais | F23: Sarzedo - MG | G23: Maceió - AL | H23: =#REF! ->  | I23: - | J23: - | K23: - | L23: 1833 | M23: 490.688 | N23: 107.71 | Q23: 177 | R23: =(ROUNDUP(((#REF!)*2/28),0)*Q23)/(#REF!) ->  | T23: -
A24: 9 | C24: NACIONAL DE ASFALTOS S/A | D24: Nacional Asfaltos, Q. 1112 Sul Alameda 3, 16 - Plano Diretor Sul, Palmas - TO, 77024-166 | E24: Tocantins | F24: Palmas - TO | G24: Maceió - AL | H24: =#REF! ->  | I24: - | J24: - | K24: - | L24: 1792 | M24: 480.315 | N24: 105.43 | R24: =(ROUNDUP(((#REF!)*2/28),0)*Q24)/(#REF!) ->  | T24: -
A25: 10 | C25: Usina de Asfalto Santa Edwiges Ltda | D25: Av. Jairo Pacheco, 185 - Loteamento Polo Empresarial Oeste, Campo Grande - MS, 79108-650 | E25: Mato Grosso do Sul | F25: Campo Grande - MS | G25: Maceió - AL | H25: =#REF! ->  | I25: - | J25: - | K25: - | L25: 2852 | M25: 748.495 | N25: 164.3 | R25: =(ROUNDUP(((#REF!)*2/28),0)*Q25)/(#REF!) ->  | T25: -
A26: 11 | C26: ARAPETRO DISTRIBUIDORA DE PETRÓLEO LTDA. | D26: RUA 04, S/Nº LOTES 17 A 20. - DISTRITO INDUSTRIAL 1/8 - CEP: 78600-000 | E26: Mato Grosso | F26: Barra do Garcas - MT | G26: Maceió - AL | H26: =#REF! ->  | I26: - | J26: =IFERROR(K26-I26,"-") -> - | K26: - | L26: 2558 | M26: 674.113 | N26: 147.97 | Q26: 112.2 | R26: =(ROUNDUP(((#REF!)*2/28),0)*Q26)/(#REF!) ->  | T26: -
A27: 12 | C27: CENTRO OESTE ASFALTOS LTDA | D27: Rua N, S/Nº. LOTES 39/43 E LOTES 129/133 - DISTRITO INDUSTRIAL - CEP: 78098-400 | E27: Mato Grosso | F27: Cuiabá - MT | G27: Maceió - AL | H27: =#REF! ->  | I27: - | J27: - | K27: - | L27: 2950 | M27: 773.289 | N27: 169.74 | Q27: 254.4 | R27: =(ROUNDUP(((#REF!)*2/28),0)*Q27)/(#REF!) ->  | T27: -
A28: 13 | C28: BETUNEL INDÚSTRIA E COMÉRCIO LTDA. | D28: RUA N ESQUINA COM RUA X, S/N QD. ND. 7 L 01/08 - DIST. IND. - CEP: 78015-285 | E28: Mato Grosso | F28: Cuiabá - MT | G28: Maceió - AL | H28: =#REF! ->  | I28: - | J28: - | K28: - | L28: 2948 | M28: 772.783 | N28: 169.63 | Q28: 254.4 | R28: =(ROUNDUP(((#REF!)*2/28),0)*Q28)/(#REF!) ->  | T28: -
A29: 14 | C29: EMAM - EMULSÕES E TRANSPORTES LTDA. | D29: RODOVIA DOS IMIGRANTES, S/Nº - KM 8,6 - CAPELA DO PISSARRÃO, Várzea Grande - MT, 78132-400 | E29: Mato Grosso | F29: Varzea Grande - MT | G29: Maceió - AL | H29: =#REF! ->  | I29: - | J29: - | K29: - | L29: 2969 | M29: 778.096 | N29: 170.8 | Q29: 254.4 | R29: =(ROUNDUP(((#REF!)*2/28),0)*Q29)/(#REF!) ->  | T29: -
A30: 15 | C30: NTA - NOVAS TÉCNICAS DE ASFALTOS S/A | D30: R. Sofía A Fadim, 150 - Santa Terezinha, Paulínia - SP, 13140-000 | E30: São Paulo | F30: Paulínia - SP | G30: Maceió - AL | H30: =#REF! ->  | I30: - | J30: - | K30: - | L30: 2475 | M30: 653.114 | N30: 143.36 | Q30: 436.8 | R30: =(ROUNDUP(((#REF!)*2/28),0)*Q30)/(#REF!) ->  | T30: -
A31: 16 | C31: COMPANHIA BRASILEIRA DE ASFALTOS DA AMAZÔNIA - IMPORTAÇÃO E EXPORTAÇÃO | D31: Avenida Doutor Olindo Dártora 2451, Galpão 02, Morro Grande - CEP: 07726-555 | E31: São Paulo | F31: Caieiras - SP | G31: Maceió - AL | H31: =#REF! ->  | I31: - | J31: - | K31: - | L31: 2421 | M31: 639.452 | N31: 140.36 | Q31: 294.6 | R31: =(ROUNDUP(((#REF!)*2/28),0)*Q31)/(#REF!) ->  | T31: -
A32: 17 | C32: VIAPOL LTDA. | D32: Rod. Vito Ardito, 6401 - Km 118,5 - Jardim Campo Grande, Caçapava - SP, 12282-535 | E32: São Paulo | F32: Caçapava - SP | G32: Maceió - AL | H32: =#REF! ->  | I32: - | J32: - | K32: - | L32: 2285 | M32: 605.044 | N32: 132.81 | Q32: 399.6 | R32: =(ROUNDUP(((#REF!)*2/28),0)*Q32)/(#REF!) ->  | T32: -
A33: 18 | C33: STRATURA ASFALTOS S/A | D33: R. Luís de Camões - Campos Elyseos, Duque de Caxias - RJ, 25225-035 | E33: Rio de Janeiro | F33: Duque de Caxias - RJ | G33: Maceió - AL | H33: =#REF! ->  | I33: - | J33: - | K33: - | L33: 1957 | M33: 522.06 | N33: 114.59 | R33: =(ROUNDUP(((#REF!)*2/28),0)*Q33)/(#REF!) ->  | T33: -
A34: 19 | C34: PROBITEC - PRODUTOS BETUMINOSOS E TECNOLOGIA DE APLICAÇÃO LTDA. | D34: Av. Canal da Pavuna, 620 - Pavuna, Rio de Janeiro - RJ, 21535-630 | E34: Rio de Janeiro | F34: Rio de Janeiro - RJ | G34: Maceió - AL | H34: =#REF! ->  | I34: - | J34: - | K34: - | L34: 1974 | M34: 526.361 | N34: 115.54 | R34: =(ROUNDUP(((#REF!)*2/28),0)*Q34)/(#REF!) ->  | T34: -
A35: 20 | C35: CASA DO ASFALTO DISTRIBUIDORA, INDÚSTRIA E COMÉRCIO DE ASFALTO LTDA | D35: BR-376 Lote 6/7/7 A-3-1 Gleba Patrimônio - Marialva, PR, 86990-000 | E35: Paraná | F35: Marialva - PR | G35: Maceió - AL | H35: =#REF! ->  | I35: - | J35: - | K35: - | L35: 2828 | M35: 742.423 | N35: 162.97 | Q35: 889.8 | R35: =(ROUNDUP(((#REF!)*2/28),0)*Q35)/(#REF!) ->  | T35: -
A36: 21 | C36: PETROBRAS DISTRIBUIDORA S.A. | D36: R. Maquinista Eleodoro Jacinto, 100 - Oficinas, Ponta Grossa - PR, 84045-170 | E36: Paraná | F36: Ponta Grossa - PR | G36: Maceió - AL | H36: =#REF! ->  | I36: - | J36: - | K36: - | L36: 2943 | M36: 771.518 | N36: 169.35 | Q36: 747.6 | R36: =(ROUNDUP(((#REF!)*2/28),0)*Q36)/(#REF!) ->  | T36: -
T37: =SUBTOTAL(5,T16:T36) -> 0

Sheet Comparação ARAPIRACA-MACEIO (hidden)
A1: ARAPIRACA
A2: 4 | D2: AQUISIÇÃO E TRANSPORTE DE MATERIAL BETUMINOSO | J2: =SUM(J3:J8) -> 10500379.47
A3: 4.1 | B3: Codevasf | C3: CPU-08 | D3: Aquisição de Cimento Asfáltico 50/70 (BDI=15%) | E3: t | F3: 1622.34 | G3: 0.15 | H3: 4439.15 | I3: 5105.02 | J3: 8282078.14
A4: 4.2 | B4: Codevasf | C4: CPU-09 | D4: Aquisição de Emulsão Asfáltica para imprimação - EAI (BDI=15%) | E4: t | F4: 277.96 | G4: 0.15 | H4: 2859.76 | I4: 3288.72 | J4: 914132.61
A5: 4.3 | B5: Codevasf | C5: CPU-10 | D5: Aquisição de Emulsão Asfáltica RR-1C (BDI=15%) | E5: t | F5: 96.22 | G5: 0.15 | H5: 3085.62 | I5: 3548.46 | J5: 341432.82
A6: 4.4 | B6: Codevasf | C6: CPU-11 | D6: Transporte de Cimento Asfáltico 50/70 (BDI=15%) | E6: t | F6: 1622.34 | G6: 0.15 | H6: 366.13 | I6: 421.04 | J6: 683070.03
A7: 4.5 | B7: Codevasf | C7: CPU-12 | D7: Transporte de Emulsão Asfáltica para imprimação - EAI (BDI = 15%) | E7: t | F7: 277.96 | G7: 0.15 | H7: 649.93 | I7: 747.41 | J7: 207750.08
A8: 4.6 | B8: Codevasf | C8: CPU-13 | D8: Transporte de Emulsão Asfáltica RR-1C (BDI=15%) | E8: t | F8: 96.22 | G8: 0.15 | H8: 649.93 | I8: 747.41 | J8: 71915.79
A10: MACEIÓ
A11: 4 | D11: AQUISIÇÃO E TRANSPORTE DE MATERIAL BETUMINOSO | J11: 10589722.6
A12: 4.1 | B12: Codevasf | C12: CPU-08 | D12: Aquisição de Cimento Asfáltico 50/70 (BDI=15%) | E12: t | F12: 1622.34 | G12: 0.15 | H12: 4439.15 | I12: 5105.02 | J12: 8282078.14
A13: 4.2 | B13: Codevasf | C13: CPU-09 | D13: Aquisição de Emulsão Asfáltica para imprimação - EAI (BDI=15%) | E13: t | F13: 277.96 | G13: 0.15 | H13: 2859.76 | I13: 3288.72 | J13: 914132.61
A14: 4.3 | B14: Codevasf | C14: CPU-10 | D14: Aquisição de Emulsão Asfáltica RR-1C (BDI=15%) | E14: t | F14: 96.22 | G14: 0.15 | H14: 3085.62 | I14: 3548.46 | J14: 341432.82
A15: 4.4 | B15: Codevasf | C15: CPU-11 | D15: Transporte de Cimento Asfáltico 50/70 (BDI=15%) | E15: t | F15: 1622.34 | G15: 0.15 | H15: 412.44 | I15: 474.3 | J15: 769475.86
A16: 4.5 | B16: Codevasf | C16: CPU-12 | D16: Transporte de Emulsão Asfáltica para imprimação - EAI (BDI = 15%) | E16: t | F16: 277.96 | G16: 0.15 | H16: 656.75 | I16: 755.26 | J16: 209932.06
A17: 4.6 | B17: Codevasf | C17: CPU-13 | D17: Transporte de Emulsão Asfáltica RR-1C (BDI=15%) | E17: t | F17: 96.22 | G17: 0.15 | H17: 656.75 | I17: 755.26 | J17: 72671.11
J18: =J11-J2 -> 89343.13

Sheet Encargos SD (hidden)
A1: CGCIT | B1: SISTEMA DE CUSTOS REFERENCIAIS DE OBRAS - SICRO | AD1: DNIT
A4: Alagoas - Abril/2023
A5: Sem desoneração
A7: Código | B7: Descrição | C7: Unid. | D7: Encargos Sociais (%) | M7: Encargos Trabalhistas (%) | W7: Verbas Rescisórias (%) | AB7: Reincidências (%) | AD7: Total (%)
D8: A1 | E8: A2 | F8: A3 | G8: A4 | H8: A5 | I8: A6 | J8: A7 | K8: A8 | L8: A9 | M8: B1 | N8: B2 | O8: B3 | P8: B4 | Q8: B5 | R8: B6 | S8: B7 | T8: B8 | U8: B9 | V8: B10 | W8: C1 | X8: C2 | Y8: C3 | Z8: C4 | AA8: C5 | AB8: D1 | AC8: D2
A9: P9801 | B9: Ajudante | C9: h | D9: 0.2 | E9: 0.08 | F9: 0.025 | G9: 0.015 | H9: 0.016 | I9: 0.002 | J9: 0.03 | K9: 0 | L9: 0 | M9: 0.1859940741 | N9: 0.05147684599 | O9: 0.06299228189 | P9: 0.009151259767 | Q9: 0.0004604150413 | R9: 0.001134280298 | S9: 0.09241479096 | T9: 0.007427315322 | U9: 1.412335185e-05 | V9: 0 | W9: 0.04399027598 | X9: 0.001110870604 | Y9: 0.0602274394 | Z9: 0.04515409238 | AA9: 0.009284144153 | AB9: 0.1512720623 | AC9: 0.003928022461 | AD9: 1.094
A10: P9802 | B10: Ajudante especializado | C10: h | D10: 0.2 | E10: 0.08 | F10: 0.025 | G10: 0.015 | H10: 0.016 | I10: 0.002 | J10: 0.03 | K10: 0 | L10: 0 | M10: 0.1859940741 | N10: 0.05147684599 | O10: 0.06299228189 | P10: 0.009151259767 | Q10: 0.0004604150413 | R10: 0.001134280298 | S10: 0.09241479096 | T10: 0.007427315322 | U10: 1.412335185e-05 | V10: 0 | W10: 0.04399027598 | X10: 0.001110870604 | Y10: 0.0602274394 | Z10: 0.04515409238 | AA10: 0.009284144153 | AB10: 0.1512720623 | AC10: 0.003928022461 | AD10: 1.094
A11: P9803 | B11: Almoxarife | C11: mês | D11: 0.2 | E11: 0.08 | F11: 0.025 | G11: 0.015 | H11: 0.016 | I11: 0.002 | J11: 0.03 | K11: 0.001111111111 | L11: 0 | M11: 0 | N11: 0 | O11: 0.07477796232 | P11: 0.008741601835 | Q11: 0.0004602106401 | R11: 0.0009357895161 | S11: 0.09237376343 | T11: 0.007424017967 | U11: 0.000173456898 | V11: 0 | W11: 0.03535772638 | X11: 0.0008928759368 | Y11: 0.04838705559 | Z11: 0.03791637768 | AA11: 0.009280022458 | AB11: 0.06824377314 | AC11: 0.003158188539 | AD11: 0.7572
A12: P9804 | B12: Apontador | C12: mês | D12: 0.2 | E12: 0.08 | F12: 0.025 | G12: 0.015 | H12: 0.016 | I12: 0.002 | J12: 0.03 | K12: 0 | L12: 0 | M12: 0 | N12: 0 | O12: 0.07864033481 | P12: 0.009151367537 | Q12: 0.0004604204634 | R12: 0.001002703404 | S12: 0.09241587929 | T12: 0.00742740279 | U12: 0.0001572069365 | V12: 0 | W12: 0.03256157448 | X12: 0.0008222657194 | Y12: 0.04458083758 | Z12: 0.03805617009 | AA12: 0.009284253488 | AB12: 0.06964595601 | AC12: 0.002907519743 | AD12: 0.7551
A13: P9805 | B13: Armador | C13: h | D13: 0.2 | E13: 0.08 | F13: 0.025 | G13: 0.015 | H13: 0.016 | I13: 0.002 | J13: 0.03 | K13: 0.001111111111 | L13: 0 | M13: 0.1850834971 | N13: 0.05122146322 | O13: 0.05676136981 | P13: 0.008740283976 | Q13: 0.0004601412601 | R13: 0.0009509135446 | S13: 0.09235983743 | T13: 0.007422898743 | U13: 7.718596332e-06 | V13: 0 | W13: 0.04447362561 | X13: 0.001225174319 | Y13: 0.0663850801 | Z13: 0.04489625996 | AA13: 0.009278623429 | AB13: 0.1487547763 | AC13: 0.004010115503 | AD13: 1.0911
A14: P9806 | B14: Auxiliar administrativo | C14: mês | D14: 0.2 | E14: 0.08 | F14: 0.025 | G14: 0.015 | H14: 0.016 | I14: 0.002 | J14: 0.03 | K14: 0 | L14: 0 | M14: 0 | N14: 0 | O14: 0.0681007239 | P14: 0.009159132168 | Q14: 0.0004608111149 | R14: 0.0006557377377 | S14: 0.09249429109 | T14: 0.007433704695 | U14: 0.001352164096 | V14: 0 | W14: 0.04030180989 | X14: 0.001017727098 | Y14: 0.05522499756 | Z14: 0.03774901007 | AA14: 0.009292130868 | AB14: 0.06611361585 | AC14: 0.003598668363 | AD14: 0.761
A15: P9807 | B15: Bombeiro hidráulico | C15: h | D15: 0.2 | E15: 0.08 | F15: 0.025 | G15: 0.015 | H15: 0.016 | I15: 0.002 | J15: 0.03 | K15: 0.001111111111 | L15: 0 | M15: 0.1870678078 | N15: 0.05177897783 | O15: 0.07208114341 | P15: 0.008740555999 | Q15: 0.000460155581 | R15: 0.0009741716227 | S15: 0.09236271194 | T15: 0.007423129765 | U15: 1.559755542e-05 | V15: 0 | W15: 0.03732206236 | X15: 0.0009424806061 | Y15: 0.05106913917 | Z15: 0.04546893605 | AA15: 0.009278912207 | AB15: 0.1553604359 | AC15: 0.003333645052 | AD15: 1.0928
A16: P9808 | B16: Carpinteiro | C16: h | D16: 0.2 | E16: 0.08 | F16: 0.025 | G16: 0.015 | H16: 0.016 | I16: 0.002 | J16: 0.03 | K16: 0 | L16: 0 | M16: 0.1867051586 | N16: 0.05167680451 | O16: 0.0687835498 | P16: 0.009149358862 | Q16: 0.0004603194036 | R16: 0.0009172002715 | S16: 0.09239559451 | T16: 0.007425772516 | U16: 2.323367909e-05 | V16: 0 | W16: 0.03974988108 | X16: 0.001003789438 | Y16: 0.05441057621 | Z16: 0.04536118375 | AA16: 0.009282215645 | AB16: 0.1536536131 | AC16: 0.003549385 | AD16: 1.0925
A17: P9809 | B17: Encarregado administrativo | C17: mês | D17: 0.2 | E17: 0.08 | F17: 0.025 | G17: 0.015 | H17: 0.016 | I17: 0.002 | J17: 0.03 | K17: 0.001111111111 | L17: 0 | M17: 0 | N17: 0 | O17: 0.08233441816 | P17: 0.008742122809 | Q17: 0.0004602380674 | R17: 0.0007186071849 | S17: 0.09237926864 | T17: 0.007424460417 | U17: 0.0004499802008 | V17: 0 | W17: 0.03232623952 | X17: 0.0007535288218 | Y17: 0.04083794003 | Z17: 0.03816029106 | AA17: 0.009280575521 | AB17: 0.07105724613 | AC17: 0.002864235022 | AD17: 0.7569
A18: P9810 | B18: Eletricista | C18: h | D18: 0.2 | E18: 0.08 | F18: 0.025 | G18: 0.015 | H18: 0.016 | I18: 0.002 | J18: 0.03 | K18: 0 | L18: 0 | M18: 0.1875383843 | N18: 0.05191083308 | O18: 0.07508333868 | P18: 0.009150362882 | Q18: 0.0004603699176 | R18: 0.001050316486 | S18: 0.0924057337 | T18: 0.007426587396 | U18: 0 | V18: 0 | W18: 0.03515356182 | X18: 0.0008877202426 | Y18: 0.04812430625 | Z18: 0.04560082965 | AA18: 0.009283234245 | AB18: 0.1564095409 | AC18: 0.003138965994 | AD18: 1.0916
A19: P9811 | B19: Encarregado especializado | C19: mês | D19: 0.2 | E19: 0.08 | F19: 0.025 | G19: 0.015 | H19: 0.016 | I19: 0.002 | J19: 0.03 | K19: 0 | L19: 0 | M19: 0 | N19: 0 | O19: 0.07757723088 | P19: 0.009148144888 | Q19: 0.0004602583266 | R19: 0.0007854517035 | S19: 0.0923833351 | T19: 0.007424787235 | U19: 2.218125913e-05 | V19: 0 | W19: 0.03331809867 | X19: 0.0008413699524 | Y19: 0.04560054925 | Z19: 0.03800964446 | AA19: 0.009280984044 | AB19: 0.0691109113 | AC19: 0.002975072036 | AD19: 0.7549
A20: P9812 | B20: Engenheiro | C20: mês | D20: 0.2 | E20: 0.08 | F20: 0.025 | G20: 0.015 | H20: 0.016 | I20: 0.002 | J20: 0.03 | K20: 0.001111111111 | L20: 0 | M20: 0 | N20: 0 | O20: 0.0842310039 | P20: 0.008741984251 | Q20: 0.0004602307728 | R20: 0.0007539300709 | S20: 0.09237780448 | T20: 0.007424342743 | U20: 0.0003988346972 | V20: 0 | W20: 0.03082389534 | X20: 0.0007185089848 | Y20: 0.03893940208 | Z20: 0.03822042019 | AA20: 0.009280428429 | AB20: 0.07175081899 | AC20: 0.002731121277 | AD20: 0.756
A21: P9814 | B21: Operacional | C21: mês | D21: 0.2 | E21: 0.08 | F21: 0.025 | G21: 0.015 | H21: 0.016 | I21: 0.002 | J21: 0.03 | K21: 0.004148148148 | L21: 0 | M21: 0 | N21: 0 | O21: 0.05659587434 | P21: 0.007813031376 | Q21: 0.0003965596552 | R21: 0.001026195763 | S21: 0.09227986884 | T21: 0.007416471721 | U21: 4.855222291e-05 | V21: 0 | W21: 0.04455163956 | X21: 0.001227323473 | Y21: 0.06644395079 | Z21: 0.03729844973 | AA21: 0.009270589651 | AB21: 0.06161900792 | AC21: 0.004020877322 | AD21: 0.7622
A22: P9815 | B22: Jardineiro | C22: h | D22: 0.2 | E22: 0.08 | F22: 0.025 | G22: 0.015 | H22: 0.016 | I22: 0.002 | J22: 0.03 | K22: 0.004148148148 | L22: 0 | M22: 0.1866500791 | N22: 0.05166156572 | O22: 0.06877428113 | P22: 0.008807438367 | Q22: 0.0004601799202 | R22: 0.000899263695 | S22: 0.0923675973 | T22: 0.007423522399 | U22: 7.69230454e-05 | V22: 0 | W22: 0.03974142327 | X22: 0.001003575856 | Y22: 0.05438251527 | Z22: 0.04534786722 | AA22: 0.009279402999 | AB22: 0.1552307521 | AC22: 0.003552792758 | AD22: 1.0978
A23: P9819 | B23: Engenheiro supervisor | C23: mês | D23: 0.2 | E23: 0.08 | F23: 0.025 | G23: 0.015 | H23: 0.016 | I23: 0.002 | J23: 0.03 | K23: 0.001111111111 | L23: 0 | M23: 0 | N23: 0 | O23: 0.0842310039 | P23: 0.008741984251 | Q23: 0.0004602307728 | R23: 0.0007539300709 | S23: 0.09237780448 | T23: 0.007424342743 | U23: 0.0003988346972 | V23: 0 | W23: 0.03082389534 | X23: 0.0007185089848 | Y23: 0.03893940208 | Z23: 0.03822042019 | AA23: 0.009280428429 | AB23: 0.07175081899 | AC23: 0.002731121277 | AD23: 0.756
A24: P9821 | B24: Pedreiro | C24: h | D24: 0.2 | E24: 0.08 | F24: 0.025 | G24: 0.015 | H24: 0.016 | I24: 0.002 | J24: 0.03 | K24: 0 | L24: 0 | M24: 0.1858422976 | N24: 0.05143435315 | O24: 0.06208531409 | P24: 0.009149478058 | Q24: 0.0004603254006 | R24: 0.0009344591994 | S24: 0.09239679823 | T24: 0.007425869258 | U24: 1.902191611e-05 | V24: 0 | W24: 0.04464389696 | X24: 0.00112737626 | Y24: 0.06111041688 | Z24: 0.04511193334 | AA24: 0.009282336572 | AB24: 0.1507872334 | AC24: 0.00398638622 | AD24: 1.0938
A25: P9822 | B25: Pintor | C25: h | D25: 0.2 | E25: 0.08 | F25: 0.025 | G25: 0.015 | H25: 0.016 | I25: 0.002 | J25: 0.03 | K25: 0.001111111111 | L25: 0 | M25: 0.1848101251 | N25: 0.05114467702 | O25: 0.05468735224 | P25: 0.008740014443 | Q25: 0.0004601270703 | R25: 0.0009207400747 | S25: 0.09235698923 | T25: 0.007422669836 | U25: 7.026235816e-06 | V25: 0 | W25: 0.04586195075 | X25: 0.001263420364 | Y25: 0.06845530007 | Z25: 0.04481759108 | AA25: 0.009278337295 | AB25: 0.1478473527 | AC25: 0.004135298555 | AD25: 1.0913
A26: P9823 | B26: Serralheiro | C26: h | D26: 0.2 | E26: 0.08 | F26: 0.025 | G26: 0.015 | H26: 0.016 | I26: 0.002 | J26: 0.03 | K26: 0.001111111111 | L26: 0 | M26: 0.1862232515 | N26: 0.05154166416 | O26: 0.06551504385 | P26: 0.008740730751 | Q26: 0.000460164781 | R26: 0.0009810533162 | S26: 0.09236455856 | T26: 0.007423278177 | U26: 2.870289944e-05 | V26: 0 | W26: 0.04212161972 | X26: 0.0010636821 | Y26: 0.0576377009 | Z26: 0.04522491034 | AA26: 0.009279097722 | AB26: 0.1525456671 | AC26: 0.003762346459 | AD26: 1.094
A27: P9824 | B27: Servente | C27: h | D27: 0.2 | E27: 0.08 | F27: 0.025 | G27: 0.015 | H27: 0.016 | I27: 0.002 | J27: 0.03 | K27: 0 | L27: 0 | M27: 0.1859940741 | N27: 0.05147684599 | O27: 0.06299228189 | P27: 0.009151259767 | Q27: 0.0004604150413 | R27: 0.001134280298 | S27: 0.09241479096 | T27: 0.007427315322 | U27: 1.412335185e-05 | V27: 0 | W27: 0.04399027598 | X27: 0.001110870604 | Y27: 0.0602274394 | Z27: 0.04515409238 | AA27: 0.009284144153 | AB27: 0.1512720623 | AC27: 0.003928022461 | AD27: 1.094
A28: P9825 | B28: Soldador | C28: h | D28: 0.2 | E28: 0.08 | F28: 0.025 | G28: 0.015 | H28: 0.016 | I28: 0.002 | J28: 0.03 | K28: 0.001111111111 | L28: 0 | M28: 0.1860137996 | N28: 0.05148281312 | O28: 0.06389243121 | P28: 0.008740737285 | Q28: 0.000460165125 | R28: 0.0009690894351 | S28: 0.09236462761 | T28: 0.007423283727 | U28: 4.139122862e-05 | V28: 0 | W28: 0.0433074596 | X28: 0.001093627688 | Y28: 0.05926040561 | Z28: 0.04516442683 | AA28: 0.009279104659 | AB28: 0.1518480067 | AC28: 0.003868266899 | AD28: 1.0943
A29: P9826 | B29: Chefe setor de finanças | C29: mês | D29: 0.2 | E29: 0.08 | F29: 0.025 | G29: 0.015 | H29: 0.016 | I29: 0.002 | J29: 0.03 | K29: 0.004148148148 | L29: 0 | M29: 0 | N29: 0 | O29: 0.09909220647 | P29: 0.008815268327 | Q29: 0.0004605890278 | R29: 0.0003915551448 | S29: 0.09244971364 | T29: 0.007430122034 | U29: 0.001473499688 | V29: 0 | W29: 0.02206267367 | X29: 0.0004457126053 | Y29: 0.02417407838 | Z29: 0.03872361454 | AA29: 0.009287652543 | AB29: 0.07819314686 | AC29: 0.001930885015 | AD29: 0.7571
A30: P9827 | B30: Vigia | C30: mês | D30: 0.2 | E30: 0.08 | F30: 0.025 | G30: 0.015 | H30: 0.016 | I30: 0.002 | J30: 0.03 | K30: 0 | L30: 0 | M30: 0 | N30: 0 | O30: 0.08509618366 | P30: 0.009150365876 | Q30: 0.0004603700682 | R30: 0.001050644031 | S30: 0.09240576393 | T30: 0.007426589826 | U30: 0 | V30: 0 | W30: 0.03015941251 | X30: 0.0007030198043 | Y30: 0.03811150158 | Z30: 0.03825887736 | AA30: 0.009283237282 | AB30: 0.0719770896 | AC30: 0.002671464289 | AD30: 0.7548
A31: P9830 | B31: Montador | C31: h | D31: 0.2 | E31: 0.08 | F31: 0.025 | G31: 0.015 | H31: 0.016 | I31: 0.002 | J31: 0.03 | K31: 0.001111111111 | L31: 0 | M31: 0.1854792259 | N31: 0.05133257461 | O31: 0.05968790496 | P31: 0.008741155436 | Q31: 0.000460187139 | R31: 0.001049127769 | S31: 0.09236904627 | T31: 0.007423638851 | U31: 9.301235953e-06 | V31: 0 | W31: 0.0425170266 | X31: 0.001171273274 | Y31: 0.0634708234 | Z31: 0.04500966919 | AA31: 0.009279548564 | AB31: 0.1500629203 | AC31: 0.003833692108 | AD31: 1.091
A32: P9833 | B32: Auxiliar de laboratório | C32: mês | D32: 0.2 | E32: 0.08 | F32: 0.025 | G32: 0.015 | H32: 0.016 | I32: 0.002 | J32: 0.03 | K32: 0.001111111111 | L32: 0 | M32: 0 | N32: 0 | O32: 0.06548197109 | P32: 0.008740953824 | Q32: 0.0004601765249 | R32: 0.001006030688 | S32: 0.09236691581 | T32: 0.007423467628 | U32: 2.926988689e-05 | V32: 0 | W32: 0.04214701054 | X32: 0.001064323286 | Y32: 0.05767391666 | Z32: 0.03761628113 | AA32: 0.009279334535 | AB32: 0.06478224281 | AC32: 0.003764614394 | AD32: 0.7609
A33: P9836 | B33: Geólogo | C33: h | D33: 0.2 | E33: 0.08 | F33: 0.025 | G33: 0.015 | H33: 0.016 | I33: 0.002 | J33: 0.03 | K33: 0.004148148148 | L33: 0 | M33: 0.1879971202 | N33: 0.05203946499 | O33: 0.07817603783 | P33: 0.008814011148 | Q33: 0.0004605233415 | R33: 0.000728044976 | S33: 0.09243652904 | T33: 0.007429062397 | U33: 0.0009938365641 | V33: 0 | W33: 0.03291344982 | X33: 0.0008311515006 | Y33: 0.04507266755 | Z33: 0.04573038818 | AA33: 0.009286327996 | AB33: 0.1596793292 | AC33: 0.002942387477 | AD33: 1.0977
A34: P9837 | B34: Oceanógrafo | C34: mês | D34: 0.2 | E34: 0.08 | F34: 0.025 | G34: 0.015 | H34: 0.016 | I34: 0.002 | J34: 0.03 | K34: 0.004148148148 | L34: 0 | M34: 0 | N34: 0 | O34: 0.08086345214 | P34: 0.007817371986 | Q34: 0.0003967799681 | R34: 0.0008279575546 | S34: 0.09233113587 | T34: 0.007420592018 | U34: 0.0008017189234 | V34: 0 | W34: 0.03088361453 | X34: 0.0007798928007 | Y34: 0.04224472902 | Z34: 0.03809468827 | AA34: 0.009275740023 | AB34: 0.0708789673 | AC34: 0.002760924824 | AD34: 0.7575
A35: P9840 | B35: Encarregado geral | C35: mês | D35: 0.2 | E35: 0.08 | F35: 0.025 | G35: 0.015 | H35: 0.016 | I35: 0.002 | J35: 0.03 | K35: 0 | L35: 0 | M35: 0 | N35: 0 | O35: 0.07757723088 | P35: 0.009148144888 | Q35: 0.0004602583266 | R35: 0.0007854517035 | S35: 0.0923833351 | T35: 0.007424787235 | U35: 2.218125913e-05 | V35: 0 | W35: 0.03331809867 | X35: 0.0008413699524 | Y35: 0.04560054925 | Z35: 0.03800964446 | AA35: 0.009280984044 | AB35: 0.0691109113 | AC35: 0.002975072036 | AD35: 0.7549
A36: P9842 | B36: Faxineiro | C36: mês | D36: 0.2 | E36: 0.08 | F36: 0.025 | G36: 0.015 | H36: 0.016 | I36: 0.002 | J36: 0.03 | K36: 0.001111111111 | L36: 0 | M36: 0 | N36: 0 | O36: 0.06849555964 | P36: 0.008748266062 | Q36: 0.0004605614853 | R36: 0.0004383907937 | S36: 0.09244418528 | T36: 0.007429677724 | U36: 0.001433126331 | V36: 0 | W36: 0.03998657556 | X36: 0.001009766599 | Y36: 0.05476335408 | Z36: 0.03774239255 | AA36: 0.009287097155 | AB36: 0.066236903 | AC36: 0.003571642116 | AD36: 0.7612
A37: P9843 | B37: Operador de equipamento leve | C37: h | D37: 0.2 | E37: 0.08 | F37: 0.025 | G37: 0.015 | H37: 0.016 | I37: 0.002 | J37: 0.03 | K37: 0 | L37: 0 | M37: 0.1877889488 | N37: 0.0519812502 | O37: 0.07704978083 | P37: 0.00915018635 | Q37: 0.0004603610359 | R37: 0.001031003812 | S37: 0.09240395097 | T37: 0.007426444119 | U37: 0 | V37: 0 | W37: 0.0337160408 | X37: 0.0008514190419 | Y37: 0.04615548713 | Z37: 0.04567334164 | AA37: 0.009283055149 | AB37: 0.1572434288 | AC37: 0.003010605472 | AD37: 1.0912
A38: P9844 | B38: Capitão fluvial | C38: mês | D38: 0.2 | E38: 0.08 | F38: 0.025 | G38: 0.015 | H38: 0.016 | I38: 0.002 | J38: 0.03 | K38: 0.004148148148 | L38: 0 | M38: 0 | N38: 0 | O38: 0.08622753974 | P38: 0.007811116024 | Q38: 0.0003964624393 | R38: 0.0005295537997 | S38: 0.09225724658 | T38: 0.007414653585 | U38: 0.0002995645767 | V38: 0 | W38: 0.02915427024 | X38: 0.0006795898079 | Y38: 0.03678212237 | Z38: 0.03823795638 | AA38: 0.009268316981 | AB38: 0.07254512229 | AC38: 0.002585249708 | AD38: 0.7563
A39: P9845 | B39: Operador de equipamento pesado | C39: h | D39: 0.2 | E39: 0.08 | F39: 0.025 | G39: 0.015 | H39: 0.016 | I39: 0.002 | J39: 0.03 | K39: 0 | L39: 0 | M39: 0.1877889488 | N39: 0.0519812502 | O39: 0.07704978083 | P39: 0.00915018635 | Q39: 0.0004603610359 | R39: 0.001031003812 | S39: 0.09240395097 | T39: 0.007426444119 | U39: 0 | V39: 0 | W39: 0.0337160408 | X39: 0.0008514190419 | Y39: 0.04615548713 | Z39: 0.04567334164 | AA39: 0.009283055149 | AB39: 0.1572434288 | AC39: 0.003010605472 | AD39: 1.0912
A40: P9846 | B40: Operador de equipamento especial | C40: h | D40: 0.2 | E40: 0.08 | F40: 0.025 | G40: 0.015 | H40: 0.016 | I40: 0.002 | J40: 0.03 | K40: 0 | L40: 0 | M40: 0.1877889488 | N40: 0.0519812502 | O40: 0.07704978083 | P40: 0.00915018635 | Q40: 0.0004603610359 | R40: 0.001031003812 | S40: 0.09240395097 | T40: 0.007426444119 | U40: 0 | V40: 0 | W40: 0.0337160408 | X40: 0.0008514190419 | Y40: 0.04615548713 | Z40: 0.04567334164 | AA40: 0.009283055149 | AB40: 0.1572434288 | AC40: 0.003010605472 | AD40: 1.0912
A41: P9847 | B41: Perfurador de tubulão | C41: h | D41: 0.2 | E41: 0.08 | F41: 0.025 | G41: 0.015 | H41: 0.016 | I41: 0.002 | J41: 0.03 | K41: 0 | L41: 0 | M41: 0.1859940741 | N41: 0.05147684599 | O41: 0.06299228189 | P41: 0.009151259767 | Q41: 0.0004604150413 | R41: 0.001134280298 | S41: 0.09241479096 | T41: 0.007427315322 | U41: 1.412335185e-05 | V41: 0 | W41: 0.04399027598 | X41: 0.001110870604 | Y41: 0.0602274394 | Z41: 0.04515409238 | AA41: 0.009284144153 | AB41: 0.1512720623 | AC41: 0.003928022461 | AD41: 1.094
A42: P9848 | B42: Desenhista | C42: mês | D42: 0.2 | E42: 0.08 | F42: 0.025 | G42: 0.015 | H42: 0.016 | I42: 0.002 | J42: 0.03 | K42: 0.001111111111 | L42: 0 | M42: 0 | N42: 0 | O42: 0.0747696541 | P42: 0.008745780768 | Q42: 0.0004604306444 | R42: 0.0007597403017 | S42: 0.09241792282 | T42: 0.007427567028 | U42: 0.0008271547409 | V42: 0 | W42: 0.03538990385 | X42: 0.0008936885028 | Y42: 0.048454243 | Z42: 0.03793306401 | AA42: 0.009284458784 | AB42: 0.06843624532 | AC42: 0.003161062664 | AD42: 0.7581
A43: P9849 | B43: Condutor maquinista fluvial | C43: mês | D43: 0.2 | E43: 0.08 | F43: 0.025 | G43: 0.015 | H43: 0.016 | I43: 0.002 | J43: 0.03 | K43: 0.004148148148 | L43: 0 | M43: 0 | N43: 0 | O43: 0.07952751879 | P43: 0.007810808754 | Q43: 0.0003964468434 | R43: 0.0007532752582 | S43: 0.09225361741 | T43: 0.007414361911 | U43: 3.673502457e-05 | V43: 0 | W43: 0.03181141434 | X43: 0.0008033221955 | Y43: 0.04347730442 | Z43: 0.03802216845 | AA43: 0.009267952388 | AB43: 0.07003558861 | AC43: 0.002843868015 | AD43: 0.7566
A44: P9850 | B44: Copeiro | C44: mês | D44: 0.2 | E44: 0.08 | F44: 0.025 | G44: 0.015 | H44: 0.016 | I44: 0.002 | J44: 0.03 | K44: 0.001111111111 | L44: 0 | M44: 0 | N44: 0 | O44: 0.08473572918 | P44: 0.008747426723 | Q44: 0.0004605172974 | R44: 0.0001833694023 | S44: 0.09243531587 | T44: 0.007428964895 | U44: 0.001592697646 | V44: 0 | W44: 0.03046609485 | X44: 0.0007101686091 | Y44: 0.03851135864 | Z44: 0.03825868867 | AA44: 0.009286206119 | AB44: 0.07219223531 | AC44: 0.002699418712 | AD44: 0.7568
A45: P9851 | B45: Médico do trabalho | C45: mês | D45: 0.2 | E45: 0.08 | F45: 0.025 | G45: 0.015 | H45: 0.016 | I45: 0.002 | J45: 0.03 | K45: 0.004148148148 | L45: 0 | M45: 0 | N45: 0 | O45: 0.07512705388 | P45: 0.00880714678 | Q45: 0.000460164685 | R45: 0.0004259670664 | S45: 0.0923645393 | T45: 0.007423276629 | U45: 0.0005167783961 | V45: 0 | W45: 0.03509715335 | X45: 0.0008862957798 | Y45: 0.04802566518 | Z45: 0.03792399766 | AA45: 0.009279095786 | AB45: 0.06889389866 | AC45: 0.003137605601 | AD45: 0.7605
A46: P9852 | B46: Blaster | C46: h | D46: 0.2 | E46: 0.08 | F46: 0.025 | G46: 0.015 | H46: 0.016 | I46: 0.002 | J46: 0.03 | K46: 0.004148148148 | L46: 0 | M46: 0.1876994801 | N46: 0.05195644449 | O46: 0.07694237643 | P46: 0.008807159378 | Q46: 0.0004601653433 | R46: 0.0009446176766 | S46: 0.09236467141 | T46: 0.007423287247 | U46: 0 | V46: 0 | W46: 0.03377059617 | X46: 0.0008527967089 | Y46: 0.04621051879 | Z46: 0.04565114247 | AA46: 0.009279109059 | AB46: 0.1587577309 | AC46: 0.003019014409 | AD46: 1.0963
A47: P9853 | B47: Pré-marcador | C47: h | D47: 0.2 | E47: 0.08 | F47: 0.025 | G47: 0.015 | H47: 0.016 | I47: 0.002 | J47: 0.03 | K47: 0 | L47: 0 | M47: 0.1859940741 | N47: 0.05147684599 | O47: 0.06299228189 | P47: 0.009151259767 | Q47: 0.0004604150413 | R47: 0.001134280298 | S47: 0.09241479096 | T47: 0.007427315322 | U47: 1.412335185e-05 | V47: 0 | W47: 0.04399027598 | X47: 0.001110870604 | Y47: 0.0602274394 | Z47: 0.04515409238 | AA47: 0.009284144153 | AB47: 0.1512720623 | AC47: 0.003928022461 | AD47: 1.094
A48: P9854 | B48: Recepcionista | C48: mês | D48: 0.2 | E48: 0.08 | F48: 0.025 | G48: 0.015 | H48: 0.016 | I48: 0.002 | J48: 0.03 | K48: 0.001111111111 | L48: 0 | M48: 0 | N48: 0 | O48: 0.07067850509 | P48: 0.008752064421 | Q48: 0.0004607614538 | R48: 0.000272526652 | S48: 0.09248432308 | T48: 0.007432903572 | U48: 0.002034135467 | V48: 0 | W48: 0.03841505096 | X48: 0.0009700814539 | Y48: 0.05263392569 | Z48: 0.03782768703 | AA48: 0.009291129465 | AB48: 0.06722075111 | AC48: 0.00343127192 | AD48: 0.761
A49: P9855 | B49: Marinheiro de máquinas | C49: mês | D49: 0.2 | E49: 0.08 | F49: 0.025 | G49: 0.015 | H49: 0.016 | I49: 0.002 | J49: 0.03 | K49: 0.004148148148 | L49: 0 | M49: 0 | N49: 0 | O49: 0.08299464123 | P49: 0.007811757361 | Q49: 0.0003964949911 | R49: 0.0008627454517 | S49: 0.09226482142 | T49: 0.00741526237 | U49: 4.877988243e-05 | V49: 0 | W49: 0.03172213313 | X49: 0.0007394470238 | Y49: 0.04002512066 | Z49: 0.03813742409 | AA49: 0.009269077962 | AB49: 0.07137596901 | AC49: 0.002812954491 | AD49: 0.758
A50: P9856 | B50: Marinheiro de convés | C50: h | D50: 0.2 | E50: 0.08 | F50: 0.025 | G50: 0.015 | H50: 0.016 | I50: 0.002 | J50: 0.03 | K50: 0.004148148148 | L50: 0 | M50: 0.1887492952 | N50: 0.05225222167 | O50: 0.08648978836 | P50: 0.007812144089 | Q50: 0.0003965146199 | R50: 0.0009141681159 | S50: 0.09226938908 | T50: 0.007415629469 | U50: 4.690667863e-05 | V50: 0 | W50: 0.0289554281 | X50: 0.000674954772 | Y50: 0.03653606374 | Z50: 0.04596307383 | AA50: 0.009269536836 | AB50: 0.1623853772 | AC50: 0.002567617417 | AD50: 1.0948
A51: P9857 | B51: Marinheiro de convés - mensalista | C51: mês | D51: 0.2 | E51: 0.08 | F51: 0.025 | G51: 0.015 | H51: 0.016 | I51: 0.002 | J51: 0.03 | K51: 0.004148148148 | L51: 0 | M51: 0 | N51: 0 | O51: 0.08648978836 | P51: 0.007812144089 | Q51: 0.0003965146199 | R51: 0.0009141681159 | S51: 0.09226938908 | T51: 0.007415629469 | U51: 4.690667863e-05 | V51: 0 | W51: 0.0289554281 | X51: 0.000674954772 | Y51: 0.03653606374 | Z51: 0.03825102529 | AA51: 0.009269536836 | AB51: 0.07269710896 | AC51: 0.002567617417 | AD51: 0.7564
A52: P9858 | B52: Laboratorista | C52: mês | D52: 0.2 | E52: 0.08 | F52: 0.025 | G52: 0.015 | H52: 0.016 | I52: 0.002 | J52: 0.03 | K52: 0.001111111111 | L52: 0 | M52: 0 | N52: 0 | O52: 0.06548197109 | P52: 0.008740953824 | Q52: 0.0004601765249 | R52: 0.001006030688 | S52: 0.09236691581 | T52: 0.007423467628 | U52: 2.926988689e-05 | V52: 0 | W52: 0.04214701054 | X52: 0.001064323286 | Y52: 0.05767391666 | Z52: 0.03761628113 | AA52: 0.009279334535 | AB52: 0.06478224281 | AC52: 0.003764614394 | AD52: 0.7609
A53: P9859 | B53: Trabalhador de via | C53: h | D53: 0.2 | E53: 0.08 | F53: 0.025 | G53: 0.015 | H53: 0.016 | I53: 0.002 | J53: 0.03 | K53: 0 | L53: 0 | M53: 0.1859940741 | N53: 0.05147684599 | O53: 0.06299228189 | P53: 0.009151259767 | Q53: 0.0004604150413 | R53: 0.001134280298 | S53: 0.09241479096 | T53: 0.007427315322 | U53: 1.412335185e-05 | V53: 0 | W53: 0.04399027598 | X53: 0.001110870604 | Y53: 0.0602274394 | Z53: 0.04515409238 | AA53: 0.009284144153 | AB53: 0.1512720623 | AC53: 0.003928022461 | AD53: 1.094
A54: P9861 | B54: Selecionador de material pétreo | C54: h | D54: 0.2 | E54: 0.08 | F54: 0.025 | G54: 0.015 | H54: 0.016 | I54: 0.002 | J54: 0.03 | K54: 0 | L54: 0 | M54: 0.1859940741 | N54: 0.05147684599 | O54: 0.06299228189 | P54: 0.009151259767 | Q54: 0.0004604150413 | R54: 0.001134280298 | S54: 0.09241479096 | T54: 0.007427315322 | U54: 1.412335185e-05 | V54: 0 | W54: 0.04399027598 | X54: 0.001110870604 | Y54: 0.0602274394 | Z54: 0.04515409238 | AA54: 0.009284144153 | AB54: 0.1512720623 | AC54: 0.003928022461 | AD54: 1.094
A55: P9864 | B55: Engenheiro de segurança do trabalho | C55: mês | D55: 0.2 | E55: 0.08 | F55: 0.025 | G55: 0.015 | H55: 0.016 | I55: 0.002 | J55: 0.03 | K55: 0.004148148148 | L55: 0 | M55: 0 | N55: 0 | O55: 0.07720457912 | P55: 0.008809344805 | Q55: 0.0004602795297 | R55: 0.0006539043584 | S55: 0.09238759098 | T55: 0.007425129278 | U55: 0.0005383853243 | V55: 0 | W55: 0.03359297569 | X55: 0.0008483113229 | Y55: 0.04597887553 | Z55: 0.03799933483 | AA55: 0.009281411597 | AB55: 0.06977004208 | AC55: 0.003003135543 | AD55: 0.7601
A56: P9865 | B56: Técnico em enfermagem | C56: mês | D56: 0.2 | E56: 0.08 | F56: 0.025 | G56: 0.015 | H56: 0.016 | I56: 0.002 | J56: 0.03 | K56: 0.004148148148 | L56: 0 | M56: 0 | N56: 0 | O56: 0.06546266849 | P56: 0.008818982625 | Q56: 0.0004607830962 | R56: 0.0002652741976 | S56: 0.09248866717 | T56: 0.007433252704 | U56: 0.002021996252 | V56: 0 | W56: 0.04222409125 | X56: 0.001066269777 | Y56: 0.0578555544 | Z56: 0.03766245199 | AA56: 0.009291565879 | AB56: 0.06585221938 | AC56: 0.003774737623 | AD56: 0.7668
A57: P9866 | B57: Motorista de caminhão | C57: h | D57: 0.2 | E57: 0.08 | F57: 0.025 | G57: 0.015 | H57: 0.016 | I57: 0.002 | J57: 0.03 | K57: 0 | L57: 0 | M57: 0.1884923412 | N57: 0.05217892041 | O57: 0.08255798432 | P57: 0.00914977088 | Q57: 0.000460340133 | R57: 0.0009855513928 | S57: 0.09239975531 | T57: 0.007426106917 | U57: 0 | V57: 0 | W57: 0.03216375984 | X57: 0.0007497413996 | Y57: 0.04064168943 | Z57: 0.04587682466 | AA57: 0.009282633646 | AB57: 0.1595834836 | AC57: 0.002849005622 | AD57: 1.0928
A58: P9867 | B58: Técnico especializado - mensalista | C58: mês | D58: 0.2 | E58: 0.08 | F58: 0.025 | G58: 0.015 | H58: 0.016 | I58: 0.002 | J58: 0.03 | K58: 0.001111111111 | L58: 0 | M58: 0 | N58: 0 | O58: 0.07025449209 | P58: 0.008745508574 | Q58: 0.0004604163144 | R58: 0.00075303559 | S58: 0.0924150465 | T58: 0.00742733586 | U58: 0.0008027349858 | V58: 0 | W58: 0.03868608094 | X58: 0.0009769256765 | Y58: 0.05296556991 | Z58: 0.03778747424 | AA58: 0.009284169825 | AB58: 0.06675690769 | AC58: 0.003455480597 | AD58: 0.7599
A59: P9869 | B59: Encarregado de obras de artes especiais | C59: mês | D59: 0.2 | E59: 0.08 | F59: 0.025 | G59: 0.015 | H59: 0.016 | I59: 0.002 | J59: 0.03 | K59: 0 | L59: 0 | M59: 0 | N59: 0 | O59: 0.07757723088 | P59: 0.009148144888 | Q59: 0.0004602583266 | R59: 0.0007854517035 | S59: 0.0923833351 | T59: 0.007424787235 | U59: 2.218125913e-05 | V59: 0 | W59: 0.03331809867 | X59: 0.0008413699524 | Y59: 0.04560054925 | Z59: 0.03800964446 | AA59: 0.009280984044 | AB59: 0.0691109113 | AC59: 0.002975072036 | AD59: 0.7549
A60: P9870 | B60: Motorista de veículo leve | C60: h | D60: 0.2 | E60: 0.08 | F60: 0.025 | G60: 0.015 | H60: 0.016 | I60: 0.002 | J60: 0.03 | K60: 0.001111111111 | L60: 0 | M60: 0.1872228242 | N60: 0.05182257637 | O60: 0.07335700467 | P60: 0.008740075091 | Q60: 0.0004601302631 | R60: 0.0008989171294 | S60: 0.09235763011 | T60: 0.007422721343 | U60: 3.574341391e-05 | V60: 0 | W60: 0.03638669475 | X60: 0.0009188601047 | Y60: 0.04978650215 | Z60: 0.04551416392 | AA60: 0.009278401678 | AB60: 0.1558821269 | AC60: 0.003250097054 | AD60: 1.0924
A61: P9871 | B61: Motorista de veículo especial | C61: h | D61: 0.2 | E61: 0.08 | F61: 0.025 | G61: 0.015 | H61: 0.016 | I61: 0.002 | J61: 0.03 | K61: 0 | L61: 0 | M61: 0.1884923412 | N61: 0.05217892041 | O61: 0.08255798432 | P61: 0.00914977088 | Q61: 0.000460340133 | R61: 0.0009855513928 | S61: 0.09239975531 | T61: 0.007426106917 | U61: 0 | V61: 0 | W61: 0.03216375984 | X61: 0.0007497413996 | Y61: 0.04064168943 | Z61: 0.04587682466 | AA61: 0.009282633646 | AB61: 0.1595834836 | AC61: 0.002849005622 | AD61: 1.0928
A62: P9875 | B62: Encarregado de turma | C62: mês | D62: 0.2 | E62: 0.08 | F62: 0.025 | G62: 0.015 | H62: 0.016 | I62: 0.002 | J62: 0.03 | K62: 0 | L62: 0 | M62: 0 | N62: 0 | O62: 0.07757723088 | P62: 0.009148144888 | Q62: 0.0004602583266 | R62: 0.0007854517035 | S62: 0.0923833351 | T62: 0.007424787235 | U62: 2.218125913e-05 | V62: 0 | W62: 0.03331809867 | X62: 0.0008413699524 | Y62: 0.04560054925 | Z62: 0.03800964446 | AA62: 0.009280984044 | AB62: 0.0691109113 | AC62: 0.002975072036 | AD62: 0.7549
A63: P9876 | B63: Técnico de segurança do trabalho | C63: mês | D63: 0.2 | E63: 0.08 | F63: 0.025 | G63: 0.015 | H63: 0.016 | I63: 0.002 | J63: 0.03 | K63: 0.001111111111 | L63: 0 | M63: 0 | N63: 0 | O63: 0.06440778714 | P63: 0.008746170508 | Q63: 0.0004604511626 | R63: 0.0006686603657 | S63: 0.09242204125 | T63: 0.007427898023 | U63: 0.0009628377601 | V63: 0 | W63: 0.04296007778 | X63: 0.00108485538 | Y63: 0.0588216012 | Z63: 0.03760306708 | AA63: 0.009284872529 | AB63: 0.06462982235 | AC63: 0.003837238397 | AD63: 0.7624
A64: P9878 | B64: Secretária | C64: mês | D64: 0.2 | E64: 0.08 | F64: 0.025 | G64: 0.015 | H64: 0.016 | I64: 0.002 | J64: 0.03 | K64: 0.004148148148 | L64: 0 | M64: 0 | N64: 0 | O64: 0.0840142094 | P64: 0.008819800243 | Q64: 0.0004608258159 | R64: 0.0002153483685 | S64: 0.09249724189 | T64: 0.007433941848 | U64: 0.002164985726 | V64: 0 | W64: 0.03108138105 | X64: 0.0007245110101 | Y64: 0.03931544645 | Z64: 0.03825940331 | AA64: 0.00929242731 | AB64: 0.07279454214 | AC64: 0.002756135915 | AD64: 0.762
A65: P9880 | B65: Piloto fluvial | C65: mês | D65: 0.2 | E65: 0.08 | F65: 0.025 | G65: 0.015 | H65: 0.016 | I65: 0.002 | J65: 0.03 | K65: 0.004148148148 | L65: 0 | M65: 0 | N65: 0 | O65: 0.08622753974 | P65: 0.007811116024 | Q65: 0.0003964624393 | R65: 0.0005295537997 | S65: 0.09225724658 | T65: 0.007414653585 | U65: 0.0002995645767 | V65: 0 | W65: 0.02915427024 | X65: 0.0006795898079 | Y65: 0.03678212237 | Z65: 0.03823795638 | AA65: 0.009268316981 | AB65: 0.07254512229 | AC65: 0.002585249708 | AD65: 0.7563
A66: P9882 | B66: Técnico especializado | C66: h | D66: 0.2 | E66: 0.08 | F66: 0.025 | G66: 0.015 | H66: 0.016 | I66: 0.002 | J66: 0.03 | K66: 0.001111111111 | L66: 0 | M66: 0.1869325893 | N66: 0.05174054183 | O66: 0.07025449209 | P66: 0.008745508574 | Q66: 0.0004604163144 | R66: 0.00075303559 | S66: 0.0924150465 | T66: 0.00742733586 | U66: 0.0008027349858 | V66: 0 | W66: 0.03868608094 | X66: 0.0009769256765 | Y66: 0.05296556991 | Z66: 0.04542501443 | AA66: 0.009284169825 | AB66: 0.1548538123 | AC66: 0.003455480597 | AD66: 1.0943
A67: P9883 | B67: Chefe do setor administrativo | C67: mês | D67: 0.2 | E67: 0.08 | F67: 0.025 | G67: 0.015 | H67: 0.016 | I67: 0.002 | J67: 0.03 | K67: 0.001111111111 | L67: 0 | M67: 0 | N67: 0 | O67: 0.08233441816 | P67: 0.008742122809 | Q67: 0.0004602380674 | R67: 0.0007186071849 | S67: 0.09237926864 | T67: 0.007424460417 | U67: 0.0004499802008 | V67: 0 | W67: 0.03232623952 | X67: 0.0007535288218 | Y67: 0.04083794003 | Z67: 0.03816029106 | AA67: 0.009280575521 | AB67: 0.07105724613 | AC67: 0.002864235022 | AD67: 0.7569
A68: P9884 | B68: Encarregado de terraplenagem | C68: mês | D68: 0.2 | E68: 0.08 | F68: 0.025 | G68: 0.015 | H68: 0.016 | I68: 0.002 | J68: 0.03 | K68: 0 | L68: 0 | M68: 0 | N68: 0 | O68: 0.07757723088 | P68: 0.009148144888 | Q68: 0.0004602583266 | R68: 0.0007854517035 | S68: 0.0923833351 | T68: 0.007424787235 | U68: 2.218125913e-05 | V68: 0 | W68: 0.03331809867 | X68: 0.0008413699524 | Y68: 0.04560054925 | Z68: 0.03800964446 | AA68: 0.009280984044 | AB68: 0.0691109113 | AC68: 0.002975072036 | AD68: 0.7549
A69: P9885 | B69: Frentista de túnel | C69: h | D69: 0.2 | E69: 0.08 | F69: 0.025 | G69: 0.015 | H69: 0.016 | I69: 0.002 | J69: 0.03 | K69: 0 | L69: 0 | M69: 0.1859940741 | N69: 0.05147684599 | O69: 0.06299228189 | P69: 0.009151259767 | Q69: 0.0004604150413 | R69: 0.001134280298 | S69: 0.09241479096 | T69: 0.007427315322 | U69: 1.412335185e-05 | V69: 0 | W69: 0.04399027598 | X69: 0.001110870604 | Y69: 0.0602274394 | Z69: 0.04515409238 | AA69: 0.009284144153 | AB69: 0.1512720623 | AC69: 0.003928022461 | AD69: 1.094
A70: P9889 | B70: Técnico da qualidade | C70: mês | D70: 0.2 | E70: 0.08 | F70: 0.025 | G70: 0.015 | H70: 0.016 | I70: 0.002 | J70: 0.03 | K70: 0.001111111111 | L70: 0 | M70: 0 | N70: 0 | O70: 0.07044496698 | P70: 0.008745410518 | Q70: 0.0004604111522 | R70: 0.0007400510831 | S70: 0.09241401034 | T70: 0.007427252584 | U70: 0.000804508185 | V70: 0 | W70: 0.03854638107 | X70: 0.0009733978859 | Y70: 0.05277371346 | Z70: 0.03779317155 | AA70: 0.00928406573 | AB70: 0.06682262458 | AC70: 0.003443002461 | AD70: 0.7598
A71: P9891 | B71: Engenheiro mecânico | C71: mês | D71: 0.2 | E71: 0.08 | F71: 0.025 | G71: 0.015 | H71: 0.016 | I71: 0.002 | J71: 0.03 | K71: 0.004148148148 | L71: 0 | M71: 0 | N71: 0 | O71: 0.08380502244 | P71: 0.008806745174 | Q71: 0.0004601437015 | R71: 0.0007572538338 | S71: 0.09236032747 | T71: 0.007422938127 | U71: 0.0001400768053 | V71: 0 | W71: 0.03114854333 | X71: 0.0007260765715 | Y71: 0.03934208085 | Z71: 0.03820008024 | AA71: 0.009278672659 | AB71: 0.07210463688 | AC71: 0.002762091518 | AD71: 0.7595
A72: P9892 | B72: Auxiliar de blaster | C72: h | D72: 0.2 | E72: 0.08 | F72: 0.025 | G72: 0.015 | H72: 0.016 | I72: 0.002 | J72: 0.03 | K72: 0.004148148148 | L72: 0 | M72: 0.1876994801 | N72: 0.05195644449 | O72: 0.07694237643 | P72: 0.008807159378 | Q72: 0.0004601653433 | R72: 0.0009446176766 | S72: 0.09236467141 | T72: 0.007423287247 | U72: 0 | V72: 0 | W72: 0.03377059617 | X72: 0.0008527967089 | Y72: 0.04621051879 | Z72: 0.04565114247 | AA72: 0.009279109059 | AB72: 0.1587577309 | AC72: 0.003019014409 | AD72: 1.0963
A73: P9893 | B73: Encarregado de pavimentação | C73: mês | D73: 0.2 | E73: 0.08 | F73: 0.025 | G73: 0.015 | H73: 0.016 | I73: 0.002 | J73: 0.03 | K73: 0 | L73: 0 | M73: 0 | N73: 0 | O73: 0.07757723088 | P73: 0.009148144888 | Q73: 0.0004602583266 | R73: 0.0007854517035 | S73: 0.0923833351 | T73: 0.007424787235 | U73: 2.218125913e-05 | V73: 0 | W73: 0.03331809867 | X73: 0.0008413699524 | Y73: 0.04560054925 | Z73: 0.03800964446 | AA73: 0.009280984044 | AB73: 0.0691109113 | AC73: 0.002975072036 | AD73: 0.7549
A74: P9896 | B74: Porteiro | C74: mês | D74: 0.2 | E74: 0.08 | F74: 0.025 | G74: 0.015 | H74: 0.016 | I74: 0.002 | J74: 0.03 | K74: 0.001111111111 | L74: 0 | M74: 0 | N74: 0 | O74: 0.0613440006 | P74: 0.008742101055 | Q74: 0.0004602369221 | R74: 0.0007181187816 | S74: 0.09237903876 | T74: 0.007424441942 | U74: 0.0004479805744 | V74: 0 | W74: 0.04141210725 | X74: 0.001140834586 | Y74: 0.06182805108 | Z74: 0.0374885094 | AA74: 0.009280552427 | AB74: 0.0633084313 | AC74: 0.003734063302 | AD74: 0.7588
A75: P9897 | B75: Técnico de meio ambiente | C75: mês | D75: 0.2 | E75: 0.08 | F75: 0.025 | G75: 0.015 | H75: 0.016 | I75: 0.002 | J75: 0.03 | K75: 0.004148148148 | L75: 0 | M75: 0 | N75: 0 | O75: 0.06473458019 | P75: 0.008815118402 | Q75: 0.0004605811943 | R75: 0.0005794329379 | S75: 0.0924481413 | T75: 0.007429995667 | U75: 0.001268266563 | V75: 0 | W75: 0.04273475377 | X75: 0.001079165354 | Y75: 0.05852960822 | Z75: 0.03762355572 | AA75: 0.009287494583 | AB75: 0.06539987023 | AC75: 0.003820389689 | AD75: 0.7664
A76: P9900 | B76: Comprador | C76: mês | D76: 0.2 | E76: 0.08 | F76: 0.025 | G76: 0.015 | H76: 0.016 | I76: 0.002 | J76: 0.03 | K76: 0.001111111111 | L76: 0 | M76: 0 | N76: 0 | O76: 0.08378486462 | P76: 0.008744347092 | Q76: 0.000460355167 | R76: 0.0007275818128 | S76: 0.09240277296 | T76: 0.007426349443 | U76: 0.0006953703517 | V76: 0 | W76: 0.03119497441 | X76: 0.0007271588859 | Y76: 0.03941883265 | Z76: 0.03821573253 | AA76: 0.009282936804 | AB76: 0.0716967481 | AC76: 0.002764000377 | AD76: 0.7567
A77: P9901 | B77: Encarregado de superestrutura ferroviária | C77: mês | D77: 0.2 | E77: 0.08 | F77: 0.025 | G77: 0.015 | H77: 0.016 | I77: 0.002 | J77: 0.03 | K77: 0 | L77: 0 | M77: 0 | N77: 0 | O77: 0.07757723088 | P77: 0.009148144888 | Q77: 0.0004602583266 | R77: 0.0007854517035 | S77: 0.0923833351 | T77: 0.007424787235 | U77: 2.218125913e-05 | V77: 0 | W77: 0.03331809867 | X77: 0.0008413699524 | Y77: 0.04560054925 | Z77: 0.03800964446 | AA77: 0.009280984044 | AB77: 0.0691109113 | AC77: 0.002975072036 | AD77: 0.7549
A78: P9903 | B78: Auxiliar técnico | C78: mês | D78: 0.2 | E78: 0.08 | F78: 0.025 | G78: 0.015 | H78: 0.016 | I78: 0.002 | J78: 0.03 | K78: 0.001111111111 | L78: 0 | M78: 0 | N78: 0 | O78: 0.07025449209 | P78: 0.008745508574 | Q78: 0.0004604163144 | R78: 0.00075303559 | S78: 0.0924150465 | T78: 0.00742733586 | U78: 0.0008027349858 | V78: 0 | W78: 0.03868608094 | X78: 0.0009769256765 | Y78: 0.05296556991 | Z78: 0.03778747424 | AA78: 0.009284169825 | AB78: 0.06675690769 | AC78: 0.003455480597 | AD78: 0.7599
A79: P9907 | B79: Comandante de longo curso | C79: mês | D79: 0.2 | E79: 0.08 | F79: 0.025 | G79: 0.015 | H79: 0.016 | I79: 0.002 | J79: 0.03 | K79: 0.004148148148 | L79: 0 | M79: 0 | N79: 0 | O79: 0.08622753974 | P79: 0.007811116024 | Q79: 0.0003964624393 | R79: 0.0005295537997 | S79: 0.09225724658 | T79: 0.007414653585 | U79: 0.0002995645767 | V79: 0 | W79: 0.02915427024 | X79: 0.0006795898079 | Y79: 0.03678212237 | Z79: 0.03823795638 | AA79: 0.009268316981 | AB79: 0.07254512229 | AC79: 0.002585249708 | AD79: 0.7563
A80: P9908 | B80: Imediato | C80: mês | D80: 0.2 | E80: 0.08 | F80: 0.025 | G80: 0.015 | H80: 0.016 | I80: 0.002 | J80: 0.03 | K80: 0.004148148148 | L80: 0 | M80: 0 | N80: 0 | O80: 0.08622753974 | P80: 0.007811116024 | Q80: 0.0003964624393 | R80: 0.0005295537997 | S80: 0.09225724658 | T80: 0.007414653585 | U80: 0.0002995645767 | V80: 0 | W80: 0.02915427024 | X80: 0.0006795898079 | Y80: 0.03678212237 | Z80: 0.03823795638 | AA80: 0.009268316981 | AB80: 0.07254512229 | AC80: 0.002585249708 | AD80: 0.7563
A81: P9909 | B81: Oficial de náutica | C81: mês | D81: 0.2 | E81: 0.08 | F81: 0.025 | G81: 0.015 | H81: 0.016 | I81: 0.002 | J81: 0.03 | K81: 0.004148148148 | L81: 0 | M81: 0 | N81: 0 | O81: 0.08125971844 | P81: 0.007815352301 | Q81: 0.0003966774565 | R81: 0.0008336858348 | S81: 0.09230728133 | T81: 0.007418674844 | U81: 0.0005376422624 | V81: 0 | W81: 0.03057856633 | X81: 0.0007721895285 | Y81: 0.04181665667 | Z81: 0.03809820904 | AA81: 0.009273343556 | AB81: 0.07091991253 | AC81: 0.00273365421 | AD81: 0.7569
A82: P9910 | B82: Oficial de máquinas | C82: mês | D82: 0.2 | E82: 0.08 | F82: 0.025 | G82: 0.015 | H82: 0.016 | I82: 0.002 | J82: 0.03 | K82: 0.004148148148 | L82: 0 | M82: 0 | N82: 0 | O82: 0.08605484227 | P82: 0.007812396007 | Q82: 0.0003965274063 | R82: 0.0008073587677 | S82: 0.09227236449 | T82: 0.007415868601 | U82: 0.000185779699 | V82: 0 | W82: 0.02930232916 | X82: 0.0006830410805 | Y82: 0.03697497705 | Z82: 0.03823824439 | AA82: 0.009269835751 | AB82: 0.07254847181 | AC82: 0.002598378806 | AD82: 0.7567
A83: P9911 | B83: Condutor de máquinas | C83: mês | D83: 0.2 | E83: 0.08 | F83: 0.025 | G83: 0.015 | H83: 0.016 | I83: 0.002 | J83: 0.03 | K83: 0.004148148148 | L83: 0 | M83: 0 | N83: 0 | O83: 0.07952751879 | P83: 0.007810808754 | Q83: 0.0003964468434 | R83: 0.0007532752582 | S83: 0.09225361741 | T83: 0.007414361911 | U83: 3.673502457e-05 | V83: 0 | W83: 0.03181141434 | X83: 0.0008033221955 | Y83: 0.04347730442 | Z83: 0.03802216845 | AA83: 0.009267952388 | AB83: 0.07003558861 | AC83: 0.002843868015 | AD83: 0.7566
A84: P9912 | B84: Capitão fluvial com periculosidade | C84: h | D84: 0.2 | E84: 0.08 | F84: 0.025 | G84: 0.015 | H84: 0.016 | I84: 0.002 | J84: 0.03 | K84: 0.004148148148 | L84: 0 | M84: 0.1886920529 | N84: 0.05223624092 | O84: 0.08622753974 | P84: 0.007811116024 | Q84: 0.0003964624393 | R84: 0.0005295537997 | S84: 0.09225724658 | T84: 0.007414653585 | U84: 0.0002995645767 | V84: 0 | W84: 0.02915427024 | X84: 0.0006795898079 | Y84: 0.03678212237 | Z84: 0.04594766178 | AA84: 0.009268316981 | AB84: 0.1622061407 | AC84: 0.002585249708 | AD84: 1.0946
A85: P9913 | B85: Draguista | C85: mês | D85: 0.2 | E85: 0.08 | F85: 0.025 | G85: 0.015 | H85: 0.016 | I85: 0.002 | J85: 0.03 | K85: 0.004148148148 | L85: 0 | M85: 0 | N85: 0 | O85: 0.08622753974 | P85: 0.007811116024 | Q85: 0.0003964624393 | R85: 0.0005295537997 | S85: 0.09225724658 | T85: 0.007414653585 | U85: 0.0002995645767 | V85: 0 | W85: 0.02915427024 | X85: 0.0006795898079 | Y85: 0.03678212237 | Z85: 0.03823795638 | AA85: 0.009268316981 | AB85: 0.07254512229 | AC85: 0.002585249708 | AD85: 0.7563
A86: P9915 | B86: Maquinista | C86: h | D86: 0.2 | E86: 0.08 | F86: 0.025 | G86: 0.015 | H86: 0.016 | I86: 0.002 | J86: 0.03 | K86: 0.004148148148 | L86: 0 | M86: 0.172361225 | N86: 0.04764724247 | O86: 0 | P86: 0.008802172837 | Q86: 0.0004599048014 | R86: 0.0003778910829 | S86: 0.0923123753 | T86: 0.007419084243 | U86: 0 | V86: 0 | W86: 0.1 | X86: 0.003030316804 | Y86: 0.1230831671 | Z86: 0.04254015666 | AA86: 0.009273855304 | AB86: 0.1225781182 | AC86: 0.009127726787 | AD86: 1.1112
A87: P9916 | B87: Encarregado de conservação rodoviária | C87: mês | D87: 0.2 | E87: 0.08 | F87: 0.025 | G87: 0.015 | H87: 0.016 | I87: 0.002 | J87: 0.03 | K87: 0 | L87: 0 | M87: 0 | N87: 0 | O87: 0.07757723088 | P87: 0.009148144888 | Q87: 0.0004602583266 | R87: 0.0007854517035 | S87: 0.0923833351 | T87: 0.007424787235 | U87: 2.218125913e-05 | V87: 0 | W87: 0.03331809867 | X87: 0.0008413699524 | Y87: 0.04560054925 | Z87: 0.03800964446 | AA87: 0.009280984044 | AB87: 0.0691109113 | AC87: 0.002975072036 | AD87: 0.7549
A88: P9920 | B88: Mestre fluvial | C88: mês | D88: 0.2 | E88: 0.08 | F88: 0.025 | G88: 0.015 | H88: 0.016 | I88: 0.002 | J88: 0.03 | K88: 0.004148148148 | L88: 0 | M88: 0 | N88: 0 | O88: 0.08622753974 | P88: 0.007811116024 | Q88: 0.0003964624393 | R88: 0.0005295537997 | S88: 0.09225724658 | T88: 0.007414653585 | U88: 0.0002995645767 | V88: 0 | W88: 0.02915427024 | X88: 0.0006795898079 | Y88: 0.03678212237 | Z88: 0.03823795638 | AA88: 0.009268316981 | AB88: 0.07254512229 | AC88: 0.002585249708 | AD88: 0.7563
A89: P9921 | B89: Mergulhador raso autônomo de emergência | C89: h | D89: 0.2 | E89: 0.08 | F89: 0.025 | G89: 0.015 | H89: 0.016 | I89: 0.002 | J89: 0.03 | K89: 0.004148148148 | L89: 0.12 | M89: 0.1882475788 | N89: 0.05211118161 | O89: 0.08248055426 | P89: 0.007812853973 | Q89: 0.0003965506509 | R89: 0.0009862034856 | S89: 0.09227777352 | T89: 0.007416303322 | U89: 6.578386343e-05 | V89: 0 | W89: 0.03213875102 | X89: 0.0007491584407 | Y89: 0.0405564771 | Z89: 0.04581743307 | AA89: 0.009270379152 | AB89: 0.2125070031 | AC89: 0.002939797021 | AD89: 1.2679
A90: P9922 | B90: Mergulhador raso dependente de emergência | C90: h | D90: 0.2 | E90: 0.08 | F90: 0.025 | G90: 0.015 | H90: 0.016 | I90: 0.002 | J90: 0.03 | K90: 0.004148148148 | L90: 0 | M90: 0.1882475788 | N90: 0.05211118161 | O90: 0.08248055426 | P90: 0.007812853973 | Q90: 0.0003965506509 | R90: 0.0009862034856 | S90: 0.09227777352 | T90: 0.007416303322 | U90: 6.578386343e-05 | V90: 0 | W90: 0.03213875102 | X90: 0.0007491584407 | Y90: 0.0405564771 | Z90: 0.04581743307 | AA90: 0.009270379152 | AB90: 0.1606916291 | AC90: 0.002849898008 | AD90: 1.096
A91: P9924 | B91: Mergulhador raso dependente | C91: h | D91: 0.2 | E91: 0.08 | F91: 0.025 | G91: 0.015 | H91: 0.016 | I91: 0.002 | J91: 0.03 | K91: 0.004148148148 | L91: 0 | M91: 0.1882475788 | N91: 0.05211118161 | O91: 0.08248055426 | P91: 0.007812853973 | Q91: 0.0003965506509 | R91: 0.0009862034856 | S91: 0.09227777352 | T91: 0.007416303322 | U91: 6.578386343e-05 | V91: 0 | W91: 0.03213875102 | X91: 0.0007491584407 | Y91: 0.0405564771 | Z91: 0.04581743307 | AA91: 0.009270379152 | AB91: 0.1606916291 | AC91: 0.002849898008 | AD91: 1.096
A92: P9925 | B92: Mergulhador raso autônomo | C92: h | D92: 0.2 | E92: 0.08 | F92: 0.025 | G92: 0.015 | H92: 0.016 | I92: 0.002 | J92: 0.03 | K92: 0.004148148148 | L92: 0.12 | M92: 0.1882475788 | N92: 0.05211118161 | O92: 0.08248055426 | P92: 0.007812853973 | Q92: 0.0003965506509 | R92: 0.0009862034856 | S92: 0.09227777352 | T92: 0.007416303322 | U92: 6.578386343e-05 | V92: 0 | W92: 0.03213875102 | X92: 0.0007491584407 | Y92: 0.0405564771 | Z92: 0.04581743307 | AA92: 0.009270379152 | AB92: 0.2125070031 | AC92: 0.002939797021 | AD92: 1.2679
A93: P9926 | B93: Mergulhador raso auxiliar de superfície | C93: h | D93: 0.2 | E93: 0.08 | F93: 0.025 | G93: 0.015 | H93: 0.016 | I93: 0.002 | J93: 0.03 | K93: 0.004148148148 | L93: 0.12 | M93: 0.1882475788 | N93: 0.05211118161 | O93: 0.08248055426 | P93: 0.007812853973 | Q93: 0.0003965506509 | R93: 0.0009862034856 | S93: 0.09227777352 | T93: 0.007416303322 | U93: 6.578386343e-05 | V93: 0 | W93: 0.03213875102 | X93: 0.0007491584407 | Y93: 0.0405564771 | Z93: 0.04581743307 | AA93: 0.009270379152 | AB93: 0.2125070031 | AC93: 0.002939797021 | AD93: 1.2679
A94: P9927 | B94: Frentista de túnel com periculosidade | C94: h | D94: 0.2 | E94: 0.08 | F94: 0.025 | G94: 0.015 | H94: 0.016 | I94: 0.002 | J94: 0.03 | K94: 0 | L94: 0 | M94: 0.1859940741 | N94: 0.05147684599 | O94: 0.06299228189 | P94: 0.009151259767 | Q94: 0.0004604150413 | R94: 0.001134280298 | S94: 0.09241479096 | T94: 0.007427315322 | U94: 1.412335185e-05 | V94: 0 | W94: 0.04399027598 | X94: 0.001110870604 | Y94: 0.0602274394 | Z94: 0.04515409238 | AA94: 0.009284144153 | AB94: 0.1512720623 | AC94: 0.003928022461 | AD94: 1.094
A95: P9928 | B95: Servente com periculosidade | C95: h | D95: 0.2 | E95: 0.08 | F95: 0.025 | G95: 0.015 | H95: 0.016 | I95: 0.002 | J95: 0.03 | K95: 0 | L95: 0 | M95: 0.1859940741 | N95: 0.05147684599 | O95: 0.06299228189 | P95: 0.009151259767 | Q95: 0.0004604150413 | R95: 0.001134280298 | S95: 0.09241479096 | T95: 0.007427315322 | U95: 1.412335185e-05 | V95: 0 | W95: 0.04399027598 | X95: 0.001110870604 | Y95: 0.0602274394 | Z95: 0.04515409238 | AA95: 0.009284144153 | AB95: 0.1512720623 | AC95: 0.003928022461 | AD95: 1.094
A96: P9929 | B96: Bombeiro hidráulico com periculosidade | C96: h | D96: 0.2 | E96: 0.08 | F96: 0.025 | G96: 0.015 | H96: 0.016 | I96: 0.002 | J96: 0.03 | K96: 0.001111111111 | L96: 0 | M96: 0.1870678078 | N96: 0.05177897783 | O96: 0.07208114341 | P96: 0.008740555999 | Q96: 0.000460155581 | R96: 0.0009741716227 | S96: 0.09236271194 | T96: 0.007423129765 | U96: 1.559755542e-05 | V96: 0 | W96: 0.03732206236 | X96: 0.0009424806061 | Y96: 0.05106913917 | Z96: 0.04546893605 | AA96: 0.009278912207 | AB96: 0.1553604359 | AC96: 0.003333645052 | AD96: 1.0928
A97: P9930 | B97: Eletricista com periculosidade | C97: h | D97: 0.2 | E97: 0.08 | F97: 0.025 | G97: 0.015 | H97: 0.016 | I97: 0.002 | J97: 0.03 | K97: 0 | L97: 0 | M97: 0.1875383843 | N97: 0.05191083308 | O97: 0.07508333868 | P97: 0.009150362882 | Q97: 0.0004603699176 | R97: 0.001050316486 | S97: 0.0924057337 | T97: 0.007426587396 | U97: 0 | V97: 0 | W97: 0.03515356182 | X97: 0.0008877202426 | Y97: 0.04812430625 | Z97: 0.04560082965 | AA97: 0.009283234245 | AB97: 0.1564095409 | AC97: 0.003138965994 | AD97: 1.0916
A98: P9931 | B98: Operador de equipamento de mergulho | C98: h | D98: 0.2 | E98: 0.08 | F98: 0.025 | G98: 0.015 | H98: 0.016 | I98: 0.002 | J98: 0.03 | K98: 0.004148148148 | L98: 0.12 | M98: 0.1882475788 | N98: 0.05211118161 | O98: 0.08248055426 | P98: 0.007812853973 | Q98: 0.0003965506509 | R98: 0.0009862034856 | S98: 0.09227777352 | T98: 0.007416303322 | U98: 6.578386343e-05 | V98: 0 | W98: 0.03213875102 | X98: 0.0007491584407 | Y98: 0.0405564771 | Z98: 0.04581743307 | AA98: 0.009270379152 | AB98: 0.2125070031 | AC98: 0.002939797021 | AD98: 1.2679
A99: P9932 | B99: Operador de equipamento pesado com periculosidade | C99: h | D99: 0.2 | E99: 0.08 | F99: 0.025 | G99: 0.015 | H99: 0.016 | I99: 0.002 | J99: 0.03 | K99: 0 | L99: 0 | M99: 0.1877889488 | N99: 0.0519812502 | O99: 0.07704978083 | P99: 0.00915018635 | Q99: 0.0004603610359 | R99: 0.001031003812 | S99: 0.09240395097 | T99: 0.007426444119 | U99: 0 | V99: 0 | W99: 0.0337160408 | X99: 0.0008514190419 | Y99: 0.04615548713 | Z99: 0.04567334164 | AA99: 0.009283055149 | AB99: 0.1572434288 | AC99: 0.003010605472 | AD99: 1.0912
A100: P9933 | B100: Supervisor de mergulho raso | C100: mês | D100: 0.2 | E100: 0.08 | F100: 0.025 | G100: 0.015 | H100: 0.016 | I100: 0.002 | J100: 0.03 | K100: 0.004148148148 | L100: 0.12 | M100: 0 | N100: 0 | O100: 0.08248055426 | P100: 0.007812853973 | Q100: 0.0003965506509 | R100: 0.0009862034856 | S100: 0.09227777352 | T100: 0.007416303322 | U100: 6.578386343e-05 | V100: 0 | W100: 0.03213875102 | X100: 0.0007491584407 | Y100: 0.0405564771 | Z100: 0.03812595274 | AA100: 0.009270379152 | AB100: 0.09421488425 | AC100: 0.002939797021 | AD100: 0.9016
A101: P9934 | B101: Motorista de veículo especial com periculosidade | C101: h | D101: 0.2 | E101: 0.08 | F101: 0.025 | G101: 0.015 | H101: 0.016 | I101: 0.002 | J101: 0.03 | K101: 0 | L101: 0 | M101: 0.1884923412 | N101: 0.05217892041 | O101: 0.08255798432 | P101: 0.00914977088 | Q101: 0.000460340133 | R101: 0.0009855513928 | S101: 0.09239975531 | T101: 0.007426106917 | U101: 0 | V101: 0 | W101: 0.03216375984 | X101: 0.0007497413996 | Y101: 0.04064168943 | Z101: 0.04587682466 | AA101: 0.009282633646 | AB101: 0.1595834836 | AC101: 0.002849005622 | AD101: 1.0928
A102: P9938 | B102: Operador de equipamento leve com periculosidade | C102: h | D102: 0.2 | E102: 0.08 | F102: 0.025 | G102: 0.015 | H102: 0.016 | I102: 0.002 | J102: 0.03 | K102: 0 | L102: 0 | M102: 0.1877889488 | N102: 0.0519812502 | O102: 0.07704978083 | P102: 0.00915018635 | Q102: 0.0004603610359 | R102: 0.001031003812 | S102: 0.09240395097 | T102: 0.007426444119 | U102: 0 | V102: 0 | W102: 0.0337160408 | X102: 0.0008514190419 | Y102: 0.04615548713 | Z102: 0.04567334164 | AA102: 0.009283055149 | AB102: 0.1572434288 | AC102: 0.003010605472 | AD102: 1.0912
A103: P9939 | B103: Operador de equipamento leve com insalubridade | C103: h | D103: 0.2 | E103: 0.08 | F103: 0.025 | G103: 0.015 | H103: 0.016 | I103: 0.002 | J103: 0.03 | K103: 0 | L103: 0.12 | M103: 0.1877889488 | N103: 0.0519812502 | O103: 0.07704978083 | P103: 0.00915018635 | Q103: 0.0004603610359 | R103: 0.001031003812 | S103: 0.09240395097 | T103: 0.007426444119 | U103: 0 | V103: 0 | W103: 0.0337160408 | X103: 0.0008514190419 | Y103: 0.04615548713 | Z103: 0.04567334164 | AA103: 0.009283055149 | AB103: 0.20851846 | AC103: 0.003112775757 | AD103: 1.2626
A104: P9940 | B104: Piloto fluvial com periculosidade | C104: h | D104: 0.2 | E104: 0.08 | F104: 0.025 | G104: 0.015 | H104: 0.016 | I104: 0.002 | J104: 0.03 | K104: 0.004148148148 | L104: 0 | M104: 0.1886920529 | N104: 0.05223624092 | O104: 0.08622753974 | P104: 0.007811116024 | Q104: 0.0003964624393 | R104: 0.0005295537997 | S104: 0.09225724658 | T104: 0.007414653585 | U104: 0.0002995645767 | V104: 0 | W104: 0.02915427024 | X104: 0.0006795898079 | Y104: 0.03678212237 | Z104: 0.04594766178 | AA104: 0.009268316981 | AB104: 0.1622061407 | AC104: 0.002585249708 | AD104: 1.0946
A105: P9941 | B105: Mestre fluvial com periculosidade | C105: h | D105: 0.2 | E105: 0.08 | F105: 0.025 | G105: 0.015 | H105: 0.016 | I105: 0.002 | J105: 0.03 | K105: 0.004148148148 | L105: 0 | M105: 0.1886920529 | N105: 0.05223624092 | O105: 0.08622753974 | P105: 0.007811116024 | Q105: 0.0003964624393 | R105: 0.0005295537997 | S105: 0.09225724658 | T105: 0.007414653585 | U105: 0.0002995645767 | V105: 0 | W105: 0.02915427024 | X105: 0.0006795898079 | Y105: 0.03678212237 | Z105: 0.04594766178 | AA105: 0.009268316981 | AB105: 0.1622061407 | AC105: 0.002585249708 | AD105: 1.0946
A106: P9942 | B106: Marinheiro de convés com periculosidade | C106: h | D106: 0.2 | E106: 0.08 | F106: 0.025 | G106: 0.015 | H106: 0.016 | I106: 0.002 | J106: 0.03 | K106: 0.004148148148 | L106: 0 | M106: 0.1887492952 | N106: 0.05225222167 | O106: 0.08648978836 | P106: 0.007812144089 | Q106: 0.0003965146199 | R106: 0.0009141681159 | S106: 0.09226938908 | T106: 0.007415629469 | U106: 4.690667863e-05 | V106: 0 | W106: 0.0289554281 | X106: 0.000674954772 | Y106: 0.03653606374 | Z106: 0.04596307383 | AA106: 0.009269536836 | AB106: 0.1623853772 | AC106: 0.002567617417 | AD106: 1.0948
A107: P9943 | B107: Técnico de batimetria com periculosidade | C107: h | D107: 0.2 | E107: 0.08 | F107: 0.025 | G107: 0.015 | H107: 0.016 | I107: 0.002 | J107: 0.03 | K107: 0.004148148148 | L107: 0 | M107: 0.187996242 | N107: 0.05204062506 | O107: 0.08064462044 | P107: 0.007812229343 | Q107: 0.0003965189471 | R107: 0.0009348203065 | S107: 0.09227039601 | T107: 0.007415710396 | U107: 3.719422945e-05 | V107: 0 | W107: 0.03100478469 | X107: 0.0007829526672 | Y107: 0.04238257425 | Z107: 0.04574554741 | AA107: 0.009269637995 | AB107: 0.1598556255 | AC107: 0.00277175716 | AD107: 1.0935
A108: P9944 | B108: Operador de equipamento especial com periculosidade | C108: h | D108: 0.2 | E108: 0.08 | F108: 0.025 | G108: 0.015 | H108: 0.016 | I108: 0.002 | J108: 0.03 | K108: 0 | L108: 0 | M108: 0.1877889488 | N108: 0.0519812502 | O108: 0.07704978083 | P108: 0.00915018635 | Q108: 0.0004603610359 | R108: 0.001031003812 | S108: 0.09240395097 | T108: 0.007426444119 | U108: 0 | V108: 0 | W108: 0.0337160408 | X108: 0.0008514190419 | Y108: 0.04615548713 | Z108: 0.04567334164 | AA108: 0.009283055149 | AB108: 0.1572434288 | AC108: 0.003010605472 | AD108: 1.0912
A109: P9945 | B109: Draguista com periculosidade | C109: h | D109: 0.2 | E109: 0.08 | F109: 0.025 | G109: 0.015 | H109: 0.016 | I109: 0.002 | J109: 0.03 | K109: 0.004148148148 | L109: 0 | M109: 0.1886920529 | N109: 0.05223624092 | O109: 0.08622753974 | P109: 0.007811116024 | Q109: 0.0003964624393 | R109: 0.0005295537997 | S109: 0.09225724658 | T109: 0.007414653585 | U109: 0.0002995645767 | V109: 0 | W109: 0.02915427024 | X109: 0.0006795898079 | Y109: 0.03678212237 | Z109: 0.04594766178 | AA109: 0.009268316981 | AB109: 0.1622061407 | AC109: 0.002585249708 | AD109: 1.0946
A110: P9946 | B110: Engenheiro auxiliar | C110: mês | D110: 0.2 | E110: 0.08 | F110: 0.025 | G110: 0.015 | H110: 0.016 | I110: 0.002 | J110: 0.03 | K110: 0.001111111111 | L110: 0 | M110: 0 | N110: 0 | O110: 0.0842310039 | P110: 0.008741984251 | Q110: 0.0004602307728 | R110: 0.0007539300709 | S110: 0.09237780448 | T110: 0.007424342743 | U110: 0.0003988346972 | V110: 0 | W110: 0.03082389534 | X110: 0.0007185089848 | Y110: 0.03893940208 | Z110: 0.03822042019 | AA110: 0.009280428429 | AB110: 0.07175081899 | AC110: 0.002731121277 | AD110: 0.756
A111: P9947 | B111: Técnico florestal | C111: mês | D111: 0.2 | E111: 0.08 | F111: 0.025 | G111: 0.015 | H111: 0.016 | I111: 0.002 | J111: 0.03 | K111: 0.004148148148 | L111: 0 | M111: 0 | N111: 0 | O111: 0.06473458019 | P111: 0.008815118402 | Q111: 0.0004605811943 | R111: 0.0005794329379 | S111: 0.0924481413 | T111: 0.007429995667 | U111: 0.001268266563 | V111: 0 | W111: 0.04273475377 | X111: 0.001079165354 | Y111: 0.05852960822 | Z111: 0.03762355572 | AA111: 0.009287494583 | AB111: 0.06539987023 | AC111: 0.003820389689 | AD111: 0.7664
A112: P9948 | B112: Motorista de veículo leve - mensalista | C112: mês | D112: 0.2 | E112: 0.08 | F112: 0.025 | G112: 0.015 | H112: 0.016 | I112: 0.002 | J112: 0.03 | K112: 0.001111111111 | L112: 0 | M112: 0 | N112: 0 | O112: 0.07335700467 | P112: 0.008740075091 | Q112: 0.0004601302631 | R112: 0.0008989171294 | S112: 0.09235763011 | T112: 0.007422721343 | U112: 3.574341391e-05 | V112: 0 | W112: 0.03638669475 | X112: 0.0009188601047 | Y112: 0.04978650215 | Z112: 0.0378647111 | AA112: 0.009278401678 | AB112: 0.06764781351 | AC112: 0.003250097054 | AD112: 0.7575
A113: P9949 | B113: Topógrafo | C113: mês | D113: 0.2 | E113: 0.08 | F113: 0.025 | G113: 0.015 | H113: 0.016 | I113: 0.002 | J113: 0.03 | K113: 0.001111111111 | L113: 0 | M113: 0 | N113: 0 | O113: 0.05985919882 | P113: 0.008740575008 | Q113: 0.0004601565818 | R113: 0.0009746120568 | S113: 0.0923629128 | T113: 0.007423145909 | U113: 1.733064717e-05 | V113: 0 | W113: 0.04239961972 | X113: 0.00116803891 | Y113: 0.06329135158 | Z113: 0.03743481382 | AA113: 0.009278932386 | AB113: 0.06268906773 | AC113: 0.003823105718 | AD113: 0.759
A114: P9950 | B114: Auxiliar de topografia | C114: mês | D114: 0.2 | E114: 0.08 | F114: 0.025 | G114: 0.015 | H114: 0.016 | I114: 0.002 | J114: 0.03 | K114: 0.001111111111 | L114: 0 | M114: 0 | N114: 0 | O114: 0.05985919882 | P114: 0.008740575008 | Q114: 0.0004601565818 | R114: 0.0009746120568 | S114: 0.0923629128 | T114: 0.007423145909 | U114: 1.733064717e-05 | V114: 0 | W114: 0.04239961972 | X114: 0.00116803891 | Y114: 0.06329135158 | Z114: 0.03743481382 | AA114: 0.009278932386 | AB114: 0.06268906773 | AC114: 0.003823105718 | AD114: 0.759
A115: P9951 | B115: Médico de câmara hiperbárica | C115: mês | D115: 0.2 | E115: 0.08 | F115: 0.025 | G115: 0.015 | H115: 0.016 | I115: 0.002 | J115: 0.03 | K115: 0.004148148148 | L115: 0.12 | M115: 0 | N115: 0 | O115: 0.07512705388 | P115: 0.00880714678 | Q115: 0.000460164685 | R115: 0.0004259670664 | S115: 0.0923645393 | T115: 0.007423276629 | U115: 0.0005167783961 | V115: 0 | W115: 0.03509715335 | X115: 0.0008862957798 | Y115: 0.04802566518 | Z115: 0.03792399766 | AA115: 0.009279095786 | AB115: 0.09110888987 | AC115: 0.003243961095 | AD115: 0.9028
A116: P9952 | B116: Pedreiro - mensalista | C116: mês | D116: 0.2 | E116: 0.08 | F116: 0.025 | G116: 0.015 | H116: 0.016 | I116: 0.002 | J116: 0.03 | K116: 0 | L116: 0 | M116: 0 | N116: 0 | O116: 0.06208531409 | P116: 0.009149478058 | Q116: 0.0004603254006 | R116: 0.0009344591994 | S116: 0.09239679823 | T116: 0.007425869258 | U116: 1.902191611e-05 | V116: 0 | W116: 0.04464389696 | X116: 0.00112737626 | Y116: 0.06111041688 | Z116: 0.03751908052 | AA116: 0.009282336572 | AB116: 0.06346942594 | AC116: 0.00398638622 | AD116: 0.7616
A117: P9953 | B117: Eletricista - mensalista | C117: mês | D117: 0.2 | E117: 0.08 | F117: 0.025 | G117: 0.015 | H117: 0.016 | I117: 0.002 | J117: 0.03 | K117: 0 | L117: 0 | M117: 0 | N117: 0 | O117: 0.07508333868 | P117: 0.009150362882 | Q117: 0.0004603699176 | R117: 0.001050316486 | S117: 0.0924057337 | T117: 0.007426587396 | U117: 0 | V117: 0 | W117: 0.03515356182 | X117: 0.0008877202426 | Y117: 0.04812430625 | Z117: 0.03793845469 | AA117: 0.009283234245 | AB117: 0.06829222894 | AC117: 0.003138965994 | AD117: 0.7564
A118: P9954 | B118: Servente - mensalista | C118: mês | D118: 0.2 | E118: 0.08 | F118: 0.025 | G118: 0.015 | H118: 0.016 | I118: 0.002 | J118: 0.03 | K118: 0 | L118: 0 | M118: 0 | N118: 0 | O118: 0.06299228189 | P118: 0.009151259767 | Q118: 0.0004604150413 | R118: 0.001134280298 | S118: 0.09241479096 | T118: 0.007427315322 | U118: 1.412335185e-05 | V118: 0 | W118: 0.04399027598 | X118: 0.001110870604 | Y118: 0.0602274394 | Z118: 0.03755502293 | AA118: 0.009284144153 | AB118: 0.06388276372 | AC118: 0.003928022461 | AD118: 0.7616
A119: P9955 | B119: Engenheiro chefe | C119: mês | D119: 0.2 | E119: 0.08 | F119: 0.025 | G119: 0.015 | H119: 0.016 | I119: 0.002 | J119: 0.03 | K119: 0.001111111111 | L119: 0 | M119: 0 | N119: 0 | O119: 0.0842310039 | P119: 0.008741984251 | Q119: 0.0004602307728 | R119: 0.0007539300709 | S119: 0.09237780448 | T119: 0.007424342743 | U119: 0.0003988346972 | V119: 0 | W119: 0.03082389534 | X119: 0.0007185089848 | Y119: 0.03893940208 | Z119: 0.03822042019 | AA119: 0.009280428429 | AB119: 0.07175081899 | AC119: 0.002731121277 | AD119: 0.756
A120: P9956 | B120: Motorista de caminhão com periculosidade | C120: h | D120: 0.2 | E120: 0.08 | F120: 0.025 | G120: 0.015 | H120: 0.016 | I120: 0.002 | J120: 0.03 | K120: 0 | L120: 0 | M120: 0.1884923412 | N120: 0.05217892041 | O120: 0.08255798432 | P120: 0.00914977088 | Q120: 0.000460340133 | R120: 0.0009855513928 | S120: 0.09239975531 | T120: 0.007426106917 | U120: 0 | V120: 0 | W120: 0.03216375984 | X120: 0.0007497413996 | Y120: 0.04064168943 | Z120: 0.04587682466 | AA120: 0.009282633646 | AB120: 0.1595834836 | AC120: 0.002849005622 | AD120: 1.0928
A121: P9972 | B121: Técnico de batimetria | C121: mês | D121: 0.2 | E121: 0.08 | F121: 0.025 | G121: 0.015 | H121: 0.016 | I121: 0.002 | J121: 0.03 | K121: 0.004148148148 | L121: 0 | M121: 0 | N121: 0 | O121: 0.08064462044 | P121: 0.007812229343 | Q121: 0.0003965189471 | R121: 0.0009348203065 | S121: 0.09227039601 | T121: 0.007415710396 | U121: 3.719422945e-05 | V121: 0 | W121: 0.03100478469 | X121: 0.0007829526672 | Y121: 0.04238257425 | Z121: 0.03806436767 | AA121: 0.009269637995 | AB121: 0.07052634994 | AC121: 0.00277175716 | AD121: 0.7565
B123: Legenda: | N123: CONSIDERAÇÕES SOBRE O USO DOS DADOS DESTA PLANILHA:
B125: Classificação | C125: Parcela | D125: Descrição | N125: 1. Para fins de apresentação dos valores percentuais obtidos para cada parcela dos encargos sociais e trabalhistas adotou-se apenas quatro casas decimais em porcentagem, o que pode promover pequenas diferenças entre o valor divulgado na coluna Total (%) em relação a uma eventual soma dos valores visíveis das parcelas. 2. Sobre os encargos sociais e trabalhistas apresentados na presente tabela, não está aplicada a média móvel. A média móvel é parte da metodologia de cálculo dos salários e encargos sociais das categorias do SICRO, tendo por objetivo estabilizar os resultados e realizar o abrandamento das variações decorrentes de eventuais flutuações no número de amostras. Isso implica dizer que, após a obtenção dos valores totais dos encargos sociais (última coluna), deve ser aplicada a média aritmética simples sobre o resultado da referência atual juntamente com os resultados das duas referências anteriores, obtendo desta forma, os percentuais efetivamente utilizados no cálculo dos custos da Mão de Obra.
B126: Grupo A - Encargos Sociais (%) | C126: A1 | D126: Previdência Social
C127: A2 | D127: FGTS
C128: A3 | D128: Salário Educação
C129: A4 | D129: SESC ou SESI
C130: A5 | D130: SENAI / SEBRAE
C131: A6 | D131: INCRA
C132: A7 | D132: Seguro Contra Risco e Acidente de Trabalho
C133: A8 | D133: SECONCI
C134: A9 | D134: FAE - Financiamento de Aposentadoria Especial
B135: Grupo B - Encargos Trabalhistas (%) | C135: B1 | D135: Repouso Semanal Remunerado - Domingos
C136: B2 | D136: Feriados
C137: B3 | D137: Férias Gozadas + 1/3
C138: B4 | D138: Auxílio Enfermidade
C139: B5 | D139: Auxílio Acidente de Trabalho
C140: B6 | D140: Licença Paternidade
C141: B7 | D141: 13° Salário
C142: B8 | D142: Faltas Justificadas
C143: B9 | D143: Férias sobre Licença Maternidade
C144: B10 | D144: Reciclagem Tecnológica
B145: Grupo C - Verbas Rescisórias (%) | C145: C1 | D145: Aviso Prévio Indenizado
C146: C2 | D146: Aviso Prévio Trabalhado
C147: C3 | D147: Féria Indenizadas + 1/3
C148: C4 | D148: Depósito por Rescisão Sem Justa Causa
C149: C5 | D149: Indenização Adicional
B150: Grupo D - Reincidências (%) | C150: D1 | D150: Reincidência de A sobre B
C151: D2 | D151: Reincidência de A sobre Aviso Prévio Trabalhado + Reincidência de FGTS sobre Aviso Prévio Indenizado

Sheet EQUIP D (hidden)
A1: CGCIT | B1: SISTEMA DE CUSTOS REFERENCIAIS DE OBRAS - SICRO | K1: DNIT
B2: Alagoas - Abril/2023 - Com desoneração
A3: Código | B3: Descrição | C3: Valor de Aquisição (R$) | D3: Depreciação (R$/h) | E3: Oportunidade de Capital (R$/h) | F3: Seguros e Impostos (R$/h) | G3: Manutenção (R$/h) | H3: Operação (R$/h) | I3: Mão de Obra de Operação (R$/h) | J3: Custo Produtivo (R$/h) | K3: Custo Improdutivo (R$/h)
A4: E9001 | B4: Conjunto vibratório para tubos de concreto com encaixe PB e 3 jogos de fôrmas - D = 0,60 m - 2,20 kW | C4: 76710.8566 | D4: 10.2281 | E4: 2.3665 | F4: 0 | G4: 7.6711 | H4: 0 | I4: 0 | J4: 20.2657 | K4: 12.5946
A5: E9002 | B5: Conjunto vibratório para tubos de concreto com encaixe PB e 3 jogos de fôrmas - D = 0,80 m - 2,20 kW | C5: 83255.5723 | D5: 11.1007 | E5: 2.5684 | F5: 0 | G5: 8.3256 | H5: 0 | I5: 0 | J5: 21.9947 | K5: 13.6691
A6: E9003 | B6: Conjunto vibratório para tubos de concreto com encaixe PB e 3 jogos de fôrmas - D = 1,00 m - 2,20 kW | C6: 91563.1918 | D6: 12.2084 | E6: 2.8247 | F6: 0 | G6: 9.1563 | H6: 0 | I6: 0 | J6: 24.1894 | K6: 15.0331
A7: E9004 | B7: Conjunto vibratório para tubos de concreto com encaixe PB e 3 jogos de fôrmas - D = 1,20 m - 2,20 kW | C7: 92067.6723 | D7: 12.2757 | E7: 2.8403 | F7: 0 | G7: 9.2068 | H7: 0 | I7: 0 | J7: 24.3228 | K7: 15.116
A8: E9005 | B8: Conjunto vibratório para tubos de concreto com encaixe PB e 3 jogos de fôrmas - D = 1,50 m - 2,20 kW | C8: 94050.4339 | D8: 12.5401 | E8: 2.9015 | F8: 0 | G8: 9.405 | H8: 0 | I8: 0 | J8: 24.8466 | K8: 15.4416
A9: E9006 | B9: Equipamento para sondagem manual | C9: 2421.8281 | D9: 0.4117 | E9: 0.0897 | F9: 0 | G9: 0.2422 | H9: 0 | I9: 0 | J9: 0.7436 | K9: 0.5014
A10: E9007 | B10: Bomba de pistão triplex com capacidade de 7,80 m³/h (130 l/min) - 8,20 kW | C10: 126847.1794 | D10: 10.1478 | E10: 2.3479 | F10: 0 | G10: 8.8793 | H10: 8.2434 | I10: 0 | J10: 29.6184 | K10: 12.4957
A11: E9008 | B11: Transportador manual de tubos de concreto com capacidade de 1 t | C11: 2311.2347 | D11: 2.0801 | E11: 0.1426 | F11: 0 | G11: 1.1556 | H11: 0 | I11: 0 | J11: 3.3783 | K11: 2.2227
A12: E9009 | B12: Embarcação rebocadora - 268 kW | C12: 653919.2364 | D12: 8.5146 | E12: 3.7942 | F12: 0 | G12: 18.9213 | H12: 269.4177 | I12: 123.2719 | J12: 423.9197 | K12: 135.5807
A13: E9010 | B13: Balança plataforma digital à bateria, com mesa de 75 x 75 cm e capacidade de 500 kg | C13: 5508.6417 | D13: 0.8263 | E13: 0.1133 | F13: 0 | G13: 0.4591 | H13: 0 | I13: 0 | J13: 1.3987 | K13: 0.9396
A14: E9011 | B14: Carro manual modelo plataforma de 200 x 80 cm com capacidade de 800 kg | C14: 2100.3564 | D14: 0.3781 | E14: 0.0778 | F14: 0 | G14: 0.21 | H14: 0 | I14: 0 | J14: 0.6659 | K14: 0.4559
A15: E9014 | B15: Deflectômetro de impacto (FWD) instalado em picape com reboque e faixa de carga de 7 a 120 kN - 147 kW | C15: 2217849.403 | D15: 177.428 | E15: 41.0524 | F15: 0 | G15: 110.8925 | H15: 0 | I15: 22.7098 | J15: 352.0827 | K15: 241.1902
A16: E9015 | B16: Elevador de obra com capacidade de 1.000 kg - 9 kW | C16: 56711.879 | D16: 4.537 | E16: 1.0497 | F16: 0 | G16: 3.9698 | H16: 0 | I16: 20.2517 | J16: 29.8082 | K16: 25.8384
A17: E9016 | B17: Usina misturadora móvel de reciclagem a frio com sistema de espuma de asfalto - 129 kW | C17: 9247269.4 | D17: 539.424 | E17: 166.4123 | F17: 67.428 | G17: 693.5452 | H17: 95.5555 | I17: 33.6725 | J17: 1596.0375 | K17: 806.9368
A18: E9017 | B18: Escavadeira hidráulica sobre esteira com capacidade de 0,4 m³ - 64 kW | C18: 926616.2154 | D18: 64.8631 | E18: 17.1517 | F18: 0 | G18: 64.8631 | H18: 44.0211 | I18: 25.2324 | J18: 216.1314 | K18: 107.2472
A19: E9020 | B19: Recicladora a frio - 455 kW | C19: 5002228.583 | D19: 291.7967 | E19: 90.0193 | F19: 0 | G19: 416.8524 | H19: 481.481 | I19: 33.6725 | J19: 1313.8219 | K19: 415.4885
A20: E9021 | B20: Grupo gerador - 456 kVA | C20: 348021.8063 | D20: 17.4011 | E20: 6.1351 | F20: 0 | G20: 12.4294 | H20: 366.9309 | I20: 0 | J20: 402.8965 | K20: 23.5362
A21: E9022 | B21: Pórtico metálico rolante com capacidade de 25 t - 30 kW | C21: 890693.8965 | D21: 40.0812 | E21: 15.1128 | F21: 0 | G21: 31.1743 | H21: 0 | I21: 20.2517 | J21: 106.62 | K21: 75.4457
A22: E9023 | B22: Guindaste móvel sobre esteiras com dragline com capacidade de 1,9 a 2,3 m³ - 270 kW | C22: 3685304.091 | D22: 128.9856 | E22: 62.5304 | F22: 0 | G22: 184.2652 | H22: 71.4285 | I22: 33.6725 | J22: 480.8822 | K22: 225.1885
A23: E9024 | B23: Misturador de nata cimento - 1,50 kW | C23: 7565.9021 | D23: 0.6053 | E23: 0.14 | F23: 0 | G23: 0.5296 | H23: 0 | I23: 20.2517 | J23: 21.5266 | K23: 20.997
A24: E9025 | B24: Conjunto bomba e macaco hidráulico para protensão com capacidade de 7.000 kN - 15 kW | C24: 102576.0202 | D24: 5.8615 | E24: 1.8083 | F24: 0 | G24: 5.8615 | H24: 0 | I24: 33.6725 | J24: 47.2038 | K24: 41.3423
A25: E9026 | B25: Bomba para injeção de nata de cimento com capacidade de 2 MPa - 2,20 kW | C25: 29575.6401 | D25: 2.3661 | E25: 0.5474 | F25: 0 | G25: 2.0703 | H25: 0 | I25: 0 | J25: 4.9838 | K25: 2.9135
A26: E9028 | B26: Bomba de alta pressão para hidrojateamento com capacidade de 18 MPa - 5,20 kW | C26: 4909.9531 | D26: 0.3928 | E26: 0.0909 | F26: 0 | G26: 0.4419 | H26: 8.5356 | I26: 20.2517 | J26: 29.7129 | K26: 20.7354
A27: E9029 | B27: Conjunto bomba e macaco hidráulico para protensão com capacidade de 8.000 kN - 20 kW | C27: 130406.5997 | D27: 7.4518 | E27: 2.2989 | F27: 0 | G27: 7.4518 | H27: 0 | I27: 33.6725 | J27: 50.875 | K27: 43.4232
A28: E9030 | B28: Bomba de protensão com leitura digital para tensionamento de estais - 3 kW | C28: 13714.5672 | D28: 0.7837 | E28: 0.2418 | F28: 0 | G28: 0.7837 | H28: 0 | I28: 0 | J28: 1.8092 | K28: 1.0255
A29: E9031 | B29: Elevador de cremalheira com cabine simples, com capacidade de 1.500 kg e altura de até 100 m - 15 kW | C29: 265439.1515 | D29: 21.2351 | E29: 4.9133 | F29: 0 | G29: 18.5807 | H29: 0 | I29: 20.2517 | J29: 64.9808 | K29: 46.4001
A30: E9032 | B30: Equipamento para regulagem final de estais com até 37 cordoalhas - D = 15,7 mm - 20 kW | C30: 86759.6529 | D30: 4.9577 | E30: 1.5294 | F30: 0 | G30: 4.9577 | H30: 0 | I30: 33.6725 | J30: 45.1173 | K30: 40.1596
A31: E9033 | B31: Equipamento para regulagem final de estais de 38 a 55 cordoalhas - D = 15,7 mm - 30 kW | C31: 123942.3613 | D31: 7.0824 | E31: 2.1849 | F31: 0 | G31: 7.0824 | H31: 0 | I31: 33.6725 | J31: 50.0222 | K31: 42.9398
A32: E9034 | B32: Equipamento para regulagem final de estais de 56 a 73 cordoalhas - D = 15,7 mm - 40 kW | C32: 185913.542 | D32: 10.6236 | E32: 3.2774 | F32: 0 | G32: 10.6236 | H32: 0 | I32: 33.6725 | J32: 58.1971 | K32: 47.5735
A33: E9035 | B33: Equipamento para regulagem final de estais de 74 a 91 cordoalhas - D = 15,7 mm - 50 kW | C33: 247884.7227 | D33: 14.1648 | E33: 4.3699 | F33: 0 | G33: 14.1648 | H33: 0 | I33: 33.6725 | J33: 66.372 | K33: 52.2072
A34: E9036 | B34: Grua fixa para alturas de 60 a 102 m, com alcance de 60 m com capacidade de 1.500 kg na ponta da lança - 37 kW | C34: 3378859.821 | D34: 168.943 | E34: 59.5645 | F34: 0 | G34: 193.0777 | H34: 0 | I34: 33.6725 | J34: 455.2577 | K34: 262.18
A35: E9038 | B35: Macaco hidráulico monocordoalha para tensionamento de estais - 3 kW | C35: 17722.5089 | D35: 1.0127 | E35: 0.3124 | F35: 0 | G35: 1.0127 | H35: 0 | I35: 33.6725 | J35: 36.0103 | K35: 34.9976
A36: E9039 | B36: Máquina de solda por termofusão para tubos PEAD com gerador de 4 kW | C36: 116584.8274 | D36: 6.662 | E36: 2.0552 | F36: 0 | G36: 6.662 | H36: 4.0212 | I36: 33.6725 | J36: 53.0729 | K36: 42.3897
A37: E9040 | B37: Serra mármore - 1,45 kW | C37: 465.6686 | D37: 0.0419 | E37: 0.0086 | F37: 0 | G37: 0.0233 | H37: 0 | I37: 0 | J37: 0.0738 | K37: 0.0505
A38: E9042 | B38: Trator sobre esteiras com lâmina - 97 kW | C38: 1051227.614 | D38: 40.8811 | E38: 18.0169 | F38: 0 | G38: 58.4015 | H38: 71.8518 | I38: 25.2324 | J38: 214.3837 | K38: 84.1304
A39: E9043 | B39: Embarcação de alumínio com comprimento de 6 m e motor de popa - 18,60 kW | C39: 23176.9608 | D39: 0.3621 | E39: 0.1365 | F39: 0 | G39: 0.4024 | H39: 34.8929 | I39: 33.0408 | J39: 68.8347 | K39: 33.5394
A40: E9044 | B40: Central de concreto com capacidade de 150 m³/h - dosadora e misturadora | C40: 3405044.111 | D40: 194.5739 | E40: 60.0261 | F40: 0 | G40: 170.2522 | H40: 0 | I40: 33.6725 | J40: 458.5247 | K40: 288.2725
A41: E9045 | B41: Conjunto bomba e macaco hidráulico para elevação com capacidade de 496 kN | C41: 64316.9939 | D41: 5.1454 | E41: 1.1905 | F41: 0 | G41: 5.1454 | H41: 5.4028 | I41: 33.6725 | J41: 50.5566 | K41: 40.0084
A42: E9046 | B42: Conjunto bomba e macaco hidráulico para elevação com capacidade de 929 kN | C42: 78098.918 | D42: 6.2479 | E42: 1.4456 | F42: 0 | G42: 6.2479 | H42: 5.4028 | I42: 33.6725 | J42: 53.0167 | K42: 41.366
A43: E9047 | B43: Conjunto bomba e macaco hidráulico para elevação com capacidade de 1.390 kN | C43: 113459.7633 | D43: 9.0768 | E43: 2.1001 | F43: 0 | G43: 9.0768 | H43: 5.4028 | I43: 33.6725 | J43: 59.329 | K43: 44.8494
A44: E9048 | B44: Conjunto bomba e macaco hidráulico para elevação com capacidade de 1.859 kN | C44: 131711.7193 | D44: 10.5369 | E44: 2.438 | F44: 0 | G44: 10.5369 | H44: 5.4028 | I44: 33.6725 | J44: 62.5871 | K44: 46.6474
A45: E9049 | B45: Bomba de alta pressão para hidrojateamento com capacidade de 250 MPa - 72 kW | C45: 485993.691 | D45: 38.8795 | E45: 8.9957 | F45: 0 | G45: 43.7394 | H45: 57.1428 | I45: 20.2517 | J45: 169.0091 | K45: 68.1269
A46: E9050 | B46: Guindaste móvel sobre pneus com 2 eixos com capacidade de 18 t - 97 kW | C46: 2822148.89 | D46: 141.1074 | E46: 49.7505 | F46: 0 | G46: 181.4239 | H46: 25.6614 | I46: 22.7098 | J46: 420.653 | K46: 213.5677
A47: E9051 | B47: Máquina levantadora e posicionadora de via - 7,40 kW | C47: 776854.6401 | D47: 62.1484 | E47: 14.3796 | F47: 0 | G47: 54.3798 | H47: 9.7175 | I47: 20.2517 | J47: 160.877 | K47: 96.7797
A48: E9052 | B48: Empilhadeira a diesel com capacidade de 10 t - 82 kW | C48: 844867.8863 | D48: 67.5894 | E48: 15.6385 | F48: 0 | G48: 59.1408 | H48: 65.0793 | I48: 20.2517 | J48: 227.6997 | K48: 103.4796
A49: E9053 | B49: Perfuratriz hidráulica montada em flutuante - 32 kW | C49: 370236.276 | D49: 11.5699 | E49: 2.3795 | F49: 0 | G49: 10.2843 | H49: 16.9312 | I49: 24.5668 | J49: 65.7317 | K49: 38.5162
A50: E9054 | B50: Equipamento sobre forma-trilho para execução e acabamento de pavimento de concreto - 13,40 kW | C50: 1400158.868 | D50: 112.0127 | E50: 25.9169 | F50: 0 | G50: 70.0079 | H50: 17.5965 | I50: 20.2517 | J50: 245.7857 | K50: 158.1813
A51: E9055 | B51: Guincho pneumático com capacidade de 2,5 t | C51: 525835.5401 | D51: 47.3252 | E51: 9.7332 | F51: 0 | G51: 26.2918 | H51: 0 | I51: 0 | J51: 83.3502 | K51: 57.0584
A52: E9056 | B52: Plataforma autoelevatória de 12 x 24 m com capacidade de 150 t | C52: 914407.4415 | D52: 7.1438 | E52: 5.1424 | F52: 0 | G52: 15.8751 | H52: 0 | I52: 83.0182 | J52: 111.1795 | K52: 95.3044
A53: E9057 | B53: Batelão sem propulsão com capacidade de 66 m³ | C53: 244526.3983 | D53: 1.9104 | E53: 1.3751 | F53: 0 | G53: 3.1839 | H53: 0 | I53: 21.9147 | J53: 28.3841 | K53: 25.2002
A54: E9058 | B54: Plataforma flutuante de 12 x 24 x 1,8 m com capacidade de 150 t | C54: 731336.8559 | D54: 5.7136 | E54: 4.1128 | F54: 0 | G54: 9.5226 | H54: 0 | I54: 21.9147 | J54: 41.2637 | K54: 31.7411
A55: E9059 | B55: Plataforma autoelevatória de 12 x 24 m montada na obra com capacidade de 150 t | C55: 914407.4415 | D55: 7.1438 | E55: 5.1424 | F55: 0 | G55: 15.8751 | H55: 0 | I55: 83.0182 | J55: 111.1795 | K55: 95.3044
A56: E9060 | B56: Perfuratriz pneumática rotopercussiva montada em flutuante com pressão de 0,70 MPa e capacidade de 2.500 gpm | C56: 21929.1209 | D56: 0.6853 | E56: 0.1409 | F56: 0 | G56: 0.6091 | H56: 0 | I56: 49.1336 | J56: 50.5689 | K56: 49.9598
A57: E9061 | B57: Lixadeira elétrica manual angular - 2 kW | C57: 1386.493 | D57: 0.1109 | E57: 0.0257 | F57: 0 | G57: 0.0693 | H57: 0 | I57: 0 | J57: 0.2059 | K57: 0.1366
A58: E9062 | B58: Soprador de ar quente manual - 1,60 kW | C58: 4764.5671 | D58: 0.6353 | E58: 0.098 | F58: 0 | G58: 0.397 | H58: 0 | I58: 0 | J58: 1.1303 | K58: 0.7333
A59: E9063 | B59: Equipamento de estabilização dinâmica da via - 300 kW | C59: 25177007.85 | D59: 1007.0803 | E59: 427.1909 | F59: 0 | G59: 1007.0803 | H59: 190.476 | I59: 33.6725 | J59: 2665.5 | K59: 1467.9437
A60: E9064 | B60: Transportador manual gerica com capacidade de 180 l | C60: 1086.3978 | D60: 1.0864 | E60: 0.067 | F60: 0 | G60: 0.5432 | H60: 0 | I60: 0 | J60: 1.6966 | K60: 1.1534
A61: E9065 | B61: Carro controle ferroviário - 186 kW | C61: 30347707.08 | D61: 1213.9083 | E61: 514.9247 | F61: 0 | G61: 1062.1697 | H61: 118.0951 | I61: 33.6725 | J61: 2942.7703 | K61: 1762.5055
A62: E9066 | B62: Grupo gerador - 14 kVA | C62: 69415.7208 | D62: 3.4708 | E62: 1.2237 | F62: 0 | G62: 2.4791 | H62: 11.0582 | I62: 0 | J62: 18.2318 | K62: 4.6945
A63: E9067 | B63: Veículo ferroviário para capina química com capacidade de 12.000 l - 115 kW | C63: 1690203.398 | D63: 67.6081 | E63: 28.6785 | F63: 0 | G63: 42.2551 | H63: 73.0158 | I63: 20.2517 | J63: 231.8092 | K63: 116.5383
A64: E9068 | B64: Perfuratriz hidráulica rotopercussiva para CCPH - 123 kW | C64: 2702176.249 | D64: 180.1451 | E64: 48.6279 | F64: 0 | G64: 180.1451 | H64: 97.619 | I64: 25.2324 | J64: 531.7695 | K64: 254.0054
A65: E9069 | B65: Vibrador de imersão para concreto - 4,10 kW | C65: 3882.4276 | D65: 0.6212 | E65: 0.1437 | F65: 0 | G65: 0.3882 | H65: 6.73 | I65: 0 | J65: 7.8831 | K65: 0.7649
A66: E9070 | B66: Ponte rolante com capacidade de 5 t e vão de até 15 m - 10 kW | C66: 360741.6532 | D66: 14.4297 | E66: 6.1209 | F66: 0 | G66: 9.0185 | H66: 0 | I66: 20.2517 | J66: 49.8208 | K66: 40.8023
A67: E9071 | B67: Transportador manual carrinho de mão com capacidade de 80 l | C67: 513.3677 | D67: 0.5134 | E67: 0.0317 | F67: 0 | G67: 0.2567 | H67: 0 | I67: 0 | J67: 0.8018 | K67: 0.5451
A68: E9072 | B68: Martelo hidráulico vibratório com unidade hidráulica - 486 kW | C68: 2968801.91 | D68: 197.9201 | E68: 53.4261 | F68: 0 | G68: 173.1801 | H68: 385.7139 | I68: 33.6725 | J68: 843.9127 | K68: 285.0187
A69: E9073 | B69: Bomba de concreto rebocável com capacidade de 30 m³/h - 74 kW | C69: 478010.6063 | D69: 38.2408 | E69: 8.848 | F69: 0 | G69: 38.2408 | H69: 74.3915 | I69: 20.2517 | J69: 179.9728 | K69: 67.3405
A70: E9074 | B70: Tanque de estocagem de asfalto com agitadores de 60.000 l | C70: 818448.5396 | D70: 34.102 | E70: 11.8355 | F70: 0 | G70: 21.3138 | H70: 0 | I70: 0 | J70: 67.2513 | K70: 45.9375
A71: E9075 | B71: Trado cavadeira de 12" | C71: 138.4652 | D71: 0.0692 | E71: 0.0064 | F71: 0 | G71: 0.0346 | H71: 0 | I71: 0 | J71: 0.1102 | K71: 0.0756
A72: E9076 | B72: Equipamento para pintura eletrostática com cabine dupla de 7,00 kW e estufa de 80.000 kCal | C72: 163807.8823 | D72: 10.5305 | E72: 2.8877 | F72: 0 | G72: 5.8503 | H72: 0 | I72: 20.2517 | J72: 39.5202 | K72: 33.6699
A73: E9077 | B73: Perfuratriz de circulação reversa tipo Wirth ou similar com unidade hidráulica (Power Pack) - 273 kW | C73: 4920564.818 | D73: 328.0377 | E73: 88.5497 | F73: 0 | G73: 328.0377 | H73: 144.4443 | I73: 25.2324 | J73: 914.3018 | K73: 441.8198
A74: E9078 | B74: Treliça lançadeira com capacidade de carga de 100 a 120 t e vão máximo de 45 m - 110 kW | C74: 3536515.467 | D74: 94.3071 | E74: 58.1875 | F74: 0 | G74: 58.9419 | H74: 0 | I74: 33.6725 | J74: 245.109 | K74: 186.1671
A75: E9079 | B75: Bomba submersível com capacidade de 360 m³/h - 23 kW | C75: 179684.5153 | D75: 14.3748 | E75: 3.326 | F75: 0 | G75: 12.5779 | H75: 0 | I75: 0 | J75: 30.2787 | K75: 17.7008
A76: E9080 | B76: Carrelone com capacidade máxima de 70 t | C76: 1765067.999 | D76: 79.4281 | E76: 29.9488 | F76: 0 | G76: 44.1267 | H76: 0 | I76: 20.2517 | J76: 173.7553 | K76: 129.6286
A77: E9081 | B77: Fischietti simples com capacidade de 70 t | C77: 103956.8224 | D77: 4.6781 | E77: 1.7639 | F77: 0 | G77: 2.5989 | H77: 0 | I77: 20.2517 | J77: 29.2926 | K77: 26.6937
A78: E9083 | B78: Vagão fechado FLT com capacidade de 99 t | C78: 800000 | D78: 12.6667 | E78: 12.7513 | F78: 0 | G78: 6.6667 | H78: 0 | I78: 0 | J78: 32.0847 | K78: 25.418
A79: E9084 | B79: Vagão tanque convencional TCT com capacidade de 97 t e 103.000 l | C79: 1195000 | D79: 18.9208 | E79: 19.0473 | F79: 0 | G79: 9.9583 | H79: 0 | I79: 0 | J79: 47.9264 | K79: 37.9681
A80: E9085 | B80: Vagão gôndola GDE com capacidade de 93,5 t / 29 m³ | C80: 620000 | D80: 9.8167 | E80: 9.8823 | F80: 0 | G80: 5.1667 | H80: 0 | I80: 0 | J80: 24.8657 | K80: 19.699
A81: E9086 | B81: Bomba de concreto rebocável com capacidade de 41 m³/h - 74 kW | C81: 528160.6063 | D81: 42.2528 | E81: 9.7763 | F81: 0 | G81: 42.2528 | H81: 74.3915 | I81: 20.2517 | J81: 188.9251 | K81: 72.2808
A82: E9089 | B82: Roçadeira costal - 1,40 kW | C82: 2654.7032 | D82: 0.3982 | E82: 0.0546 | F82: 0 | G82: 0.3097 | H82: 7.2224 | I82: 0 | J82: 7.9849 | K82: 0.4528
A83: E9091 | B83: Embarcação empurradora fluvial - 372 kW | C83: 1103879.461 | D83: 14.3734 | E83: 6.405 | F83: 0 | G83: 31.941 | H83: 373.9679 | I83: 123.2719 | J83: 549.9592 | K83: 144.0503
A84: E9093 | B84: Veículo leve - 53 kW (sem motorista) | C84: 74272.0661 | D84: 4.4563 | E84: 1.3748 | F84: 0.557 | G84: 4.4563 | H84: 22.3708 | I84: 0 | J84: 33.2152 | K84: 6.3881
A85: E9094 | B85: Guindaste móvel sobre pneus com 6 eixos com capacidade máxima de 350 t - 450 kW | C85: 16954702.86 | D85: 847.7351 | E85: 298.8872 | F85: 121.105 | G85: 1089.9452 | H85: 119.0475 | I85: 22.7098 | J85: 2499.4298 | K85: 1290.4371
A86: E9095 | B86: Guindaste móvel sobre pneus com 8 eixos com capacidade máxima de 500 t - 500 kW | C86: 29740596.21 | D86: 1487.0298 | E86: 524.2842 | F86: 212.4328 | G86: 1911.8955 | H86: 132.275 | I86: 22.7098 | J86: 4290.6271 | K86: 2246.4566
A87: E9096 | B87: Minicarregadeira de pneus - 45,50 kW | C87: 365935.6909 | D87: 25.6155 | E87: 6.7735 | F87: 0 | G87: 25.6155 | H87: 60.1851 | I87: 25.2324 | J87: 143.422 | K87: 57.6214
A88: E9101 | B88: Removedora de faixas de sinalização viária - 9,69 kW | C88: 50557.2119 | D88: 4.0446 | E88: 0.9358 | F88: 0 | G88: 3.539 | H88: 15.9058 | I88: 0 | J88: 24.4252 | K88: 4.9804
A89: E9102 | B89: Extrusora para sarjeta de concreto - 10,44 kW | C89: 66472.3621 | D89: 5.3178 | E89: 1.2304 | F89: 0 | G89: 4.6531 | H89: 8.2857 | I89: 20.2517 | J89: 39.7387 | K89: 26.7999
A90: E9103 | B90: Extrusora para meio-fio de concreto - 10,44 kW | C90: 55844.8375 | D90: 4.4676 | E90: 1.0337 | F90: 0 | G90: 3.9091 | H90: 8.2857 | I90: 20.2517 | J90: 37.9478 | K90: 25.753
A91: E9105 | B91: Embarcação empurradora multipropósito - 2 x 186 kW | C91: 5302261.79 | D91: 69.0399 | E91: 30.7649 | F91: 0 | G91: 153.4219 | H91: 373.9679 | I91: 123.2719 | J91: 750.4665 | K91: 223.0767
A92: E9106 | B92: Balsa de convés com capacidade de 200 t | C92: 2093591.228 | D92: 16.3562 | E92: 11.7737 | F92: 0 | G92: 27.2603 | H92: 0 | I92: 21.9147 | J92: 77.3049 | K92: 50.0446
A93: E9107 | B93: Compactador manual com soquete vibratório - 2,24 kW | C93: 9486.594 | D93: 0.6324 | E93: 0.1707 | F93: 0 | G93: 0.6324 | H93: 3.6769 | I93: 0 | J93: 5.1124 | K93: 0.8031
A94: E9108 | B94: Soldadora de trilho por caldeamento na via - 400 kW | C94: 8953553.856 | D94: 143.2569 | E94: 143.6329 | F94: 0 | G94: 179.0711 | H94: 253.968 | I94: 67.345 | J94: 787.2739 | K94: 354.2348
A95: E9110 | B95: Escavadeira hidráulica sobre esteiras para rocha com caçamba com capacidade de 1,56 m³ - 118 kW | C95: 1362317.071 | D95: 136.2317 | E95: 27.0177 | F95: 0 | G95: 136.2317 | H95: 118.6242 | I95: 25.2324 | J95: 443.3377 | K95: 188.4818
A96: E9111 | B96: Jateador abrasivo úmido com capacidade de 350 kg de abrasivo | C96: 210622.5496 | D96: 18.956 | E96: 3.8986 | F96: 0 | G96: 18.956 | H96: 0 | I96: 20.2517 | J96: 62.0623 | K96: 43.1063
A97: E9112 | B97: Sinalizador direcional móvel com sistema fotovoltaico de energia e montado em chassi sobre pneus | C97: 22544.1447 | D97: 2.029 | E97: 0.4173 | F97: 0 | G97: 1.1272 | H97: 0 | I97: 0 | J97: 3.5735 | K97: 2.4463
A98: E9113 | B98: Painel de Mensagem Variável - PMV móvel, com sistema fotovoltaico de energia e montado em chassi sobre pneus | C98: 167080.6063 | D98: 15.0373 | E98: 3.0927 | F98: 0 | G98: 8.354 | H98: 0 | I98: 0 | J98: 26.484 | K98: 18.13
A99: E9116 | B99: Semáforo móvel com 3 lentes e bateria - D = 200 mm | C99: 7661.8557 | D99: 0.6896 | E99: 0.1418 | F99: 0 | G99: 0.3831 | H99: 0 | I99: 0 | J99: 1.2145 | K99: 0.8314
A100: E9117 | B100: Carregadeira de pneus para rocha com capacidade de 2,50 m³ - 105 kW | C100: 710591.3516 | D100: 71.0591 | E100: 14.0925 | F100: 0 | G100: 71.0591 | H100: 105.5555 | I100: 25.2324 | J100: 286.9986 | K100: 110.384
A101: E9118 | B101: Cortadora de pavimento com disco diamantado de 450 a 1.500 mm - 55,40 kW | C101: 488138.1061 | D101: 39.051 | E101: 9.0354 | F101: 0 | G101: 39.051 | H101: 43.9682 | I101: 20.2517 | J101: 151.3573 | K101: 68.3381
A102: E9119 | B102: Minicarregadeira sobre pneus com valetadeira - 55,40 kW | C102: 495873.018 | D102: 34.7111 | E102: 9.1786 | F102: 0 | G102: 34.7111 | H102: 73.2804 | I102: 25.2324 | J102: 177.1136 | K102: 69.1221
A103: E9120 | B103: Equipamento de cravação sobre esteira para geodreno com haste para profundidade de até 20 m - 258 kW | C103: 3916185.771 | D103: 274.133 | E103: 72.4886 | F103: 0 | G103: 274.133 | H103: 177.4601 | I103: 20.2517 | J103: 818.4664 | K103: 366.8733
A104: E9122 | B104: Perfuratriz tipo Bottom Feed para coluna de brita - 194 kW | C104: 4457731.351 | D104: 297.1821 | E104: 80.2206 | F104: 0 | G104: 297.1821 | H104: 102.6454 | I104: 25.2324 | J104: 802.4626 | K104: 402.6351
A105: E9125 | B105: Veículo tipo van furgão com capacidade de 1,54 t - 93 kW | C105: 210722.088 | D105: 10.5361 | E105: 3.7921 | F105: 1.5365 | G105: 10.5361 | H105: 24.6032 | I105: 24.1871 | J105: 75.1911 | K105: 40.0518
A106: E9126 | B106: Draga backhoe com capacidade de 7 m³ - 1.000 kW | C106: 86279801.59 | D106: 970.6478 | E106: 698.7046 | F106: 0 | G106: 2156.995 | H106: 1005.29 | I106: 57.6042 | J106: 4889.2416 | K106: 1726.9566
A107: E9127 | B107: Escavadeira hidráulica com martelo hidráulico de 520 kg - 75 kW | C107: 1507765.87 | D107: 172.3161 | E107: 29.9022 | F107: 0 | G107: 215.3951 | H107: 51.5873 | I107: 25.2324 | J107: 494.4331 | K107: 227.4507
A108: E9134 | B108: Miniônibus com capacidade para 30 passageiros - 111 kW | C108: 600323.6134 | D108: 25.7282 | E108: 10.5828 | F108: 4.288 | G108: 38.5922 | H108: 111.5872 | I108: 20.7786 | J108: 211.557 | K108: 61.3776
A109: E9141 | B109: Rebarbador hidráulico com bomba manual com capacidade de força de 9.000 kgf | C109: 89819.5437 | D109: 7.1856 | E109: 1.6626 | F109: 0 | G109: 4.491 | H109: 0 | I109: 0 | J109: 13.3392 | K109: 8.8482
A110: E9144 | B110: Pórtico metálico rolante com talha com capacidade de 5 t - 10 kW | C110: 289547.1075 | D110: 11.5819 | E110: 4.9129 | F110: 0 | G110: 7.2387 | H110: 0 | I110: 20.2517 | J110: 43.9852 | K110: 36.7465
A111: E9148 | B111: Macaco de protensão de fios com bomba - 3,72 kW | C111: 95161.4237 | D111: 5.4378 | E111: 1.6776 | F111: 0 | G111: 5.4378 | H111: 0 | I111: 33.6725 | J111: 46.2257 | K111: 40.7879
A112: E9149 | B112: Máquina de aplicação e extração de grampo elástico tipo Pandrol - 6,70 kW | C112: 265191.2653 | D112: 21.2153 | E112: 4.9087 | F112: 0 | G112: 21.2153 | H112: 8.7983 | I112: 0 | J112: 56.1376 | K112: 26.124
A113: E9151 | B113: Britador de mandíbulas móvel sobre esteiras, sem peneira, com capacidade de 140 m³/h - 170 kW | C113: 3284099.767 | D113: 187.6628 | E113: 57.894 | F113: 0 | G113: 187.6628 | H113: 161.9046 | I113: 33.6725 | J113: 628.7967 | K113: 279.2293
A114: E9152 | B114: Ferramenta de fixação à pólvora de ação direta | C114: 1088.9548 | D114: 0.0926 | E114: 0.0202 | F114: 0 | G114: 0.0871 | H114: 0 | I114: 0 | J114: 0.1999 | K114: 0.1128
A115: E9153 | B115: Ferramenta de fixação à pólvora e sistema à pistão | C115: 1012.0698 | D115: 0.086 | E115: 0.0187 | F115: 0 | G115: 0.081 | H115: 0 | I115: 0 | J115: 0.1857 | K115: 0.1047
A116: E9154 | B116: Equipamento para selagem com material asfáltico rebocável com capacidade de 370 l - 35 kW | C116: 430049.2228 | D116: 27.646 | E116: 7.5812 | F116: 0 | G116: 9.2153 | H116: 27.7778 | I116: 20.2517 | J116: 92.472 | K116: 55.4789
A117: E9155 | B117: Caldeira de asfalto rebocável com capacidade de 600 l - 5,20 kW | C117: 119542.0847 | D117: 7.6848 | E117: 2.1074 | F117: 0 | G117: 2.5616 | H117: 3.8518 | I117: 0 | J117: 16.2056 | K117: 9.7922
A118: E9156 | B118: Soprador de ar costal - 2,6 kW | C118: 2304.9148 | D118: 0.3688 | E118: 0.0853 | F118: 0 | G118: 0.3227 | H118: 4.2678 | I118: 0 | J118: 5.0446 | K118: 0.4541
A119: E9157 | B119: Locomotiva diesel-elétrica CC - bitola métrica - 2.237 kW | C119: 8250000 | D119: 132 | E119: 132.3465 | F119: 0 | G119: 165 | H119: 1420.316 | I119: 28.8978 | J119: 1878.5603 | K119: 293.2443
A120: E9158 | B120: Locomotiva diesel-elétrica CC - bitola larga - 2.237 kW | C120: 8250000 | D120: 132 | E120: 132.3465 | F120: 0 | G120: 165 | H120: 1420.316 | I120: 28.8978 | J120: 1878.5603 | K120: 293.2443
A121: E9159 | B121: Vagão plataforma PNE com capacidade de 82 t - bitola métrica | C121: 667000 | D121: 10.5608 | E121: 10.6314 | F121: 0 | G121: 5.5583 | H121: 0 | I121: 0 | J121: 26.7505 | K121: 21.1922
A122: E9160 | B122: Vagão plataforma PNT com capacidade de 98 t - bitola larga | C122: 746000 | D122: 11.8117 | E122: 11.8906 | F122: 0 | G122: 6.2167 | H122: 0 | I122: 0 | J122: 29.919 | K122: 23.7023
A123: E9161 | B123: Vagão fechado com porta para carga e descarga de paletes FLD com capacidade de 64 t - bitola métrica | C123: 730000 | D123: 11.5583 | E123: 11.6356 | F123: 0 | G123: 6.0833 | H123: 0 | I123: 0 | J123: 29.2772 | K123: 23.1939
A124: E9162 | B124: Vagão fechado com porta para carga e descarga de paletes FLT com capacidade de 99 t - bitola larga | C124: 800000 | D124: 12.6667 | E124: 12.7513 | F124: 0 | G124: 6.6667 | H124: 0 | I124: 0 | J124: 32.0847 | K124: 25.418
A125: E9163 | B125: Vagão hopper aberto com descarga automática HNE com capacidade de 45 m³ - bitola métrica | C125: 880000 | D125: 13.9333 | E125: 14.0265 | F125: 0 | G125: 7.3333 | H125: 0 | I125: 0 | J125: 35.2931 | K125: 27.9598
A126: E9164 | B126: Vagão hopper aberto com descarga automática HNT com capacidade de 63 m³ - bitola larga | C126: 915000 | D126: 14.4875 | E126: 14.5843 | F126: 0 | G126: 7.625 | H126: 0 | I126: 0 | J126: 36.6968 | K126: 29.0718
A127: E9167 | B127: Equipamento para carga e descarga de TLS de até 250 m - 90 kW | C127: 2632822.124 | D127: 42.1252 | E127: 42.2357 | F127: 0 | G127: 52.6564 | H127: 57.1428 | I127: 33.6725 | J127: 227.8326 | K127: 118.0334
A128: E9168 | B128: Carregadeira de pneus com implemento de garfo - 195 kW | C128: 1872905.737 | D128: 131.1034 | E128: 34.6675 | F128: 0 | G128: 131.1034 | H128: 82.5396 | I128: 25.2324 | J128: 404.6463 | K128: 191.0033
A129: E9200 | B129: Carregadeira de pneus para rocha com capacidade de 2,50 m³ - 105 kW com periculosidade | C129: 710591.3516 | D129: 71.0591 | E129: 14.0925 | F129: 0 | G129: 71.0591 | H129: 105.5555 | I129: 31.0429 | J129: 292.8091 | K129: 116.1945
A130: E9203 | B130: Escavadeira hidráulica com martelo hidráulico de 1.700 kg - 103 kW com periculosidade | C130: 2274140.742 | D130: 259.9018 | E130: 45.1011 | F130: 0 | G130: 324.8772 | H130: 70.8465 | I130: 31.0429 | J130: 731.7695 | K130: 336.0458
A131: E9204 | B131: Perfuratriz sobre esteiras - 145 kW com periculosidade | C131: 1962850.235 | D131: 130.8567 | E131: 35.3231 | F131: 0 | G131: 130.8567 | H131: 115.0793 | I131: 31.0429 | J131: 443.1587 | K131: 197.2227
A132: E9205 | B132: Equipamento de corte a plasma CNC - 12.000 x 5.500 mm - 19,5 kW | C132: 1072789.095 | D132: 85.8231 | E132: 19.8573 | F132: 0 | G132: 64.3673 | H132: 0 | I132: 0 | J132: 170.0477 | K132: 105.6804
A133: E9206 | B133: Equipamento de solda MIG automática com acessórios - 14,6 kVA | C133: 87338.8224 | D133: 6.9871 | E133: 1.6166 | F133: 0 | G133: 6.9871 | H133: 0 | I133: 0 | J133: 15.5908 | K133: 8.6037
A134: E9207 | B134: Máquina de solda elétrica retificadora 425 A - 18,70 kW | C134: 4516.4601 | D134: 0.3613 | E134: 0.0836 | F134: 0 | G134: 0.3613 | H134: 0 | I134: 0 | J134: 0.8062 | K134: 0.4449
A135: E9209 | B135: Martelete perfurador/rompedor a ar comprimido de 25 kg para rocha, com insalubridade, com capacidade de 2.040 gpm | C135: 20057.2906 | D135: 1.6046 | E135: 0.3713 | F135: 0 | G135: 1.6046 | H135: 0 | I135: 26.2997 | J135: 29.8802 | K135: 28.2756
A136: E9213 | B136: Jumbo eletro-hidráulico com 3 braços - 155 kW/237 kW com periculosidade | C136: 12060003.82 | D136: 804.0003 | E136: 217.0298 | F136: 0 | G136: 1005.0003 | H136: 172.2221 | I136: 42.3068 | J136: 2240.5593 | K136: 1063.3369
A137: E9242 | B137: Estação transmissora de superfície para televisionamento | C137: 11361.6811 | D137: 0.7304 | E137: 0.2003 | F137: 0 | G137: 0.4058 | H137: 0 | I137: 0 | J137: 1.3365 | K137: 0.9307
A138: E9243 | B138: Câmara hiperbárica com filtro, serpentina e reservatório de ar para mergulho raso - D = 1,80 m e H = 2,22 m. | C138: 297535.1515 | D138: 5.2069 | E138: 4.819 | F138: 0 | G138: 7.4384 | H138: 0 | I138: 43.8956 | J138: 61.3599 | K138: 53.9215
A139: E9244 | B139: Estação transmissora de superfície para comunicação sem fio | C139: 37767.8948 | D139: 2.4279 | E139: 0.6658 | F139: 0 | G139: 1.3489 | H139: 0 | I139: 0 | J139: 4.4426 | K139: 3.0937
A140: E9245 | B140: Estação transmissora de superfície para comunicação com fio | C140: 6330.0794 | D140: 0.4069 | E140: 0.1116 | F140: 0 | G140: 0.2261 | H140: 0 | I140: 0 | J140: 0.7446 | K140: 0.5185
A141: E9246 | B141: Painel de controle de ar com manômetros e pneufatômetros | C141: 12147.5394 | D141: 0.7809 | E141: 0.2141 | F141: 0 | G141: 0.4338 | H141: 0 | I141: 0 | J141: 1.4288 | K141: 0.995
A142: E9247 | B142: Sistema de Sino aberto (sinete) para mergulho até 50 m - 33,50 kW | C142: 550469.5855 | D142: 14.6792 | E142: 9.0571 | F142: 0 | G142: 14.6792 | H142: 0 | I142: 43.8956 | J142: 82.3111 | K142: 67.6319
A143: E9248 | B143: Sistema de ar comprimido para mergulho até 30 m com pressão de trabalho de 1,4 MPa - 7,46 kW | C143: 50363.0422 | D143: 3.3575 | E143: 0.9063 | F143: 0 | G143: 3.3575 | H143: 6.71 | I143: 0 | J143: 14.3313 | K143: 4.2638
A144: E9249 | B144: Sistema de ar comprimido para mergulho até 50 m com pressão de trabalho de 1,7 MPa - 16,18 kW | C144: 77065.7419 | D144: 5.1377 | E144: 1.3869 | F144: 0 | G144: 5.1377 | H144: 14.5534 | I144: 0 | J144: 26.2157 | K144: 6.5246
A145: E9251 | B145: Fonte de plasma para corte manual - 65A - 15 kW | C145: 32631.6802 | D145: 2.6105 | E145: 0.604 | F145: 0 | G145: 2.6105 | H145: 0 | I145: 0 | J145: 5.825 | K145: 3.2145
A146: E9252 | B146: Serra de esquadria com braço telescópico - D = 250 mm (10") - 1,80 kW | C146: 5225.3927 | D146: 0.4703 | E146: 0.0967 | F146: 0 | G146: 0.2613 | H146: 0 | I146: 0 | J146: 0.8283 | K146: 0.567
A147: E9253 | B147: Rebordeadeira diâmetro máximo 3,00 m - 4,85 kW | C147: 76420.0224 | D147: 3.0568 | E147: 1.2967 | F147: 0 | G147: 2.6747 | H147: 0 | I147: 0 | J147: 7.0282 | K147: 4.3535
A148: E9254 | B148: Dobradeira viradeira manual comprimento máximo de dobra de até 2.000 mm | C148: 18395.6297 | D148: 0.7358 | E148: 0.3121 | F148: 0 | G148: 0.6438 | H148: 0 | I148: 0 | J148: 1.6917 | K148: 1.0479
A149: E9255 | B149: Fonte de plasma para corte manual - 45A - 10 kW | C149: 21886.5592 | D149: 1.7509 | E149: 0.4051 | F149: 0 | G149: 1.7509 | H149: 0 | I149: 0 | J149: 3.9069 | K149: 2.156
A150: E9256 | B150: Equipamento para pintura com cal rebocável com dois bicos aplicadores e capacidade de 2.200 l | C150: 65811.1986 | D150: 3.7606 | E150: 1.1602 | F150: 0 | G150: 3.7606 | H150: 0 | I150: 20.2517 | J150: 28.9331 | K150: 25.1725
A151: E9501 | B151: Ventilador axial para ventilação forçada com velocidade de saída de 32,8 m/s - D = 1.000 mm - 30 kW | C151: 441254.7689 | D151: 39.7129 | E151: 8.1676 | F151: 0 | G151: 26.4753 | H151: 0 | I151: 0 | J151: 74.3558 | K151: 47.8805
A152: E9502 | B152: Bate-estaca de gravidade para 6 t - 119 kW | C152: 965788.6198 | D152: 55.1879 | E152: 17.0255 | F152: 0 | G152: 41.3909 | H152: 81.8518 | I152: 25.2324 | J152: 220.6885 | K152: 97.4458
A153: E9503 | B153: Guilhotina hidráulica 16 x 6.100 mm - 30 kW | C153: 1327340.288 | D153: 53.0936 | E153: 22.5216 | F153: 0 | G153: 46.4569 | H153: 0 | I153: 20.2517 | J153: 142.3238 | K153: 95.8669
A154: E9505 | B154: Prensa dobradeira capacidade 320 t - comprimento até 3.100 mm - 30 kW | C154: 839022.9917 | D154: 33.5609 | E154: 14.2361 | F154: 0 | G154: 29.3658 | H154: 0 | I154: 20.2517 | J154: 97.4145 | K154: 68.0487
A155: E9507 | B155: Plotadora de recorte com computador e programa computacional | C155: 87460.9364 | D155: 13.1191 | E155: 1.7988 | F155: 0 | G155: 8.7461 | H155: 0 | I155: 0 | J155: 23.664 | K155: 14.9179
A156: E9510 | B156: Ventilador centrífugo baixa pressão com capacidade de 58 m³/min - 3,68 kW | C156: 12907.1353 | D156: 1.1616 | E156: 0.2389 | F156: 0 | G156: 0.7744 | H156: 0 | I156: 0 | J156: 2.1749 | K156: 1.4005
A157: E9511 | B157: Carregadeira de pneus com capacidade de 3,40 m³ - 195 kW | C157: 1866235.762 | D157: 130.6365 | E157: 34.544 | F157: 0 | G157: 130.6365 | H157: 82.5396 | I157: 25.2324 | J157: 403.589 | K157: 190.4129
A158: E9512 | B158: Veículo leve - 53 kW | C158: 74272.0661 | D158: 4.4563 | E158: 1.3748 | F158: 0.557 | G158: 4.4563 | H158: 22.3708 | I158: 24.1871 | J158: 57.4023 | K158: 30.5752
A159: E9513 | B159: Compressor de ar portátil de 160,46 l/s (340 PCM) - 81 kW | C159: 288158.4819 | D159: 19.2106 | E159: 5.1857 | F159: 0 | G159: 19.2106 | H159: 72.8571 | I159: 0 | J159: 116.464 | K159: 24.3963
A160: E9514 | B160: Distribuidor de agregados sobre pneus autopropelido - 130 kW | C160: 907148.1683 | D160: 51.837 | E160: 15.9917 | F160: 0 | G160: 45.3574 | H160: 130.6877 | I160: 25.2324 | J160: 269.1062 | K160: 93.0611
A161: E9515 | B161: Escavadeira hidráulica sobre esteiras com caçamba com capacidade de 1,56 m³ - 118 kW | C161: 1362317.071 | D161: 95.3622 | E161: 25.2165 | F161: 0 | G161: 95.3622 | H161: 81.1639 | I161: 25.2324 | J161: 322.3372 | K161: 145.8111
A162: E9516 | B162: Perfuratriz hidráulica sobre esteiras - 283 kW | C162: 4918678.604 | D162: 327.9119 | E162: 88.5157 | F162: 0 | G162: 327.9119 | H162: 149.7353 | I162: 25.2324 | J162: 919.3072 | K162: 441.66
A163: E9518 | B163: Grade de 24 discos rebocável de D = 60 cm (24") | C163: 41526.7435 | D163: 2.6696 | E163: 0.7321 | F163: 0 | G163: 1.4831 | H163: 0 | I163: 0 | J163: 4.8848 | K163: 3.4017
A164: E9519 | B164: Betoneira com motor a gasolina com capacidade de 600 l - 10 kW | C164: 37893.219 | D164: 3.0315 | E164: 0.7014 | F164: 0 | G164: 2.2736 | H164: 16.4147 | I164: 20.2517 | J164: 42.6729 | K164: 23.9846
A165: E9521 | B165: Grupo gerador - 3,2 kVA | C165: 4000.293 | D165: 0.2 | E165: 0.0705 | F165: 0 | G165: 0.1429 | H165: 3.902 | I165: 0 | J165: 4.3154 | K165: 0.2705
A166: E9522 | B166: Caldeira de asfalto rebocável com capacidade de 1.500 l - 6,5 kW | C166: 192155.6063 | D166: 12.3529 | E166: 3.3874 | F166: 0 | G166: 4.1176 | H166: 4.8148 | I166: 0 | J166: 24.6727 | K166: 15.7403
A167: E9523 | B167: Motoscraper - 304 kW | C167: 5797584.391 | D167: 272.8275 | E167: 99.9486 | F167: 0 | G167: 306.9309 | H167: 257.3542 | I167: 25.2324 | J167: 962.2936 | K167: 398.0085
A168: E9524 | B168: Motoniveladora - 93 kW | C168: 1381068.669 | D168: 69.0534 | E168: 24.3463 | F168: 0 | G168: 88.783 | H168: 73.8095 | I168: 25.2324 | J168: 281.2246 | K168: 118.6321
A169: E9525 | B169: Ponte rolante com capacidade de 15 t e vão de até 15 m - 20 kW | C169: 3187571.251 | D169: 127.5029 | E169: 54.0851 | F169: 0 | G169: 79.6893 | H169: 0 | I169: 40.5034 | J169: 301.7807 | K169: 222.0914
A170: E9526 | B170: Retroescavadeira de pneus - capacidade da caçamba da pá-carregadeira de 0,76 m³ e da retroescavadeira de 0,29 m³ - 58 kW | C170: 519980.7277 | D170: 36.3987 | E170: 9.6248 | F170: 0 | G170: 36.3987 | H170: 39.8941 | I170: 25.2324 | J170: 147.5487 | K170: 71.2559
A171: E9527 | B171: Martelete perfurador/rompedor a ar comprimido de 25 kg para rocha com capacidade de 2.040 gpm | C171: 20057.2906 | D171: 1.6046 | E171: 0.3713 | F171: 0 | G171: 1.6046 | H171: 0 | I171: 20.2517 | J171: 23.8322 | K171: 22.2276
A172: E9528 | B172: Empilhadeira a diesel com capacidade de 4 t - 60 kW | C172: 503667.2283 | D172: 40.2934 | E172: 9.3229 | F172: 0 | G172: 35.2567 | H172: 47.619 | I172: 20.2517 | J172: 152.7437 | K172: 69.868
A173: E9529 | B173: Jateador para estruturas metálicas com transportador a roletes - 22 kW | C173: 4043645.998 | D173: 269.5764 | E173: 72.7688 | F173: 0 | G173: 202.1823 | H173: 0 | I173: 20.2517 | J173: 564.7792 | K173: 362.5969
A174: E9530 | B174: Rolo compactador liso vibratório autopropelido por pneus de 11 t - 97 kW | C174: 698560.8571 | D174: 46.5707 | E174: 12.5712 | F174: 0 | G174: 46.5707 | H174: 82.1163 | I174: 25.2324 | J174: 213.0613 | K174: 84.3743
A175: E9532 | B175: Equipamento de solda MIG com acessórios - 14,6 kVA | C175: 72523.8827 | D175: 5.8019 | E175: 1.3424 | F175: 0 | G175: 5.8019 | H175: 0 | I175: 0 | J175: 12.9462 | K175: 7.1443
A176: E9535 | B176: Serra circular com bancada - D = 30 cm - 4 kW | C176: 7126.6947 | D176: 0.6414 | E176: 0.1319 | F176: 0 | G176: 0.3563 | H176: 0 | I176: 20.2517 | J176: 21.3813 | K176: 21.025
A177: E9536 | B177: Embarcação de transporte de pessoal e apoio logístico - 30 kW | C177: 115360.7329 | D177: 1.8025 | E177: 0.6796 | F177: 0 | G177: 2.0028 | H177: 56.2788 | I177: 33.0408 | J177: 93.8045 | K177: 35.5229
A178: E9538 | B178: Conjunto vibratório para meio tubo de concreto com encaixe PB e 3 jogos de fôrmas - D = 0,30 m - 2,20 kW | C178: 16967.3923 | D178: 2.2623 | E178: 0.5234 | F178: 0 | G178: 1.6967 | H178: 0 | I178: 0 | J178: 4.4824 | K178: 2.7857
A179: E9539 | B179: Equipamento de batimetria monofeixe | C179: 98040.3153 | D179: 6.3026 | E179: 1.7283 | F179: 0 | G179: 3.5014 | H179: 0 | I179: 27.1811 | J179: 38.7134 | K179: 35.212
A180: E9540 | B180: Trator sobre esteiras com lâmina - 127 kW | C180: 1055375.521 | D180: 41.0424 | E180: 18.088 | F180: 0 | G180: 58.632 | H180: 94.074 | I180: 25.2324 | J180: 237.0688 | K180: 84.3628
A181: E9541 | B181: Trator sobre esteiras com lâmina - 259 kW | C181: 4835525.646 | D181: 188.0482 | E181: 82.8755 | F181: 0 | G181: 268.6403 | H181: 191.8517 | I181: 25.2324 | J181: 756.6481 | K181: 296.1561
A182: E9543 | B182: Compressor de ar respirável para recarga de cilindros de mergulho com capacidade de até 35 MPa e 3,58 l/s - 5,52 kW | C182: 50734.7634 | D182: 3.3823 | E182: 0.913 | F182: 0 | G182: 3.3823 | H182: 0 | I182: 0 | J182: 7.6776 | K182: 4.2953
A183: E9544 | B183: Vassoura mecânica rebocável com largura de 2,44 m | C183: 73447.8354 | D183: 6.6103 | E183: 1.3595 | F183: 0 | G183: 4.4069 | H183: 0 | I183: 0 | J183: 12.3767 | K183: 7.9698
A184: E9545 | B184: Vibroacabadora de asfalto sobre esteiras - 82 kW | C184: 1977609.93 | D184: 98.8805 | E184: 34.8624 | F184: 0 | G184: 127.1321 | H184: 82.4338 | I184: 33.6725 | J184: 376.9813 | K184: 167.4154
A185: E9547 | B185: Máquina de solda elétrica transformadora 250 A - 9,20 kW | C185: 927.6357 | D185: 0.0742 | E185: 0.0172 | F185: 0 | G185: 0.0742 | H185: 0 | I185: 0 | J185: 0.1656 | K185: 0.0914
A186: E9548 | B186: Bomba centrífuga com capacidade de 7,1 a 22 m³/h - 1,50 kW | C186: 2446.4768 | D186: 0.1957 | E186: 0.0453 | F186: 0 | G186: 0.1713 | H186: 0 | I186: 0 | J186: 0.4123 | K186: 0.241
A187: E9551 | B187: Obturador mecânico simples com extensão de 12 m | C187: 5067.213 | D187: 0.456 | E187: 0.0938 | F187: 0 | G187: 0.2534 | H187: 0 | I187: 0 | J187: 0.8032 | K187: 0.5498
A188: E9552 | B188: Nível ótico com capacidade de aumento de 32x | C188: 14214.0534 | D188: 1.1371 | E188: 0.2631 | F188: 0 | G188: 0.7107 | H188: 0 | I188: 0 | J188: 2.1109 | K188: 1.4002
A189: E9553 | B189: Estação total eletrônica com alcance máximo de 3.000 m | C189: 32005.1675 | D189: 2.8805 | E189: 0.5924 | F189: 0 | G189: 1.6003 | H189: 0 | I189: 0 | J189: 5.0732 | K189: 3.4729
A190: E9556 | B190: Compactador manual de placa vibratória - 3,00 kW | C190: 10349.0745 | D190: 0.6899 | E190: 0.1862 | F190: 0 | G190: 0.6899 | H190: 4.9244 | I190: 0 | J190: 6.4904 | K190: 0.8761
A191: E9558 | B191: Tanque de estocagem de asfalto com capacidade de 30.000 l | C191: 698315.8888 | D191: 29.0965 | E191: 10.0983 | F191: 0 | G191: 18.1853 | H191: 0 | I191: 0 | J191: 57.3801 | K191: 39.1948
A192: E9559 | B192: Aquecedor de fluido térmico - 12 kW | C192: 686511.5905 | D192: 30.893 | E192: 9.5305 | F192: 0 | G192: 20.5953 | H192: 9.5238 | I192: 0 | J192: 70.5426 | K192: 40.4235
A193: E9560 | B193: Ônibus com capacidade para 80 passageiros - 175 kW | C193: 1007612.131 | D193: 43.1834 | E193: 17.7628 | F193: 7.1972 | G193: 64.7751 | H193: 175.9258 | I193: 20.7786 | J193: 329.6229 | K193: 88.922
A194: E9561 | B194: GPS geodésico de simples frequência (L1) | C194: 27839.7303 | D194: 2.2272 | E194: 0.5153 | F194: 0 | G194: 1.392 | H194: 0 | I194: 0 | J194: 4.1345 | K194: 2.7425
A195: E9562 | B195: GPS geodésico de dupla frequência (L1/L2) | C195: 60182.5444 | D195: 4.8146 | E195: 1.114 | F195: 0 | G195: 3.0091 | H195: 0 | I195: 0 | J195: 8.9377 | K195: 5.9286
A196: E9563 | B196: Perfuratriz hidráulica sobre esteiras com clamshell - 220 kW | C196: 2873451.559 | D196: 191.5634 | E196: 51.7102 | F196: 0 | G196: 191.5634 | H196: 116.402 | I196: 25.2324 | J196: 576.4714 | K196: 268.506
A197: E9565 | B197: Trator sobre esteiras com lâmina e escarificador - 259 kW | C197: 4846312.21 | D197: 188.4677 | E197: 83.0604 | F197: 0 | G197: 269.2396 | H197: 191.8517 | I197: 25.2324 | J197: 757.8518 | K197: 296.7605
A198: E9566 | B198: Guindaste móvel sobre esteiras com clamshell de 1,9 m³ - 220 kW | C198: 4068836.725 | D198: 142.4093 | E198: 69.038 | F198: 0 | G198: 203.4418 | H198: 58.201 | I198: 33.6725 | J198: 506.7626 | K198: 245.1198
A199: E9567 | B199: Fresadora de piso de concreto - 6,7 kW | C199: 18851.7289 | D199: 1.5081 | E199: 0.3489 | F199: 0 | G199: 1.5081 | H199: 10.9978 | I199: 0 | J199: 14.3629 | K199: 1.857
A200: E9568 | B200: Furadeira de impacto de 12,5 mm - 0,80 kW | C200: 1383.9978 | D200: 0.1107 | E200: 0.0256 | F200: 0 | G200: 0.0692 | H200: 0 | I200: 0 | J200: 0.2055 | K200: 0.1363
... 333 more rows

Sheet MO D (hidden)
A1: CGCIT | B1: SISTEMA DE CUSTOS REFERENCIAIS DE OBRAS - SICRO | G1: DNIT
A3: Alagoas - Abril/2023
A4: Com desoneração
A5: Código | B5: Descrição | C5: Unidade | D5: Salário (R$) | E5: Encargos Totais | F5: Custo (R$) | G5: Periculosidade/ Insalubridade
A6: P9801 | B6: Ajudante | C6: h | D6: 5.9595 | E6: 1.820472 | F6: 16.8086 | G6: 0
A7: P9802 | B7: Ajudante especializado | C7: h | D7: 7.1072 | E7: 1.781145 | F7: 19.7661 | G7: 0
A8: P9803 | B8: Almoxarife | C8: mês | D8: 2582.8 | E8: 0.933332 | F8: 4993.4098 | G8: 0
A9: P9804 | B9: Apontador | C9: mês | D9: 1754.8137 | E9: 1.132318 | F9: 3741.8208 | G9: 0
A10: P9805 | B10: Armador | C10: h | D10: 10.25 | E10: 1.401885 | F10: 24.6193 | G10: 0
A11: P9806 | B11: Auxiliar administrativo | C11: mês | D11: 1669.929 | E11: 1.163596 | F11: 3613.0517 | G11: 0
A12: P9807 | B12: Bombeiro hidráulico | C12: h | D12: 10.7721 | E12: 1.455037 | F12: 26.4459 | G12: 0
A13: P9808 | B13: Carpinteiro | C13: h | D13: 7.7074 | E13: 1.598188 | F13: 20.0252 | G13: 0
A14: P9809 | B14: Encarregado administrativo | C14: mês | D14: 3814.417 | E14: 0.733838 | F14: 6613.5811 | G14: 0
A15: P9810 | B15: Eletricista | C15: h | D15: 8.8169 | E15: 1.565201 | F15: 22.6171 | G15: 0
A16: P9811 | B16: Encarregado especializado | C16: mês | D16: 3365.0331 | E16: 0.792103 | F16: 6030.4859 | G16: 0
A17: P9812 | B17: Engenheiro | C17: mês | D17: 12569.6936 | E17: 0.586306 | F17: 19939.3803 | G17: 0
A18: P9814 | B18: Operacional | C18: mês | D18: 1432.3199 | E18: 1.272966 | F18: 3255.6144 | G18: 0
A19: P9815 | B19: Jardineiro | C19: h | D19: 7.75 | E19: 1.593914 | F19: 20.1028 | G19: 0
A20: P9819 | B20: Engenheiro supervisor | C20: mês | D20: 12569.6936 | E20: 0.586306 | F20: 19939.3803 | G20: 0
A21: P9821 | B21: Pedreiro | C21: h | D21: 7.7093 | E21: 1.594594 | F21: 20.0025 | G21: 0
A22: P9822 | B22: Pintor | C22: h | D22: 10.25 | E22: 1.413932 | F22: 24.7428 | G22: 0
A23: P9823 | B23: Serralheiro | C23: h | D23: 9.3101 | E23: 1.465346 | F23: 22.9526 | G23: 0
A24: P9824 | B24: Servente | C24: h | D24: 5.9182 | E24: 1.824658 | F24: 16.7168 | G24: 0
A25: P9825 | B25: Soldador | C25: h | D25: 12.2767 | E25: 1.312558 | F25: 28.3905 | G25: 0
A26: P9826 | B26: Chefe setor de finanças | C26: mês | D26: 7889.6392 | E26: 0.632807 | F26: 12882.2581 | G26: 0
A27: P9827 | B27: Vigia | C27: mês | D27: 1302 | E27: 1.490434 | F27: 3633.145 | G27: 0.3
A28: P9830 | B28: Montador | C28: h | D28: 10.2723 | E28: 1.487921 | F28: 25.5566 | G28: 0
A29: P9833 | B29: Auxiliar de laboratório | C29: mês | D29: 2255 | E29: 0.988016 | F29: 4482.976 | G29: 0
A30: P9836 | B30: Geólogo | C30: h | D30: 53.0587 | E30: 0.90653 | F30: 101.158 | G30: 0
A31: P9837 | B31: Oceanógrafo | C31: mês | D31: 4408.8627 | E31: 0.761565 | F31: 7766.4982 | G31: 0
A32: P9840 | B32: Encarregado geral | C32: mês | D32: 5263.6104 | E32: 0.692405 | F32: 8908.1605 | G32: 0
A33: P9842 | B33: Faxineiro | C33: mês | D33: 1377.2 | E33: 1.306404 | F33: 3176.3795 | G33: 0
A34: P9843 | B34: Operador de equipamento leve | C34: h | D34: 7.9705 | E34: 1.540839 | F34: 20.2517 | G34: 0
A35: P9844 | B35: Capitão fluvial | C35: mês | D35: 5937.7022 | E35: 0.694617 | F35: 10062.131 | G35: 0
A36: P9845 | B36: Operador de equipamento pesado | C36: h | D36: 10.7328 | E36: 1.350967 | F36: 25.2324 | G36: 0
A37: P9846 | B37: Operador de equipamento especial | C37: h | D37: 15.9488 | E37: 1.111291 | F37: 33.6725 | G37: 0
A38: P9847 | B38: Perfurador de tubulão | C38: h | D38: 5.9603 | E38: 1.812387 | F38: 16.7626 | G38: 0
A39: P9848 | B39: Desenhista | C39: mês | D39: 2830.9126 | E39: 0.812679 | F39: 5131.5358 | G39: 0
A40: P9849 | B40: Condutor maquinista fluvial | C40: mês | D40: 2146.73 | E40: 1.016245 | F40: 4328.3336 | G40: 0
A41: P9850 | B41: Copeiro | C41: mês | D41: 1504.8 | E41: 1.202465 | F41: 3314.2693 | G41: 0
A42: P9851 | B42: Médico do trabalho | C42: mês | D42: 9843.5398 | E42: 0.606564 | F42: 15814.2766 | G42: 0
A43: P9852 | B43: Blaster | C43: h | D43: 9.8999 | E43: 1.684111 | F43: 29.5424 | G43: 0.3
A44: P9853 | B44: Pré-marcador | C44: h | D44: 5.9595 | E44: 1.781288 | F44: 16.575 | G44: 0
A45: P9854 | B45: Recepcionista | C45: mês | D45: 1632.0016 | E45: 1.118952 | F45: 3458.133 | G45: 0
A46: P9855 | B46: Marinheiro de máquinas | C46: mês | D46: 2001.6548 | E46: 1.051428 | F46: 4106.2507 | G46: 0
A47: P9856 | B47: Marinheiro de convés | C47: h | D47: 8.8933 | E47: 1.464191 | F47: 21.9147 | G47: 0
A48: P9857 | B48: Marinheiro de convés - mensalista | C48: mês | D48: 1956.5248 | E48: 1.062273 | F48: 4034.8882 | G48: 0
A49: P9858 | B49: Laboratorista | C49: mês | D49: 3176.8 | E49: 0.810108 | F49: 5750.351 | G49: 0
A50: P9859 | B50: Trabalhador de via | C50: h | D50: 5.9182 | E50: 1.839852 | F50: 16.8068 | G50: 0
A51: P9861 | B51: Selecionador de material pétreo | C51: h | D51: 5.9595 | E51: 1.795727 | F51: 16.6611 | G51: 0
A52: P9864 | B52: Engenheiro de segurança do trabalho | C52: mês | D52: 11149.0872 | E52: 0.602105 | F52: 17862.0083 | G52: 0
A53: P9865 | B53: Técnico em enfermagem | C53: mês | D53: 2912.143 | E53: 0.850765 | F53: 5389.6923 | G53: 0
A54: P9866 | B54: Motorista de caminhão | C54: h | D54: 8.3823 | E54: 1.478875 | F54: 20.7786 | G54: 0
A55: P9867 | B55: Técnico especializado - mensalista | C55: mês | D55: 3150.2375 | E55: 0.81809 | F55: 5727.4152 | G55: 0
A56: P9869 | B56: Encarregado de obras de artes especiais | C56: mês | D56: 3365.0331 | E56: 0.792103 | F56: 6030.4859 | G56: 0
A57: P9870 | B57: Motorista de veículo leve | C57: h | D57: 10.25 | E57: 1.35972 | F57: 24.1871 | G57: 0
A58: P9871 | B58: Motorista de veículo especial | C58: h | D58: 9.4525 | E58: 1.402523 | F58: 22.7098 | G58: 0
A59: P9875 | B59: Encarregado de turma | C59: mês | D59: 2038.4864 | E59: 1.04065 | F59: 4159.8372 | G59: 0
A60: P9876 | B60: Técnico de segurança do trabalho | C60: mês | D60: 3093.2 | E60: 0.819593 | F60: 5628.365 | G60: 0
A61: P9878 | B61: Secretária | C61: mês | D61: 2593.8973 | E61: 0.895927 | F61: 4917.8399 | G61: 0
A62: P9880 | B62: Piloto fluvial | C62: mês | D62: 3276.33 | E62: 0.840358 | F62: 6029.6201 | G62: 0
A63: P9882 | B63: Técnico especializado | C63: h | D63: 14.3193 | E63: 1.165968 | F63: 31.0151 | G63: 0
A64: P9883 | B64: Chefe do setor administrativo | C64: mês | D64: 3813.7232 | E64: 0.733878 | F64: 6612.5307 | G64: 0
A65: P9884 | B65: Encarregado de terraplenagem | C65: mês | D65: 3365.0331 | E65: 0.792103 | F65: 6030.4859 | G65: 0
A66: P9885 | B66: Frentista de túnel | C66: h | D66: 5.9595 | E66: 1.885623 | F66: 17.1968 | G66: 0
A67: P9889 | B67: Técnico da qualidade | C67: mês | D67: 3433.6928 | E67: 0.79527 | F67: 6164.4056 | G67: 0
A68: P9891 | B68: Engenheiro mecânico | C68: mês | D68: 12633.3004 | E68: 0.591265 | F68: 20102.9287 | G68: 0
A69: P9892 | B69: Auxiliar de blaster | C69: h | D69: 8.2651 | E69: 1.808885 | F69: 25.6952 | G69: 0.3
A70: P9893 | B70: Encarregado de pavimentação | C70: mês | D70: 3365.0331 | E70: 0.792103 | F70: 6030.4859 | G70: 0
A71: P9896 | B71: Porteiro | C71: mês | D71: 1431.4407 | E71: 1.271993 | F71: 3252.2232 | G71: 0
A72: P9897 | B72: Técnico de meio ambiente | C72: mês | D72: 3429.5822 | E72: 0.792466 | F72: 6147.4094 | G72: 0
A73: P9900 | B73: Comprador | C73: mês | D73: 3174.5236 | E73: 0.809721 | F73: 5745.002 | G73: 0
A74: P9901 | B74: Encarregado de superestrutura ferroviária | C74: mês | D74: 3365.0331 | E74: 0.792103 | F74: 6030.4859 | G74: 0
A75: P9903 | B75: Auxiliar técnico | C75: mês | D75: 1704.9316 | E75: 1.135977 | F75: 3641.6946 | G75: 0
A76: P9907 | B76: Comandante de longo curso | C76: mês | D76: 14307.3935 | E76: 0.58966 | F76: 22743.8911 | G76: 0
A77: P9908 | B77: Imediato | C77: mês | D77: 9204.4566 | E77: 0.63094 | F77: 15011.9164 | G77: 0
A78: P9909 | B78: Oficial de náutica | C78: mês | D78: 2559.2555 | E78: 0.936834 | F78: 4956.853 | G78: 0
A79: P9910 | B79: Oficial de máquinas | C79: mês | D79: 3003.1723 | E79: 0.872944 | F79: 5624.7735 | G79: 0
A80: P9911 | B80: Condutor de máquinas | C80: mês | D80: 2146.73 | E80: 1.016245 | F80: 4328.3336 | G80: 0
A81: P9912 | B81: Capitão fluvial com periculosidade | C81: h | D81: 26.9895 | E81: 1.264228 | F81: 69.2072 | G81: 0.3
A82: P9913 | B82: Draguista | C82: mês | D82: 3595.3388 | E82: 0.811507 | F82: 6512.9814 | G82: 0
A83: P9915 | B83: Maquinista | C83: h | D83: 12.5102 | E83: 1.30994 | F83: 28.8978 | G83: 0
A84: P9916 | B84: Encarregado de conservação rodoviária | C84: mês | D84: 3365.0331 | E84: 0.792103 | F84: 6030.4859 | G84: 0
A85: P9920 | B85: Mestre fluvial | C85: mês | D85: 5937.7022 | E85: 0.694617 | F85: 10062.131 | G85: 0
A86: P9921 | B86: Mergulhador raso autônomo de emergência | C86: h | D86: 9.0128 | E86: 2.172727 | F86: 30.9628 | G86: 0.2627
A87: P9922 | B87: Mergulhador raso dependente de emergência | C87: h | D87: 8.9931 | E87: 2.24654 | F87: 31.8943 | G87: 0.3
A88: P9924 | B88: Mergulhador raso dependente | C88: h | D88: 8.9931 | E88: 3.729422 | F88: 45.23 | G88: 0.3
A89: P9925 | B89: Mergulhador raso autônomo | C89: h | D89: 9.0128 | E89: 3.319643 | F89: 41.2997 | G89: 0.2627
A90: P9926 | B90: Mergulhador raso auxiliar de superfície | C90: h | D90: 9.0128 | E90: 1.920751 | F90: 28.6918 | G90: 0.2627
A91: P9927 | B91: Frentista de túnel com periculosidade | C91: h | D91: 5.9595 | E91: 2.12842 | F91: 20.4316 | G91: 0.3
A92: P9928 | B92: Servente com periculosidade | C92: h | D92: 5.9182 | E92: 2.067454 | F92: 19.9292 | G92: 0.3
A93: P9929 | B93: Bombeiro hidráulico com periculosidade | C93: h | D93: 10.7721 | E93: 1.697525 | F93: 32.2896 | G93: 0.3
A94: P9930 | B94: Eletricista com periculosidade | C94: h | D94: 8.8169 | E94: 1.806974 | F94: 27.3938 | G94: 0.3
A95: P9931 | B95: Operador de equipamento de mergulho | C95: h | D95: 16.6882 | E95: 1.48844 | F95: 43.8956 | G95: 0.1419
A96: P9932 | B96: Operador de equipamento pesado com periculosidade | C96: h | D96: 10.7328 | E96: 1.592344 | F96: 31.0429 | G96: 0.3
A97: P9933 | B97: Supervisor de mergulho raso | C97: mês | D97: 3671.3967 | E97: 1.062492 | F97: 8093.1975 | G97: 0.1419
A98: P9934 | B98: Motorista de veículo especial com periculosidade | C98: h | D98: 9.4525 | E98: 1.643877 | F98: 27.8269 | G98: 0.3
A99: P9938 | B99: Operador de equipamento leve com periculosidade | C99: h | D99: 7.9705 | E99: 1.782224 | F99: 24.5668 | G99: 0.3
A100: P9939 | B100: Operador de equipamento leve com insalubridade | C100: h | D100: 7.9705 | E100: 2.002638 | F100: 26.2997 | G100: 0.297
A101: P9940 | B101: Piloto fluvial com periculosidade | C101: h | D101: 14.8924 | E101: 1.439924 | F101: 40.804 | G101: 0.3
A102: P9941 | B102: Mestre fluvial com periculosidade | C102: h | D102: 26.9895 | E102: 1.264228 | F102: 69.2072 | G102: 0.3
A103: P9942 | B103: Marinheiro de convés com periculosidade | C103: h | D103: 8.8933 | E103: 1.706532 | F103: 26.7379 | G103: 0.3
A104: P9943 | B104: Técnico de batimetria com periculosidade | C104: h | D104: 11.6521 | E104: 1.55242 | F104: 33.2366 | G104: 0.3
A105: P9944 | B105: Operador de equipamento especial com periculosidade | C105: h | D105: 15.9488 | E105: 1.352669 | F105: 42.3068 | G105: 0.3
A106: P9945 | B106: Draguista com periculosidade | C106: h | D106: 16.3424 | E106: 1.405144 | F106: 44.2085 | G106: 0.3
A107: P9946 | B107: Engenheiro auxiliar | C107: mês | D107: 11067 | E107: 0.595662 | F107: 17659.1913 | G107: 0
A108: P9947 | B108: Técnico florestal | C108: mês | D108: 3429.5822 | E108: 0.792466 | F108: 6147.4094 | G108: 0
A109: P9948 | B109: Motorista de veículo leve - mensalista | C109: mês | D109: 2255 | E109: 0.978131 | F109: 4460.6854 | G109: 0
A110: P9949 | B110: Topógrafo | C110: mês | D110: 3825.8 | E110: 0.768224 | F110: 6764.8713 | G110: 0
A111: P9950 | B111: Auxiliar de topografia | C111: mês | D111: 2255 | E111: 0.999526 | F111: 4508.9311 | G111: 0
A112: P9951 | B112: Médico de câmara hiperbárica | C112: mês | D112: 9843.5398 | E112: 0.784348 | F112: 18085.0238 | G112: 0.0529
A113: P9952 | B113: Pedreiro - mensalista | C113: mês | D113: 1696.0397 | E113: 1.175221 | F113: 3689.2611 | G113: 0
A114: P9953 | B114: Eletricista - mensalista | C114: mês | D114: 1939.4979 | E114: 1.148109 | F114: 4166.2528 | G114: 0
A115: P9954 | B115: Servente - mensalista | C115: mês | D115: 1302 | E115: 1.365439 | F115: 3079.8015 | G115: 0
A116: P9955 | B116: Engenheiro chefe | C116: mês | D116: 16616.8328 | E116: 0.569523 | F116: 26080.5012 | G116: 0
A117: P9956 | B117: Motorista de caminhão com periculosidade | C117: h | D117: 8.3823 | E117: 1.720226 | F117: 25.3164 | G117: 0.3
A118: P9972 | B118: Técnico de batimetria | C118: mês | D118: 2563.4643 | E118: 0.934993 | F118: 4960.2854 | G118: 0

Sheet Encargos D (hidden)
A1: CGCIT | B1: SISTEMA DE CUSTOS REFERENCIAIS DE OBRAS - SICRO | AD1: DNIT
A4: Alagoas - Abril/2023
A5: Com desoneração
A7: Código | B7: Descrição | C7: Unid. | D7: Encargos Sociais (%) | M7: Encargos Trabalhistas (%) | W7: Verbas Rescisórias (%) | AB7: Reincidências (%) | AD7: Total (%)
D8: A1 | E8: A2 | F8: A3 | G8: A4 | H8: A5 | I8: A6 | J8: A7 | K8: A8 | L8: A9 | M8: B1 | N8: B2 | O8: B3 | P8: B4 | Q8: B5 | R8: B6 | S8: B7 | T8: B8 | U8: B9 | V8: B10 | W8: C1 | X8: C2 | Y8: C3 | Z8: C4 | AA8: C5 | AB8: D1 | AC8: D2
A9: P9801 | B9: Ajudante | C9: h | D9: 0 | E9: 0.08 | F9: 0.025 | G9: 0.015 | H9: 0.016 | I9: 0.002 | J9: 0.03 | K9: 0 | L9: 0 | M9: 0.1859940741 | N9: 0.05147684599 | O9: 0.06299228189 | P9: 0.009151259767 | Q9: 0.0004604150413 | R9: 0.001134280298 | S9: 0.09241479096 | T9: 0.007427315322 | U9: 1.412335185e-05 | V9: 0 | W9: 0.04399027598 | X9: 0.001110870604 | Y9: 0.0602274394 | Z9: 0.04515409238 | AA9: 0.009284144153 | AB9: 0.06905898498 | AC9: 0.00370584834 | AD9: 0.8116
A10: P9802 | B10: Ajudante especializado | C10: h | D10: 0 | E10: 0.08 | F10: 0.025 | G10: 0.015 | H10: 0.016 | I10: 0.002 | J10: 0.03 | K10: 0 | L10: 0 | M10: 0.1859940741 | N10: 0.05147684599 | O10: 0.06299228189 | P10: 0.009151259767 | Q10: 0.0004604150413 | R10: 0.001134280298 | S10: 0.09241479096 | T10: 0.007427315322 | U10: 1.412335185e-05 | V10: 0 | W10: 0.04399027598 | X10: 0.001110870604 | Y10: 0.0602274394 | Z10: 0.04515409238 | AA10: 0.009284144153 | AB10: 0.06905898498 | AC10: 0.00370584834 | AD10: 0.8116
A11: P9803 | B11: Almoxarife | C11: mês | D11: 0 | E11: 0.08 | F11: 0.025 | G11: 0.015 | H11: 0.016 | I11: 0.002 | J11: 0.03 | K11: 0.001111111111 | L11: 0 | M11: 0 | N11: 0 | O11: 0.07477796232 | P11: 0.008741601835 | Q11: 0.0004602106401 | R11: 0.0009357895161 | S11: 0.09237376343 | T11: 0.007424017967 | U11: 0.000173456898 | V11: 0 | W11: 0.03535772638 | X11: 0.0008928759368 | Y11: 0.04838705559 | Z11: 0.03791637768 | AA11: 0.009280022458 | AB11: 0.03126641262 | AC11: 0.002979613352 | AD11: 0.5201
A12: P9804 | B12: Apontador | C12: mês | D12: 0 | E12: 0.08 | F12: 0.025 | G12: 0.015 | H12: 0.016 | I12: 0.002 | J12: 0.03 | K12: 0 | L12: 0 | M12: 0 | N12: 0 | O12: 0.07864033481 | P12: 0.009151367537 | Q12: 0.0004604204634 | R12: 0.001002703404 | S12: 0.09241587929 | T12: 0.00742740279 | U12: 0.0001572069365 | V12: 0 | W12: 0.03256157448 | X12: 0.0008222657194 | Y12: 0.04458083758 | Z12: 0.03805617009 | AA12: 0.009284253488 | AB12: 0.03179489296 | AC12: 0.002743066599 | AD12: 0.5171
A13: P9805 | B13: Armador | C13: h | D13: 0 | E13: 0.08 | F13: 0.025 | G13: 0.015 | H13: 0.016 | I13: 0.002 | J13: 0.03 | K13: 0.001111111111 | L13: 0 | M13: 0.1850834971 | N13: 0.05122146322 | O13: 0.05676136981 | P13: 0.008740283976 | Q13: 0.0004601412601 | R13: 0.0009509135446 | S13: 0.09235983743 | T13: 0.007422898743 | U13: 7.718596332e-06 | V13: 0 | W13: 0.04447362561 | X13: 0.001225174319 | Y13: 0.0663850801 | Z13: 0.04489625996 | AA13: 0.009278623429 | AB13: 0.06815315157 | AC13: 0.003765080639 | AD13: 0.8103
A14: P9806 | B14: Auxiliar administrativo | C14: mês | D14: 0 | E14: 0.08 | F14: 0.025 | G14: 0.015 | H14: 0.016 | I14: 0.002 | J14: 0.03 | K14: 0 | L14: 0 | M14: 0 | N14: 0 | O14: 0.0681007239 | P14: 0.009159132168 | Q14: 0.0004608111149 | R14: 0.0006557377377 | S14: 0.09249429109 | T14: 0.007433704695 | U14: 0.001352164096 | V14: 0 | W14: 0.04030180989 | X14: 0.001017727098 | Y14: 0.05522499756 | Z14: 0.03774901007 | AA14: 0.009292130868 | AB14: 0.03018230289 | AC14: 0.003395122943 | AD14: 0.5248
A15: P9807 | B15: Bombeiro hidráulico | C15: h | D15: 0 | E15: 0.08 | F15: 0.025 | G15: 0.015 | H15: 0.016 | I15: 0.002 | J15: 0.03 | K15: 0.001111111111 | L15: 0 | M15: 0.1870678078 | N15: 0.05177897783 | O15: 0.07208114341 | P15: 0.008740555999 | Q15: 0.000460155581 | R15: 0.0009741716227 | S15: 0.09236271194 | T15: 0.007423129765 | U15: 1.559755542e-05 | V15: 0 | W15: 0.03732206236 | X15: 0.0009424806061 | Y15: 0.05106913917 | Z15: 0.04546893605 | AA15: 0.009278912207 | AB15: 0.07117958565 | AC15: 0.003145148931 | AD15: 0.8084
A16: P9808 | B16: Carpinteiro | C16: h | D16: 0 | E16: 0.08 | F16: 0.025 | G16: 0.015 | H16: 0.016 | I16: 0.002 | J16: 0.03 | K16: 0 | L16: 0 | M16: 0.1867051586 | N16: 0.05167680451 | O16: 0.0687835498 | P16: 0.009149358862 | Q16: 0.0004603194036 | R16: 0.0009172002715 | S16: 0.09239559451 | T16: 0.007425772516 | U16: 2.323367909e-05 | V16: 0 | W16: 0.03974988108 | X16: 0.001003789438 | Y16: 0.05441057621 | Z16: 0.04536118375 | AA16: 0.009282215645 | AB16: 0.07014621468 | AC16: 0.003348627112 | AD16: 0.8088
A17: P9809 | B17: Encarregado administrativo | C17: mês | D17: 0 | E17: 0.08 | F17: 0.025 | G17: 0.015 | H17: 0.016 | I17: 0.002 | J17: 0.03 | K17: 0.001111111111 | L17: 0 | M17: 0 | N17: 0 | O17: 0.08233441816 | P17: 0.008742122809 | Q17: 0.0004602380674 | R17: 0.0007186071849 | S17: 0.09237926864 | T17: 0.007424460417 | U17: 0.0004499802008 | V17: 0 | W17: 0.03232623952 | X17: 0.0007535288218 | Y17: 0.04083794003 | Z17: 0.03816029106 | AA17: 0.009280575521 | AB17: 0.03255542704 | AC17: 0.002713529258 | AD17: 0.5182
A18: P9810 | B18: Eletricista | C18: h | D18: 0 | E18: 0.08 | F18: 0.025 | G18: 0.015 | H18: 0.016 | I18: 0.002 | J18: 0.03 | K18: 0 | L18: 0 | M18: 0.1875383843 | N18: 0.05191083308 | O18: 0.07508333868 | P18: 0.009150362882 | Q18: 0.0004603699176 | R18: 0.001050316486 | S18: 0.0924057337 | T18: 0.007426587396 | U18: 0 | V18: 0 | W18: 0.03515356182 | X18: 0.0008877202426 | Y18: 0.04812430625 | Z18: 0.04560082965 | AA18: 0.009283234245 | AB18: 0.07140435564 | AC18: 0.002961421946 | AD18: 0.8064
A19: P9811 | B19: Encarregado especializado | C19: mês | D19: 0 | E19: 0.08 | F19: 0.025 | G19: 0.015 | H19: 0.016 | I19: 0.002 | J19: 0.03 | K19: 0 | L19: 0 | M19: 0 | N19: 0 | O19: 0.07757723088 | P19: 0.009148144888 | Q19: 0.0004602583266 | R19: 0.0007854517035 | S19: 0.0923833351 | T19: 0.007424787235 | U19: 2.218125913e-05 | V19: 0 | W19: 0.03331809867 | X19: 0.0008413699524 | Y19: 0.04560054925 | Z19: 0.03800964446 | AA19: 0.009280984044 | AB19: 0.03155063342 | AC19: 0.002806798045 | AD19: 0.5172
A20: P9812 | B20: Engenheiro | C20: mês | D20: 0 | E20: 0.08 | F20: 0.025 | G20: 0.015 | H20: 0.016 | I20: 0.002 | J20: 0.03 | K20: 0.001111111111 | L20: 0 | M20: 0 | N20: 0 | O20: 0.0842310039 | P20: 0.008741984251 | Q20: 0.0004602307728 | R20: 0.0007539300709 | S20: 0.09237780448 | T20: 0.007424342743 | U20: 0.0003988346972 | V20: 0 | W20: 0.03082389534 | X20: 0.0007185089848 | Y20: 0.03893940208 | Z20: 0.03822042019 | AA20: 0.009280428429 | AB20: 0.03287319281 | AC20: 0.00258741948 | AD20: 0.5169
A21: P9814 | B21: Operacional | C21: mês | D21: 0 | E21: 0.08 | F21: 0.025 | G21: 0.015 | H21: 0.016 | I21: 0.002 | J21: 0.03 | K21: 0.004148148148 | L21: 0 | M21: 0 | N21: 0 | O21: 0.05659587434 | P21: 0.007813031376 | Q21: 0.0003965596552 | R21: 0.001026195763 | S21: 0.09227986884 | T21: 0.007416471721 | U21: 4.855222291e-05 | V21: 0 | W21: 0.04455163956 | X21: 0.001227323473 | Y21: 0.06644395079 | Z21: 0.03729844973 | AA21: 0.009270589651 | AB21: 0.02850369713 | AC21: 0.003775412627 | AD21: 0.5288
A22: P9815 | B22: Jardineiro | C22: h | D22: 0 | E22: 0.08 | F22: 0.025 | G22: 0.015 | H22: 0.016 | I22: 0.002 | J22: 0.03 | K22: 0.004148148148 | L22: 0 | M22: 0.1866500791 | N22: 0.05166156572 | O22: 0.06877428113 | P22: 0.008807438367 | Q22: 0.0004601799202 | R22: 0.000899263695 | S22: 0.0923675973 | T22: 0.007423522399 | U22: 7.69230454e-05 | V22: 0 | W22: 0.03974142327 | X22: 0.001003575856 | Y22: 0.05438251527 | Z22: 0.04534786722 | AA22: 0.009279402999 | AB22: 0.071806582 | AC22: 0.003352077587 | AD22: 0.8142
A23: P9819 | B23: Engenheiro supervisor | C23: mês | D23: 0 | E23: 0.08 | F23: 0.025 | G23: 0.015 | H23: 0.016 | I23: 0.002 | J23: 0.03 | K23: 0.001111111111 | L23: 0 | M23: 0 | N23: 0 | O23: 0.0842310039 | P23: 0.008741984251 | Q23: 0.0004602307728 | R23: 0.0007539300709 | S23: 0.09237780448 | T23: 0.007424342743 | U23: 0.0003988346972 | V23: 0 | W23: 0.03082389534 | X23: 0.0007185089848 | Y23: 0.03893940208 | Z23: 0.03822042019 | AA23: 0.009280428429 | AB23: 0.03287319281 | AC23: 0.00258741948 | AD23: 0.5169
A24: P9821 | B24: Pedreiro | C24: h | D24: 0 | E24: 0.08 | F24: 0.025 | G24: 0.015 | H24: 0.016 | I24: 0.002 | J24: 0.03 | K24: 0 | L24: 0 | M24: 0.1858422976 | N24: 0.05143435315 | O24: 0.06208531409 | P24: 0.009149478058 | Q24: 0.0004603254006 | R24: 0.0009344591994 | S24: 0.09239679823 | T24: 0.007425869258 | U24: 1.902191611e-05 | V24: 0 | W24: 0.04464389696 | X24: 0.00112737626 | Y24: 0.06111041688 | Z24: 0.04511193334 | AA24: 0.009282336572 | AB24: 0.06883765003 | AC24: 0.003760910968 | AD24: 0.8116
A25: P9822 | B25: Pintor | C25: h | D25: 0 | E25: 0.08 | F25: 0.025 | G25: 0.015 | H25: 0.016 | I25: 0.002 | J25: 0.03 | K25: 0.001111111111 | L25: 0 | M25: 0.1848101251 | N25: 0.05114467702 | O25: 0.05468735224 | P25: 0.008740014443 | Q25: 0.0004601270703 | R25: 0.0009207400747 | S25: 0.09235698923 | T25: 0.007422669836 | U25: 7.026235816e-06 | V25: 0 | W25: 0.04586195075 | X25: 0.001263420364 | Y25: 0.06845530007 | Z25: 0.04481759108 | AA25: 0.009278337295 | AB25: 0.06773740841 | AC25: 0.003882614482 | AD25: 0.811
A26: P9823 | B26: Serralheiro | C26: h | D26: 0 | E26: 0.08 | F26: 0.025 | G26: 0.015 | H26: 0.016 | I26: 0.002 | J26: 0.03 | K26: 0.001111111111 | L26: 0 | M26: 0.1862232515 | N26: 0.05154166416 | O26: 0.06551504385 | P26: 0.008740730751 | Q26: 0.000460164781 | R26: 0.0009810533162 | S26: 0.09236455856 | T26: 0.007423278177 | U26: 2.870289944e-05 | V26: 0 | W26: 0.04212161972 | X26: 0.0010636821 | Y26: 0.0576377009 | Z26: 0.04522491034 | AA26: 0.009279097722 | AB26: 0.06988997754 | AC26: 0.003549610039 | AD26: 0.8112
A27: P9824 | B27: Servente | C27: h | D27: 0 | E27: 0.08 | F27: 0.025 | G27: 0.015 | H27: 0.016 | I27: 0.002 | J27: 0.03 | K27: 0 | L27: 0 | M27: 0.1859940741 | N27: 0.05147684599 | O27: 0.06299228189 | P27: 0.009151259767 | Q27: 0.0004604150413 | R27: 0.001134280298 | S27: 0.09241479096 | T27: 0.007427315322 | U27: 1.412335185e-05 | V27: 0 | W27: 0.04399027598 | X27: 0.001110870604 | Y27: 0.0602274394 | Z27: 0.04515409238 | AA27: 0.009284144153 | AB27: 0.06905898498 | AC27: 0.00370584834 | AD27: 0.8116
A28: P9825 | B28: Soldador | C28: h | D28: 0 | E28: 0.08 | F28: 0.025 | G28: 0.015 | H28: 0.016 | I28: 0.002 | J28: 0.03 | K28: 0.001111111111 | L28: 0 | M28: 0.1860137996 | N28: 0.05148281312 | O28: 0.06389243121 | P28: 0.008740737285 | Q28: 0.000460165125 | R28: 0.0009690894351 | S28: 0.09236462761 | T28: 0.007423283727 | U28: 4.139122862e-05 | V28: 0 | W28: 0.0433074596 | X28: 0.001093627688 | Y28: 0.05926040561 | Z28: 0.04516442683 | AA28: 0.009279104659 | AB28: 0.069570339 | AC28: 0.003649541361 | AD28: 0.8118
A29: P9826 | B29: Chefe setor de finanças | C29: mês | D29: 0 | E29: 0.08 | F29: 0.025 | G29: 0.015 | H29: 0.016 | I29: 0.002 | J29: 0.03 | K29: 0.004148148148 | L29: 0 | M29: 0 | N29: 0 | O29: 0.09909220647 | P29: 0.008815268327 | Q29: 0.0004605890278 | R29: 0.0003915551448 | S29: 0.09244971364 | T29: 0.007430122034 | U29: 0.001473499688 | V29: 0 | W29: 0.02206267367 | X29: 0.0004457126053 | Y29: 0.02417407838 | Z29: 0.03872361454 | AA29: 0.009287652543 | AB29: 0.03617055599 | AC29: 0.001841742494 | AD29: 0.515
A30: P9827 | B30: Vigia | C30: mês | D30: 0 | E30: 0.08 | F30: 0.025 | G30: 0.015 | H30: 0.016 | I30: 0.002 | J30: 0.03 | K30: 0 | L30: 0 | M30: 0 | N30: 0 | O30: 0.08509618366 | P30: 0.009150365876 | Q30: 0.0004603700682 | R30: 0.001050644031 | S30: 0.09240576393 | T30: 0.007426589826 | U30: 0 | V30: 0 | W30: 0.03015941251 | X30: 0.0007030198043 | Y30: 0.03811150158 | Z30: 0.03825887736 | AA30: 0.009283237282 | AB30: 0.03285910612 | AC30: 0.002530860328 | AD30: 0.5155
A31: P9830 | B31: Montador | C31: h | D31: 0 | E31: 0.08 | F31: 0.025 | G31: 0.015 | H31: 0.016 | I31: 0.002 | J31: 0.03 | K31: 0.001111111111 | L31: 0 | M31: 0.1854792259 | N31: 0.05133257461 | O31: 0.05968790496 | P31: 0.008741155436 | Q31: 0.000460187139 | R31: 0.001049127769 | S31: 0.09236904627 | T31: 0.007423638851 | U31: 9.301235953e-06 | V31: 0 | W31: 0.0425170266 | X31: 0.001171273274 | Y31: 0.0634708234 | Z31: 0.04500966919 | AA31: 0.009279548564 | AB31: 0.06875248787 | AC31: 0.003599437453 | AD31: 0.8095
A32: P9833 | B32: Auxiliar de laboratório | C32: mês | D32: 0 | E32: 0.08 | F32: 0.025 | G32: 0.015 | H32: 0.016 | I32: 0.002 | J32: 0.03 | K32: 0.001111111111 | L32: 0 | M32: 0 | N32: 0 | O32: 0.06548197109 | P32: 0.008740953824 | Q32: 0.0004601765249 | R32: 0.001006030688 | S32: 0.09236691581 | T32: 0.007423467628 | U32: 2.926988689e-05 | V32: 0 | W32: 0.04214701054 | X32: 0.001064323286 | Y32: 0.05767391666 | Z32: 0.03761628113 | AA32: 0.009279334535 | AB32: 0.02968048572 | AC32: 0.003551749737 | AD32: 0.5256
A33: P9836 | B33: Geólogo | C33: h | D33: 0 | E33: 0.08 | F33: 0.025 | G33: 0.015 | H33: 0.016 | I33: 0.002 | J33: 0.03 | K33: 0.004148148148 | L33: 0 | M33: 0.1879971202 | N33: 0.05203946499 | O33: 0.07817603783 | P33: 0.008814011148 | Q33: 0.0004605233415 | R33: 0.000728044976 | S33: 0.09243652904 | T33: 0.007429062397 | U33: 0.0009938365641 | V33: 0 | W33: 0.03291344982 | X33: 0.0008311515006 | Y33: 0.04507266755 | Z33: 0.04573038818 | AA33: 0.009286327996 | AB33: 0.07386440306 | AC33: 0.002776157177 | AD33: 0.8117
A34: P9837 | B34: Oceanógrafo | C34: mês | D34: 0 | E34: 0.08 | F34: 0.025 | G34: 0.015 | H34: 0.016 | I34: 0.002 | J34: 0.03 | K34: 0.004148148148 | L34: 0 | M34: 0 | N34: 0 | O34: 0.08086345214 | P34: 0.007817371986 | Q34: 0.0003967799681 | R34: 0.0008279575546 | S34: 0.09233113587 | T34: 0.007420592018 | U34: 0.0008017189234 | V34: 0 | W34: 0.03088361453 | X34: 0.0007798928007 | Y34: 0.04224472902 | Z34: 0.03809468827 | AA34: 0.009275740023 | AB34: 0.03278716561 | AC34: 0.002604946264 | AD34: 0.5193
A35: P9840 | B35: Encarregado geral | C35: mês | D35: 0 | E35: 0.08 | F35: 0.025 | G35: 0.015 | H35: 0.016 | I35: 0.002 | J35: 0.03 | K35: 0 | L35: 0 | M35: 0 | N35: 0 | O35: 0.07757723088 | P35: 0.009148144888 | Q35: 0.0004602583266 | R35: 0.0007854517035 | S35: 0.0923833351 | T35: 0.007424787235 | U35: 2.218125913e-05 | V35: 0 | W35: 0.03331809867 | X35: 0.0008413699524 | Y35: 0.04560054925 | Z35: 0.03800964446 | AA35: 0.009280984044 | AB35: 0.03155063342 | AC35: 0.002806798045 | AD35: 0.5172
A36: P9842 | B36: Faxineiro | C36: mês | D36: 0 | E36: 0.08 | F36: 0.025 | G36: 0.015 | H36: 0.016 | I36: 0.002 | J36: 0.03 | K36: 0.001111111111 | L36: 0 | M36: 0 | N36: 0 | O36: 0.06849555964 | P36: 0.008748266062 | Q36: 0.0004605614853 | R36: 0.0004383907937 | S36: 0.09244418528 | T36: 0.007429677724 | U36: 0.001433126331 | V36: 0 | W36: 0.03998657556 | X36: 0.001009766599 | Y36: 0.05476335408 | Z36: 0.03774239255 | AA36: 0.009287097155 | AB36: 0.03034694954 | AC36: 0.003369688796 | AD36: 0.5251
A37: P9843 | B37: Operador de equipamento leve | C37: h | D37: 0 | E37: 0.08 | F37: 0.025 | G37: 0.015 | H37: 0.016 | I37: 0.002 | J37: 0.03 | K37: 0 | L37: 0 | M37: 0.1877889488 | N37: 0.0519812502 | O37: 0.07704978083 | P37: 0.00915018635 | Q37: 0.0004603610359 | R37: 0.001031003812 | S37: 0.09240395097 | T37: 0.007426444119 | U37: 0 | V37: 0 | W37: 0.0337160408 | X37: 0.0008514190419 | Y37: 0.04615548713 | Z37: 0.04567334164 | AA37: 0.009283055149 | AB37: 0.07178504359 | AC37: 0.002840321663 | AD37: 0.8056
A38: P9844 | B38: Capitão fluvial | C38: mês | D38: 0 | E38: 0.08 | F38: 0.025 | G38: 0.015 | H38: 0.016 | I38: 0.002 | J38: 0.03 | K38: 0.004148148148 | L38: 0 | M38: 0 | N38: 0 | O38: 0.08622753974 | P38: 0.007811116024 | Q38: 0.0003964624393 | R38: 0.0005295537997 | S38: 0.09225724658 | T38: 0.007414653585 | U38: 0.0002995645767 | V38: 0 | W38: 0.02915427024 | X38: 0.0006795898079 | Y38: 0.03678212237 | Z38: 0.03823795638 | AA38: 0.009268316981 | AB38: 0.03355789495 | AC38: 0.002449331746 | AD38: 0.5172
A39: P9845 | B39: Operador de equipamento pesado | C39: h | D39: 0 | E39: 0.08 | F39: 0.025 | G39: 0.015 | H39: 0.016 | I39: 0.002 | J39: 0.03 | K39: 0 | L39: 0 | M39: 0.1877889488 | N39: 0.0519812502 | O39: 0.07704978083 | P39: 0.00915018635 | Q39: 0.0004603610359 | R39: 0.001031003812 | S39: 0.09240395097 | T39: 0.007426444119 | U39: 0 | V39: 0 | W39: 0.0337160408 | X39: 0.0008514190419 | Y39: 0.04615548713 | Z39: 0.04567334164 | AA39: 0.009283055149 | AB39: 0.07178504359 | AC39: 0.002840321663 | AD39: 0.8056
A40: P9846 | B40: Operador de equipamento especial | C40: h | D40: 0 | E40: 0.08 | F40: 0.025 | G40: 0.015 | H40: 0.016 | I40: 0.002 | J40: 0.03 | K40: 0 | L40: 0 | M40: 0.1877889488 | N40: 0.0519812502 | O40: 0.07704978083 | P40: 0.00915018635 | Q40: 0.0004603610359 | R40: 0.001031003812 | S40: 0.09240395097 | T40: 0.007426444119 | U40: 0 | V40: 0 | W40: 0.0337160408 | X40: 0.0008514190419 | Y40: 0.04615548713 | Z40: 0.04567334164 | AA40: 0.009283055149 | AB40: 0.07178504359 | AC40: 0.002840321663 | AD40: 0.8056
A41: P9847 | B41: Perfurador de tubulão | C41: h | D41: 0 | E41: 0.08 | F41: 0.025 | G41: 0.015 | H41: 0.016 | I41: 0.002 | J41: 0.03 | K41: 0 | L41: 0 | M41: 0.1859940741 | N41: 0.05147684599 | O41: 0.06299228189 | P41: 0.009151259767 | Q41: 0.0004604150413 | R41: 0.001134280298 | S41: 0.09241479096 | T41: 0.007427315322 | U41: 1.412335185e-05 | V41: 0 | W41: 0.04399027598 | X41: 0.001110870604 | Y41: 0.0602274394 | Z41: 0.04515409238 | AA41: 0.009284144153 | AB41: 0.06905898498 | AC41: 0.00370584834 | AD41: 0.8116
A42: P9848 | B42: Desenhista | C42: mês | D42: 0 | E42: 0.08 | F42: 0.025 | G42: 0.015 | H42: 0.016 | I42: 0.002 | J42: 0.03 | K42: 0.001111111111 | L42: 0 | M42: 0 | N42: 0 | O42: 0.0747696541 | P42: 0.008745780768 | Q42: 0.0004604306444 | R42: 0.0007597403017 | S42: 0.09241792282 | T42: 0.007427567028 | U42: 0.0008271547409 | V42: 0 | W42: 0.03538990385 | X42: 0.0008936885028 | Y42: 0.048454243 | Z42: 0.03793306401 | AA42: 0.009284458784 | AB42: 0.03135459523 | AC42: 0.002982324963 | AD42: 0.5208
A43: P9849 | B43: Condutor maquinista fluvial | C43: mês | D43: 0 | E43: 0.08 | F43: 0.025 | G43: 0.015 | H43: 0.016 | I43: 0.002 | J43: 0.03 | K43: 0.004148148148 | L43: 0 | M43: 0 | N43: 0 | O43: 0.07952751879 | P43: 0.007810808754 | Q43: 0.0003964468434 | R43: 0.0007532752582 | S43: 0.09225361741 | T43: 0.007414361911 | U43: 3.673502457e-05 | V43: 0 | W43: 0.03181141434 | X43: 0.0008033221955 | Y43: 0.04347730442 | Z43: 0.03802216845 | AA43: 0.009267952388 | AB43: 0.03239703582 | AC43: 0.002683203576 | AD43: 0.5188
A44: P9850 | B44: Copeiro | C44: mês | D44: 0 | E44: 0.08 | F44: 0.025 | G44: 0.015 | H44: 0.016 | I44: 0.002 | J44: 0.03 | K44: 0.001111111111 | L44: 0 | M44: 0 | N44: 0 | O44: 0.08473572918 | P44: 0.008747426723 | Q44: 0.0004605172974 | R44: 0.0001833694023 | S44: 0.09243531587 | T44: 0.007428964895 | U44: 0.001592697646 | V44: 0 | W44: 0.03046609485 | X44: 0.0007101686091 | Y44: 0.03851135864 | Z44: 0.03825868867 | AA44: 0.009286206119 | AB44: 0.03307543111 | AC44: 0.00255738499 | AD44: 0.5176
A45: P9851 | B45: Médico do trabalho | C45: mês | D45: 0 | E45: 0.08 | F45: 0.025 | G45: 0.015 | H45: 0.016 | I45: 0.002 | J45: 0.03 | K45: 0.004148148148 | L45: 0 | M45: 0 | N45: 0 | O45: 0.07512705388 | P45: 0.00880714678 | Q45: 0.000460164685 | R45: 0.0004259670664 | S45: 0.0923645393 | T45: 0.007423276629 | U45: 0.0005167783961 | V45: 0 | W45: 0.03509715335 | X45: 0.0008862957798 | Y45: 0.04802566518 | Z45: 0.03792399766 | AA45: 0.009279095786 | AB45: 0.03186891331 | AC45: 0.002960346445 | AD45: 0.5233
A46: P9852 | B46: Blaster | C46: h | D46: 0 | E46: 0.08 | F46: 0.025 | G46: 0.015 | H46: 0.016 | I46: 0.002 | J46: 0.03 | K46: 0.004148148148 | L46: 0 | M46: 0.1876994801 | N46: 0.05195644449 | O46: 0.07694237643 | P46: 0.008807159378 | Q46: 0.0004601653433 | R46: 0.0009446176766 | S46: 0.09236467141 | T46: 0.007423287247 | U46: 0 | V46: 0 | W46: 0.03377059617 | X46: 0.0008527967089 | Y46: 0.04621051879 | Z46: 0.04565114247 | AA46: 0.009279109059 | AB46: 0.0734380905 | AC46: 0.002848455068 | AD46: 0.8108
A47: P9853 | B47: Pré-marcador | C47: h | D47: 0 | E47: 0.08 | F47: 0.025 | G47: 0.015 | H47: 0.016 | I47: 0.002 | J47: 0.03 | K47: 0 | L47: 0 | M47: 0.1859940741 | N47: 0.05147684599 | O47: 0.06299228189 | P47: 0.009151259767 | Q47: 0.0004604150413 | R47: 0.001134280298 | S47: 0.09241479096 | T47: 0.007427315322 | U47: 1.412335185e-05 | V47: 0 | W47: 0.04399027598 | X47: 0.001110870604 | Y47: 0.0602274394 | Z47: 0.04515409238 | AA47: 0.009284144153 | AB47: 0.06905898498 | AC47: 0.00370584834 | AD47: 0.8116
A48: P9854 | B48: Recepcionista | C48: mês | D48: 0 | E48: 0.08 | F48: 0.025 | G48: 0.015 | H48: 0.016 | I48: 0.002 | J48: 0.03 | K48: 0.001111111111 | L48: 0 | M48: 0 | N48: 0 | O48: 0.07067850509 | P48: 0.008752064421 | Q48: 0.0004607614538 | R48: 0.000272526652 | S48: 0.09248432308 | T48: 0.007432903572 | U48: 0.002034135467 | V48: 0 | W48: 0.03841505096 | X48: 0.0009700814539 | Y48: 0.05263392569 | Z48: 0.03782768703 | AA48: 0.009291129465 | AB48: 0.03079770716 | AC48: 0.003237255629 | AD48: 0.5244
A49: P9855 | B49: Marinheiro de máquinas | C49: mês | D49: 0 | E49: 0.08 | F49: 0.025 | G49: 0.015 | H49: 0.016 | I49: 0.002 | J49: 0.03 | K49: 0.004148148148 | L49: 0 | M49: 0 | N49: 0 | O49: 0.08299464123 | P49: 0.007811757361 | Q49: 0.0003964949911 | R49: 0.0008627454517 | S49: 0.09226482142 | T49: 0.00741526237 | U49: 4.877988243e-05 | V49: 0 | W49: 0.03172213313 | X49: 0.0007394470238 | Y49: 0.04002512066 | Z49: 0.03813742409 | AA49: 0.009269077962 | AB49: 0.03301706847 | AC49: 0.002665065086 | AD49: 0.5195
A50: P9856 | B50: Marinheiro de convés | C50: h | D50: 0 | E50: 0.08 | F50: 0.025 | G50: 0.015 | H50: 0.016 | I50: 0.002 | J50: 0.03 | K50: 0.004148148148 | L50: 0 | M50: 0.1887492952 | N50: 0.05225222167 | O50: 0.08648978836 | P50: 0.007812144089 | Q50: 0.0003965146199 | R50: 0.0009141681159 | S50: 0.09226938908 | T50: 0.007415629469 | U50: 4.690667863e-05 | V50: 0 | W50: 0.0289554281 | X50: 0.000674954772 | Y50: 0.03653606374 | Z50: 0.04596307383 | AA50: 0.009269536836 | AB50: 0.07511616571 | AC50: 0.002432626462 | AD50: 0.8074
A51: P9857 | B51: Marinheiro de convés - mensalista | C51: mês | D51: 0 | E51: 0.08 | F51: 0.025 | G51: 0.015 | H51: 0.016 | I51: 0.002 | J51: 0.03 | K51: 0.004148148148 | L51: 0 | M51: 0 | N51: 0 | O51: 0.08648978836 | P51: 0.007812144089 | Q51: 0.0003965146199 | R51: 0.0009141681159 | S51: 0.09226938908 | T51: 0.007415629469 | U51: 4.690667863e-05 | V51: 0 | W51: 0.0289554281 | X51: 0.000674954772 | Y51: 0.03653606374 | Z51: 0.03825102529 | AA51: 0.009269536836 | AB51: 0.03362820088 | AC51: 0.002432626462 | AD51: 0.5172
A52: P9858 | B52: Laboratorista | C52: mês | D52: 0 | E52: 0.08 | F52: 0.025 | G52: 0.015 | H52: 0.016 | I52: 0.002 | J52: 0.03 | K52: 0.001111111111 | L52: 0 | M52: 0 | N52: 0 | O52: 0.06548197109 | P52: 0.008740953824 | Q52: 0.0004601765249 | R52: 0.001006030688 | S52: 0.09236691581 | T52: 0.007423467628 | U52: 2.926988689e-05 | V52: 0 | W52: 0.04214701054 | X52: 0.001064323286 | Y52: 0.05767391666 | Z52: 0.03761628113 | AA52: 0.009279334535 | AB52: 0.02968048572 | AC52: 0.003551749737 | AD52: 0.5256
A53: P9859 | B53: Trabalhador de via | C53: h | D53: 0 | E53: 0.08 | F53: 0.025 | G53: 0.015 | H53: 0.016 | I53: 0.002 | J53: 0.03 | K53: 0 | L53: 0 | M53: 0.1859940741 | N53: 0.05147684599 | O53: 0.06299228189 | P53: 0.009151259767 | Q53: 0.0004604150413 | R53: 0.001134280298 | S53: 0.09241479096 | T53: 0.007427315322 | U53: 1.412335185e-05 | V53: 0 | W53: 0.04399027598 | X53: 0.001110870604 | Y53: 0.0602274394 | Z53: 0.04515409238 | AA53: 0.009284144153 | AB53: 0.06905898498 | AC53: 0.00370584834 | AD53: 0.8116
A54: P9861 | B54: Selecionador de material pétreo | C54: h | D54: 0 | E54: 0.08 | F54: 0.025 | G54: 0.015 | H54: 0.016 | I54: 0.002 | J54: 0.03 | K54: 0 | L54: 0 | M54: 0.1859940741 | N54: 0.05147684599 | O54: 0.06299228189 | P54: 0.009151259767 | Q54: 0.0004604150413 | R54: 0.001134280298 | S54: 0.09241479096 | T54: 0.007427315322 | U54: 1.412335185e-05 | V54: 0 | W54: 0.04399027598 | X54: 0.001110870604 | Y54: 0.0602274394 | Z54: 0.04515409238 | AA54: 0.009284144153 | AB54: 0.06905898498 | AC54: 0.00370584834 | AD54: 0.8116
A55: P9864 | B55: Engenheiro de segurança do trabalho | C55: mês | D55: 0 | E55: 0.08 | F55: 0.025 | G55: 0.015 | H55: 0.016 | I55: 0.002 | J55: 0.03 | K55: 0.004148148148 | L55: 0 | M55: 0 | N55: 0 | O55: 0.07720457912 | P55: 0.008809344805 | Q55: 0.0004602795297 | R55: 0.0006539043584 | S55: 0.09238759098 | T55: 0.007425129278 | U55: 0.0005383853243 | V55: 0 | W55: 0.03359297569 | X55: 0.0008483113229 | Y55: 0.04597887553 | Z55: 0.03799933483 | AA55: 0.009281411597 | AB55: 0.0322741994 | AC55: 0.002833473279 | AD55: 0.5224
A56: P9865 | B56: Técnico em enfermagem | C56: mês | D56: 0 | E56: 0.08 | F56: 0.025 | G56: 0.015 | H56: 0.016 | I56: 0.002 | J56: 0.03 | K56: 0.004148148148 | L56: 0 | M56: 0 | N56: 0 | O56: 0.06546266849 | P56: 0.008818982625 | Q56: 0.0004607830962 | R56: 0.0002652741976 | S56: 0.09248866717 | T56: 0.007433252704 | U56: 0.002021996252 | V56: 0 | W56: 0.04222409125 | X56: 0.001066269777 | Y56: 0.0578555544 | Z56: 0.03766245199 | AA56: 0.009291565879 | AB56: 0.03046189448 | AC56: 0.003561483667 | AD56: 0.5312
A57: P9866 | B57: Motorista de caminhão | C57: h | D57: 0 | E57: 0.08 | F57: 0.025 | G57: 0.015 | H57: 0.016 | I57: 0.002 | J57: 0.03 | K57: 0 | L57: 0 | M57: 0.1884923412 | N57: 0.05217892041 | O57: 0.08255798432 | P57: 0.00914977088 | Q57: 0.000460340133 | R57: 0.0009855513928 | S57: 0.09239975531 | T57: 0.007426106917 | U57: 0 | V57: 0 | W57: 0.03216375984 | X57: 0.0007497413996 | Y57: 0.04064168943 | Z57: 0.04587682466 | AA57: 0.009282633646 | AB57: 0.07285332945 | AC57: 0.002699057343 | AD57: 0.8059
A58: P9867 | B58: Técnico especializado - mensalista | C58: mês | D58: 0 | E58: 0.08 | F58: 0.025 | G58: 0.015 | H58: 0.016 | I58: 0.002 | J58: 0.03 | K58: 0.001111111111 | L58: 0 | M58: 0 | N58: 0 | O58: 0.07025449209 | P58: 0.008745508574 | Q58: 0.0004604163144 | R58: 0.00075303559 | S58: 0.0924150465 | T58: 0.00742733586 | U58: 0.0008027349858 | V58: 0 | W58: 0.03868608094 | X58: 0.0009769256765 | Y58: 0.05296556991 | Z58: 0.03778747424 | AA58: 0.009284169825 | AB58: 0.03058519371 | AC58: 0.003260095462 | AD58: 0.5235
A59: P9869 | B59: Encarregado de obras de artes especiais | C59: mês | D59: 0 | E59: 0.08 | F59: 0.025 | G59: 0.015 | H59: 0.016 | I59: 0.002 | J59: 0.03 | K59: 0 | L59: 0 | M59: 0 | N59: 0 | O59: 0.07757723088 | P59: 0.009148144888 | Q59: 0.0004602583266 | R59: 0.0007854517035 | S59: 0.0923833351 | T59: 0.007424787235 | U59: 2.218125913e-05 | V59: 0 | W59: 0.03331809867 | X59: 0.0008413699524 | Y59: 0.04560054925 | Z59: 0.03800964446 | AA59: 0.009280984044 | AB59: 0.03155063342 | AC59: 0.002806798045 | AD59: 0.5172
A60: P9870 | B60: Motorista de veículo leve | C60: h | D60: 0 | E60: 0.08 | F60: 0.025 | G60: 0.015 | H60: 0.016 | I60: 0.002 | J60: 0.03 | K60: 0.001111111111 | L60: 0 | M60: 0.1872228242 | N60: 0.05182257637 | O60: 0.07335700467 | P60: 0.008740075091 | Q60: 0.0004601302631 | R60: 0.0008989171294 | S60: 0.09235763011 | T60: 0.007422721343 | U60: 3.574341391e-05 | V60: 0 | W60: 0.03638669475 | X60: 0.0009188601047 | Y60: 0.04978650215 | Z60: 0.04551416392 | AA60: 0.009278401678 | AB60: 0.07141860239 | AC60: 0.003066325033 | AD60: 0.8078
A61: P9871 | B61: Motorista de veículo especial | C61: h | D61: 0 | E61: 0.08 | F61: 0.025 | G61: 0.015 | H61: 0.016 | I61: 0.002 | J61: 0.03 | K61: 0 | L61: 0 | M61: 0.1884923412 | N61: 0.05217892041 | O61: 0.08255798432 | P61: 0.00914977088 | Q61: 0.000460340133 | R61: 0.0009855513928 | S61: 0.09239975531 | T61: 0.007426106917 | U61: 0 | V61: 0 | W61: 0.03216375984 | X61: 0.0007497413996 | Y61: 0.04064168943 | Z61: 0.04587682466 | AA61: 0.009282633646 | AB61: 0.07285332945 | AC61: 0.002699057343 | AD61: 0.8059
A62: P9875 | B62: Encarregado de turma | C62: mês | D62: 0 | E62: 0.08 | F62: 0.025 | G62: 0.015 | H62: 0.016 | I62: 0.002 | J62: 0.03 | K62: 0 | L62: 0 | M62: 0 | N62: 0 | O62: 0.07757723088 | P62: 0.009148144888 | Q62: 0.0004602583266 | R62: 0.0007854517035 | S62: 0.0923833351 | T62: 0.007424787235 | U62: 2.218125913e-05 | V62: 0 | W62: 0.03331809867 | X62: 0.0008413699524 | Y62: 0.04560054925 | Z62: 0.03800964446 | AA62: 0.009280984044 | AB62: 0.03155063342 | AC62: 0.002806798045 | AD62: 0.5172
A63: P9876 | B63: Técnico de segurança do trabalho | C63: mês | D63: 0 | E63: 0.08 | F63: 0.025 | G63: 0.015 | H63: 0.016 | I63: 0.002 | J63: 0.03 | K63: 0.001111111111 | L63: 0 | M63: 0 | N63: 0 | O63: 0.06440778714 | P63: 0.008746170508 | Q63: 0.0004604511626 | R63: 0.0006686603657 | S63: 0.09242204125 | T63: 0.007427898023 | U63: 0.0009628377601 | V63: 0 | W63: 0.04296007778 | X63: 0.00108485538 | Y63: 0.0588216012 | Z63: 0.03760306708 | AA63: 0.009284872529 | AB63: 0.0296106531 | AC63: 0.003620267321 | AD63: 0.5272
A64: P9878 | B64: Secretária | C64: mês | D64: 0 | E64: 0.08 | F64: 0.025 | G64: 0.015 | H64: 0.016 | I64: 0.002 | J64: 0.03 | K64: 0.004148148148 | L64: 0 | M64: 0 | N64: 0 | O64: 0.0840142094 | P64: 0.008819800243 | Q64: 0.0004608258159 | R64: 0.0002153483685 | S64: 0.09249724189 | T64: 0.007433941848 | U64: 0.002164985726 | V64: 0 | W64: 0.03108138105 | X64: 0.0007245110101 | Y64: 0.03931544645 | Z64: 0.03825940331 | AA64: 0.00929242731 | AB64: 0.03367327149 | AC64: 0.002611233713 | AD64: 0.5227
A65: P9880 | B65: Piloto fluvial | C65: mês | D65: 0 | E65: 0.08 | F65: 0.025 | G65: 0.015 | H65: 0.016 | I65: 0.002 | J65: 0.03 | K65: 0.004148148148 | L65: 0 | M65: 0 | N65: 0 | O65: 0.08622753974 | P65: 0.007811116024 | Q65: 0.0003964624393 | R65: 0.0005295537997 | S65: 0.09225724658 | T65: 0.007414653585 | U65: 0.0002995645767 | V65: 0 | W65: 0.02915427024 | X65: 0.0006795898079 | Y65: 0.03678212237 | Z65: 0.03823795638 | AA65: 0.009268316981 | AB65: 0.03355789495 | AC65: 0.002449331746 | AD65: 0.5172
A66: P9882 | B66: Técnico especializado | C66: h | D66: 0 | E66: 0.08 | F66: 0.025 | G66: 0.015 | H66: 0.016 | I66: 0.002 | J66: 0.03 | K66: 0.001111111111 | L66: 0 | M66: 0.1869325893 | N66: 0.05174054183 | O66: 0.07025449209 | P66: 0.008745508574 | Q66: 0.0004604163144 | R66: 0.00075303559 | S66: 0.0924150465 | T66: 0.00742733586 | U66: 0.0008027349858 | V66: 0 | W66: 0.03868608094 | X66: 0.0009769256765 | Y66: 0.05296556991 | Z66: 0.04542501443 | AA66: 0.009284169825 | AB66: 0.07094747212 | AC66: 0.003260095462 | AD66: 0.8102
A67: P9883 | B67: Chefe do setor administrativo | C67: mês | D67: 0 | E67: 0.08 | F67: 0.025 | G67: 0.015 | H67: 0.016 | I67: 0.002 | J67: 0.03 | K67: 0.001111111111 | L67: 0 | M67: 0 | N67: 0 | O67: 0.08233441816 | P67: 0.008742122809 | Q67: 0.0004602380674 | R67: 0.0007186071849 | S67: 0.09237926864 | T67: 0.007424460417 | U67: 0.0004499802008 | V67: 0 | W67: 0.03232623952 | X67: 0.0007535288218 | Y67: 0.04083794003 | Z67: 0.03816029106 | AA67: 0.009280575521 | AB67: 0.03255542704 | AC67: 0.002713529258 | AD67: 0.5182
A68: P9884 | B68: Encarregado de terraplenagem | C68: mês | D68: 0 | E68: 0.08 | F68: 0.025 | G68: 0.015 | H68: 0.016 | I68: 0.002 | J68: 0.03 | K68: 0 | L68: 0 | M68: 0 | N68: 0 | O68: 0.07757723088 | P68: 0.009148144888 | Q68: 0.0004602583266 | R68: 0.0007854517035 | S68: 0.0923833351 | T68: 0.007424787235 | U68: 2.218125913e-05 | V68: 0 | W68: 0.03331809867 | X68: 0.0008413699524 | Y68: 0.04560054925 | Z68: 0.03800964446 | AA68: 0.009280984044 | AB68: 0.03155063342 | AC68: 0.002806798045 | AD68: 0.5172
A69: P9885 | B69: Frentista de túnel | C69: h | D69: 0 | E69: 0.08 | F69: 0.025 | G69: 0.015 | H69: 0.016 | I69: 0.002 | J69: 0.03 | K69: 0 | L69: 0 | M69: 0.1859940741 | N69: 0.05147684599 | O69: 0.06299228189 | P69: 0.009151259767 | Q69: 0.0004604150413 | R69: 0.001134280298 | S69: 0.09241479096 | T69: 0.007427315322 | U69: 1.412335185e-05 | V69: 0 | W69: 0.04399027598 | X69: 0.001110870604 | Y69: 0.0602274394 | Z69: 0.04515409238 | AA69: 0.009284144153 | AB69: 0.06905898498 | AC69: 0.00370584834 | AD69: 0.8116
A70: P9889 | B70: Técnico da qualidade | C70: mês | D70: 0 | E70: 0.08 | F70: 0.025 | G70: 0.015 | H70: 0.016 | I70: 0.002 | J70: 0.03 | K70: 0.001111111111 | L70: 0 | M70: 0 | N70: 0 | O70: 0.07044496698 | P70: 0.008745410518 | Q70: 0.0004604111522 | R70: 0.0007400510831 | S70: 0.09241401034 | T70: 0.007427252584 | U70: 0.000804508185 | V70: 0 | W70: 0.03854638107 | X70: 0.0009733978859 | Y70: 0.05277371346 | Z70: 0.03779317155 | AA70: 0.00928406573 | AB70: 0.03061530241 | AC70: 0.003248322884 | AD70: 0.5234
A71: P9891 | B71: Engenheiro mecânico | C71: mês | D71: 0 | E71: 0.08 | F71: 0.025 | G71: 0.015 | H71: 0.016 | I71: 0.002 | J71: 0.03 | K71: 0.004148148148 | L71: 0 | M71: 0 | N71: 0 | O71: 0.08380502244 | P71: 0.008806745174 | Q71: 0.0004601437015 | R71: 0.0007572538338 | S71: 0.09236032747 | T71: 0.007422938127 | U71: 0.0001400768053 | V71: 0 | W71: 0.03114854333 | X71: 0.0007260765715 | Y71: 0.03934208085 | Z71: 0.03820008024 | AA71: 0.009278672659 | AB71: 0.03335413537 | AC71: 0.002616876204 | AD71: 0.5206
A72: P9892 | B72: Auxiliar de blaster | C72: h | D72: 0 | E72: 0.08 | F72: 0.025 | G72: 0.015 | H72: 0.016 | I72: 0.002 | J72: 0.03 | K72: 0.004148148148 | L72: 0 | M72: 0.1876994801 | N72: 0.05195644449 | O72: 0.07694237643 | P72: 0.008807159378 | Q72: 0.0004601653433 | R72: 0.0009446176766 | S72: 0.09236467141 | T72: 0.007423287247 | U72: 0 | V72: 0 | W72: 0.03377059617 | X72: 0.0008527967089 | Y72: 0.04621051879 | Z72: 0.04565114247 | AA72: 0.009279109059 | AB72: 0.0734380905 | AC72: 0.002848455068 | AD72: 0.8108
A73: P9893 | B73: Encarregado de pavimentação | C73: mês | D73: 0 | E73: 0.08 | F73: 0.025 | G73: 0.015 | H73: 0.016 | I73: 0.002 | J73: 0.03 | K73: 0 | L73: 0 | M73: 0 | N73: 0 | O73: 0.07757723088 | P73: 0.009148144888 | Q73: 0.0004602583266 | R73: 0.0007854517035 | S73: 0.0923833351 | T73: 0.007424787235 | U73: 2.218125913e-05 | V73: 0 | W73: 0.03331809867 | X73: 0.0008413699524 | Y73: 0.04560054925 | Z73: 0.03800964446 | AA73: 0.009280984044 | AB73: 0.03155063342 | AC73: 0.002806798045 | AD73: 0.5172
A74: P9896 | B74: Porteiro | C74: mês | D74: 0 | E74: 0.08 | F74: 0.025 | G74: 0.015 | H74: 0.016 | I74: 0.002 | J74: 0.03 | K74: 0.001111111111 | L74: 0 | M74: 0 | N74: 0 | O74: 0.0613440006 | P74: 0.008742101055 | Q74: 0.0004602369221 | R74: 0.0007181187816 | S74: 0.09237903876 | T74: 0.007424441942 | U74: 0.0004479805744 | V74: 0 | W74: 0.04141210725 | X74: 0.001140834586 | Y74: 0.06182805108 | Z74: 0.0374885094 | AA74: 0.009280552427 | AB74: 0.02900524757 | AC74: 0.003505896384 | AD74: 0.5243
A75: P9897 | B75: Técnico de meio ambiente | C75: mês | D75: 0 | E75: 0.08 | F75: 0.025 | G75: 0.015 | H75: 0.016 | I75: 0.002 | J75: 0.03 | K75: 0.004148148148 | L75: 0 | M75: 0 | N75: 0 | O75: 0.06473458019 | P75: 0.008815118402 | Q75: 0.0004605811943 | R75: 0.0005794329379 | S75: 0.0924481413 | T75: 0.007429995667 | U75: 0.001268266563 | V75: 0 | W75: 0.04273475377 | X75: 0.001079165354 | Y75: 0.05852960822 | Z75: 0.03762355572 | AA75: 0.009287494583 | AB75: 0.03025264698 | AC75: 0.003604556618 | AD75: 0.531
A76: P9900 | B76: Comprador | C76: mês | D76: 0 | E76: 0.08 | F76: 0.025 | G76: 0.015 | H76: 0.016 | I76: 0.002 | J76: 0.03 | K76: 0.001111111111 | L76: 0 | M76: 0 | N76: 0 | O76: 0.08378486462 | P76: 0.008744347092 | Q76: 0.000460355167 | R76: 0.0007275818128 | S76: 0.09240277296 | T76: 0.007426349443 | U76: 0.0006953703517 | V76: 0 | W76: 0.03119497441 | X76: 0.0007271588859 | Y76: 0.03941883265 | Z76: 0.03821573253 | AA76: 0.009282936804 | AB76: 0.03284841981 | AC76: 0.0026185686 | AD76: 0.5177
A77: P9901 | B77: Encarregado de superestrutura ferroviária | C77: mês | D77: 0 | E77: 0.08 | F77: 0.025 | G77: 0.015 | H77: 0.016 | I77: 0.002 | J77: 0.03 | K77: 0 | L77: 0 | M77: 0 | N77: 0 | O77: 0.07757723088 | P77: 0.009148144888 | Q77: 0.0004602583266 | R77: 0.0007854517035 | S77: 0.0923833351 | T77: 0.007424787235 | U77: 2.218125913e-05 | V77: 0 | W77: 0.03331809867 | X77: 0.0008413699524 | Y77: 0.04560054925 | Z77: 0.03800964446 | AA77: 0.009280984044 | AB77: 0.03155063342 | AC77: 0.002806798045 | AD77: 0.5172
A78: P9903 | B78: Auxiliar técnico | C78: mês | D78: 0 | E78: 0.08 | F78: 0.025 | G78: 0.015 | H78: 0.016 | I78: 0.002 | J78: 0.03 | K78: 0.001111111111 | L78: 0 | M78: 0 | N78: 0 | O78: 0.07025449209 | P78: 0.008745508574 | Q78: 0.0004604163144 | R78: 0.00075303559 | S78: 0.0924150465 | T78: 0.00742733586 | U78: 0.0008027349858 | V78: 0 | W78: 0.03868608094 | X78: 0.0009769256765 | Y78: 0.05296556991 | Z78: 0.03778747424 | AA78: 0.009284169825 | AB78: 0.03058519371 | AC78: 0.003260095462 | AD78: 0.5235
A79: P9907 | B79: Comandante de longo curso | C79: mês | D79: 0 | E79: 0.08 | F79: 0.025 | G79: 0.015 | H79: 0.016 | I79: 0.002 | J79: 0.03 | K79: 0.004148148148 | L79: 0 | M79: 0 | N79: 0 | O79: 0.08622753974 | P79: 0.007811116024 | Q79: 0.0003964624393 | R79: 0.0005295537997 | S79: 0.09225724658 | T79: 0.007414653585 | U79: 0.0002995645767 | V79: 0 | W79: 0.02915427024 | X79: 0.0006795898079 | Y79: 0.03678212237 | Z79: 0.03823795638 | AA79: 0.009268316981 | AB79: 0.03355789495 | AC79: 0.002449331746 | AD79: 0.5172
A80: P9908 | B80: Imediato | C80: mês | D80: 0 | E80: 0.08 | F80: 0.025 | G80: 0.015 | H80: 0.016 | I80: 0.002 | J80: 0.03 | K80: 0.004148148148 | L80: 0 | M80: 0 | N80: 0 | O80: 0.08622753974 | P80: 0.007811116024 | Q80: 0.0003964624393 | R80: 0.0005295537997 | S80: 0.09225724658 | T80: 0.007414653585 | U80: 0.0002995645767 | V80: 0 | W80: 0.02915427024 | X80: 0.0006795898079 | Y80: 0.03678212237 | Z80: 0.03823795638 | AA80: 0.009268316981 | AB80: 0.03355789495 | AC80: 0.002449331746 | AD80: 0.5172
A81: P9909 | B81: Oficial de náutica | C81: mês | D81: 0 | E81: 0.08 | F81: 0.025 | G81: 0.015 | H81: 0.016 | I81: 0.002 | J81: 0.03 | K81: 0.004148148148 | L81: 0 | M81: 0 | N81: 0 | O81: 0.08125971844 | P81: 0.007815352301 | Q81: 0.0003966774565 | R81: 0.0008336858348 | S81: 0.09230728133 | T81: 0.007418674844 | U81: 0.0005376422624 | V81: 0 | W81: 0.03057856633 | X81: 0.0007721895285 | Y81: 0.04181665667 | Z81: 0.03809820904 | AA81: 0.009273343556 | AB81: 0.03280610603 | AC81: 0.002579216304 | AD81: 0.5186
A82: P9910 | B82: Oficial de máquinas | C82: mês | D82: 0 | E82: 0.08 | F82: 0.025 | G82: 0.015 | H82: 0.016 | I82: 0.002 | J82: 0.03 | K82: 0.004148148148 | L82: 0 | M82: 0 | N82: 0 | O82: 0.08605484227 | P82: 0.007812396007 | Q82: 0.0003965274063 | R82: 0.0008073587677 | S82: 0.09227236449 | T82: 0.007415868601 | U82: 0.000185779699 | V82: 0 | W82: 0.02930232916 | X82: 0.0006830410805 | Y82: 0.03697497705 | Z82: 0.03823824439 | AA82: 0.009269835751 | AB82: 0.03355944437 | AC82: 0.00246177059 | AD82: 0.5176
A83: P9911 | B83: Condutor de máquinas | C83: mês | D83: 0 | E83: 0.08 | F83: 0.025 | G83: 0.015 | H83: 0.016 | I83: 0.002 | J83: 0.03 | K83: 0.004148148148 | L83: 0 | M83: 0 | N83: 0 | O83: 0.07952751879 | P83: 0.007810808754 | Q83: 0.0003964468434 | R83: 0.0007532752582 | S83: 0.09225361741 | T83: 0.007414361911 | U83: 3.673502457e-05 | V83: 0 | W83: 0.03181141434 | X83: 0.0008033221955 | Y83: 0.04347730442 | Z83: 0.03802216845 | AA83: 0.009267952388 | AB83: 0.03239703582 | AC83: 0.002683203576 | AD83: 0.5188
A84: P9912 | B84: Capitão fluvial com periculosidade | C84: h | D84: 0 | E84: 0.08 | F84: 0.025 | G84: 0.015 | H84: 0.016 | I84: 0.002 | J84: 0.03 | K84: 0.004148148148 | L84: 0 | M84: 0.1886920529 | N84: 0.05223624092 | O84: 0.08622753974 | P84: 0.007811116024 | Q84: 0.0003964624393 | R84: 0.0005295537997 | S84: 0.09225724658 | T84: 0.007414653585 | U84: 0.0002995645767 | V84: 0 | W84: 0.02915427024 | X84: 0.0006795898079 | Y84: 0.03678212237 | Z84: 0.04594766178 | AA84: 0.009268316981 | AB84: 0.07503325456 | AC84: 0.002449331746 | AD84: 0.8073
A85: P9913 | B85: Draguista | C85: mês | D85: 0 | E85: 0.08 | F85: 0.025 | G85: 0.015 | H85: 0.016 | I85: 0.002 | J85: 0.03 | K85: 0.004148148148 | L85: 0 | M85: 0 | N85: 0 | O85: 0.08622753974 | P85: 0.007811116024 | Q85: 0.0003964624393 | R85: 0.0005295537997 | S85: 0.09225724658 | T85: 0.007414653585 | U85: 0.0002995645767 | V85: 0 | W85: 0.02915427024 | X85: 0.0006795898079 | Y85: 0.03678212237 | Z85: 0.03823795638 | AA85: 0.009268316981 | AB85: 0.03355789495 | AC85: 0.002449331746 | AD85: 0.5172
A86: P9915 | B86: Maquinista | C86: h | D86: 0 | E86: 0.08 | F86: 0.025 | G86: 0.015 | H86: 0.016 | I86: 0.002 | J86: 0.03 | K86: 0.004148148148 | L86: 0 | M86: 0.172361225 | N86: 0.04764724247 | O86: 0 | P86: 0.008802172837 | Q86: 0.0004599048014 | R86: 0.0003778910829 | S86: 0.0923123753 | T86: 0.007419084243 | U86: 0 | V86: 0 | W86: 0.1 | X86: 0.003030316804 | Y86: 0.1230831671 | Z86: 0.04254015666 | AA86: 0.009273855304 | AB86: 0.05670213909 | AC86: 0.008521663426 | AD86: 0.8447
A87: P9916 | B87: Encarregado de conservação rodoviária | C87: mês | D87: 0 | E87: 0.08 | F87: 0.025 | G87: 0.015 | H87: 0.016 | I87: 0.002 | J87: 0.03 | K87: 0 | L87: 0 | M87: 0 | N87: 0 | O87: 0.07757723088 | P87: 0.009148144888 | Q87: 0.0004602583266 | R87: 0.0007854517035 | S87: 0.0923833351 | T87: 0.007424787235 | U87: 2.218125913e-05 | V87: 0 | W87: 0.03331809867 | X87: 0.0008413699524 | Y87: 0.04560054925 | Z87: 0.03800964446 | AA87: 0.009280984044 | AB87: 0.03155063342 | AC87: 0.002806798045 | AD87: 0.5172
A88: P9920 | B88: Mestre fluvial | C88: mês | D88: 0 | E88: 0.08 | F88: 0.025 | G88: 0.015 | H88: 0.016 | I88: 0.002 | J88: 0.03 | K88: 0.004148148148 | L88: 0 | M88: 0 | N88: 0 | O88: 0.08622753974 | P88: 0.007811116024 | Q88: 0.0003964624393 | R88: 0.0005295537997 | S88: 0.09225724658 | T88: 0.007414653585 | U88: 0.0002995645767 | V88: 0 | W88: 0.02915427024 | X88: 0.0006795898079 | Y88: 0.03678212237 | Z88: 0.03823795638 | AA88: 0.009268316981 | AB88: 0.03355789495 | AC88: 0.002449331746 | AD88: 0.5172
A89: P9921 | B89: Mergulhador raso autônomo de emergência | C89: h | D89: 0 | E89: 0.08 | F89: 0.025 | G89: 0.015 | H89: 0.016 | I89: 0.002 | J89: 0.03 | K89: 0.004148148148 | L89: 0.12 | M89: 0.1882475788 | N89: 0.05211118161 | O89: 0.08248055426 | P89: 0.007812853973 | Q89: 0.0003965506509 | R89: 0.0009862034856 | S89: 0.09227777352 | T89: 0.007416303322 | U89: 6.578386343e-05 | V89: 0 | W89: 0.03213875102 | X89: 0.0007491584407 | Y89: 0.0405564771 | Z89: 0.04581743307 | AA89: 0.009270379152 | AB89: 0.1261480464 | AC89: 0.002789965333 | AD89: 0.9814
A90: P9922 | B90: Mergulhador raso dependente de emergência | C90: h | D90: 0 | E90: 0.08 | F90: 0.025 | G90: 0.015 | H90: 0.016 | I90: 0.002 | J90: 0.03 | K90: 0.004148148148 | L90: 0 | M90: 0.1882475788 | N90: 0.05211118161 | O90: 0.08248055426 | P90: 0.007812853973 | Q90: 0.0003965506509 | R90: 0.0009862034856 | S90: 0.09227777352 | T90: 0.007416303322 | U90: 6.578386343e-05 | V90: 0 | W90: 0.03213875102 | X90: 0.0007491584407 | Y90: 0.0405564771 | Z90: 0.04581743307 | AA90: 0.009270379152 | AB90: 0.07433267236 | AC90: 0.00270006632 | AD90: 0.8095
A91: P9924 | B91: Mergulhador raso dependente | C91: h | D91: 0 | E91: 0.08 | F91: 0.025 | G91: 0.015 | H91: 0.016 | I91: 0.002 | J91: 0.03 | K91: 0.004148148148 | L91: 0 | M91: 0.1882475788 | N91: 0.05211118161 | O91: 0.08248055426 | P91: 0.007812853973 | Q91: 0.0003965506509 | R91: 0.0009862034856 | S91: 0.09227777352 | T91: 0.007416303322 | U91: 6.578386343e-05 | V91: 0 | W91: 0.03213875102 | X91: 0.0007491584407 | Y91: 0.0405564771 | Z91: 0.04581743307 | AA91: 0.009270379152 | AB91: 0.07433267236 | AC91: 0.00270006632 | AD91: 0.8095
A92: P9925 | B92: Mergulhador raso autônomo | C92: h | D92: 0 | E92: 0.08 | F92: 0.025 | G92: 0.015 | H92: 0.016 | I92: 0.002 | J92: 0.03 | K92: 0.004148148148 | L92: 0.12 | M92: 0.1882475788 | N92: 0.05211118161 | O92: 0.08248055426 | P92: 0.007812853973 | Q92: 0.0003965506509 | R92: 0.0009862034856 | S92: 0.09227777352 | T92: 0.007416303322 | U92: 6.578386343e-05 | V92: 0 | W92: 0.03213875102 | X92: 0.0007491584407 | Y92: 0.0405564771 | Z92: 0.04581743307 | AA92: 0.009270379152 | AB92: 0.1261480464 | AC92: 0.002789965333 | AD92: 0.9814
A93: P9926 | B93: Mergulhador raso auxiliar de superfície | C93: h | D93: 0 | E93: 0.08 | F93: 0.025 | G93: 0.015 | H93: 0.016 | I93: 0.002 | J93: 0.03 | K93: 0.004148148148 | L93: 0.12 | M93: 0.1882475788 | N93: 0.05211118161 | O93: 0.08248055426 | P93: 0.007812853973 | Q93: 0.0003965506509 | R93: 0.0009862034856 | S93: 0.09227777352 | T93: 0.007416303322 | U93: 6.578386343e-05 | V93: 0 | W93: 0.03213875102 | X93: 0.0007491584407 | Y93: 0.0405564771 | Z93: 0.04581743307 | AA93: 0.009270379152 | AB93: 0.1261480464 | AC93: 0.002789965333 | AD93: 0.9814
A94: P9927 | B94: Frentista de túnel com periculosidade | C94: h | D94: 0 | E94: 0.08 | F94: 0.025 | G94: 0.015 | H94: 0.016 | I94: 0.002 | J94: 0.03 | K94: 0 | L94: 0 | M94: 0.1859940741 | N94: 0.05147684599 | O94: 0.06299228189 | P94: 0.009151259767 | Q94: 0.0004604150413 | R94: 0.001134280298 | S94: 0.09241479096 | T94: 0.007427315322 | U94: 1.412335185e-05 | V94: 0 | W94: 0.04399027598 | X94: 0.001110870604 | Y94: 0.0602274394 | Z94: 0.04515409238 | AA94: 0.009284144153 | AB94: 0.06905898498 | AC94: 0.00370584834 | AD94: 0.8116
A95: P9928 | B95: Servente com periculosidade | C95: h | D95: 0 | E95: 0.08 | F95: 0.025 | G95: 0.015 | H95: 0.016 | I95: 0.002 | J95: 0.03 | K95: 0 | L95: 0 | M95: 0.1859940741 | N95: 0.05147684599 | O95: 0.06299228189 | P95: 0.009151259767 | Q95: 0.0004604150413 | R95: 0.001134280298 | S95: 0.09241479096 | T95: 0.007427315322 | U95: 1.412335185e-05 | V95: 0 | W95: 0.04399027598 | X95: 0.001110870604 | Y95: 0.0602274394 | Z95: 0.04515409238 | AA95: 0.009284144153 | AB95: 0.06905898498 | AC95: 0.00370584834 | AD95: 0.8116
A96: P9929 | B96: Bombeiro hidráulico com periculosidade | C96: h | D96: 0 | E96: 0.08 | F96: 0.025 | G96: 0.015 | H96: 0.016 | I96: 0.002 | J96: 0.03 | K96: 0.001111111111 | L96: 0 | M96: 0.1870678078 | N96: 0.05177897783 | O96: 0.07208114341 | P96: 0.008740555999 | Q96: 0.000460155581 | R96: 0.0009741716227 | S96: 0.09236271194 | T96: 0.007423129765 | U96: 1.559755542e-05 | V96: 0 | W96: 0.03732206236 | X96: 0.0009424806061 | Y96: 0.05106913917 | Z96: 0.04546893605 | AA96: 0.009278912207 | AB96: 0.07117958565 | AC96: 0.003145148931 | AD96: 0.8084
A97: P9930 | B97: Eletricista com periculosidade | C97: h | D97: 0 | E97: 0.08 | F97: 0.025 | G97: 0.015 | H97: 0.016 | I97: 0.002 | J97: 0.03 | K97: 0 | L97: 0 | M97: 0.1875383843 | N97: 0.05191083308 | O97: 0.07508333868 | P97: 0.009150362882 | Q97: 0.0004603699176 | R97: 0.001050316486 | S97: 0.0924057337 | T97: 0.007426587396 | U97: 0 | V97: 0 | W97: 0.03515356182 | X97: 0.0008877202426 | Y97: 0.04812430625 | Z97: 0.04560082965 | AA97: 0.009283234245 | AB97: 0.07140435564 | AC97: 0.002961421946 | AD97: 0.8064
A98: P9931 | B98: Operador de equipamento de mergulho | C98: h | D98: 0 | E98: 0.08 | F98: 0.025 | G98: 0.015 | H98: 0.016 | I98: 0.002 | J98: 0.03 | K98: 0.004148148148 | L98: 0.12 | M98: 0.1882475788 | N98: 0.05211118161 | O98: 0.08248055426 | P98: 0.007812853973 | Q98: 0.0003965506509 | R98: 0.0009862034856 | S98: 0.09227777352 | T98: 0.007416303322 | U98: 6.578386343e-05 | V98: 0 | W98: 0.03213875102 | X98: 0.0007491584407 | Y98: 0.0405564771 | Z98: 0.04581743307 | AA98: 0.009270379152 | AB98: 0.1261480464 | AC98: 0.002789965333 | AD98: 0.9814
A99: P9932 | B99: Operador de equipamento pesado com periculosidade | C99: h | D99: 0 | E99: 0.08 | F99: 0.025 | G99: 0.015 | H99: 0.016 | I99: 0.002 | J99: 0.03 | K99: 0 | L99: 0 | M99: 0.1877889488 | N99: 0.0519812502 | O99: 0.07704978083 | P99: 0.00915018635 | Q99: 0.0004603610359 | R99: 0.001031003812 | S99: 0.09240395097 | T99: 0.007426444119 | U99: 0 | V99: 0 | W99: 0.0337160408 | X99: 0.0008514190419 | Y99: 0.04615548713 | Z99: 0.04567334164 | AA99: 0.009283055149 | AB99: 0.07178504359 | AC99: 0.002840321663 | AD99: 0.8056
A100: P9933 | B100: Supervisor de mergulho raso | C100: mês | D100: 0 | E100: 0.08 | F100: 0.025 | G100: 0.015 | H100: 0.016 | I100: 0.002 | J100: 0.03 | K100: 0.004148148148 | L100: 0.12 | M100: 0 | N100: 0 | O100: 0.08248055426 | P100: 0.007812853973 | Q100: 0.0003965506509 | R100: 0.0009862034856 | S100: 0.09227777352 | T100: 0.007416303322 | U100: 6.578386343e-05 | V100: 0 | W100: 0.03213875102 | X100: 0.0007491584407 | Y100: 0.0405564771 | Z100: 0.03812595274 | AA100: 0.009270379152 | AB100: 0.05592767963 | AC100: 0.002789965333 | AD100: 0.6631
A101: P9934 | B101: Motorista de veículo especial com periculosidade | C101: h | D101: 0 | E101: 0.08 | F101: 0.025 | G101: 0.015 | H101: 0.016 | I101: 0.002 | J101: 0.03 | K101: 0 | L101: 0 | M101: 0.1884923412 | N101: 0.05217892041 | O101: 0.08255798432 | P101: 0.00914977088 | Q101: 0.000460340133 | R101: 0.0009855513928 | S101: 0.09239975531 | T101: 0.007426106917 | U101: 0 | V101: 0 | W101: 0.03216375984 | X101: 0.0007497413996 | Y101: 0.04064168943 | Z101: 0.04587682466 | AA101: 0.009282633646 | AB101: 0.07285332945 | AC101: 0.002699057343 | AD101: 0.8059
A102: P9938 | B102: Operador de equipamento leve com periculosidade | C102: h | D102: 0 | E102: 0.08 | F102: 0.025 | G102: 0.015 | H102: 0.016 | I102: 0.002 | J102: 0.03 | K102: 0 | L102: 0 | M102: 0.1877889488 | N102: 0.0519812502 | O102: 0.07704978083 | P102: 0.00915018635 | Q102: 0.0004603610359 | R102: 0.001031003812 | S102: 0.09240395097 | T102: 0.007426444119 | U102: 0 | V102: 0 | W102: 0.0337160408 | X102: 0.0008514190419 | Y102: 0.04615548713 | Z102: 0.04567334164 | AA102: 0.009283055149 | AB102: 0.07178504359 | AC102: 0.002840321663 | AD102: 0.8056
A103: P9939 | B103: Operador de equipamento leve com insalubridade | C103: h | D103: 0 | E103: 0.08 | F103: 0.025 | G103: 0.015 | H103: 0.016 | I103: 0.002 | J103: 0.03 | K103: 0 | L103: 0.12 | M103: 0.1877889488 | N103: 0.0519812502 | O103: 0.07704978083 | P103: 0.00915018635 | Q103: 0.0004603610359 | R103: 0.001031003812 | S103: 0.09240395097 | T103: 0.007426444119 | U103: 0 | V103: 0 | W103: 0.0337160408 | X103: 0.0008514190419 | Y103: 0.04615548713 | Z103: 0.04567334164 | AA103: 0.009283055149 | AB103: 0.1230600747 | AC103: 0.002942491948 | AD103: 0.977
A104: P9940 | B104: Piloto fluvial com periculosidade | C104: h | D104: 0 | E104: 0.08 | F104: 0.025 | G104: 0.015 | H104: 0.016 | I104: 0.002 | J104: 0.03 | K104: 0.004148148148 | L104: 0 | M104: 0.1886920529 | N104: 0.05223624092 | O104: 0.08622753974 | P104: 0.007811116024 | Q104: 0.0003964624393 | R104: 0.0005295537997 | S104: 0.09225724658 | T104: 0.007414653585 | U104: 0.0002995645767 | V104: 0 | W104: 0.02915427024 | X104: 0.0006795898079 | Y104: 0.03678212237 | Z104: 0.04594766178 | AA104: 0.009268316981 | AB104: 0.07503325456 | AC104: 0.002449331746 | AD104: 0.8073
A105: P9941 | B105: Mestre fluvial com periculosidade | C105: h | D105: 0 | E105: 0.08 | F105: 0.025 | G105: 0.015 | H105: 0.016 | I105: 0.002 | J105: 0.03 | K105: 0.004148148148 | L105: 0 | M105: 0.1886920529 | N105: 0.05223624092 | O105: 0.08622753974 | P105: 0.007811116024 | Q105: 0.0003964624393 | R105: 0.0005295537997 | S105: 0.09225724658 | T105: 0.007414653585 | U105: 0.0002995645767 | V105: 0 | W105: 0.02915427024 | X105: 0.0006795898079 | Y105: 0.03678212237 | Z105: 0.04594766178 | AA105: 0.009268316981 | AB105: 0.07503325456 | AC105: 0.002449331746 | AD105: 0.8073
A106: P9942 | B106: Marinheiro de convés com periculosidade | C106: h | D106: 0 | E106: 0.08 | F106: 0.025 | G106: 0.015 | H106: 0.016 | I106: 0.002 | J106: 0.03 | K106: 0.004148148148 | L106: 0 | M106: 0.1887492952 | N106: 0.05225222167 | O106: 0.08648978836 | P106: 0.007812144089 | Q106: 0.0003965146199 | R106: 0.0009141681159 | S106: 0.09226938908 | T106: 0.007415629469 | U106: 4.690667863e-05 | V106: 0 | W106: 0.0289554281 | X106: 0.000674954772 | Y106: 0.03653606374 | Z106: 0.04596307383 | AA106: 0.009269536836 | AB106: 0.07511616571 | AC106: 0.002432626462 | AD106: 0.8074
A107: P9943 | B107: Técnico de batimetria com periculosidade | C107: h | D107: 0 | E107: 0.08 | F107: 0.025 | G107: 0.015 | H107: 0.016 | I107: 0.002 | J107: 0.03 | K107: 0.004148148148 | L107: 0 | M107: 0.187996242 | N107: 0.05204062506 | O107: 0.08064462044 | P107: 0.007812229343 | Q107: 0.0003965189471 | R107: 0.0009348203065 | S107: 0.09227039601 | T107: 0.007415710396 | U107: 3.719422945e-05 | V107: 0 | W107: 0.03100478469 | X107: 0.0007829526672 | Y107: 0.04238257425 | Z107: 0.04574554741 | AA107: 0.009269637995 | AB107: 0.07394595415 | AC107: 0.002615166627 | AD107: 0.8074
A108: P9944 | B108: Operador de equipamento especial com periculosidade | C108: h | D108: 0 | E108: 0.08 | F108: 0.025 | G108: 0.015 | H108: 0.016 | I108: 0.002 | J108: 0.03 | K108: 0 | L108: 0 | M108: 0.1877889488 | N108: 0.0519812502 | O108: 0.07704978083 | P108: 0.00915018635 | Q108: 0.0004603610359 | R108: 0.001031003812 | S108: 0.09240395097 | T108: 0.007426444119 | U108: 0 | V108: 0 | W108: 0.0337160408 | X108: 0.0008514190419 | Y108: 0.04615548713 | Z108: 0.04567334164 | AA108: 0.009283055149 | AB108: 0.07178504359 | AC108: 0.002840321663 | AD108: 0.8056
A109: P9945 | B109: Draguista com periculosidade | C109: h | D109: 0 | E109: 0.08 | F109: 0.025 | G109: 0.015 | H109: 0.016 | I109: 0.002 | J109: 0.03 | K109: 0.004148148148 | L109: 0 | M109: 0.1886920529 | N109: 0.05223624092 | O109: 0.08622753974 | P109: 0.007811116024 | Q109: 0.0003964624393 | R109: 0.0005295537997 | S109: 0.09225724658 | T109: 0.007414653585 | U109: 0.0002995645767 | V109: 0 | W109: 0.02915427024 | X109: 0.0006795898079 | Y109: 0.03678212237 | Z109: 0.04594766178 | AA109: 0.009268316981 | AB109: 0.07503325456 | AC109: 0.002449331746 | AD109: 0.8073
A110: P9946 | B110: Engenheiro auxiliar | C110: mês | D110: 0 | E110: 0.08 | F110: 0.025 | G110: 0.015 | H110: 0.016 | I110: 0.002 | J110: 0.03 | K110: 0.001111111111 | L110: 0 | M110: 0 | N110: 0 | O110: 0.0842310039 | P110: 0.008741984251 | Q110: 0.0004602307728 | R110: 0.0007539300709 | S110: 0.09237780448 | T110: 0.007424342743 | U110: 0.0003988346972 | V110: 0 | W110: 0.03082389534 | X110: 0.0007185089848 | Y110: 0.03893940208 | Z110: 0.03822042019 | AA110: 0.009280428429 | AB110: 0.03287319281 | AC110: 0.00258741948 | AD110: 0.5169
A111: P9947 | B111: Técnico florestal | C111: mês | D111: 0 | E111: 0.08 | F111: 0.025 | G111: 0.015 | H111: 0.016 | I111: 0.002 | J111: 0.03 | K111: 0.004148148148 | L111: 0 | M111: 0 | N111: 0 | O111: 0.06473458019 | P111: 0.008815118402 | Q111: 0.0004605811943 | R111: 0.0005794329379 | S111: 0.0924481413 | T111: 0.007429995667 | U111: 0.001268266563 | V111: 0 | W111: 0.04273475377 | X111: 0.001079165354 | Y111: 0.05852960822 | Z111: 0.03762355572 | AA111: 0.009287494583 | AB111: 0.03025264698 | AC111: 0.003604556618 | AD111: 0.531
A112: P9948 | B112: Motorista de veículo leve - mensalista | C112: mês | D112: 0 | E112: 0.08 | F112: 0.025 | G112: 0.015 | H112: 0.016 | I112: 0.002 | J112: 0.03 | K112: 0.001111111111 | L112: 0 | M112: 0 | N112: 0 | O112: 0.07335700467 | P112: 0.008740075091 | Q112: 0.0004601302631 | R112: 0.0008989171294 | S112: 0.09235763011 | T112: 0.007422721343 | U112: 3.574341391e-05 | V112: 0 | W112: 0.03638669475 | X112: 0.0009188601047 | Y112: 0.04978650215 | Z112: 0.0378647111 | AA112: 0.009278401678 | AB112: 0.0309933691 | AC112: 0.003066325033 | AD112: 0.5207
